Workbook

Sheet INTRO
B3: Échelle | C3: 1 à 5
B4: Limites | C4: 200 questions
C5: 50 membres du panel
C7: Les réponses manquantes ne sont pas comptées dans le score total
B8: ONGLETS
A9: 1 | B9: PANEL | C9: réponses du panel, maximum 50 répondants
A10: 2 | B10: RÉPONDANTS | C10: réponses des répondants, maximum 200 répondants
A11: 3 | B11: ITEMS STATS | C11: présente les données de fidélité des items
A12: 4 | B12: RÉPONDANTS STATS | C12: présente les résultats des répondants
A13: 5 | B13: GRAPHIQUE | C13: présente les courbes de discrimination des items
A14: 6 | B14: OPTIMISATION | C14: permet d'exclure des questions du calcul de fidelité
B20: Attention, le calculateur n'est pas approprié pour calculer les scores TCS des membres du panel

Sheet INSTRUCTIONS
A1: Onglets
A4: Données
A6: Panel | B6: - insérer les données du panel
B7: - maximum 50 membres; 200 questions
A9: Répondants | B9: - insérer les données des répondants
B10: - maximum 200 répondants; 200 questions
A13: Résultats
A15: Scores TCS | B15: - scores des répondants
A18: Items stats | B18: - affiche les résultats de l'analyse d'items
B20: - alpha de Cronbach
B21: - alpha de Cronbach avec un nombre différents d'items semblables
B23: - info sur les corrélations items/total non corrigées
B24: - qualification des corrélations selon des critères modifiables
B25: - par défaut, les corrélations faibles sont fixées à <0,05 et les bonnes corrélations >0,15
B26: - ces critères peuvent être modifiés
B28: - variance de la réponse du panel
A31: Graphique | B31: - profil des réponses à chaque question selon trois groupes de répondants
B32: - toujours activer le "bouton" ACTUALISER LES DONNÉES
A35: Optimisation | B35: - permet de recalculer le coefficient alpha et les corrélations item/total en excluant des items problématiques
A39: Profil des réponses | B39: - présente les statistiques sur les réponses des répondants et du panel

Sheet panel
A1: panel | B1: q1 | C1: q2 | D1: q3 | E1: q4 | F1: q5 | G1: q6 | H1: q7 | I1: q8 | J1: q9 | K1: q10 | L1: q11 | M1: q12 | N1: q13 | O1: q14 | P1: q15 | Q1: q16 | R1: q17 | S1: q18 | T1: q19 | U1: q20 | V1: q21 | W1: q22 | X1: q23 | Y1: q24 | Z1: q25 | AA1: q26 | AB1: q27 | AC1: q28 | AD1: q29 | AE1: q30 | AF1: q31 | AG1: q32 | AH1: q33 | AI1: q34 | AJ1: q35 | AK1: q36 | AL1: q37 | AM1: q38 | AN1: q39 | AO1: q40 | AP1: q41 | AQ1: q42 | AR1: q43 | AS1: q44 | AT1: q45 | AU1: q46 | AV1: q47 | AW1: q48 | AX1: q49 | AY1: q50 | AZ1: q51 | BA1: q52 | BB1: q53 | BC1: q54 | BD1: q55 | BE1: q56 | BF1: q57 | BG1: q58 | BH1: q59 | BI1: q60 | BJ1: q61 | BK1: q62 | BL1: q63 | BM1: q64 | BN1: q65 | BO1: q66 | BP1: q67 | BQ1: q68 | BR1: q69 | BS1: q70 | BT1: q71 | BU1: q72 | BV1: q73 | BW1: q74 | BX1: q75 | BY1: q76 | BZ1: q77 | CA1: q78 | CB1: q79 | CC1: q80 | CD1: q81 | CE1: q82 | CF1: q83 | CG1: q84 | CH1: q85 | CI1: q86 | CJ1: q87 | CK1: q88 | CL1: q89 | CM1: q90 | CN1: q91 | CO1: q92 | CP1: q93 | CQ1: q94 | CR1: q95 | CS1: q96 | CT1: q97 | CU1: q98 | CV1: q99 | CW1: q100 | CX1: q101 | CY1: q102 | CZ1: q103 | DA1: q104 | DB1: q105 | DC1: q106 | DD1: q107 | DE1: q108 | DF1: q109 | DG1: q110 | DH1: q111 | DI1: q112 | DJ1: q113 | DK1: q114 | DL1: q115 | DM1: q116 | DN1: q117 | DO1: q118 | DP1: q119 | DQ1: q120 | DR1: q121 | DS1: q122 | DT1: q123 | DU1: q124 | DV1: q125 | DW1: q126 | DX1: q127 | DY1: q128 | DZ1: q129 | EA1: q130 | EB1: q131 | EC1: q132 | ED1: q133 | EE1: q134 | EF1: q135 | EG1: q136 | EH1: q137 | EI1: q138 | EJ1: q139 | EK1: q140 | EL1: q141 | EM1: q142 | EN1: q143 | EO1: q144 | EP1: q145 | EQ1: q146 | ER1: q147 | ES1: q148 | ET1: q149 | EU1: q150 | EV1: q151 | EW1: q152 | EX1: q153 | EY1: q154 | EZ1: q155 | FA1: q156 | FB1: q157 | FC1: q158 | FD1: q159 | FE1: q160 | FF1: q161 | FG1: q162 | FH1: q163 | FI1: q164 | FJ1: q165 | FK1: q166 | FL1: q167 | FM1: q168 | FN1: q169 | FO1: q170 | FP1: q171 | FQ1: q172 | FR1: q173 | FS1: q174 | FT1: q175 | FU1: q176 | FV1: q177 | FW1: q178 | FX1: q179 | FY1: q180 | FZ1: q181 | GA1: q182 | GB1: q183 | GC1: q184 | GD1: q185 | GE1: q186 | GF1: q187 | GG1: q188 | GH1: q189 | GI1: q190 | GJ1: q191 | GK1: q192 | GL1: q193 | GM1: q194 | GN1: q195 | GO1: q196 | GP1: q197 | GQ1: q198 | GR1: q199 | GS1: q200
A2: Expert 1 | B2: 2 | C2: 1 | D2: 3 | E2: 3 | F2: 3 | G2: 3 | H2: 3 | I2: 3 | J2: 3 | K2: 3 | L2: 4 | M2: 4 | N2: 3 | O2: 2 | P2: 3 | Q2: 2 | R2: 4 | S2: 2 | T2: 4 | U2: 3 | V2: 2 | W2: 2 | X2: 2 | Y2: 1 | Z2: 3 | AA2: 2 | AB2: 3 | AC2: 3 | AD2: 2 | AE2: 3 | AF2: 1 | AG2: 3 | AH2: 3 | AI2: 2 | AJ2: 4 | AK2: 3 | AL2: 2 | AM2: 3 | AN2: 3 | AO2: 2 | AP2: 4 | AQ2: 4 | AR2: 3 | AS2: 3 | AT2: 3 | AU2: 4 | AV2: 5 | AW2: 1 | AX2: 2 | AY2: 2 | AZ2: 5 | BA2: 3 | BB2: 2 | BC2: 3 | BD2: 4 | BE2: 4 | BF2: 4 | BG2: 3 | BH2: 3 | BI2: 4 | BJ2: 2 | BK2: 3 | BL2: 2 | BM2: 4 | BN2: 3 | BO2: 3 | BP2: 3 | BQ2: 4 | BR2: 2 | BS2: 3 | BT2: 3 | BU2: 3 | BV2: 3 | BW2: 2 | BX2: 5 | BY2: 2 | BZ2: 2 | CA2: 4 | CB2: 3 | CC2: 3 | CD2: 3 | CE2: 3 | CF2: 3 | CG2: 4 | CH2: 3 | CI2: 2 | CJ2: 3 | CK2: 3 | CL2: 3 | CM2: 3
A3: Expert 2 | B3: 4 | C3: 2 | D3: 2 | E3: 4 | F3: 3 | G3: 3 | H3: 3 | I3: 3 | J3: 3 | K3: 3 | L3: 4 | M3: 4 | N3: 4 | O3: 5 | P3: 4 | Q3: 4 | R3: 4 | S3: 1 | T3: 4 | U3: 5 | V3: 2 | W3: 1 | X3: 1 | Y3: 4 | Z3: 2 | AA3: 2 | AB3: 4 | AC3: 4 | AD3: 2 | AE3: 3 | AF3: 2 | AG3: 4 | AH3: 3 | AI3: 2 | AJ3: 4 | AK3: 3 | AL3: 4 | AM3: 3 | AN3: 3 | AO3: 2 | AP3: 5 | AQ3: 4 | AR3: 3 | AS3: 2 | AT3: 4 | AU3: 4 | AV3: 2 | AW3: 2 | AX3: 2 | AY3: 2 | AZ3: 5 | BA3: 1 | BB3: 2 | BC3: 3 | BD3: 3 | BE3: 4 | BF3: 3 | BG3: 4 | BH3: 4 | BI3: 3 | BJ3: 2 | BK3: 3 | BL3: 3 | BM3: 5 | BN3: 3 | BO3: 3 | BP3: 4 | BQ3: 4 | BR3: 4 | BS3: 3 | BT3: 2 | BU3: 3 | BV3: 2 | BW3: 2 | BX3: 4 | BY3: 3 | BZ3: 1 | CA3: 2 | CB3: 4 | CC3: 2 | CD3: 2 | CE3: 3 | CF3: 3 | CG3: 3 | CH3: 2 | CI3: 2 | CJ3: 4 | CK3: 2 | CL3: 3 | CM3: 4
A4: Expert 3 | B4: 2 | C4: 1 | D4: 2 | E4: 3 | F4: 3 | G4: 3 | H4: 3 | I4: 1 | J4: 2 | K4: 3 | L4: 4 | M4: 5 | N4: 4 | O4: 1 | P4: 4 | Q4: 2 | R4: 4 | S4: 3 | T4: 3 | U4: 3 | V4: 2 | W4: 2 | X4: 2 | Y4: 4 | Z4: 3 | AA4: 2 | AB4: 3 | AC4: 3 | AD4: 2 | AE4: 3 | AF4: 2 | AG4: 3 | AH4: 3 | AI4: 2 | AJ4: 4 | AK4: 2 | AL4: 1 | AM4: 3 | AN4: 3 | AO4: 2 | AP4: 4 | AQ4: 4 | AR4: 2 | AS4: 2 | AT4: 3 | AU4: 3 | AV4: 3 | AW4: 3 | AX4: 1 | AY4: 1 | AZ4: 3 | BA4: 3 | BB4: 2 | BC4: 3 | BD4: 2 | BE4: 4 | BF4: 4 | BG4: 4 | BH4: 4 | BI4: 3 | BJ4: 2 | BK4: 3 | BL4: 3 | BM4: 5 | BN4: 3 | BO4: 3 | BP4: 2 | BQ4: 4 | BR4: 4 | BS4: 3 | BT4: 2 | BU4: 1 | BV4: 3 | BW4: 3 | BX4: 3 | BY4: 3 | BZ4: 3 | CA4: 3 | CB4: 3 | CC4: 4 | CD4: 3 | CE4: 2 | CF4: 2 | CG4: 3 | CH4: 3 | CI4: 3 | CJ4: 3 | CK4: 1 | CL4: 1 | CM4: 3
A5: Expert 4 | B5: 3 | C5: 1 | D5: 3 | E5: 3 | F5: 3 | G5: 3 | H5: 2 | I5: 2 | J5: 2 | K5: 2 | L5: 5 | M5: 4 | N5: 4 | O5: 1 | P5: 5 | Q5: 2 | R5: 4 | S5: 2 | T5: 3 | U5: 4 | V5: 2 | W5: 2 | X5: 2 | Y5: 4 | Z5: 2 | AA5: 2 | AB5: 5 | AC5: 4 | AD5: 2 | AE5: 2 | AF5: 2 | AG5: 1 | AH5: 2 | AI5: 2 | AJ5: 4 | AK5: 2 | AL5: 2 | AM5: 3 | AN5: 2 | AO5: 2 | AP5: 5 | AQ5: 2 | AR5: 2 | AS5: 2 | AT5: 4 | AU5: 4 | AV5: 2 | AW5: 1 | AX5: 2 | AY5: 1 | AZ5: 5 | BA5: 2 | BB5: 3 | BC5: 4 | BD5: 2 | BE5: 5 | BF5: 4 | BG5: 4 | BH5: 4 | BI5: 4 | BJ5: 1 | BK5: 4 | BL5: 2 | BM5: 5 | BN5: 4 | BO5: 3 | BP5: 2 | BQ5: 4 | BR5: 3 | BS5: 3 | BT5: 1 | BU5: 2 | BV5: 3 | BW5: 4 | BX5: 2 | BY5: 2 | BZ5: 2 | CA5: 4 | CB5: 2 | CC5: 4 | CD5: 4 | CE5: 4 | CF5: 4 | CG5: 4 | CH5: 3 | CI5: 2 | CJ5: 4 | CK5: 2 | CL5: 2 | CM5: 4
A6: Expert 5 | B6: 2 | C6: 1 | D6: 3 | E6: 1 | F6: 2 | G6: 3 | H6: 3 | I6: 1 | J6: 2 | K6: 2 | L6: 4 | M6: 4 | N6: 4 | O6: 1 | P6: 4 | Q6: 1 | R6: 4 | S6: 1 | T6: 3 | U6: 4 | V6: 1 | W6: 3 | X6: 2 | Y6: 2 | Z6: 2 | AA6: 2 | AB6: 4 | AC6: 3 | AD6: 2 | AE6: 3 | AF6: 1 | AG6: 1 | AH6: 4 | AI6: 2 | AJ6: 3 | AK6: 3 | AL6: 1 | AM6: 3 | AN6: 3 | AO6: 2 | AP6: 5 | AQ6: 4 | AR6: 3 | AS6: 2 | AT6: 4 | AU6: 4 | AV6: 2 | AW6: 1 | AX6: 1 | AY6: 2 | AZ6: 5 | BA6: 2 | BB6: 2 | BC6: 4 | BD6: 4 | BE6: 5 | BF6: 2 | BG6: 4 | BH6: 4 | BI6: 4 | BJ6: 1 | BK6: 3 | BL6: 1 | BM6: 5 | BN6: 3 | BO6: 3 | BP6: 2 | BQ6: 5 | BR6: 5 | BS6: 2 | BT6: 1 | BU6: 2 | BV6: 3 | BW6: 3 | BX6: 4 | BY6: 1 | BZ6: 2 | CA6: 2 | CB6: 5 | CC6: 4 | CD6: 3 | CE6: 4 | CF6: 5 | CG6: 2 | CH6: 3 | CI6: 3 | CJ6: 3 | CK6: 2 | CL6: 2 | CM6: 4
A7: Expert 6 | B7: 1 | C7: 1 | D7: 2 | E7: 3 | F7: 3 | G7: 3 | H7: 3 | I7: 3 | J7: 2 | K7: 2 | L7: 3 | M7: 3 | N7: 3 | O7: 3 | P7: 3 | Q7: 2 | R7: 2 | S7: 3 | T7: 4 | U7: 4 | V7: 3 | W7: 3 | X7: 3 | Y7: 2 | Z7: 2 | AA7: 2 | AB7: 4 | AC7: 3 | AD7: 1 | AE7: 4 | AF7: 2 | AG7: 3 | AH7: 1 | AI7: 3 | AJ7: 3 | AK7: 1 | AL7: 2 | AM7: 3 | AN7: 3 | AO7: 1 | AP7: 5 | AQ7: 4 | AR7: 3 | AS7: 3 | AT7: 3 | AU7: 4 | AV7: 2 | AW7: 2 | AX7: 1 | AY7: 5 | AZ7: 4 | BA7: 3 | BB7: 2 | BC7: 4 | BD7: 2 | BE7: 4 | BF7: 2 | BG7: 4 | BH7: 2 | BI7: 4 | BJ7: 1 | BK7: 5 | BL7: 3 | BM7: 2 | BN7: 3 | BO7: 3 | BP7: 1 | BQ7: 4 | BR7: 3 | BS7: 3 | BT7: 1 | BU7: 3 | BV7: 3 | BW7: 1 | BY7: 3 | BZ7: 2 | CA7: 4 | CB7: 4 | CC7: 2 | CD7: 2 | CE7: 4 | CF7: 3 | CG7: 5 | CH7: 3 | CI7: 3 | CJ7: 3 | CK7: 2 | CL7: 3 | CM7: 4
A8: Expert 7 | B8: 1 | C8: 1 | D8: 3 | E8: 3 | F8: 3 | G8: 3 | H8: 3 | I8: 2 | J8: 3 | K8: 2 | L8: 3 | M8: 5 | N8: 2 | O8: 1 | P8: 4 | Q8: 3 | R8: 5 | S8: 3 | T8: 3 | U8: 5 | V8: 3 | W8: 3 | X8: 2 | Y8: 3 | Z8: 1 | AA8: 1 | AB8: 5 | AC8: 3 | AD8: 2 | AE8: 3 | AF8: 2 | AG8: 3 | AH8: 3 | AI8: 1 | AJ8: 3 | AK8: 2 | AL8: 1 | AM8: 3 | AN8: 3 | AO8: 2 | AP8: 5 | AQ8: 4 | AR8: 3 | AS8: 2 | AT8: 3 | AU8: 3 | AV8: 2 | AW8: 1 | AX8: 4 | AY8: 1 | AZ8: 5 | BA8: 2 | BB8: 1 | BC8: 3 | BD8: 1 | BE8: 5 | BF8: 2 | BG8: 4 | BH8: 3 | BI8: 5 | BK8: 3 | BL8: 2 | BM8: 5 | BN8: 3 | BO8: 3 | BP8: 2 | BQ8: 2 | BR8: 3 | BS8: 3 | BT8: 1 | BU8: 1 | BV8: 3 | BW8: 3 | BX8: 1 | BY8: 3 | BZ8: 2 | CA8: 2 | CB8: 5 | CC8: 4 | CD8: 3 | CE8: 3 | CG8: 4 | CH8: 3 | CI8: 2 | CJ8: 5 | CK8: 2 | CL8: 2 | CM8: 4
A9: Expert 8 | B9: 1 | C9: 1 | D9: 2 | E9: 3 | F9: 3 | G9: 3 | H9: 3 | I9: 2 | J9: 3 | K9: 2 | L9: 5 | M9: 5 | N9: 4 | O9: 5 | P9: 4 | Q9: 2 | R9: 5 | S9: 2 | T9: 3 | U9: 5 | V9: 1 | W9: 2 | X9: 2 | Y9: 4 | Z9: 3 | AA9: 2 | AB9: 3 | AC9: 3 | AD9: 1 | AE9: 3 | AF9: 2 | AG9: 4 | AH9: 2 | AI9: 2 | AJ9: 5 | AK9: 2 | AL9: 2 | AM9: 3 | AN9: 2 | AO9: 2 | AP9: 5 | AQ9: 4 | AR9: 3 | AS9: 3 | AT9: 2 | AU9: 3 | AV9: 1 | AW9: 1 | AX9: 2 | AY9: 1 | AZ9: 5 | BA9: 1 | BB9: 1 | BC9: 3 | BD9: 2 | BE9: 5 | BF9: 1 | BG9: 4 | BH9: 3 | BI9: 5 | BJ9: 1 | BK9: 4 | BL9: 2 | BM9: 5 | BN9: 4 | BO9: 5 | BP9: 2 | BQ9: 5 | BR9: 4 | BS9: 3 | BT9: 1 | BU9: 2 | BV9: 3 | BW9: 3 | BX9: 3 | BY9: 2 | BZ9: 2 | CA9: 4 | CB9: 3 | CC9: 2 | CD9: 3 | CE9: 4 | CF9: 4 | CG9: 4 | CH9: 3 | CI9: 2 | CJ9: 2 | CK9: 1 | CL9: 3 | CM9: 4
A10: Expert 9 | B10: 2 | C10: 1 | D10: 2 | E10: 2 | F10: 3 | G10: 3 | H10: 3 | I10: 2 | J10: 3 | K10: 2 | L10: 4 | M10: 5 | N10: 4 | O10: 1 | P10: 4 | Q10: 4 | R10: 4 | S10: 2 | T10: 2 | U10: 4 | V10: 1 | W10: 2 | X10: 3 | Y10: 4 | Z10: 2 | AA10: 1 | AB10: 5 | AC10: 5 | AD10: 2 | AE10: 3 | AF10: 2 | AG10: 1 | AH10: 4 | AI10: 2 | AJ10: 4 | AK10: 1 | AL10: 4 | AM10: 3 | AN10: 3 | AO10: 2 | AP10: 4 | AQ10: 4 | AR10: 3 | AS10: 2 | AT10: 4 | AU10: 4 | AV10: 1 | AW10: 1 | AX10: 2 | AY10: 2 | AZ10: 5 | BA10: 1 | BB10: 1 | BC10: 5 | BD10: 2 | BE10: 4 | BF10: 2 | BG10: 4 | BH10: 4 | BI10: 4 | BJ10: 1 | BK10: 3 | BL10: 2 | BM10: 5 | BN10: 4 | BO10: 4 | BP10: 3 | BQ10: 5 | BR10: 4 | BS10: 2 | BT10: 1 | BU10: 2 | BV10: 3 | BW10: 3 | BX10: 2 | BY10: 2 | BZ10: 1 | CA10: 4 | CB10: 3 | CC10: 2 | CD10: 4 | CE10: 4 | CF10: 4 | CG10: 4 | CH10: 3 | CI10: 3 | CJ10: 2 | CK10: 1 | CL10: 1 | CM10: 3
A11: Expert 10 | B11: 3 | C11: 1 | D11: 3 | E11: 3 | F11: 3 | G11: 3 | H11: 3 | I11: 1 | J11: 2 | K11: 3 | L11: 4 | M11: 5 | N11: 4 | O11: 4 | P11: 4 | Q11: 1 | R11: 4 | S11: 4 | T11: 3 | U11: 4 | V11: 4 | W11: 4 | X11: 2 | Y11: 4 | Z11: 4 | AA11: 2 | AB11: 4 | AC11: 4 | AD11: 2 | AE11: 3 | AF11: 2 | AG11: 3 | AH11: 2 | AI11: 2 | AJ11: 5 | AK11: 3 | AL11: 2 | AM11: 3 | AN11: 3 | AO11: 2 | AP11: 4 | AQ11: 3 | AR11: 3 | AS11: 2 | AT11: 3 | AU11: 4 | AV11: 2 | AW11: 2 | AX11: 3 | AY11: 1 | AZ11: 5 | BA11: 3 | BB11: 2 | BC11: 3 | BD11: 2 | BE11: 4 | BF11: 3 | BG11: 4 | BH11: 4 | BI11: 4 | BJ11: 1 | BK11: 4 | BL11: 2 | BM11: 5 | BN11: 2 | BO11: 2 | BP11: 2 | BQ11: 2 | BR11: 4 | BS11: 3 | BT11: 2 | BU11: 2 | BV11: 3 | BW11: 3 | BX11: 5 | BY11: 2 | BZ11: 2 | CA11: 4 | CB11: 4 | CC11: 4 | CD11: 4 | CE11: 4 | CF11: 4 | CG11: 4 | CH11: 3 | CI11: 1 | CJ11: 3 | CK11: 2 | CL11: 2 | CM11: 2
A12: Expert 11 | B12: 2 | C12: 1 | D12: 3 | E12: 5 | F12: 3 | G12: 3 | H12: 3 | I12: 2 | J12: 2 | K12: 2 | L12: 5 | M12: 5 | N12: 4 | O12: 2 | P12: 4 | Q12: 2 | R12: 5 | S12: 2 | T12: 5 | U12: 5 | V12: 2 | W12: 4 | X12: 2 | Y12: 3 | Z12: 3 | AA12: 1 | AB12: 4 | AC12: 4 | AD12: 1 | AE12: 3 | AF12: 1 | AG12: 5 | AH12: 3 | AI12: 1 | AJ12: 5 | AK12: 3 | AL12: 1 | AM12: 3 | AN12: 3 | AO12: 1 | AP12: 4 | AQ12: 3 | AR12: 3 | AS12: 1 | AT12: 4 | AU12: 5 | AV12: 2 | AW12: 1 | AX12: 1 | AY12: 1 | AZ12: 5 | BA12: 1 | BB12: 2 | BC12: 3 | BD12: 5 | BE12: 5 | BF12: 2 | BG12: 2 | BH12: 5 | BI12: 4 | BJ12: 2 | BK12: 5 | BL12: 1 | BM12: 1 | BN12: 3 | BO12: 5 | BS12: 3 | BT12: 1 | BU12: 1 | BV12: 3 | BW12: 2 | BX12: 5 | BY12: 2 | BZ12: 1 | CA12: 5 | CB12: 3 | CC12: 4 | CD12: 4 | CE12: 4 | CF12: 5 | CG12: 5 | CH12: 3 | CI12: 3 | CJ12: 3 | CK12: 2 | CL12: 1 | CM12: 5
A13: Expert 12 | B13: 2 | C13: 1 | D13: 3 | E13: 3 | F13: 3 | G13: 3 | H13: 3 | I13: 1 | J13: 3 | K13: 2 | L13: 4 | M13: 4 | N13: 4 | O13: 1 | P13: 4 | Q13: 3 | R13: 4 | S13: 4 | T13: 4 | U13: 4 | V13: 2 | W13: 2 | X13: 2 | Y13: 2 | Z13: 3 | AA13: 3 | AB13: 4 | AC13: 4 | AD13: 2 | AE13: 3 | AF13: 3 | AG13: 4 | AH13: 2 | AI13: 3 | AJ13: 4 | AK13: 3 | AL13: 2 | AM13: 3 | AN13: 3 | AO13: 2 | AP13: 4 | AQ13: 2 | AR13: 3 | AS13: 2 | AT13: 3 | AU13: 5 | AV13: 2 | AW13: 2 | AX13: 2 | AY13: 2 | AZ13: 4 | BA13: 2 | BB13: 2 | BC13: 3 | BD13: 2 | BE13: 4 | BF13: 3 | BG13: 4 | BH13: 4 | BI13: 4 | BJ13: 1 | BK13: 5 | BL13: 2 | BM13: 5 | BN13: 3 | BO13: 3 | BP13: 2 | BQ13: 4 | BR13: 4 | BS13: 3 | BT13: 1 | BU13: 1 | BV13: 3 | BW13: 3 | BX13: 5 | BY13: 3 | BZ13: 2 | CA13: 3 | CB13: 4 | CC13: 3 | CD13: 3 | CE13: 5 | CF13: 4 | CG13: 4 | CH13: 3 | CI13: 2 | CJ13: 4 | CK13: 2 | CL13: 2 | CM13: 4
A14: Expert 13 | B14: 2 | C14: 1 | D14: 3 | E14: 3 | F14: 3 | G14: 3 | H14: 3 | I14: 2 | J14: 3 | K14: 2 | L14: 4 | M14: 5 | N14: 3 | O14: 2 | P14: 4 | Q14: 3 | R14: 4 | S14: 1 | T14: 4 | U14: 5 | V14: 1 | W14: 2 | X14: 2 | Y14: 3 | Z14: 2 | AA14: 2 | AB14: 5 | AC14: 2 | AD14: 2 | AE14: 3 | AF14: 1 | AG14: 4 | AH14: 2 | AI14: 2 | AJ14: 3 | AK14: 3 | AL14: 4 | AM14: 3 | AN14: 2 | AO14: 3 | AP14: 5 | AQ14: 2 | AR14: 1 | AS14: 3 | AT14: 4 | AU14: 5 | AV14: 1 | AW14: 2 | AX14: 2 | AY14: 1 | AZ14: 5 | BA14: 2 | BB14: 1 | BC14: 3 | BD14: 4 | BE14: 5 | BF14: 2 | BG14: 3 | BH14: 4 | BI14: 3 | BJ14: 1 | BK14: 4 | BL14: 1 | BM14: 5 | BN14: 3 | BO14: 3 | BP14: 2 | BQ14: 5 | BR14: 4 | BS14: 3 | BT14: 1 | BU14: 2 | BV14: 3 | BW14: 3 | BX14: 2 | BY14: 1 | BZ14: 1 | CA14: 2 | CB14: 3 | CC14: 2 | CD14: 3 | CE14: 5 | CF14: 5 | CG14: 4 | CH14: 3 | CI14: 3 | CJ14: 4 | CK14: 1 | CL14: 3 | CM14: 3
A15: Expert 14 | B15: 2 | C15: 1 | D15: 1 | E15: 3 | F15: 3 | G15: 3 | H15: 3 | I15: 2 | J15: 3 | K15: 2 | L15: 4 | M15: 5 | N15: 3 | O15: 4 | P15: 5 | Q15: 3 | R15: 4 | S15: 4 | T15: 3 | U15: 4 | V15: 1 | W15: 2 | X15: 2 | Y15: 3 | Z15: 1 | AA15: 1 | AB15: 4 | AC15: 2 | AD15: 2 | AE15: 3 | AF15: 2 | AG15: 3 | AH15: 2 | AI15: 2 | AJ15: 4 | AK15: 2 | AL15: 2 | AM15: 3 | AN15: 2 | AO15: 2 | AP15: 4 | AQ15: 3 | AR15: 2 | AS15: 2 | AT15: 5 | AU15: 5 | AV15: 2 | AW15: 5 | AX15: 2 | AY15: 4 | AZ15: 1 | BA15: 1 | BB15: 1 | BC15: 3 | BD15: 5 | BE15: 5 | BF15: 5 | BG15: 5 | BH15: 4 | BI15: 5 | BJ15: 1 | BK15: 5 | BL15: 3 | BM15: 5 | BN15: 3 | BO15: 5 | BP15: 4 | BQ15: 5 | BR15: 5 | BS15: 3 | BT15: 2 | BU15: 2 | BV15: 3 | BW15: 3 | BX15: 5 | BY15: 3 | BZ15: 2 | CA15: 4 | CB15: 5 | CC15: 5 | CD15: 5 | CE15: 2 | CF15: 5 | CG15: 5 | CH15: 2 | CI15: 2 | CJ15: 5 | CK15: 1 | CL15: 1 | CM15: 3
A16: Expert 15 | B16: 3 | C16: 2 | D16: 5 | E16: 3 | F16: 3 | G16: 3 | H16: 3 | I16: 3 | J16: 3 | K16: 2 | L16: 4 | M16: 4 | N16: 4 | O16: 1 | P16: 3 | Q16: 3 | R16: 5 | S16: 1 | T16: 3 | U16: 5 | V16: 3 | W16: 3 | X16: 3 | Y16: 3 | Z16: 3 | AA16: 2 | AB16: 3 | AC16: 5 | AD16: 1 | AE16: 3 | AF16: 3 | AG16: 3 | AH16: 2 | AI16: 3 | AJ16: 5 | AK16: 3 | AL16: 5 | AM16: 3 | AN16: 3 | AO16: 2 | AP16: 4 | AQ16: 4 | AR16: 3 | AS16: 2 | AT16: 3 | AU16: 5 | AV16: 4 | AW16: 2 | AX16: 2 | AY16: 3 | AZ16: 5 | BA16: 3 | BB16: 3 | BC16: 3 | BD16: 3 | BE16: 5 | BF16: 2 | BG16: 2 | BH16: 3 | BI16: 2 | BJ16: 2 | BK16: 3 | BL16: 1 | BM16: 5 | BN16: 3 | BO16: 3 | BP16: 2 | BQ16: 5 | BR16: 5 | BS16: 3 | BT16: 1 | BU16: 1 | BV16: 3 | BW16: 3 | BX16: 5 | BY16: 3 | BZ16: 2 | CA16: 4 | CB16: 3 | CC16: 5 | CD16: 3 | CE16: 4 | CF16: 4 | CG16: 4 | CH16: 3 | CI16: 3 | CJ16: 2 | CK16: 2 | CL16: 3 | CM16: 5
A17: Expert 16 | B17: 3 | C17: 2 | D17: 3 | E17: 3 | F17: 3 | G17: 3 | H17: 3 | I17: 2 | J17: 3 | K17: 2 | L17: 4 | M17: 4 | N17: 3 | O17: 4 | P17: 3 | Q17: 3 | R17: 4 | S17: 2 | T17: 3 | U17: 5 | V17: 3 | W17: 2 | X17: 2 | Y17: 3 | Z17: 3 | AA17: 3 | AB17: 3 | AC17: 4 | AD17: 1 | AE17: 4 | AF17: 2 | AG17: 4 | AH17: 4 | AI17: 1 | AJ17: 4 | AK17: 1 | AL17: 2 | AM17: 3 | AN17: 3 | AO17: 3 | AP17: 4 | AQ17: 2 | AR17: 3 | AS17: 3 | AT17: 3 | AU17: 2 | AV17: 2 | AW17: 3 | AX17: 4 | AY17: 2 | AZ17: 3 | BA17: 2 | BB17: 3 | BC17: 3 | BD17: 1 | BE17: 4 | BF17: 2 | BG17: 4 | BH17: 4 | BI17: 4 | BJ17: 2 | BK17: 5 | BL17: 3 | BM17: 5 | BN17: 4 | BO17: 5 | BP17: 2 | BQ17: 4 | BR17: 4 | BS17: 3 | BT17: 2 | BU17: 3 | BV17: 3 | BW17: 3 | BX17: 2 | BY17: 3 | BZ17: 3 | CA17: 2 | CB17: 3 | CC17: 4 | CD17: 2 | CE17: 3 | CF17: 3 | CG17: 3 | CH17: 3 | CI17: 3 | CJ17: 2 | CK17: 2 | CL17: 3 | CM17: 4
A18: Expert 17 | B18: 2 | C18: 1 | D18: 5 | E18: 3 | F18: 3 | G18: 3 | H18: 3 | I18: 2 | J18: 2 | K18: 2 | L18: 5 | M18: 4 | N18: 4 | O18: 1 | P18: 4 | Q18: 2 | R18: 5 | S18: 1 | T18: 5 | U18: 5 | V18: 2 | W18: 2 | X18: 2 | Y18: 4 | Z18: 3 | AA18: 3 | AB18: 3 | AC18: 2 | AD18: 2 | AE18: 3 | AF18: 2 | AG18: 5 | AH18: 3 | AI18: 2 | AJ18: 5 | AK18: 2 | AL18: 1 | AM18: 3 | AN18: 2 | AO18: 2 | AP18: 4 | AQ18: 4 | AR18: 3 | AS18: 1 | AT18: 3 | AU18: 5 | AV18: 2 | AW18: 2 | AX18: 2 | AY18: 2 | AZ18: 5 | BA18: 2 | BB18: 3 | BC18: 3 | BD18: 3 | BE18: 5 | BF18: 3 | BG18: 4 | BH18: 4 | BI18: 4 | BJ18: 1 | BK18: 5 | BL18: 3 | BM18: 5 | BN18: 4 | BO18: 4 | BP18: 3 | BQ18: 4 | BR18: 4 | BS18: 3 | BT18: 2 | BU18: 1 | BV18: 3 | BW18: 3 | BX18: 5 | BY18: 3 | BZ18: 2 | CA18: 4 | CB18: 3 | CC18: 4 | CD18: 3 | CE18: 4 | CF18: 4 | CG18: 4 | CH18: 3 | CI18: 2 | CJ18: 4 | CK18: 2 | CL18: 3 | CM18: 4
A19: Expert 18 | B19: 2 | C19: 1 | D19: 3 | E19: 3 | F19: 3 | G19: 3 | H19: 3 | I19: 2 | J19: 2 | K19: 2 | L19: 5 | M19: 4 | N19: 4 | O19: 1 | P19: 5 | Q19: 4 | R19: 4 | S19: 1 | T19: 4 | U19: 4 | V19: 1 | W19: 4 | X19: 2 | Y19: 3 | Z19: 4 | AA19: 2 | AB19: 3 | AC19: 5 | AD19: 2 | AE19: 3 | AF19: 2 | AG19: 5 | AH19: 2 | AI19: 1 | AJ19: 5 | AK19: 3 | AL19: 5 | AM19: 3 | AN19: 3 | AO19: 2 | AP19: 4 | AQ19: 2 | AR19: 3 | AS19: 2 | AT19: 3 | AU19: 5 | AV19: 2 | AW19: 1 | AX19: 1 | AY19: 1 | AZ19: 5 | BA19: 1 | BB19: 2 | BC19: 3 | BD19: 5 | BE19: 5 | BF19: 5 | BG19: 4 | BH19: 3 | BI19: 4 | BJ19: 1 | BK19: 5 | BL19: 3 | BM19: 5 | BN19: 5 | BO19: 5 | BP19: 2 | BQ19: 5 | BR19: 5 | BS19: 3 | BT19: 1 | BU19: 2 | BV19: 3 | BW19: 3 | BX19: 5 | BY19: 1 | BZ19: 2 | CA19: 2 | CB19: 4 | CC19: 2 | CD19: 4 | CE19: 4 | CF19: 4 | CG19: 3 | CH19: 3 | CI19: 3 | CJ19: 4 | CK19: 2 | CL19: 2 | CM19: 4
A20: Expert 19 | B20: 2 | C20: 1 | D20: 3 | E20: 3 | F20: 3 | G20: 3 | H20: 3 | I20: 2 | J20: 3 | K20: 2 | L20: 4 | M20: 5 | N20: 5 | O20: 1 | P20: 5 | Q20: 2 | R20: 5 | S20: 1 | T20: 5 | U20: 5 | V20: 3 | W20: 5 | X20: 2 | Y20: 3 | Z20: 3 | AA20: 2 | AB20: 3 | AC20: 2 | AD20: 5 | AE20: 2 | AF20: 2 | AG20: 5 | AH20: 3 | AI20: 1 | AJ20: 5 | AK20: 3 | AL20: 3 | AM20: 2 | AN20: 3 | AO20: 2 | AP20: 5 | AQ20: 3 | AR20: 2 | AS20: 1 | AT20: 5 | AU20: 5 | AV20: 2 | AW20: 2 | AX20: 2 | AZ20: 5 | BD20: 2 | BE20: 5 | BF20: 1 | BG20: 4 | BH20: 5 | BI20: 5 | BJ20: 1 | BK20: 5 | BL20: 2 | BM20: 5 | BN20: 3 | BO20: 5 | BP20: 2 | BQ20: 4 | BR20: 5 | BS20: 2 | BT20: 2 | BU20: 2 | BV20: 3 | BW20: 3 | BX20: 5 | BY20: 3 | BZ20: 2 | CA20: 4 | CB20: 5 | CC20: 5 | CD20: 3 | CE20: 4 | CF20: 5 | CG20: 5 | CH20: 2 | CI20: 2 | CJ20: 4 | CK20: 2 | CL20: 2 | CM20: 5
A21: Expert 20 | B21: 2 | C21: 1 | D21: 1 | E21: 5 | F21: 3 | G21: 3 | H21: 3 | I21: 3 | J21: 2 | K21: 2 | L21: 5 | M21: 5 | N21: 5 | O21: 2 | P21: 2 | Q21: 2 | R21: 5 | S21: 2 | T21: 5 | U21: 5 | V21: 2 | W21: 3 | X21: 2 | Y21: 2 | Z21: 1 | AA21: 2 | AB21: 4 | AC21: 2 | AD21: 1 | AE21: 4 | AF21: 1 | AG21: 4 | AH21: 3 | AI21: 1 | AJ21: 4 | AK21: 2 | AL21: 2 | AM21: 3 | AN21: 2 | AO21: 3 | AP21: 4 | AQ21: 4 | AR21: 2 | AS21: 2 | AT21: 4 | AU21: 5 | AV21: 5 | AW21: 2 | AX21: 2 | AY21: 1 | AZ21: 5 | BA21: 1 | BB21: 2 | BC21: 4 | BD21: 4 | BE21: 4 | BF21: 2 | BG21: 3 | BH21: 4 | BI21: 5 | BJ21: 1 | BK21: 5 | BL21: 3 | BM21: 5 | BN21: 3 | BO21: 3 | BP21: 3 | BQ21: 4 | BR21: 5 | BS21: 3 | BT21: 1 | BU21: 2 | BV21: 3 | BW21: 3 | BX21: 4 | BY21: 1 | BZ21: 2 | CA21: 3 | CB21: 5 | CC21: 5 | CD21: 3 | CE21: 5 | CF21: 5 | CG21: 5 | CH21: 3 | CI21: 2 | CJ21: 1 | CK21: 1 | CL21: 3 | CM21: 5
A22: Expert 21 | B22: 3 | C22: 1 | D22: 2 | E22: 3 | F22: 3 | G22: 3 | H22: 3 | I22: 3 | J22: 3 | K22: 1 | L22: 5 | M22: 4 | N22: 1 | O22: 1 | P22: 1 | Q22: 3 | R22: 3 | S22: 2 | T22: 3 | U22: 5 | V22: 3 | W22: 3 | X22: 2 | Y22: 4 | Z22: 4 | AA22: 1 | AB22: 3 | AC22: 5 | AD22: 2 | AE22: 3 | AF22: 2 | AG22: 2 | AH22: 2 | AI22: 2 | AJ22: 3 | AK22: 2 | AL22: 2 | AM22: 4 | AN22: 2 | AO22: 2 | AP22: 5 | AQ22: 3 | AR22: 3 | AS22: 2 | AT22: 3 | AU22: 5 | AV22: 2 | AW22: 2 | AX22: 2 | AY22: 2 | AZ22: 3 | BA22: 2 | BB22: 2 | BC22: 3 | BD22: 2 | BE22: 4 | BF22: 2 | BG22: 2 | BH22: 4 | BI22: 3 | BJ22: 1 | BK22: 4 | BL22: 1 | BM22: 1 | BN22: 3 | BO22: 3 | BP22: 2 | BQ22: 4 | BR22: 5 | BS22: 2 | BT22: 1 | BU22: 1 | BV22: 3 | BW22: 3 | BX22: 1 | BY22: 2 | BZ22: 2 | CA22: 2 | CB22: 5 | CC22: 4 | CD22: 4 | CE22: 5 | CF22: 4 | CG22: 4 | CH22: 3 | CI22: 2 | CJ22: 5 | CK22: 2 | CL22: 3 | CM22: 4
A23: Expert 22 | B23: 1 | C23: 1 | D23: 3 | E23: 3 | F23: 3 | G23: 3 | H23: 1 | I23: 2 | J23: 2 | K23: 2 | L23: 4 | M23: 5 | N23: 3 | O23: 1 | P23: 3 | Q23: 4 | R23: 4 | S23: 2 | T23: 3 | U23: 4 | V23: 1 | W23: 2 | X23: 2 | Y23: 4 | Z23: 2 | AA23: 2 | AB23: 4 | AC23: 3 | AD23: 1 | AE23: 3 | AF23: 3 | AG23: 3 | AH23: 2 | AI23: 2 | AJ23: 4 | AK23: 3 | AL23: 3 | AM23: 2 | AN23: 3 | AO23: 3 | AP23: 4 | AQ23: 2 | AR23: 3 | AS23: 3 | AT23: 4 | AU23: 3 | AV23: 2 | AW23: 2 | AX23: 2 | AY23: 2 | AZ23: 4 | BA23: 3 | BB23: 3 | BC23: 3 | BD23: 3 | BE23: 4 | BF23: 2 | BG23: 3 | BH23: 3 | BI23: 3 | BJ23: 1 | BK23: 3 | BL23: 1 | BM23: 2 | BN23: 4 | BO23: 3 | BP23: 4 | BQ23: 4 | BR23: 5 | BS23: 3 | BT23: 1 | BU23: 1 | BV23: 3 | BW23: 3 | BX23: 2 | BY23: 2 | BZ23: 2 | CA23: 2 | CB23: 5 | CC23: 3 | CD23: 3 | CE23: 4 | CF23: 4 | CG23: 4 | CH23: 3 | CI23: 2 | CJ23: 4 | CK23: 2 | CL23: 3 | CM23: 4
A24: Expert 23 | B24: 2 | C24: 1 | D24: 3 | E24: 3 | F24: 3 | G24: 2 | H24: 3 | I24: 2 | J24: 3 | K24: 3 | L24: 5 | M24: 4 | N24: 4 | O24: 1 | P24: 4 | Q24: 2 | R24: 5 | S24: 2 | T24: 3 | U24: 5 | V24: 2 | W24: 2 | X24: 2 | Y24: 4 | Z24: 3 | AA24: 2 | AB24: 4 | AC24: 3 | AD24: 1 | AE24: 4 | AF24: 1 | AG24: 2 | AH24: 2 | AI24: 3 | AJ24: 4 | AK24: 2 | AL24: 4 | AM24: 3 | AO24: 2 | AP24: 4 | AQ24: 2 | AR24: 3 | AS24: 2 | AT24: 5 | AU24: 5 | AV24: 4 | AW24: 2 | AX24: 2 | AY24: 1 | AZ24: 4 | BA24: 2 | BB24: 1 | BC24: 3 | BD24: 5 | BE24: 4 | BF24: 3 | BG24: 5 | BH24: 3 | BI24: 3 | BJ24: 1 | BK24: 3 | BL24: 2 | BM24: 1 | BN24: 5 | BO24: 3 | BP24: 2 | BQ24: 5 | BR24: 5 | BS24: 3 | BT24: 1 | BU24: 1 | BV24: 3 | BW24: 3 | BX24: 5 | BY24: 3 | CA24: 2 | CB24: 2 | CC24: 5 | CD24: 1 | CE24: 4 | CF24: 4 | CG24: 2 | CH24: 3 | CI24: 2 | CJ24: 5 | CK24: 2 | CL24: 3 | CM24: 5
A25: Expert 24 | B25: 2 | C25: 1 | D25: 3 | E25: 3 | F25: 3 | G25: 3 | H25: 3 | I25: 2 | J25: 3 | K25: 2 | L25: 4 | M25: 4 | N25: 4 | O25: 4 | P25: 4 | Q25: 3 | R25: 4 | S25: 2 | T25: 2 | U25: 4 | V25: 2 | W25: 3 | X25: 3 | Y25: 4 | Z25: 3 | AA25: 2 | AB25: 3 | AC25: 3 | AD25: 2 | AE25: 3 | AF25: 2 | AG25: 2 | AH25: 2 | AI25: 2 | AJ25: 4 | AK25: 2 | AL25: 4 | AM25: 3 | AN25: 2 | AO25: 2 | AP25: 4 | AQ25: 3 | AR25: 1 | AS25: 4 | AT25: 4 | AU25: 4 | AV25: 2 | AW25: 2 | AX25: 1 | AY25: 2 | AZ25: 5 | BA25: 2 | BB25: 2 | BC25: 3 | BD25: 4 | BE25: 4 | BF25: 2 | BG25: 2 | BH25: 4 | BI25: 4 | BJ25: 2 | BK25: 5 | BL25: 2 | BM25: 5 | BN25: 3 | BO25: 3 | BP25: 4 | BQ25: 5 | BR25: 5 | BS25: 3 | BT25: 2 | BU25: 1 | BV25: 3 | BW25: 3 | BX25: 5 | BY25: 3 | BZ25: 2 | CA25: 2 | CB25: 2 | CC25: 2 | CD25: 2 | CE25: 4 | CF25: 4 | CG25: 4 | CH25: 2 | CI25: 2 | CJ25: 3 | CK25: 2 | CL25: 1 | CM25: 4
A26: Expert 25 | B26: 2 | C26: 1 | D26: 2 | E26: 3 | F26: 3 | G26: 3 | H26: 2 | I26: 3 | J26: 3 | K26: 2 | L26: 4 | M26: 4 | N26: 4 | O26: 2 | P26: 4 | Q26: 3 | R26: 4 | S26: 2 | T26: 2 | U26: 4 | V26: 2 | W26: 2 | X26: 2 | Y26: 4 | Z26: 4 | AA26: 2 | AB26: 3 | AC26: 3 | AD26: 2 | AE26: 3 | AF26: 2 | AG26: 3 | AH26: 3 | AI26: 2 | AJ26: 3 | AK26: 3 | AL26: 2 | AM26: 3 | AN26: 2 | AO26: 1 | AP26: 5 | AQ26: 4 | AR26: 2 | AS26: 3 | AT26: 2 | AU26: 4 | AV26: 3 | AW26: 3 | AX26: 2 | AY26: 3 | AZ26: 4 | BA26: 1 | BB26: 3 | BC26: 3 | BD26: 2 | BE26: 5 | BF26: 2 | BG26: 3 | BH26: 3 | BI26: 3 | BJ26: 1 | BK26: 4 | BL26: 3 | BM26: 4 | BN26: 4 | BO26: 3 | BP26: 4 | BQ26: 4 | BR26: 5 | BS26: 3 | BT26: 3 | BU26: 2 | BV26: 2 | BW26: 2 | BX26: 4 | BY26: 2 | BZ26: 2 | CA26: 3 | CB26: 4 | CC26: 3 | CD26: 3 | CE26: 4 | CF26: 4 | CG26: 4 | CH26: 3 | CI26: 3 | CJ26: 3 | CK26: 3 | CL26: 2 | CM26: 3
A27: Expert 26 | B27: 5 | C27: 2 | D27: 1 | E27: 5 | F27: 5 | G27: 5 | H27: 5 | I27: 3 | J27: 4 | K27: 2 | L27: 4 | M27: 4 | N27: 3 | O27: 1 | P27: 4 | Q27: 2 | R27: 4 | S27: 3 | T27: 5 | U27: 5 | V27: 5 | W27: 3 | X27: 2 | Y27: 3 | Z27: 3 | AA27: 2 | AB27: 3 | AC27: 5 | AD27: 5 | AE27: 5 | AF27: 4 | AG27: 3 | AH27: 3 | AL27: 5 | AM27: 3 | AN27: 2 | AO27: 2 | AP27: 4 | AQ27: 3 | AR27: 5 | AS27: 3 | AT27: 3 | AU27: 5 | AV27: 5 | AW27: 2 | AX27: 5 | AY27: 2 | AZ27: 3 | BA27: 5 | BB27: 2 | BC27: 2 | BD27: 3 | BE27: 5 | BF27: 4 | BG27: 3 | BH27: 2 | BI27: 4 | BJ27: 3 | BK27: 4 | BL27: 3 | BM27: 5 | BN27: 5 | BO27: 5 | BP27: 2 | BQ27: 2 | BR27: 2 | BS27: 3 | BT27: 2 | BU27: 3 | BV27: 3 | BW27: 3 | BX27: 3 | CB27: 5 | CC27: 2 | CD27: 4 | CE27: 4 | CF27: 3 | CG27: 4 | CH27: 5 | CI27: 2 | CJ27: 5 | CK27: 3 | CL27: 2 | CM27: 2
A28: Expert 27 | B28: 2 | C28: 1 | D28: 2 | E28: 3 | F28: 3 | G28: 3 | H28: 3 | I28: 2 | J28: 2 | K28: 2 | L28: 4 | M28: 5 | N28: 4 | O28: 1 | P28: 4 | Q28: 4 | R28: 4 | S28: 1 | T28: 5 | U28: 5 | V28: 2 | W28: 2 | X28: 2 | Y28: 1 | Z28: 3 | AA28: 2 | AB28: 4 | AC28: 2 | AD28: 2 | AE28: 3 | AF28: 2 | AG28: 1 | AH28: 2 | AI28: 2 | AJ28: 4 | AK28: 2 | AL28: 2 | AM28: 3 | AN28: 3 | AO28: 2 | AP28: 4 | AQ28: 4 | AR28: 3 | AS28: 1 | AT28: 4 | AU28: 5 | AV28: 2 | AW28: 2 | AX28: 2 | AY28: 1 | AZ28: 5 | BA28: 3 | BB28: 3 | BC28: 3 | BD28: 4 | BE28: 5 | BF28: 4 | BG28: 2 | BH28: 4 | BI28: 4 | BJ28: 1 | BK28: 5 | BL28: 2 | BM28: 5 | BN28: 3 | BO28: 4 | BP28: 3 | BQ28: 5 | BR28: 5 | BS28: 3 | BT28: 2 | BU28: 1 | BV28: 3 | BW28: 3 | BX28: 2 | BY28: 2 | BZ28: 2 | CA28: 2 | CB28: 5 | CC28: 5 | CD28: 3 | CE28: 4 | CF28: 4 | CG28: 4 | CH28: 3 | CI28: 3 | CJ28: 4 | CK28: 2 | CL28: 3 | CM28: 4
A29: Expert 28 | B29: 2 | C29: 1 | D29: 3 | E29: 5 | F29: 3 | G29: 3 | H29: 3 | I29: 2 | J29: 1 | K29: 2 | L29: 4 | M29: 5 | N29: 4 | O29: 4 | P29: 4 | Q29: 4 | R29: 5 | S29: 4 | T29: 3 | U29: 5 | V29: 2 | W29: 2 | X29: 2 | Y29: 3 | Z29: 3 | AA29: 3 | AB29: 5 | AC29: 2 | AD29: 2 | AE29: 3 | AF29: 2 | AG29: 4 | AH29: 3 | AI29: 2 | AJ29: 4 | AK29: 3 | AL29: 2 | AM29: 3 | AN29: 2 | AO29: 2 | AP29: 4 | AQ29: 2 | AR29: 3 | AS29: 2 | AT29: 3 | AU29: 5 | AV29: 2 | AW29: 2 | AX29: 2 | AY29: 1 | AZ29: 5 | BA29: 2 | BB29: 2 | BC29: 4 | BD29: 4 | BE29: 5 | BF29: 3 | BG29: 3 | BH29: 4 | BI29: 4 | BJ29: 1 | BK29: 4 | BL29: 2 | BM29: 5 | BN29: 4 | BO29: 4 | BP29: 4 | BQ29: 4 | BR29: 5 | BS29: 3 | BT29: 1 | BU29: 2 | BV29: 3 | BW29: 3 | BX29: 3 | BY29: 3 | BZ29: 1 | CA29: 2 | CB29: 5 | CC29: 4 | CD29: 3 | CE29: 4 | CF29: 4 | CG29: 5 | CH29: 3 | CI29: 2 | CJ29: 3 | CK29: 1 | CL29: 2 | CM29: 4
A30: Expert 29 | B30: 1 | C30: 1 | D30: 2 | E30: 5 | F30: 5 | G30: 5 | H30: 5 | I30: 2 | J30: 3 | K30: 4 | L30: 4 | M30: 4 | N30: 5 | O30: 5 | P30: 5 | Q30: 4 | R30: 5 | S30: 5 | T30: 5 | U30: 5 | V30: 2 | W30: 1 | X30: 1 | Y30: 4 | Z30: 5 | AA30: 2 | AB30: 4 | AC30: 5 | AD30: 5 | AE30: 5 | AF30: 2 | AG30: 5 | AH30: 2 | AI30: 2 | AJ30: 5 | AK30: 5 | AL30: 5 | AM30: 5 | AN30: 3 | AO30: 2 | AP30: 5 | AQ30: 5 | AR30: 5 | AS30: 3 | AT30: 5 | AU30: 1 | AV30: 5 | AW30: 1 | AX30: 1 | AY30: 1 | AZ30: 5 | BA30: 5 | BB30: 1 | BC30: 5 | BD30: 5 | BE30: 5 | BF30: 5 | BG30: 5 | BH30: 5 | BI30: 5 | BJ30: 2 | BK30: 5 | BL30: 3 | BM30: 5 | BN30: 1 | BO30: 1 | BP30: 5 | BQ30: 5 | BR30: 5 | BS30: 2 | BT30: 1 | BU30: 1 | BV30: 4 | BW30: 5 | BX30: 4 | BY30: 5 | BZ30: 5 | CA30: 2 | CB30: 5 | CC30: 5 | CD30: 1 | CE30: 5 | CF30: 5 | CG30: 5 | CH30: 5 | CI30: 5 | CJ30: 1 | CK30: 2 | CL30: 1 | CM30: 5
A31: Expert 30 | B31: 1 | C31: 1 | D31: 3 | E31: 4 | F31: 3 | G31: 3 | H31: 3 | I31: 2 | J31: 3 | K31: 2 | L31: 4 | M31: 5 | N31: 4 | O31: 2 | P31: 4 | Q31: 2 | R31: 4 | S31: 2 | T31: 4 | U31: 5 | V31: 2 | W31: 1 | X31: 3 | Y31: 4 | Z31: 2 | AA31: 1 | AB31: 4 | AC31: 3 | AD31: 3 | AE31: 2 | AF31: 2 | AG31: 4 | AH31: 2 | AI31: 2 | AJ31: 4 | AK31: 3 | AL31: 1 | AM31: 3 | AN31: 2 | AO31: 2 | AP31: 4 | AQ31: 4 | AR31: 2 | AS31: 2 | AT31: 3 | AU31: 5 | AV31: 2 | AW31: 4 | AX31: 1 | AY31: 2 | AZ31: 4 | BA31: 3 | BB31: 2 | BC31: 4 | BD31: 2 | BE31: 4 | BF31: 2 | BG31: 4 | BH31: 3 | BI31: 4 | BJ31: 1 | BK31: 5 | BL31: 2 | BM31: 5 | BN31: 4 | BO31: 3 | BP31: 4 | BQ31: 4 | BR31: 5 | BS31: 3 | BT31: 1 | BU31: 3 | BV31: 3 | BW31: 2 | BX31: 1 | BY31: 2 | BZ31: 2 | CA31: 1 | CB31: 3 | CC31: 2 | CD31: 3 | CE31: 4 | CF31: 4 | CG31: 2 | CH31: 2 | CI31: 3 | CJ31: 3 | CK31: 1 | CL31: 2 | CM31: 4
A32: Expert 31 | B32: 4 | C32: 1 | D32: 5 | E32: 3 | F32: 3 | G32: 3 | H32: 3 | I32: 2 | J32: 2 | K32: 2 | L32: 4 | M32: 5 | N32: 4 | O32: 4 | P32: 3 | Q32: 2 | R32: 4 | S32: 4 | T32: 2 | U32: 5 | V32: 3 | W32: 1 | X32: 2 | Y32: 2 | Z32: 3 | AA32: 3 | AB32: 3 | AC32: 2 | AD32: 2 | AE32: 4 | AF32: 2 | AG32: 5 | AH32: 4 | AI32: 3 | AJ32: 4 | AK32: 3 | AL32: 3 | AM32: 2 | AN32: 2 | AO32: 2 | AP32: 4 | AQ32: 5 | AR32: 3 | AS32: 2 | AT32: 3 | AU32: 3 | AV32: 1 | AW32: 2 | AX32: 1 | AY32: 3 | AZ32: 3 | BA32: 1 | BB32: 2 | BC32: 3 | BD32: 2 | BE32: 5 | BF32: 4 | BG32: 3 | BH32: 2 | BI32: 4 | BJ32: 1 | BK32: 5 | BL32: 2 | BM32: 5 | BN32: 3 | BO32: 3 | BP32: 3 | BQ32: 4 | BR32: 3 | BS32: 2 | BT32: 1 | BU32: 2 | BV32: 3 | BW32: 3 | BX32: 2 | BY32: 3 | BZ32: 2 | CA32: 3 | CB32: 3 | CC32: 2 | CD32: 3 | CE32: 3 | CF32: 5 | CG32: 5 | CH32: 3 | CI32: 3 | CJ32: 5 | CK32: 2 | CL32: 2 | CM32: 3
A33: Expert 32 | B33: 3 | C33: 1 | D33: 2 | E33: 3 | F33: 3 | G33: 2 | H33: 3 | I33: 3 | J33: 2 | K33: 3 | L33: 4 | M33: 5 | N33: 4 | O33: 1 | P33: 4 | Q33: 3 | R33: 5 | S33: 3 | T33: 3 | U33: 5 | V33: 2 | W33: 2 | X33: 2 | Y33: 2 | Z33: 3 | AA33: 2 | AB33: 4 | AC33: 3 | AD33: 3 | AE33: 3 | AF33: 1 | AG33: 4 | AH33: 3 | AI33: 2 | AJ33: 4 | AK33: 2 | AL33: 2 | AM33: 3 | AN33: 3 | AO33: 2 | AP33: 4 | AQ33: 3 | AR33: 3 | AS33: 3 | AT33: 4 | AU33: 5 | AV33: 3 | AW33: 2 | AX33: 2 | AY33: 1 | AZ33: 5 | BA33: 3 | BB33: 2 | BC33: 3 | BD33: 4 | BE33: 5 | BF33: 2 | BG33: 5 | BH33: 4 | BI33: 4 | BJ33: 4 | BK33: 3 | BL33: 2 | BM33: 5 | BN33: 3 | BO33: 3 | BP33: 2 | BQ33: 4 | BR33: 4 | BS33: 2 | BT33: 1 | BU33: 3 | BV33: 3 | BW33: 3 | BX33: 4 | BY33: 3 | BZ33: 2 | CA33: 3 | CB33: 4 | CC33: 3 | CD33: 2 | CE33: 5 | CF33: 5 | CG33: 2 | CH33: 3 | CI33: 3 | CJ33: 2 | CK33: 2 | CL33: 3 | CM33: 3
A34: Expert 33 | B34: 2 | C34: 1 | D34: 3 | E34: 3 | F34: 3 | G34: 3 | H34: 3 | I34: 3 | J34: 1 | K34: 2 | L34: 4 | M34: 5 | N34: 2 | O34: 4 | P34: 4 | Q34: 3 | R34: 4 | S34: 4 | T34: 5 | U34: 4 | V34: 3 | W34: 2 | X34: 2 | Y34: 1 | Z34: 3 | AA34: 3 | AB34: 3 | AC34: 3 | AD34: 2 | AE34: 3 | AF34: 2 | AG34: 1 | AH34: 3 | AI34: 2 | AJ34: 4 | AK34: 2 | AL34: 2 | AM34: 3 | AN34: 1 | AO34: 2 | AP34: 4 | AQ34: 5 | AR34: 2 | AS34: 2 | AT34: 3 | AU34: 5 | AV34: 1 | AW34: 1 | AX34: 2 | AY34: 2 | AZ34: 5 | BA34: 1 | BB34: 1 | BC34: 3 | BD34: 2 | BE34: 4 | BF34: 4 | BG34: 3 | BH34: 4 | BI34: 5 | BJ34: 2 | BK34: 4 | BL34: 3 | BM34: 5 | BN34: 4 | BO34: 3 | BP34: 1 | BQ34: 4 | BR34: 1 | BS34: 2 | BT34: 1 | BU34: 1 | BV34: 3 | BW34: 3 | BX34: 3 | BY34: 2 | BZ34: 2 | CA34: 4 | CB34: 5 | CC34: 4 | CD34: 3 | CE34: 4 | CF34: 4 | CG34: 4 | CH34: 3 | CI34: 1 | CJ34: 4 | CK34: 1 | CL34: 2 | CM34: 3
A35: Expert 34 | B35: 3 | C35: 3 | D35: 3 | E35: 5 | F35: 3 | G35: 3 | H35: 3 | I35: 2 | J35: 1 | K35: 2 | L35: 4 | M35: 5 | N35: 4 | O35: 5 | P35: 4 | Q35: 1 | R35: 4 | S35: 1 | T35: 5 | U35: 5 | V35: 3 | W35: 4 | X35: 2 | Y35: 2 | Z35: 3 | AA35: 2 | AB35: 4 | AC35: 2 | AD35: 5 | AE35: 5 | AF35: 1 | AG35: 2 | AH35: 5 | AI35: 1 | AJ35: 5 | AK35: 3 | AL35: 4 | AM35: 3 | AO35: 2 | AP35: 5 | AQ35: 3 | AR35: 1 | AS35: 3 | AT35: 4 | AU35: 5 | AV35: 2 | AW35: 2 | AX35: 2 | AY35: 3 | AZ35: 5 | BA35: 1 | BB35: 2 | BC35: 3 | BD35: 4 | BE35: 5 | BF35: 4 | BG35: 4 | BH35: 4 | BI35: 4 | BJ35: 1 | BK35: 5 | BL35: 2 | BM35: 5 | BN35: 3 | BO35: 3 | BP35: 2 | BQ35: 4 | BR35: 5 | BS35: 3 | BT35: 1 | BU35: 2 | BV35: 3 | BW35: 3 | BX35: 5 | BY35: 2 | BZ35: 1 | CA35: 2 | CB35: 3 | CC35: 3 | CD35: 2 | CE35: 5 | CF35: 5 | CG35: 4 | CH35: 3 | CI35: 3 | CJ35: 1 | CK35: 1 | CL35: 1 | CM35: 4
A36: Expert 35 | B36: 1 | C36: 1 | D36: 2 | E36: 3 | F36: 3 | G36: 3 | H36: 3 | I36: 3 | J36: 2 | K36: 2 | L36: 4 | M36: 4 | N36: 4 | O36: 3 | P36: 4 | Q36: 3 | R36: 4 | S36: 2 | T36: 3 | U36: 3 | V36: 1 | W36: 2 | X36: 2 | Y36: 3 | Z36: 3 | AA36: 2 | AB36: 4 | AC36: 4 | AD36: 2 | AE36: 5 | AF36: 2 | AG36: 4 | AH36: 3 | AI36: 1 | AJ36: 4 | AK36: 2 | AL36: 2 | AM36: 2 | AN36: 2 | AO36: 2 | AP36: 4 | AQ36: 4 | AR36: 1 | AS36: 1 | AT36: 4 | AU36: 2 | AV36: 1 | AW36: 3 | AX36: 2 | AY36: 2 | AZ36: 5 | BA36: 2 | BB36: 1 | BC36: 3 | BD36: 2 | BE36: 5 | BF36: 4 | BG36: 4 | BH36: 4 | BI36: 4 | BJ36: 2 | BK36: 4 | BL36: 2 | BM36: 5 | BN36: 3 | BO36: 4 | BP36: 3 | BQ36: 4 | BR36: 4 | BS36: 3 | BT36: 2 | BU36: 2 | BV36: 3 | BW36: 3 | BX36: 4 | BY36: 2 | BZ36: 2 | CA36: 4 | CB36: 2 | CC36: 4 | CD36: 4 | CE36: 4 | CF36: 4 | CG36: 4 | CH36: 4 | CI36: 4 | CJ36: 4 | CK36: 1 | CL36: 3 | CM36: 4
A37: Expert 36 | B37: 2 | C37: 1 | D37: 3 | E37: 3 | F37: 3 | G37: 3 | H37: 3 | I37: 2 | J37: 3 | K37: 3 | L37: 4 | M37: 4 | N37: 4 | O37: 1 | P37: 4 | Q37: 2 | R37: 4 | S37: 2 | T37: 4 | U37: 5 | V37: 2 | W37: 3 | X37: 3 | Y37: 2 | Z37: 2 | AA37: 3 | AB37: 4 | AC37: 4 | AD37: 2 | AE37: 3 | AF37: 2 | AG37: 4 | AH37: 3 | AI37: 2 | AJ37: 3 | AK37: 3 | AL37: 2 | AM37: 3 | AN37: 2 | AO37: 1 | AP37: 4 | AQ37: 3 | AR37: 3 | AS37: 1 | AT37: 3 | AU37: 4 | AV37: 2 | AW37: 1 | AX37: 1 | AY37: 2 | AZ37: 5 | BA37: 2 | BB37: 2 | BC37: 3 | BD37: 2 | BE37: 5 | BF37: 3 | BG37: 3 | BH37: 3 | BI37: 4 | BJ37: 1 | BK37: 3 | BL37: 2 | BM37: 5 | BN37: 3 | BO37: 4 | BP37: 2 | BQ37: 3 | BR37: 3 | BS37: 3 | BT37: 1 | BU37: 1 | BV37: 3 | BW37: 4 | BX37: 1 | BY37: 2 | BZ37: 1 | CA37: 3 | CB37: 4 | CC37: 3 | CD37: 3 | CE37: 4 | CF37: 4 | CG37: 4 | CH37: 2 | CI37: 3 | CJ37: 3 | CK37: 1 | CL37: 3 | CM37: 3
A38: Expert 37 | B38: 3 | C38: 1 | D38: 2 | E38: 2 | F38: 2 | G38: 3 | H38: 3 | I38: 1 | J38: 2 | K38: 2 | L38: 4 | M38: 5 | N38: 5 | O38: 1 | P38: 3 | Q38: 2 | R38: 4 | S38: 1 | T38: 3 | U38: 3 | V38: 3 | W38: 4 | X38: 2 | Y38: 2 | Z38: 3 | AA38: 2 | AB38: 4 | AC38: 3 | AD38: 2 | AE38: 3 | AF38: 1 | AG38: 2 | AH38: 3 | AI38: 1 | AJ38: 3 | AK38: 3 | AL38: 2 | AM38: 3 | AN38: 2 | AO38: 2 | AP38: 5 | AQ38: 4 | AR38: 3 | AS38: 2 | AT38: 5 | AU38: 5 | AV38: 1 | AW38: 2 | AX38: 1 | AY38: 1 | AZ38: 5 | BA38: 1 | BB38: 1 | BC38: 3 | BD38: 3 | BE38: 4 | BF38: 2 | BG38: 4 | BH38: 4 | BI38: 4 | BJ38: 1 | BK38: 4 | BL38: 3 | BM38: 5 | BN38: 3 | BO38: 3 | BP38: 3 | BQ38: 4 | BR38: 3 | BS38: 2 | BT38: 1 | BU38: 1 | BV38: 3 | BW38: 3 | BX38: 5 | BY38: 2 | BZ38: 3 | CA38: 5 | CB38: 1 | CC38: 5 | CD38: 4 | CE38: 4 | CF38: 4 | CG38: 4 | CH38: 2 | CI38: 2 | CJ38: 2 | CK38: 1 | CL38: 1 | CM38: 1
A39: Expert 38 | B39: 2 | C39: 1 | D39: 1 | E39: 4 | F39: 3 | G39: 3 | H39: 3 | I39: 2 | J39: 2 | K39: 2 | L39: 3 | M39: 4 | N39: 5 | O39: 1 | P39: 5 | Q39: 3 | R39: 5 | S39: 1 | T39: 4 | U39: 5 | V39: 3 | W39: 2 | X39: 2 | Y39: 4 | Z39: 3 | AA39: 2 | AB39: 5 | AC39: 3 | AD39: 3 | AE39: 4 | AF39: 1 | AG39: 1 | AH39: 2 | AI39: 1 | AJ39: 5 | AK39: 2 | AL39: 1 | AM39: 4 | AN39: 3 | AO39: 2 | AP39: 4 | AQ39: 4 | AR39: 3 | AS39: 2 | AT39: 5 | AU39: 2 | AV39: 2 | AW39: 2 | AX39: 2 | AY39: 2 | AZ39: 5 | BA39: 4 | BB39: 1 | BC39: 3 | BD39: 2 | BE39: 5 | BF39: 4 | BG39: 2 | BH39: 3 | BI39: 4 | BJ39: 1 | BK39: 5 | BL39: 3 | BM39: 5 | BN39: 3 | BO39: 3 | BP39: 2 | BQ39: 2 | BR39: 4 | BS39: 3 | BT39: 1 | BU39: 1 | BV39: 3 | BW39: 3 | BX39: 3 | BY39: 2 | BZ39: 1 | CA39: 3 | CB39: 3 | CC39: 4 | CD39: 2 | CH39: 3 | CI39: 3 | CJ39: 4 | CK39: 2 | CL39: 3 | CM39: 5
A40: Expert 39 | B40: 2 | C40: 1 | D40: 3 | E40: 2 | F40: 3 | G40: 3 | H40: 3 | I40: 2 | J40: 2 | K40: 2 | L40: 4 | M40: 4 | N40: 4 | O40: 1 | P40: 4 | Q40: 4 | R40: 4 | S40: 1 | T40: 3 | U40: 4 | V40: 2 | W40: 3 | X40: 2 | Y40: 2 | Z40: 3 | AA40: 1 | AB40: 4 | AC40: 3 | AD40: 2 | AE40: 4 | AF40: 2 | AG40: 2 | AH40: 2 | AI40: 2 | AJ40: 5 | AK40: 3 | AL40: 2 | AM40: 3 | AN40: 2 | AO40: 1 | AP40: 4 | AQ40: 4 | AR40: 3 | AS40: 2 | AT40: 4 | AU40: 4 | AV40: 2 | AW40: 2 | AX40: 2 | AY40: 2 | AZ40: 4 | BA40: 2 | BB40: 1 | BC40: 3 | BD40: 4 | BE40: 5 | BF40: 2 | BG40: 4 | BH40: 4 | BI40: 4 | BJ40: 2 | BK40: 4 | BL40: 2 | BM40: 5 | BN40: 3 | BO40: 3 | BP40: 2 | BQ40: 4 | BR40: 4 | BS40: 3 | BT40: 2 | BU40: 1 | BY40: 1 | BZ40: 1 | CA40: 4 | CB40: 4 | CC40: 4 | CD40: 3 | CE40: 4 | CF40: 5 | CG40: 4 | CH40: 2 | CI40: 2 | CJ40: 4 | CK40: 2 | CL40: 3 | CM40: 4
A41: Expert 40 | B41: 3 | C41: 1 | D41: 2 | E41: 3 | F41: 3 | G41: 3 | H41: 3 | I41: 1 | J41: 2 | K41: 2 | L41: 5 | M41: 5 | N41: 5 | O41: 3 | P41: 5 | Q41: 3 | R41: 4 | S41: 2 | T41: 3 | U41: 5 | V41: 3 | W41: 2 | X41: 2 | Y41: 3 | Z41: 3 | AA41: 2 | AB41: 5 | AC41: 4 | AD41: 2 | AE41: 3 | AF41: 2 | AG41: 3 | AH41: 2 | AI41: 2 | AJ41: 3 | AK41: 2 | AL41: 2 | AM41: 3 | AN41: 2 | AO41: 2 | AP41: 4 | AQ41: 5 | AR41: 3 | AS41: 2 | AT41: 4 | AU41: 5 | AV41: 2 | AW41: 2 | AX41: 2 | AY41: 3 | AZ41: 5 | BA41: 2 | BB41: 2 | BC41: 3 | BD41: 2 | BE41: 5 | BF41: 2 | BG41: 3 | BH41: 4 | BI41: 5 | BJ41: 2 | BK41: 4 | BL41: 1 | BM41: 5 | BN41: 3 | BO41: 3 | BP41: 4 | BQ41: 5 | BR41: 4 | BS41: 3 | BT41: 3 | BU41: 3 | BV41: 2 | BW41: 2 | BX41: 5 | BY41: 3 | BZ41: 3 | CA41: 4 | CB41: 5 | CC41: 5 | CD41: 3 | CE41: 3 | CF41: 5 | CG41: 4 | CH41: 3 | CI41: 2 | CJ41: 3 | CK41: 2 | CL41: 2 | CM41: 2
A42: Expert 41 | B42: 2 | C42: 1 | D42: 1 | E42: 4 | F42: 3 | G42: 3 | H42: 3 | I42: 2 | J42: 1 | K42: 2 | L42: 5 | M42: 4 | N42: 4 | O42: 5 | P42: 4 | Q42: 2 | R42: 5 | S42: 4 | T42: 3 | U42: 5 | V42: 3 | W42: 2 | X42: 2 | Y42: 1 | Z42: 3 | AA42: 2 | AB42: 3 | AC42: 2 | AD42: 2 | AE42: 3 | AF42: 3 | AG42: 5 | AH42: 4 | AI42: 2 | AJ42: 4 | AK42: 2 | AL42: 5 | AM42: 2 | AN42: 2 | AO42: 2 | AP42: 4 | AQ42: 4 | AR42: 3 | AS42: 1 | AT42: 4 | AU42: 5 | AV42: 2 | AW42: 3 | AX42: 2 | AY42: 1 | AZ42: 5 | BA42: 3 | BB42: 2 | BC42: 4 | BD42: 4 | BE42: 5 | BF42: 3 | BG42: 4 | BH42: 4 | BI42: 4 | BJ42: 2 | BK42: 4 | BL42: 2 | BM42: 5 | BN42: 2 | BO42: 2 | BP42: 2 | BQ42: 2 | BR42: 4 | BS42: 3 | BT42: 1 | BU42: 2 | BV42: 3 | BW42: 3 | BX42: 5 | BY42: 3 | BZ42: 3 | CA42: 4 | CB42: 5 | CC42: 5 | CD42: 2 | CE42: 4 | CF42: 5 | CG42: 2 | CH42: 2 | CI42: 2 | CJ42: 3 | CK42: 2 | CL42: 1 | CM42: 4
A43: Expert 42 | B43: 2 | C43: 1 | D43: 1 | E43: 3 | F43: 3 | G43: 3 | H43: 3 | I43: 1 | J43: 2 | K43: 3 | L43: 4 | M43: 5 | N43: 4 | O43: 1 | P43: 4 | Q43: 2 | R43: 5 | S43: 2 | T43: 3 | U43: 4 | V43: 3 | W43: 3 | X43: 2 | Y43: 4 | Z43: 3 | AA43: 2 | AB43: 3 | AC43: 4 | AD43: 2 | AE43: 3 | AF43: 2 | AG43: 4 | AH43: 2 | AI43: 2 | AJ43: 4 | AK43: 2 | AL43: 1 | AM43: 1 | AN43: 1 | AO43: 3 | AP43: 4 | AQ43: 4 | AR43: 2 | AS43: 2 | AT43: 3 | AU43: 4 | AV43: 2 | AW43: 1 | AX43: 2 | AY43: 1 | AZ43: 5 | BA43: 1 | BB43: 2 | BC43: 3 | BD43: 2 | BE43: 4 | BF43: 2 | BG43: 2 | BH43: 3 | BI43: 4 | BJ43: 2 | BK43: 4 | BL43: 1 | BM43: 5 | BN43: 3 | BO43: 3 | BP43: 2 | BQ43: 4 | BR43: 5 | BS43: 3 | BT43: 2 | BU43: 1 | BV43: 3 | BW43: 3 | BX43: 4 | BY43: 2 | BZ43: 2 | CA43: 2 | CB43: 4 | CC43: 4 | CD43: 2 | CE43: 4 | CF43: 4 | CG43: 2 | CH43: 3 | CI43: 2 | CJ43: 4 | CK43: 2 | CL43: 2 | CM43: 4
A44: Expert 43 | B44: 5 | C44: 1 | D44: 3 | E44: 3 | F44: 3 | G44: 3 | H44: 3 | I44: 3 | J44: 2 | K44: 3 | L44: 4 | M44: 5 | N44: 4 | O44: 2 | P44: 4 | Q44: 2 | R44: 4 | S44: 4 | T44: 4 | U44: 5 | V44: 2 | W44: 2 | X44: 1 | Y44: 1 | Z44: 2 | AA44: 1 | AB44: 4 | AC44: 4 | AD44: 5 | AE44: 5 | AF44: 1 | AG44: 3 | AH44: 2 | AI44: 1 | AJ44: 3 | AK44: 2 | AL44: 4 | AM44: 2 | AN44: 2 | AO44: 2 | AP44: 4 | AQ44: 2 | AR44: 3 | AS44: 4 | AT44: 3 | AU44: 2 | AV44: 3 | AW44: 2 | AX44: 2 | AY44: 2 | AZ44: 5 | BA44: 2 | BB44: 3 | BC44: 3 | BD44: 1 | BE44: 5 | BF44: 1 | BG44: 4 | BH44: 2 | BI44: 4 | BJ44: 1 | BK44: 5 | BL44: 2 | BM44: 5 | BN44: 5 | BO44: 5 | BP44: 2 | BQ44: 3 | BR44: 5 | BS44: 2 | BT44: 2 | BU44: 2 | BV44: 4 | BW44: 3 | BX44: 2 | BY44: 3 | BZ44: 3 | CA44: 3 | CB44: 2 | CC44: 4 | CD44: 2 | CE44: 4 | CF44: 5 | CG44: 4 | CH44: 3 | CI44: 2 | CJ44: 5 | CK44: 2 | CL44: 1 | CM44: 5
A45: Expert 44 | B45: 3 | C45: 2 | D45: 2 | E45: 4 | F45: 4 | G45: 4 | H45: 4 | I45: 4 | J45: 2 | K45: 2 | L45: 5 | M45: 5 | N45: 2 | O45: 4 | P45: 2 | Q45: 5 | R45: 4 | S45: 4 | T45: 5 | U45: 2 | V45: 2 | W45: 2 | X45: 2 | Y45: 4 | Z45: 4 | AA45: 4 | AB45: 4 | AC45: 2 | AD45: 4 | AE45: 4 | AF45: 4 | AG45: 4 | AH45: 2 | AI45: 3 | AJ45: 4 | AK45: 2 | AL45: 1 | AM45: 4 | AN45: 2 | AO45: 4 | AP45: 5 | AQ45: 4 | AR45: 4 | AS45: 4 | AT45: 2 | AX45: 2 | AY45: 2 | AZ45: 5 | BA45: 1 | BB45: 1 | BC45: 2 | BD45: 4 | BE45: 5 | BF45: 5 | BG45: 5 | BH45: 5 | BI45: 5 | BJ45: 2 | BK45: 5 | BL45: 2 | BM45: 5 | BN45: 5 | BO45: 4 | BP45: 2 | BQ45: 2 | BR45: 2 | BS45: 1 | BT45: 1 | BU45: 1 | BV45: 4 | BW45: 4 | BX45: 5 | BY45: 2 | BZ45: 5 | CA45: 3 | CB45: 4 | CC45: 4 | CD45: 2 | CE45: 2 | CF45: 4 | CG45: 4 | CH45: 2 | CI45: 2 | CJ45: 5 | CK45: 2 | CL45: 2 | CM45: 4
A46: Expert 45 | B46: 1 | C46: 1 | D46: 3 | E46: 2 | F46: 3 | G46: 4 | H46: 3 | I46: 3 | J46: 2 | K46: 2 | L46: 4 | M46: 4 | N46: 4 | O46: 1 | P46: 3 | Q46: 2 | R46: 4 | S46: 2 | T46: 3 | U46: 4 | V46: 1 | W46: 2 | X46: 2 | Y46: 4 | Z46: 3 | AA46: 1 | AB46: 4 | AC46: 4 | AD46: 2 | AE46: 3 | AF46: 2 | AG46: 5 | AH46: 2 | AI46: 2 | AJ46: 2 | AK46: 1 | AL46: 1 | AM46: 3 | AN46: 2 | AO46: 2 | AP46: 4 | AQ46: 4 | AR46: 2 | AS46: 1 | AT46: 3 | AU46: 4 | AV46: 2 | AW46: 1 | AX46: 2 | AY46: 3 | AZ46: 4 | BA46: 1 | BB46: 1 | BC46: 3 | BD46: 4 | BE46: 3 | BF46: 2 | BG46: 4 | BH46: 3 | BI46: 3 | BJ46: 1 | BK46: 4 | BL46: 2 | BM46: 5 | BN46: 3 | BO46: 3 | BP46: 4 | BQ46: 5 | BR46: 5 | BS46: 2 | BT46: 2 | BU46: 2 | BV46: 3 | BW46: 3 | BX46: 4 | BY46: 2 | BZ46: 1 | CA46: 2 | CB46: 3 | CC46: 3 | CD46: 3 | CE46: 4 | CF46: 4 | CG46: 4 | CH46: 3 | CI46: 3 | CJ46: 2 | CK46: 2 | CL46: 3 | CM46: 3
A47: Expert 46
A48: Expert 47
A49: Expert 48
A50: Expert 49
A51: Expert 50
A55: mode | B55: =MODE(B2:B51) -> 2 | C55: =MODE(C2:C51) -> 1 | D55: 3 | E55: 3 | F55: 3 | G55: 3 | H55: 3 | I55: 2 | J55: 2 | K55: 2 | L55: 4 | M55: 5 | N55: 4 | O55: 1 | P55: 4 | Q55: 2 | R55: 4 | S55: 2 | T55: 3 | U55: 5 | V55: 2 | W55: 2 | X55: 2 | Y55: 4 | Z55: 3 | AA55: 2 | AB55: 4 | AC55: 3 | AD55: 2 | AE55: 3 | AF55: 2 | AG55: 4 | AH55: 2 | AI55: 2 | AJ55: 4 | AK55: 2 | AL55: 2 | AM55: 3 | AN55: 2 | AO55: 2 | AP55: 4 | AQ55: 4 | AR55: 3 | AS55: 2 | AT55: 3 | AU55: 5 | AV55: 2 | AW55: 2 | AX55: 2 | AY55: 2 | AZ55: 5 | BA55: 2 | BB55: 2 | BC55: 3 | BD55: 2 | BE55: 5 | BF55: 2 | BG55: 4 | BH55: 4 | BI55: 4 | BJ55: 1 | BK55: 5 | BL55: 2 | BM55: 5 | BN55: 3 | BO55: =MODE(BO2:BO51) -> 3 | BP55: 2 | BQ55: 4 | BR55: 5 | BS55: 3 | BT55: 1 | BU55: 1 | BV55: 3 | BW55: 3 | BX55: 5 | BY55: 2 | BZ55: 2 | CA55: 2 | CB55: 3 | CC55: 4 | CD55: 3 | CE55: 4 | CF55: 4 | CG55: 4 | CH55: 3 | CI55: 2 | CJ55: 4 | CK55: 2 | CL55: 3 | CM55: 4 | EA55: =MODE(EA2:EA51) ->  | EV55: =MODE(EV2:EV51) -> 
A56: variance | B56: =VAR(B2:B51) -> 0.9272727273 | C56: =VAR(C2:C51) -> 0.1797979798 | D56: 0.9343434343 | E56: 0.7797979798 | F56: 0.2454545455 | G56: 0.2646464646 | H56: 0.3404040404 | I56: 0.5131313131 | J56: 0.4616161616 | K56: 0.2676767677 | L56: 0.2858585859 | M56: 0.301010101 | N56: 0.7222222222 | O56: 2.245454545 | P56: 0.6949494949 | Q56: 0.8636363636 | R56: 0.3707070707 | S56: 1.31010101 | T56: 0.8858585859 | U56: 0.5676767677 | V56: 0.7676767677 | W56: 0.797979798 | X56: 0.2 | Y56: 1.088888889 | Z56: 0.6636363636 | AA56: 0.4545454545 | AB56: 0.4818181818 | AC56: 0.9828282828 | AD56: 1.290909091 | AE56: 0.5909090909 | AF56: 0.5181818182 | AG56: 1.643434343 | AH56: 0.6494949495 | AI56: 0.3821353066 | AJ56: 0.5808668076 | AK56: 0.5729386892 | AL56: 1.71010101 | AM56: 0.3818181818 | AN56: 0.3399778516 | AO56: 0.3161616162 | AP56: 0.2191919192 | AQ56: 0.8454545455 | AR56: 0.7101010101 | AS56: 0.6636363636 | AT56: 0.6616161616 | AU56: 1.172832981 | AV56: 1.1897463 | AW56: 0.7161733615 | AX56: 0.6545454545 | AY56: 0.8181818182 | AZ56: 0.7555555556 | BA56: 1.088266385 | BB56: 0.4926004228 | BC56: 0.3525369979 | BD56: 1.431313131 | BE56: 0.2949494949 | BF56: 1.285858586 | BG56: 0.797979798 | BH56: 0.604040404 | BI56: 0.4767676768 | BJ56: 0.4397463002 | BK56: 0.6343434343 | BL56: 0.4818181818 | BM56: 1.343434343 | BN56: 0.6888888889 | BO56: =VAR(BO2:BO51) -> 0.8404040404 | BP56: 0.8937632135 | BQ56: 0.906448203 | BR56: 1.061310782 | BS56: 0.2555555556 | BT56: 0.3909090909 | BU56: 0.5525252525 | BV56: 0.1395348837 | BW56: 0.3905919662 | BX56: 1.96345515 | BY56: 0.6088794926 | BZ56: 0.8073089701 | CA56: 0.9994714588 | CB56: 1.21010101 | CC56: 1.154545455 | CD56: 0.7191919192 | CE56: 0.5681818182 | CF56: 0.5204872647 | CG56: 0.8033826638 | CH56: 0.4191919192 | CI56: 0.5272727273 | CJ56: 1.331313131 | CK56: 0.3131313131 | CL56: 0.6181818182 | CM56: 0.8363636364 | EA56: =VAR(EA2:EA51) ->  | EV56: =VAR(EV2:EV51) -> 
A58: N réponses | B58: =COUNTA(B2:B51) -> 45 | C58: =COUNTA(C2:C51) -> 45 | D58: 45 | E58: 45 | F58: 45 | G58: 45 | H58: 45 | I58: 45 | J58: 45 | K58: 45 | L58: 45 | M58: 45 | N58: 45 | O58: 45 | P58: 45 | Q58: 45 | R58: 45 | S58: 45 | T58: 45 | U58: 45 | V58: 45 | W58: 45 | X58: 45 | Y58: 45 | Z58: 45 | AA58: 45 | AB58: 45 | AC58: 45 | AD58: 45 | AE58: 45 | AF58: 45 | AG58: 45 | AH58: 45 | AI58: 44 | AJ58: 44 | AK58: 44 | AL58: 45 | AM58: 45 | AN58: 43 | AO58: 45 | AP58: 45 | AQ58: 45 | AR58: 45 | AS58: 45 | AT58: 45 | AU58: 44 | AV58: 44 | AW58: 44 | AX58: 45 | AY58: 44 | AZ58: 45 | BA58: 44 | BB58: 44 | BC58: 44 | BD58: 45 | BE58: 45 | BF58: 45 | BG58: 45 | BH58: 45 | BI58: 45 | BJ58: 44 | BK58: 45 | BL58: 45 | BM58: 45 | BN58: 45 | BO58: =COUNTA(BO2:BO51) -> 45 | BP58: 44 | BQ58: 44 | BR58: 44 | BS58: 45 | BT58: 45 | BU58: 45 | BV58: 44 | BW58: 44 | BX58: 43 | BY58: 44 | BZ58: 43 | CA58: 44 | CB58: 45 | CC58: 45 | CD58: 45 | CE58: 44 | CF58: 43 | CG58: 44 | CH58: 45 | CI58: 45 | CJ58: 45 | CK58: 45 | CL58: 45 | CM58: 45 | CN58: 0 | CO58: 0 | CP58: 0 | CQ58: 0 | CR58: 0 | CS58: 0 | CT58: 0 | CU58: 0 | CV58: 0 | CW58: 0 | CX58: 0 | CY58: 0 | CZ58: 0 | DA58: 0 | DB58: 0 | DC58: 0 | DD58: 0 | DE58: 0 | DF58: 0 | DG58: 0 | DH58: 0 | DI58: 0 | DJ58: 0 | DK58: 0 | DL58: 0 | DM58: 0 | DN58: 0 | DO58: 0 | DP58: 0 | DQ58: 0 | DR58: 0 | DS58: 0 | DT58: 0 | DU58: 0 | DV58: 0 | DW58: 0 | DX58: 0 | DY58: 0 | DZ58: 0 | EA58: =COUNTA(EA2:EA51) -> 0 | EB58: 0 | EC58: 0 | ED58: 0 | EE58: 0 | EF58: 0 | EG58: 0 | EH58: 0 | EI58: 0 | EJ58: 0 | EK58: 0 | EL58: 0 | EM58: 0 | EN58: 0 | EO58: 0 | EP58: 0 | EQ58: 0 | ER58: 0 | ES58: 0 | ET58: 0 | EU58: 0 | EV58: 0 | EW58: 0 | EX58: 0 | EY58: 0 | EZ58: 0 | FA58: 0 | FB58: 0 | FC58: 0 | FD58: 0 | FE58: 0 | FF58: 0 | FG58: 0 | FH58: 0 | FI58: 0 | FJ58: 0 | FK58: 0 | FL58: 0 | FM58: 0 | FN58: 0 | FO58: 0 | FP58: 0 | FQ58: 0 | FR58: 0 | FS58: 0 | FT58: 0 | FU58: 0 | FV58: 0 | FW58: 0 | FX58: 0 | FY58: 0 | FZ58: 0 | GA58: 0 | GB58: 0 | GC58: 0 | GD58: 0 | GE58: 0 | GF58: 0 | GG58: 0 | GH58: 0 | GI58: 0 | GJ58: 0 | GK58: 0 | GL58: 0 | GM58: =COUNTA(GM2:GM51) -> 0 | GN58: 0 | GO58: 0 | GP58: 0 | GQ58: 0 | GR58: 0 | GS58: 0

Sheet répondants
A1: respondents | B1: =panel!B1 -> q1 | C1: =panel!C1 -> q2 | D1: =panel!D1 -> q3 | E1: =panel!E1 -> q4 | F1: =panel!F1 -> q5 | G1: =panel!G1 -> q6 | H1: =panel!H1 -> q7 | I1: =panel!I1 -> q8 | J1: =panel!J1 -> q9 | K1: =panel!K1 -> q10 | L1: =panel!L1 -> q11 | M1: =panel!M1 -> q12 | N1: =panel!N1 -> q13 | O1: =panel!O1 -> q14 | P1: =panel!P1 -> q15 | Q1: =panel!Q1 -> q16 | R1: =panel!R1 -> q17 | S1: =panel!S1 -> q18 | T1: =panel!T1 -> q19 | U1: =panel!U1 -> q20 | V1: =panel!V1 -> q21 | W1: =panel!W1 -> q22 | X1: =panel!X1 -> q23 | Y1: =panel!Y1 -> q24 | Z1: =panel!Z1 -> q25 | AA1: =panel!AA1 -> q26 | AB1: =panel!AB1 -> q27 | AC1: =panel!AC1 -> q28 | AD1: =panel!AD1 -> q29 | AE1: =panel!AE1 -> q30 | AF1: =panel!AF1 -> q31 | AG1: =panel!AG1 -> q32 | AH1: =panel!AH1 -> q33 | AI1: =panel!AI1 -> q34 | AJ1: =panel!AJ1 -> q35 | AK1: =panel!AK1 -> q36 | AL1: =panel!AL1 -> q37 | AM1: =panel!AM1 -> q38 | AN1: =panel!AN1 -> q39 | AO1: =panel!AO1 -> q40 | AP1: =panel!AP1 -> q41 | AQ1: =panel!AQ1 -> q42 | AR1: =panel!AR1 -> q43 | AS1: =panel!AS1 -> q44 | AT1: =panel!AT1 -> q45 | AU1: =panel!AU1 -> q46 | AV1: =panel!AV1 -> q47 | AW1: =panel!AW1 -> q48 | AX1: =panel!AX1 -> q49 | AY1: =panel!AY1 -> q50 | AZ1: =panel!AZ1 -> q51 | BA1: =panel!BA1 -> q52 | BB1: =panel!BB1 -> q53 | BC1: =panel!BC1 -> q54 | BD1: =panel!BD1 -> q55 | BE1: =panel!BE1 -> q56 | BF1: =panel!BF1 -> q57 | BG1: =panel!BG1 -> q58 | BH1: =panel!BH1 -> q59 | BI1: =panel!BI1 -> q60 | BJ1: =panel!BJ1 -> q61 | BK1: =panel!BK1 -> q62 | BL1: =panel!BL1 -> q63 | BM1: =panel!BM1 -> q64 | BN1: =panel!BN1 -> q65 | BO1: =panel!BO1 -> q66 | BP1: =panel!BP1 -> q67 | BQ1: =panel!BQ1 -> q68 | BR1: =panel!BR1 -> q69 | BS1: =panel!BS1 -> q70 | BT1: =panel!BT1 -> q71 | BU1: =panel!BU1 -> q72 | BV1: =panel!BV1 -> q73 | BW1: =panel!BW1 -> q74 | BX1: =panel!BX1 -> q75 | BY1: =panel!BY1 -> q76 | BZ1: =panel!BZ1 -> q77 | CA1: =panel!CA1 -> q78 | CB1: =panel!CB1 -> q79 | CC1: =panel!CC1 -> q80 | CD1: =panel!CD1 -> q81 | CE1: =panel!CE1 -> q82 | CF1: =panel!CF1 -> q83 | CG1: =panel!CG1 -> q84 | CH1: =panel!CH1 -> q85 | CI1: =panel!CI1 -> q86 | CJ1: =panel!CJ1 -> q87 | CK1: =panel!CK1 -> q88 | CL1: =panel!CL1 -> q89 | CM1: =panel!CM1 -> q90 | CN1: =panel!CN1 -> q91 | CO1: =panel!CO1 -> q92 | CP1: =panel!CP1 -> q93 | CQ1: =panel!CQ1 -> q94 | CR1: =panel!CR1 -> q95 | CS1: =panel!CS1 -> q96 | CT1: =panel!CT1 -> q97 | CU1: =panel!CU1 -> q98 | CV1: =panel!CV1 -> q99 | CW1: =panel!CW1 -> q100 | CX1: =panel!CX1 -> q101 | CY1: =panel!CY1 -> q102 | CZ1: =panel!CZ1 -> q103 | DA1: =panel!DA1 -> q104 | DB1: =panel!DB1 -> q105 | DC1: =panel!DC1 -> q106 | DD1: =panel!DD1 -> q107 | DE1: =panel!DE1 -> q108 | DF1: =panel!DF1 -> q109 | DG1: =panel!DG1 -> q110 | DH1: =panel!DH1 -> q111 | DI1: =panel!DI1 -> q112 | DJ1: =panel!DJ1 -> q113 | DK1: =panel!DK1 -> q114 | DL1: =panel!DL1 -> q115 | DM1: =panel!DM1 -> q116 | DN1: =panel!DN1 -> q117 | DO1: =panel!DO1 -> q118 | DP1: =panel!DP1 -> q119 | DQ1: =panel!DQ1 -> q120 | DR1: =panel!DR1 -> q121 | DS1: =panel!DS1 -> q122 | DT1: =panel!DT1 -> q123 | DU1: =panel!DU1 -> q124 | DV1: =panel!DV1 -> q125 | DW1: =panel!DW1 -> q126 | DX1: =panel!DX1 -> q127 | DY1: =panel!DY1 -> q128 | DZ1: =panel!DZ1 -> q129 | EA1: =panel!EA1 -> q130 | EB1: =panel!EB1 -> q131 | EC1: =panel!EC1 -> q132 | ED1: =panel!ED1 -> q133 | EE1: =panel!EE1 -> q134 | EF1: =panel!EF1 -> q135 | EG1: =panel!EG1 -> q136 | EH1: =panel!EH1 -> q137 | EI1: =panel!EI1 -> q138 | EJ1: =panel!EJ1 -> q139 | EK1: =panel!EK1 -> q140 | EL1: =panel!EL1 -> q141 | EM1: =panel!EM1 -> q142 | EN1: =panel!EN1 -> q143 | EO1: =panel!EO1 -> q144 | EP1: =panel!EP1 -> q145 | EQ1: =panel!EQ1 -> q146 | ER1: =panel!ER1 -> q147 | ES1: =panel!ES1 -> q148 | ET1: =panel!ET1 -> q149 | EU1: =panel!EU1 -> q150 | EV1: =panel!EV1 -> q151 | EW1: =panel!EW1 -> q152 | EX1: =panel!EX1 -> q153 | EY1: =panel!EY1 -> q154 | EZ1: =panel!EZ1 -> q155 | FA1: =panel!FA1 -> q156 | FB1: =panel!FB1 -> q157 | FC1: =panel!FC1 -> q158 | FD1: =panel!FD1 -> q159 | FE1: =panel!FE1 -> q160 | FF1: =panel!FF1 -> q161 | FG1: =panel!FG1 -> q162 | FH1: =panel!FH1 -> q163 | FI1: =panel!FI1 -> q164 | FJ1: =panel!FJ1 -> q165 | FK1: =panel!FK1 -> q166 | FL1: =panel!FL1 -> q167 | FM1: =panel!FM1 -> q168 | FN1: =panel!FN1 -> q169 | FO1: =panel!FO1 -> q170 | FP1: =panel!FP1 -> q171 | FQ1: =panel!FQ1 -> q172 | FR1: =panel!FR1 -> q173 | FS1: =panel!FS1 -> q174 | FT1: =panel!FT1 -> q175 | FU1: =panel!FU1 -> q176 | FV1: =panel!FV1 -> q177 | FW1: =panel!FW1 -> q178 | FX1: =panel!FX1 -> q179 | FY1: =panel!FY1 -> q180 | FZ1: =panel!FZ1 -> q181 | GA1: =panel!GA1 -> q182 | GB1: =panel!GB1 -> q183 | GC1: =panel!GC1 -> q184 | GD1: =panel!GD1 -> q185 | GE1: =panel!GE1 -> q186 | GF1: =panel!GF1 -> q187 | GG1: =panel!GG1 -> q188 | GH1: =panel!GH1 -> q189 | GI1: =panel!GI1 -> q190 | GJ1: =panel!GJ1 -> q191 | GK1: =panel!GK1 -> q192 | GL1: =panel!GL1 -> q193 | GM1: =panel!GM1 -> q194 | GN1: =panel!GN1 -> q195 | GO1: =panel!GO1 -> q196 | GP1: =panel!GP1 -> q197 | GQ1: =panel!GQ1 -> q198 | GR1: =panel!GR1 -> q199 | GS1: =panel!GS1 -> q200 | GV1: N réponses | GX1: N_1 | GY1: N_2 | GZ1: N_3 | HA1: N_4 | HB1: N_5 | HC1: P_1 | HD1: P_2 | HE1: P_3 | HF1: P_4 | HG1: P_5 | HH1: TCS | HI1: corrélation | HJ1: p1_TCS | HK1: p2_TCS | HL1: p3_TCS | HM1: p4_TCS | HN1: p5_TCS
A2: 1 | B2: 2 | C2: 2 | D2: 1 | E2: 5 | F2: 2 | G2: 3 | H2: 3 | I2: 2 | J2: 2 | K2: 1 | L2: 5 | M2: 2 | N2: 4 | O2: 5 | P2: 4 | Q2: 1 | R2: 4 | S2: 4 | T2: 2 | U2: 4 | V2: 2 | W2: 2 | X2: 2 | Y2: 4 | Z2: 2 | AA2: 2 | AB2: 4 | AC2: 2 | AD2: 1 | AE2: 5 | AF2: 2 | AG2: 1 | AH2: 2 | AI2: 2 | AJ2: 5 | AK2: 3 | AL2: 2 | AM2: 3 | AN2: 2 | AO2: 2 | AP2: 5 | AQ2: 4 | AR2: 3 | AS2: 2 | AT2: 3 | AU2: 5 | AV2: 2 | AW2: 2 | AX2: 2 | AY2: 1 | AZ2: 5 | BA2: 1 | BB2: 1 | BC2: 3 | BD2: 2 | BE2: 5 | BF2: 2 | BG2: 2 | BH2: 4 | BI2: 4 | BJ2: 3 | BK2: 5 | BL2: 2 | BM2: 3 | BN2: 3 | BO2: 3 | BP2: 4 | BQ2: 5 | BR2: 2 | BS2: 2 | BT2: 3 | BU2: 1 | BV2: 2 | BW2: 2 | BX2: 2 | BY2: 2 | BZ2: 1 | CA2: 3 | CB2: 1 | CC2: 2 | CD2: 3 | CE2: 5 | CF2: 4 | CG2: 5 | CH2: 1 | CI2: 2 | CJ2: 1 | CK2: 2 | CL2: 1 | CM2: 5 | GV2: =COUNTA($B2:$GS2) -> 90 | GX2: =COUNTIF($B2:$GS2,1) -> 14 | GY2: =COUNTIF($B2:$GS2,2) -> 36 | GZ2: =COUNTIF($B2:$GS2,3) -> 14 | HA2: =COUNTIF($B2:$GS2,4) -> 12 | HB2: =COUNTIF($B2:$GS2,5) -> 14 | HC2: =IF(GX2>0,GX2/$GV2,"") -> 0.1555555556 | HD2: =IF(GY2>0,GY2/$GV2,"") -> 0.4 | HE2: =IF(GZ2>0,GZ2/$GV2,"") -> 0.1555555556 | HF2: =IF(HA2>0,HA2/$GV2,"") -> 0.1333333333 | HG2: =IF(HB2>0,HB2/$GV2,"") -> 0.1555555556 | HH2: ='scores TCS'!GV3 -> 67.87205934 | HJ2: =CORREL($HH2:$HH100,HC2:HC100) -> -0.2211298896 | HK2: =CORREL($HH2:$HH100,HD2:HD100) -> 0.2973594817 | HL2: =CORREL($HH2:$HH100,HE2:HE100) -> 0.4480766236 | HM2: =CORREL($HH2:$HH100,HF2:HF100) -> -0.2547992571 | HN2: =CORREL($HH2:$HH100,HG2:HG100) -> -0.4126780838
A3: 2 | B3: 2 | C3: 2 | D3: 2 | E3: 3 | F3: 3 | G3: 3 | H3: 3 | I3: 2 | J3: 2 | K3: 2 | L3: 4 | M3: 4 | N3: 4 | O3: 4 | P3: 4 | Q3: 3 | R3: 4 | S3: 2 | T3: 3 | U3: 4 | V3: 2 | W3: 2 | X3: 3 | Y3: 4 | Z3: 3 | AA3: 2 | AB3: 3 | AC3: 2 | AD3: 2 | AE3: 4 | AF3: 2 | AG3: 3 | AH3: 2 | AI3: 2 | AJ3: 4 | AK3: 2 | AL3: 1 | AM3: 3 | AN3: 2 | AO3: 2 | AP3: 4 | AQ3: 2 | AR3: 1 | AS3: 3 | AT3: 1 | AU3: 3 | AV3: 4 | AW3: 4 | AX3: 2 | AY3: 4 | AZ3: 4 | BA3: 2 | BB3: 1 | BC3: 4 | BD3: 2 | BE3: 4 | BF3: 3 | BG3: 4 | BH3: 3 | BI3: 4 | BJ3: 3 | BK3: 4 | BL3: 2 | BM3: 5 | BN3: 3 | BO3: 3 | BP3: 2 | BQ3: 4 | BR3: 4 | BS3: 2 | BT3: 1 | BU3: 1 | BV3: 2 | BW3: 2 | BX3: 5 | BY3: 3 | BZ3: 1 | CA3: 3 | CB3: 5 | CC3: 4 | CD3: 4 | CE3: 5 | CF3: 4 | CG3: 4 | CH3: 3 | CI3: 2 | CJ3: 4 | CK3: 2 | CL3: 2 | CM3: 4 | GV3: =COUNTA($B3:$GS3) -> 90 | GX3: =COUNTIF($B3:$GS3,1) -> 7 | GY3: =COUNTIF($B3:$GS3,2) -> 30 | GZ3: =COUNTIF($B3:$GS3,3) -> 21 | HA3: =COUNTIF($B3:$GS3,4) -> 28 | HB3: =COUNTIF($B3:$GS3,5) -> 4 | HC3: =IF(GX3>0,GX3/$GV3,"") -> 0.07777777778 | HD3: =IF(GY3>0,GY3/$GV3,"") -> 0.3333333333 | HE3: =IF(GZ3>0,GZ3/$GV3,"") -> 0.2333333333 | HF3: =IF(HA3>0,HA3/$GV3,"") -> 0.3111111111 | HG3: =IF(HB3>0,HB3/$GV3,"") -> 0.04444444444 | HH3: ='scores TCS'!GV4 -> 76.12076212
A4: 3 | B4: 2 | C4: 1 | D4: 3 | E4: 3 | F4: 3 | G4: 3 | H4: 3 | I4: 2 | J4: 3 | K4: 2 | L4: 4 | M4: 4 | N4: 4 | O4: 3 | P4: 4 | Q4: 2 | R4: 4 | S4: 3 | T4: 3 | U4: 3 | V4: 2 | W4: 2 | X4: 2 | Y4: 4 | Z4: 3 | AA4: 1 | AB4: 3 | AC4: 4 | AD4: 2 | AE4: 5 | AF4: 2 | AG4: 5 | AH4: 3 | AI4: 1 | AJ4: 4 | AK4: 3 | AL4: 1 | AM4: 3 | AN4: 2 | AO4: 2 | AP4: 5 | AQ4: 4 | AR4: 3 | AS4: 3 | AT4: 3 | AU4: 5 | AV4: 2 | AW4: 1 | AX4: 3 | AY4: 1 | AZ4: 5 | BA4: 3 | BB4: 3 | BC4: 3 | BD4: 2 | BE4: 5 | BF4: 3 | BG4: 4 | BH4: 3 | BI4: 3 | BJ4: 2 | BK4: 3 | BL4: 3 | BM4: 5 | BN4: 3 | BO4: 3 | BP4: 5 | BQ4: 5 | BR4: 4 | BS4: 3 | BT4: 1 | BU4: 1 | BV4: 3 | BW4: 5 | BX4: 5 | BY4: 2 | BZ4: 2 | CA4: 3 | CB4: 3 | CC4: 3 | CD4: 3 | CE4: 3 | CF4: 3 | CG4: 3 | CH4: 3 | CI4: 3 | CJ4: 3 | CK4: 3 | CL4: 3 | CM4: 3 | GV4: 90 | GX4: 8 | GY4: 16 | GZ4: 44 | HA4: 11 | HB4: 11 | HC4: 0.08888888889 | HD4: 0.1777777778 | HE4: 0.4888888889 | HF4: 0.1222222222 | HG4: 0.1222222222 | HH4: ='scores TCS'!GV5 -> 77.0005771
A5: 4 | B5: 2 | C5: 1 | D5: 1 | E5: 3 | F5: 3 | G5: 5 | H5: 3 | I5: 1 | J5: 2 | K5: 2 | L5: 5 | M5: 5 | N5: 4 | O5: 1 | P5: 5 | Q5: 2 | R5: 4 | S5: 1 | T5: 3 | U5: 5 | V5: 2 | W5: 5 | X5: 2 | Y5: 1 | Z5: 2 | AA5: 3 | AB5: 5 | AC5: 4 | AD5: 1 | AE5: 3 | AF5: 2 | AG5: 4 | AH5: 2 | AI5: 2 | AJ5: 4 | AK5: 2 | AL5: 1 | AM5: 3 | AN5: 2 | AO5: 2 | AP5: 4 | AQ5: 2 | AR5: 3 | AS5: 2 | AT5: 3 | AU5: 5 | AV5: 2 | AW5: 1 | AX5: 2 | AY5: 4 | AZ5: 5 | BA5: 1 | BB5: 4 | BC5: 3 | BD5: 4 | BE5: 5 | BF5: 2 | BG5: 4 | BH5: 4 | BI5: 4 | BJ5: 1 | BK5: 5 | BL5: 2 | BM5: 5 | BN5: 3 | BO5: 3 | BP5: 2 | BQ5: 4 | BR5: 5 | BS5: 3 | BT5: 2 | BU5: 2 | BV5: 3 | BW5: 3 | BX5: 5 | BY5: 2 | BZ5: 2 | CA5: 4 | CB5: 3 | CC5: 4 | CD5: 3 | CE5: 4 | CF5: 5 | CG5: 4 | CH5: 3 | CI5: 3 | CJ5: 4 | CK5: 2 | CL5: 3 | CM5: 5 | GV5: 90 | GX5: 11 | GY5: 25 | GZ5: 20 | HA5: 18 | HB5: 16 | HC5: 0.1222222222 | HD5: 0.2777777778 | HE5: 0.2222222222 | HF5: 0.2 | HG5: 0.1777777778 | HH5: ='scores TCS'!GV6 -> 83.95874736
A6: 5 | B6: 1 | C6: 1 | D6: 2 | E6: 2 | F6: 3 | G6: 3 | H6: 3 | I6: 2 | J6: 3 | K6: 2 | L6: 4 | M6: 2 | N6: 4 | O6: 5 | P6: 4 | Q6: 4 | R6: 5 | S6: 5 | T6: 2 | U6: 5 | V6: 1 | W6: 2 | X6: 2 | Y6: 4 | Z6: 3 | AA6: 2 | AB6: 2 | AC6: 3 | AD6: 2 | AE6: 3 | AF6: 3 | AG6: 4 | AH6: 2 | AI6: 2 | AJ6: 3 | AK6: 3 | AL6: 3 | AM6: 3 | AN6: 1 | AO6: 2 | AP6: 4 | AQ6: 4 | AR6: 2 | AS6: 3 | AT6: 4 | AU6: 5 | AV6: 3 | AW6: 2 | AX6: 2 | AY6: 2 | AZ6: 5 | BA6: 3 | BB6: 2 | BC6: 3 | BD6: 1 | BE6: 5 | BF6: 3 | BG6: 4 | BH6: 4 | BI6: 4 | BJ6: 1 | BK6: 4 | BL6: 2 | BM6: 5 | BN6: 3 | BO6: 3 | BP6: 3 | BQ6: 4 | BR6: 1 | BS6: 3 | BT6: 1 | BU6: 2 | BV6: 3 | BW6: 3 | BX6: 5 | BY6: 2 | BZ6: 1 | CA6: 4 | CB6: 4 | CC6: 2 | CD6: 3 | CE6: 4 | CF6: 4 | CG6: 4 | CH6: 3 | CI6: 2 | CJ6: 2 | CK6: 3 | CL6: 3 | CM6: 3 | GV6: 90 | GX6: 9 | GY6: 25 | GZ6: 28 | HA6: 19 | HB6: 9 | HC6: 0.1 | HD6: 0.2777777778 | HE6: 0.3111111111 | HF6: 0.2111111111 | HG6: 0.1 | HH6: ='scores TCS'!GV7 -> 77.29785401
A7: 6 | B7: 3 | C7: 2 | D7: 1 | E7: 3 | F7: 3 | G7: 4 | H7: 3 | I7: 2 | J7: 2 | K7: 2 | L7: 4 | M7: 3 | N7: 5 | O7: 2 | P7: 3 | Q7: 2 | R7: 3 | S7: 1 | T7: 4 | U7: 4 | V7: 2 | W7: 4 | X7: 3 | Y7: 2 | Z7: 2 | AA7: 2 | AB7: 4 | AC7: 3 | AD7: 2 | AE7: 3 | AF7: 3 | AG7: 2 | AH7: 4 | AI7: 2 | AJ7: 3 | AK7: 3 | AL7: 4 | AM7: 3 | AN7: 3 | AO7: 2 | AP7: 5 | AQ7: 2 | AR7: 3 | AS7: 4 | AT7: 4 | AU7: 3 | AV7: 2 | AW7: 2 | AX7: 2 | AY7: 3 | AZ7: 4 | BA7: 2 | BB7: 3 | BC7: 4 | BD7: 2 | BE7: 4 | BF7: 4 | BG7: 4 | BH7: 2 | BI7: 2 | BJ7: 2 | BK7: 3 | BL7: 2 | BM7: 5 | BN7: 4 | BO7: 4 | BP7: 3 | BQ7: 2 | BR7: 2 | BS7: 2 | BT7: 2 | BU7: 2 | BV7: 3 | BW7: 3 | BX7: 4 | BY7: 3 | BZ7: 2 | CA7: 4 | CB7: 3 | CC7: 4 | CD7: 3 | CE7: 4 | CF7: 4 | CG7: 4 | CH7: 2 | CI7: 2 | CJ7: 4 | CK7: 2 | CL7: 2 | CM7: 4 | GV7: 90 | GX7: 2 | GY7: 34 | GZ7: 26 | HA7: 25 | HB7: 3 | HC7: 0.02222222222 | HD7: 0.3777777778 | HE7: 0.2888888889 | HF7: 0.2777777778 | HG7: 0.03333333333 | HH7: ='scores TCS'!GV8 -> 66.39226153
A8: 7 | B8: 3 | C8: 2 | D8: 2 | E8: 2 | F8: 3 | G8: 3 | H8: 3 | I8: 3 | J8: 2 | K8: 2 | L8: 5 | M8: 5 | N8: 4 | O8: 1 | P8: 4 | Q8: 4 | R8: 4 | S8: 2 | T8: 1 | U8: 5 | V8: 1 | W8: 3 | X8: 2 | Y8: 4 | Z8: 3 | AA8: 2 | AB8: 3 | AC8: 4 | AD8: 2 | AE8: 3 | AF8: 3 | AG8: 2 | AH8: 2 | AI8: 2 | AJ8: 2 | AK8: 2 | AL8: 4 | AM8: 4 | AN8: 2 | AO8: 2 | AP8: 3 | AQ8: 2 | AR8: 3 | AS8: 2 | AT8: 4 | AU8: 3 | AV8: 2 | AW8: 1 | AX8: 2 | AY8: 4 | AZ8: 5 | BA8: 3 | BB8: 3 | BC8: 3 | BD8: 1 | BE8: 5 | BF8: 2 | BG8: 3 | BH8: 4 | BI8: 4 | BJ8: 1 | BK8: 5 | BL8: 3 | BM8: 5 | BN8: 4 | BO8: 3 | BP8: 2 | BQ8: 2 | BR8: 5 | BS8: 3 | BT8: 2 | BU8: 1 | BV8: 3 | BW8: 3 | BX8: 5 | BY8: 3 | BZ8: 1 | CA8: 5 | CB8: 4 | CC8: 4 | CD8: 2 | CE8: 4 | CF8: 4 | CG8: 2 | CH8: 3 | CI8: 2 | CJ8: 2 | CK8: 2 | CL8: 3 | CM8: 5 | GV8: 90 | GX8: 8 | GY8: 29 | GZ8: 25 | HA8: 17 | HB8: 11 | HC8: 0.08888888889 | HD8: 0.3222222222 | HE8: 0.2777777778 | HF8: 0.1888888889 | HG8: 0.1222222222 | HH8: ='scores TCS'!GV9 -> 73.8065893
A9: 8 | B9: 3 | C9: 1 | D9: 2 | E9: 3 | F9: 3 | G9: 3 | H9: 3 | I9: 2 | J9: 2 | K9: 2 | L9: 4 | M9: 4 | N9: 2 | O9: 5 | P9: 2 | Q9: 4 | R9: 2 | S9: 2 | T9: 3 | U9: 4 | V9: 3 | W9: 3 | X9: 2 | Y9: 4 | Z9: 2 | AA9: 3 | AB9: 3 | AC9: 4 | AD9: 2 | AE9: 5 | AF9: 2 | AG9: 3 | AH9: 2 | AI9: 2 | AJ9: 3 | AK9: 2 | AL9: 4 | AM9: 2 | AN9: 2 | AO9: 2 | AP9: 5 | AQ9: 4 | AR9: 3 | AS9: 2 | AT9: 4 | AU9: 4 | AV9: 2 | AW9: 2 | AX9: 2 | AY9: 4 | AZ9: 5 | BA9: 2 | BB9: 3 | BC9: 3 | BD9: 4 | BE9: 4 | BF9: 2 | BG9: 3 | BH9: 3 | BI9: 4 | BJ9: 2 | BK9: 3 | BL9: 2 | BM9: 5 | BN9: 3 | BO9: 3 | BP9: 4 | BQ9: 4 | BR9: 4 | BS9: 2 | BT9: 1 | BU9: 2 | BV9: 3 | BW9: 3 | BX9: 5 | BY9: 3 | BZ9: 2 | CA9: 4 | CB9: 4 | CC9: 5 | CD9: 3 | CE9: 4 | CF9: 3 | CG9: 4 | CH9: 3 | CI9: 2 | CJ9: 2 | CK9: 2 | CL9: 2 | CM9: 4 | GV9: 90 | GX9: 2 | GY9: 33 | GZ9: 26 | HA9: 22 | HB9: 7 | HC9: 0.02222222222 | HD9: 0.3666666667 | HE9: 0.2888888889 | HF9: 0.2444444444 | HG9: 0.07777777778 | HH9: ='scores TCS'!GV10 -> 77.62019801
A10: 9 | B10: 2 | C10: 2 | D10: 4 | E10: 3 | F10: 3 | G10: 4 | H10: 3 | I10: 3 | J10: 2 | K10: 2 | L10: 4 | M10: 4 | N10: 4 | O10: 1 | P10: 4 | Q10: 4 | R10: 4 | S10: 2 | T10: 4 | U10: 4 | V10: 3 | W10: 2 | X10: 2 | Y10: 3 | Z10: 4 | AA10: 2 | AB10: 4 | AC10: 3 | AD10: 2 | AE10: 4 | AF10: 2 | AG10: 3 | AH10: 2 | AI10: 2 | AJ10: 3 | AK10: 2 | AL10: 2 | AM10: 3 | AN10: 3 | AO10: 2 | AP10: 4 | AQ10: 4 | AR10: 3 | AS10: 2 | AT10: 4 | AU10: 4 | AV10: 2 | AW10: 2 | AX10: 2 | AY10: 2 | AZ10: 5 | BA10: 4 | BB10: 3 | BC10: 3 | BD10: 4 | BE10: 4 | BF10: 3 | BG10: 4 | BH10: 3 | BI10: 4 | BJ10: 1 | BK10: 5 | BL10: 3 | BM10: 5 | BN10: 3 | BO10: 4 | BP10: 2 | BQ10: 4 | BR10: 4 | BS10: 3 | BT10: 1 | BU10: 2 | BV10: 3 | BW10: 3 | BX10: 5 | BY10: 2 | BZ10: 2 | CA10: 4 | CB10: 5 | CC10: 2 | CD10: 3 | CE10: 5 | CF10: 3 | CG10: 4 | CH10: 3 | CI10: 3 | CJ10: 3 | CK10: 2 | CL10: 3 | CM10: 4 | GV10: 90 | GX10: 3 | GY10: 26 | GZ10: 27 | HA10: 28 | HB10: 6 | HC10: 0.03333333333 | HD10: 0.2888888889 | HE10: 0.3 | HF10: 0.3111111111 | HG10: 0.06666666667 | HH10: ='scores TCS'!GV11 -> 82.95037982
A11: 10 | B11: 2 | C11: 2 | D11: 1 | E11: 1 | F11: 3 | G11: 3 | H11: 3 | I11: 2 | J11: 3 | K11: 2 | L11: 4 | M11: 4 | N11: 3 | O11: 4 | P11: 3 | Q11: 3 | R11: 4 | S11: 4 | T11: 3 | U11: 5 | V11: 1 | W11: 1 | X11: 2 | Y11: 5 | Z11: 4 | AA11: 1 | AB11: 3 | AC11: 5 | AD11: 1 | AE11: 3 | AF11: 3 | AG11: 1 | AH11: 2 | AI11: 2 | AJ11: 4 | AK11: 2 | AL11: 5 | AM11: 3 | AN11: 1 | AO11: 1 | AP11: 5 | AQ11: 4 | AR11: 3 | AS11: 2 | AT11: 5 | AU11: 5 | AV11: 5 | AW11: 1 | AX11: 1 | AY11: 1 | AZ11: 5 | BA11: 1 | BB11: 3 | BC11: 3 | BD11: 2 | BE11: 5 | BF11: 1 | BG11: 4 | BH11: 4 | BI11: 4 | BJ11: 1 | BK11: 5 | BL11: 1 | BM11: 5 | BN11: 3 | BO11: 3 | BP11: 4 | BQ11: 5 | BR11: 5 | BS11: 3 | BT11: 1 | BU11: 3 | BV11: 3 | BW11: 3 | BX11: 5 | BY11: 4 | BZ11: 1 | CA11: 2 | CB11: 5 | CC11: 5 | CD11: 2 | CE11: 4 | CF11: 5 | CG11: 4 | CH11: 3 | CI11: 3 | CJ11: 1 | CK11: 1 | CL11: 1 | CM11: 5 | GV11: 90 | GX11: 21 | GY11: 12 | GZ11: 23 | HA11: 15 | HB11: 19 | HC11: 0.2333333333 | HD11: 0.1333333333 | HE11: 0.2555555556 | HF11: 0.1666666667 | HG11: 0.2111111111 | HH11: ='scores TCS'!GV12 -> 69.13253973
A12: 11 | B12: 2 | C12: 1 | D12: 1 | E12: 3 | F12: 3 | G12: 3 | H12: 1 | I12: 3 | J12: 2 | K12: 3 | L12: 5 | M12: 4 | N12: 4 | O12: 1 | P12: 4 | Q12: 4 | R12: 5 | S12: 1 | T12: 3 | U12: 3 | V12: 3 | W12: 1 | X12: 3 | Y12: 4 | Z12: 3 | AA12: 3 | AB12: 3 | AC12: 5 | AD12: 3 | AE12: 3 | AF12: 2 | AG12: 1 | AH12: 2 | AI12: 3 | AJ12: 5 | AK12: 2 | AL12: 2 | AM12: 3 | AN12: 3 | AO12: 2 | AP12: 5 | AQ12: 4 | AR12: 3 | AS12: 3 | AT12: 3 | AU12: 5 | AV12: 1 | AW12: 2 | AX12: 3 | AY12: 1 | AZ12: 3 | BA12: 3 | BB12: 2 | BC12: 3 | BD12: 4 | BE12: 5 | BF12: 4 | BG12: 2 | BH12: 3 | BI12: 3 | BJ12: 1 | BK12: 3 | BL12: 1 | BM12: 5 | BN12: 3 | BO12: 3 | BP12: 2 | BQ12: 4 | BR12: 5 | BS12: 3 | BT12: 1 | BU12: 2 | BV12: 3 | BW12: 3 | BX12: 5 | BY12: 2 | BZ12: 2 | CA12: 4 | CB12: 5 | CC12: 5 | CD12: 3 | CE12: 4 | CF12: 3 | CG12: 4 | CH12: 3 | CI12: 2 | CJ12: 1 | CK12: 3 | CL12: 2 | CM12: 4 | GV12: 90 | GX12: 13 | GY12: 16 | GZ12: 36 | HA12: 13 | HB12: 12 | HC12: 0.1444444444 | HD12: 0.1777777778 | HE12: 0.4 | HF12: 0.1444444444 | HG12: 0.1333333333 | HH12: ='scores TCS'!GV13 -> 74.14930992
A13: 12 | B13: 5 | C13: 4 | D13: 3 | E13: 3 | F13: 3 | G13: 3 | H13: 3 | I13: 2 | J13: 4 | K13: 2 | L13: 4 | M13: 4 | N13: 2 | O13: 5 | P13: 4 | Q13: 3 | R13: 4 | S13: 5 | T13: 5 | U13: 5 | V13: 2 | W13: 2 | X13: 3 | Y13: 5 | Z13: 3 | AA13: 2 | AB13: 5 | AC13: 4 | AD13: 2 | AE13: 5 | AF13: 3 | AG13: 2 | AH13: 2 | AI13: 3 | AJ13: 5 | AK13: 1 | AL13: 4 | AM13: 3 | AN13: 2 | AO13: 2 | AP13: 5 | AQ13: 4 | AR13: 1 | AS13: 3 | AT13: 4 | AU13: 5 | AV13: 3 | AW13: 2 | AX13: 2 | AY13: 2 | AZ13: 5 | BA13: 3 | BB13: 3 | BC13: 2 | BD13: 2 | BE13: 5 | BF13: 2 | BG13: 4 | BH13: 3 | BI13: 3 | BJ13: 1 | BK13: 5 | BL13: 2 | BM13: 5 | BN13: 2 | BO13: 3 | BP13: 5 | BQ13: 5 | BR13: 5 | BS13: 3 | BT13: 1 | BU13: 1 | BV13: 5 | BW13: 5 | BX13: 5 | BY13: 3 | BZ13: 1 | CA13: 3 | CB13: 2 | CC13: 3 | CD13: 3 | CE13: 3 | CF13: 3 | CG13: 5 | CH13: 3 | CI13: 2 | CJ13: 5 | CK13: 2 | CL13: 3 | CM13: 5 | GV13: 90 | GX13: 6 | GY13: 22 | GZ13: 27 | HA13: 11 | HB13: 24 | HC13: 0.06666666667 | HD13: 0.2444444444 | HE13: 0.3 | HF13: 0.1222222222 | HG13: 0.2666666667 | HH13: ='scores TCS'!GV14 -> 66.64316593
A14: 13 | B14: 2 | C14: 1 | D14: 4 | E14: 4 | F14: 3 | G14: 3 | H14: 3 | I14: 2 | J14: 2 | K14: 4 | L14: 4 | M14: 4 | N14: 4 | O14: 1 | P14: 4 | Q14: 3 | R14: 2 | S14: 1 | T14: 5 | U14: 5 | V14: 2 | W14: 4 | X14: 3 | Y14: 4 | Z14: 4 | AA14: 2 | AB14: 4 | AC14: 4 | AD14: 4 | AE14: 4 | AF14: 2 | AG14: 2 | AH14: 1 | AI14: 2 | AJ14: 3 | AK14: 2 | AL14: 4 | AM14: 3 | AN14: 2 | AO14: 1 | AP14: 5 | AQ14: 3 | AR14: 1 | AS14: 2 | AT14: 4 | AU14: 5 | AV14: 2 | AW14: 1 | AX14: 2 | AY14: 4 | AZ14: 5 | BA14: 1 | BB14: 3 | BC14: 4 | BD14: 2 | BE14: 5 | BF14: 3 | BG14: 4 | BH14: 4 | BI14: 3 | BJ14: 1 | BK14: 4 | BL14: 3 | BM14: 5 | BN14: 3 | BO14: 3 | BP14: 1 | BQ14: 4 | BR14: 4 | BS14: 3 | BT14: 1 | BU14: 1 | BV14: 3 | BW14: 3 | BX14: 4 | BY14: 3 | BZ14: 2 | CA14: 4 | CB14: 4 | CC14: 4 | CD14: 3 | CE14: 3 | CF14: 4 | CG14: 4 | CH14: 3 | CI14: 2 | CJ14: 2 | CK14: 2 | CL14: 3 | CM14: 5 | GV14: 90 | GX14: 12 | GY14: 19 | GZ14: 22 | HA14: 29 | HB14: 8 | HC14: 0.1333333333 | HD14: 0.2111111111 | HE14: 0.2444444444 | HF14: 0.3222222222 | HG14: 0.08888888889 | HH14: ='scores TCS'!GV15 -> 73.78158657
A15: 14 | B15: 4 | C15: 2 | D15: 5 | E15: 3 | F15: 3 | G15: 4 | H15: 4 | I15: 3 | J15: 4 | K15: 2 | L15: 4 | M15: 2 | N15: 4 | O15: 1 | P15: 4 | Q15: 2 | R15: 4 | S15: 3 | T15: 2 | U15: 5 | V15: 3 | W15: 3 | X15: 2 | Y15: 4 | Z15: 4 | AA15: 2 | AB15: 4 | AC15: 4 | AD15: 1 | AE15: 5 | AF15: 3 | AG15: 1 | AH15: 4 | AI15: 3 | AJ15: 4 | AK15: 1 | AL15: 2 | AM15: 3 | AN15: 3 | AO15: 3 | AP15: 4 | AQ15: 2 | AR15: 2 | AS15: 5 | AT15: 5 | AU15: 3 | AV15: 4 | AW15: 2 | AX15: 3 | AY15: 1 | AZ15: 5 | BA15: 1 | BB15: 2 | BC15: 3 | BD15: 2 | BE15: 5 | BF15: 3 | BG15: 2 | BH15: 4 | BI15: 5 | BJ15: 2 | BK15: 3 | BL15: 3 | BM15: 5 | BN15: 4 | BO15: 3 | BP15: 5 | BQ15: 5 | BR15: 5 | BS15: 3 | BT15: 2 | BU15: 1 | BV15: 3 | BW15: 4 | BX15: 5 | BY15: 2 | BZ15: 3 | CA15: 5 | CB15: 5 | CC15: 2 | CD15: 3 | CE15: 3 | CF15: 4 | CG15: 4 | CH15: 2 | CI15: 2 | CJ15: 2 | CK15: 1 | CL15: 1 | CM15: 5 | GV15: 90 | GX15: 9 | GY15: 21 | GZ15: 23 | HA15: 21 | HB15: 16 | HC15: 0.1 | HD15: 0.2333333333 | HE15: 0.2555555556 | HF15: 0.2333333333 | HG15: 0.1777777778 | HH15: ='scores TCS'!GV16 -> 61.46666357
A16: 15 | B16: 2 | C16: 2 | D16: 4 | E16: 3 | F16: 3 | G16: 3 | H16: 3 | I16: 5 | J16: 4 | K16: 3 | L16: 4 | M16: 4 | N16: 3 | O16: 5 | P16: 4 | Q16: 4 | R16: 5 | S16: 3 | T16: 3 | U16: 5 | V16: 2 | W16: 3 | X16: 2 | Y16: 3 | Z16: 4 | AA16: 2 | AB16: 4 | AC16: 4 | AD16: 5 | AE16: 5 | AF16: 3 | AG16: 2 | AH16: 3 | AI16: 3 | AJ16: 4 | AK16: 2 | AL16: 2 | AM16: 3 | AN16: 5 | AO16: 3 | AP16: 4 | AQ16: 4 | AR16: 4 | AS16: 3 | AT16: 4 | AU16: 2 | AV16: 3 | AW16: 5 | AX16: 2 | AY16: 2 | AZ16: 5 | BA16: 2 | BB16: 1 | BC16: 4 | BD16: 2 | BE16: 5 | BF16: 2 | BG16: 5 | BH16: 2 | BI16: 2 | BJ16: 1 | BK16: 5 | BL16: 3 | BM16: 5 | BN16: 4 | BO16: 4 | BP16: 5 | BQ16: 5 | BR16: 4 | BS16: 1 | BT16: 1 | BU16: 1 | BV16: 3 | BW16: 4 | BX16: 5 | BY16: 3 | BZ16: 2 | CA16: 4 | CB16: 2 | CC16: 1 | CD16: 2 | CE16: 5 | CF16: 4 | CG16: 4 | CH16: 3 | CI16: 3 | CJ16: 5 | CK16: 2 | CL16: 4 | CM16: 5 | GV16: 90 | GX16: 6 | GY16: 20 | GZ16: 22 | HA16: 23 | HB16: 19 | HC16: 0.06666666667 | HD16: 0.2222222222 | HE16: 0.2444444444 | HF16: 0.2555555556 | HG16: 0.2111111111 | HH16: ='scores TCS'!GV17 -> 61.6905024
A17: 16 | B17: 1 | C17: 1 | D17: 4 | E17: 3 | F17: 3 | G17: 3 | H17: 3 | I17: 2 | J17: 2 | K17: 2 | L17: 5 | M17: 4 | N17: 4 | O17: 2 | P17: 4 | Q17: 3 | R17: 4 | S17: 2 | T17: 3 | U17: 5 | V17: 2 | W17: 3 | X17: 2 | Y17: 4 | Z17: 2 | AA17: 2 | AB17: 4 | AC17: 4 | AD17: 2 | AE17: 4 | AF17: 1 | AG17: 5 | AH17: 2 | AI17: 1 | AJ17: 5 | AK17: 5 | AL17: 1 | AM17: 2 | AN17: 2 | AO17: 2 | AP17: 4 | AQ17: 4 | AR17: 3 | AS17: 2 | AT17: 4 | AU17: 5 | AV17: 2 | AW17: 1 | AX17: 1 | AY17: 2 | AZ17: 4 | BA17: 2 | BB17: 2 | BC17: 3 | BD17: 4 | BE17: 5 | BF17: 4 | BG17: 4 | BH17: 4 | BI17: 4 | BJ17: 1 | BK17: 5 | BL17: 2 | BM17: 1 | BN17: 4 | BO17: 3 | BP17: 2 | BQ17: 5 | BR17: 5 | BS17: 3 | BT17: 1 | BU17: 2 | BV17: 3 | BW17: 3 | BX17: 5 | BY17: 1 | BZ17: 1 | CA17: 4 | CB17: 5 | CC17: 4 | CD17: 3 | CE17: 4 | CF17: 4 | CG17: 3 | CH17: 3 | CI17: 3 | CJ17: 3 | CK17: 1 | CL17: 3 | CM17: 5 | GV17: 90 | GX17: 13 | GY17: 22 | GZ17: 19 | HA17: 23 | HB17: 13 | HC17: 0.1444444444 | HD17: 0.2444444444 | HE17: 0.2111111111 | HF17: 0.2555555556 | HG17: 0.1444444444 | HH17: ='scores TCS'!GV18 -> 79.55180541
A18: 17 | B18: 4 | C18: 2 | D18: 5 | E18: 2 | F18: 2 | G18: 3 | H18: 3 | I18: 2 | J18: 2 | K18: 2 | L18: 4 | M18: 5 | N18: 4 | O18: 1 | P18: 4 | Q18: 3 | R18: 4 | S18: 4 | T18: 4 | U18: 5 | V18: 2 | W18: 4 | X18: 2 | Y18: 2 | Z18: 3 | AA18: 2 | AB18: 5 | AC18: 4 | AD18: 1 | AE18: 3 | AF18: 3 | AG18: 5 | AH18: 1 | AI18: 2 | AJ18: 5 | AK18: 2 | AL18: 4 | AM18: 3 | AN18: 2 | AO18: 2 | AP18: 5 | AQ18: 2 | AR18: 2 | AS18: 2 | AT18: 4 | AU18: 5 | AV18: 1 | AW18: 1 | AX18: 2 | AY18: 2 | AZ18: 4 | BA18: 2 | BB18: 3 | BC18: 3 | BD18: 4 | BE18: 5 | BF18: 2 | BG18: 3 | BH18: 4 | BI18: 4 | BJ18: 1 | BK18: 4 | BL18: 2 | BM18: 5 | BN18: 3 | BO18: 3 | BP18: 2 | BQ18: 4 | BR18: 4 | BS18: 2 | BT18: 2 | BU18: 2 | BV18: 3 | BW18: 4 | BX18: 4 | BY18: 1 | BZ18: 2 | CA18: 5 | CB18: 4 | CC18: 4 | CD18: 3 | CE18: 4 | CF18: 3 | CG18: 4 | CH18: 4 | CI18: 2 | CJ18: 5 | CK18: 2 | CL18: 3 | CM18: 5 | GV18: 90 | GX18: 7 | GY18: 29 | GZ18: 16 | HA18: 25 | HB18: 13 | HC18: 0.07777777778 | HD18: 0.3222222222 | HE18: 0.1777777778 | HF18: 0.2777777778 | HG18: 0.1444444444 | HH18: ='scores TCS'!GV19 -> 72.44346155
A19: 18 | B19: 3 | C19: 1 | D19: 2 | E19: 3 | F19: 3 | G19: 3 | H19: 3 | I19: 2 | J19: 3 | K19: 2 | L19: 4 | M19: 4 | N19: 4 | O19: 4 | P19: 4 | Q19: 3 | R19: 4 | S19: 2 | T19: 3 | U19: 5 | V19: 2 | W19: 2 | X19: 2 | Y19: 3 | Z19: 4 | AA19: 1 | AB19: 3 | AC19: 2 | AD19: 2 | AE19: 4 | AF19: 1 | AG19: 4 | AH19: 2 | AI19: 2 | AJ19: 5 | AK19: 3 | AL19: 5 | AM19: 3 | AN19: 2 | AO19: 2 | AP19: 4 | AQ19: 3 | AR19: 3 | AS19: 3 | AT19: 4 | AU19: 5 | AV19: 2 | AW19: 4 | AX19: 3 | AY19: 4 | AZ19: 3 | BA19: 3 | BB19: 3 | BC19: 3 | BD19: 4 | BE19: 4 | BF19: 3 | BG19: 4 | BH19: 4 | BI19: 4 | BJ19: 2 | BK19: 4 | BL19: 2 | BM19: 5 | BN19: 3 | BO19: 3 | BP19: 3 | BQ19: 5 | BR19: 5 | BS19: 3 | BT19: 1 | BU19: 3 | BV19: 3 | BW19: 3 | BX19: 5 | BY19: 3 | BZ19: 3 | CA19: 3 | CB19: 4 | CC19: 4 | CD19: 3 | CE19: 4 | CF19: 3 | CG19: 4 | CH19: 3 | CI19: 3 | CJ19: 4 | CK19: 2 | CL19: 2 | CM19: 4 | GV19: 90 | GX19: 4 | GY19: 18 | GZ19: 35 | HA19: 25 | HB19: 8 | HC19: 0.04444444444 | HD19: 0.2 | HE19: 0.3888888889 | HF19: 0.2777777778 | HG19: 0.08888888889 | HH19: ='scores TCS'!GV20 -> 78.65092075
A20: 19 | B20: 4 | C20: 1 | D20: 5 | E20: 2 | F20: 3 | G20: 3 | H20: 3 | I20: 2 | J20: 2 | K20: 2 | L20: 4 | M20: 4 | N20: 2 | O20: 1 | P20: 4 | Q20: 2 | R20: 4 | S20: 2 | T20: 3 | U20: 4 | V20: 2 | W20: 3 | X20: 2 | Y20: 3 | Z20: 3 | AA20: 2 | AB20: 3 | AC20: 3 | AD20: 2 | AE20: 2 | AF20: 1 | AG20: 4 | AH20: 3 | AI20: 2 | AJ20: 4 | AK20: 3 | AL20: 4 | AM20: 3 | AN20: 2 | AO20: 2 | AP20: 5 | AQ20: 3 | AR20: 2 | AS20: 4 | AT20: 3 | AU20: 4 | AV20: 1 | AW20: 2 | AX20: 2 | AY20: 2 | AZ20: 3 | BA20: 2 | BB20: 3 | BC20: 4 | BD20: 3 | BE20: 5 | BF20: 3 | BG20: 3 | BH20: 3 | BI20: 3 | BJ20: 1 | BK20: 4 | BL20: 2 | BM20: 5 | BN20: 3 | BO20: 3 | BP20: 4 | BQ20: 4 | BR20: 4 | BS20: 2 | BT20: 2 | BU20: 1 | BV20: 3 | BW20: 3 | BX20: 2 | BY20: 3 | BZ20: 2 | CA20: 2 | CB20: 5 | CC20: 5 | CD20: 5 | CE20: 4 | CF20: 4 | CG20: 2 | CH20: 3 | CI20: 2 | CJ20: 4 | CK20: 2 | CL20: 3 | CM20: 4 | GV20: 90 | GX20: 6 | GY20: 29 | GZ20: 28 | HA20: 20 | HB20: 7 | HC20: 0.06666666667 | HD20: 0.3222222222 | HE20: 0.3111111111 | HF20: 0.2222222222 | HG20: 0.07777777778 | HH20: ='scores TCS'!GV21 -> 76.27154
A21: 20 | B21: 3 | C21: 1 | D21: 3 | E21: 2 | F21: 3 | G21: 3 | H21: 2 | I21: 3 | J21: 3 | K21: 2 | L21: 4 | M21: 5 | N21: 2 | O21: 1 | P21: 2 | Q21: 3 | R21: 4 | S21: 2 | T21: 3 | U21: 5 | V21: 1 | W21: 3 | X21: 2 | Y21: 3 | Z21: 2 | AA21: 2 | AB21: 5 | AC21: 2 | AD21: 2 | AE21: 3 | AF21: 3 | AG21: 5 | AH21: 3 | AI21: 3 | AJ21: 4 | AK21: 2 | AL21: 5 | AM21: 3 | AN21: 2 | AO21: 2 | AP21: 4 | AQ21: 4 | AR21: 2 | AS21: 3 | AT21: 3 | AU21: 2 | AV21: 2 | AW21: 4 | AX21: 2 | AY21: 1 | AZ21: 4 | BA21: 3 | BB21: 2 | BC21: 2 | BD21: 4 | BE21: 4 | BF21: 2 | BG21: 4 | BH21: 3 | BI21: 2 | BJ21: 1 | BK21: 4 | BL21: 2 | BM21: 5 | BN21: 3 | BO21: 3 | BP21: 5 | BQ21: 4 | BR21: 4 | BS21: 3 | BT21: 1 | BU21: 2 | BV21: 3 | BW21: 3 | BX21: 4 | BY21: 2 | BZ21: 1 | CA21: 2 | CB21: 3 | CC21: 3 | CD21: 2 | CE21: 4 | CF21: 5 | CG21: 4 | CH21: 3 | CI21: 2 | CJ21: 2 | CK21: 1 | CL21: 2 | CM21: 3 | GV21: 90 | GX21: 8 | GY21: 30 | GZ21: 28 | HA21: 16 | HB21: 8 | HC21: 0.08888888889 | HD21: 0.3333333333 | HE21: 0.3111111111 | HF21: 0.1777777778 | HG21: 0.08888888889 | HH21: ='scores TCS'!GV22 -> 73.51223262
A22: 21 | B22: 3 | C22: 1 | D22: 2 | E22: 2 | F22: 3 | G22: 3 | H22: 3 | I22: 3 | J22: 2 | K22: 2 | L22: 4 | M22: 4 | N22: 4 | O22: 1 | P22: 4 | Q22: 4 | R22: 4 | S22: 2 | T22: 5 | U22: 5 | V22: 2 | W22: 3 | X22: 2 | Y22: 4 | Z22: 4 | AA22: 1 | AB22: 3 | AC22: 4 | AD22: 2 | AE22: 4 | AF22: 2 | AG22: 3 | AH22: 3 | AI22: 2 | AJ22: 4 | AK22: 3 | AL22: 3 | AM22: 3 | AN22: 3 | AO22: 2 | AP22: 5 | AQ22: 3 | AR22: 3 | AS22: 2 | AT22: 5 | AU22: 5 | AV22: 2 | AW22: 1 | AX22: 2 | AY22: 2 | AZ22: 5 | BA22: 5 | BB22: 5 | BC22: 5 | BD22: 4 | BE22: 5 | BF22: 2 | BG22: 4 | BH22: 4 | BI22: 3 | BJ22: 1 | BK22: 5 | BL22: 1 | BM22: 5 | BN22: 3 | BO22: 3 | BP22: 2 | BQ22: 5 | BR22: 5 | BS22: 3 | BT22: 1 | BU22: 2 | BV22: 3 | BW22: 3 | BX22: 2 | BY22: 2 | BZ22: 1 | CA22: 3 | CB22: 4 | CC22: 4 | CD22: 3 | CE22: 5 | CF22: 4 | CG22: 4 | CH22: 2 | CI22: 3 | CJ22: 4 | CK22: 2 | CL22: 2 | CM22: 5 | GV22: 90 | GX22: 8 | GY22: 23 | GZ22: 24 | HA22: 19 | HB22: 16 | HC22: 0.08888888889 | HD22: 0.2555555556 | HE22: 0.2666666667 | HF22: 0.2111111111 | HG22: 0.1777777778 | HH22: ='scores TCS'!GV23 -> 78.41571895
A23: 22 | B23: 2 | C23: 1 | D23: 2 | E23: 3 | F23: 3 | G23: 3 | H23: 2 | I23: 3 | J23: 3 | K23: 2 | L23: 4 | M23: 4 | N23: 4 | O23: 2 | P23: 4 | Q23: 2 | R23: 4 | S23: 4 | T23: 3 | U23: 4 | V23: 2 | W23: 2 | X23: 2 | Y23: 2 | Z23: 3 | AA23: 2 | AB23: 3 | AC23: 4 | AD23: 2 | AE23: 4 | AF23: 2 | AG23: 2 | AH23: 2 | AI23: 2 | AJ23: 2 | AK23: 2 | AL23: 3 | AM23: 3 | AN23: 2 | AO23: 2 | AP23: 4 | AQ23: 4 | AR23: 2 | AS23: 3 | AT23: 4 | AU23: 4 | AV23: 2 | AW23: 2 | AX23: 2 | AY23: 2 | AZ23: 4 | BA23: 2 | BB23: 3 | BC23: 3 | BD23: 2 | BE23: 4 | BF23: 2 | BG23: 3 | BH23: 3 | BI23: 3 | BJ23: 1 | BK23: 4 | BL23: 2 | BM23: 4 | BN23: 3 | BO23: 3 | BP23: 2 | BQ23: 4 | BR23: 4 | BS23: 3 | BT23: 2 | BU23: 3 | BV23: 3 | BW23: 3 | BX23: 3 | BY23: 2 | BZ23: 2 | CA23: 2 | CB23: 3 | CC23: 2 | CD23: 3 | CE23: 4 | CF23: 4 | CG23: 4 | CH23: 3 | CI23: 2 | CJ23: 2 | CK23: 2 | CL23: 2 | CM23: 4 | GV23: 90 | GX23: 2 | GY23: 39 | GZ23: 26 | HA23: 23 | HB23: 0 | HC23: 0.02222222222 | HD23: 0.4333333333 | HE23: 0.2888888889 | HF23: 0.2555555556 | HH23: ='scores TCS'!GV24 -> 81.33454505
A24: 23 | B24: 2 | C24: 1 | D24: 5 | E24: 2 | F24: 3 | G24: 3 | H24: 1 | I24: 1 | J24: 2 | K24: 2 | L24: 5 | M24: 4 | N24: 4 | O24: 1 | P24: 5 | Q24: 2 | R24: 5 | S24: 2 | T24: 3 | U24: 5 | V24: 1 | W24: 4 | X24: 2 | Y24: 4 | Z24: 4 | AA24: 1 | AB24: 5 | AC24: 4 | AD24: 1 | AE24: 3 | AF24: 2 | AG24: 1 | AH24: 3 | AI24: 2 | AJ24: 5 | AK24: 3 | AL24: 2 | AM24: 3 | AN24: 1 | AO24: 2 | AP24: 4 | AQ24: 3 | AR24: 3 | AS24: 3 | AT24: 3 | AU24: 5 | AV24: 2 | AW24: 4 | AX24: 3 | AY24: 1 | AZ24: 3 | BA24: 3 | BB24: 3 | BC24: 3 | BD24: 1 | BE24: 5 | BF24: 2 | BG24: 4 | BH24: 3 | BI24: 3 | BJ24: 1 | BK24: 5 | BL24: 2 | BM24: 5 | BN24: 3 | BO24: 3 | BP24: 4 | BQ24: 4 | BR24: 4 | BS24: 3 | BT24: 2 | BU24: 1 | BV24: 3 | BW24: 3 | BX24: 5 | BY24: 1 | BZ24: 2 | CA24: 4 | CB24: 3 | CC24: 4 | CD24: 4 | CE24: 2 | CF24: 4 | CG24: 4 | CH24: 3 | CI24: 3 | CJ24: 3 | CK24: 1 | CL24: 2 | CM24: 3 | GV24: 90 | GX24: 15 | GY24: 18 | GZ24: 28 | HA24: 17 | HB24: 12 | HC24: 0.1666666667 | HD24: 0.2 | HE24: 0.3111111111 | HF24: 0.1888888889 | HG24: 0.1333333333 | HH24: ='scores TCS'!GV25 -> 73.15512461
A25: 24 | B25: 2 | C25: 1 | D25: 3 | E25: 3 | F25: 3 | G25: 3 | H25: 3 | I25: 2 | J25: 3 | K25: 2 | L25: 4 | M25: 4 | N25: 4 | O25: 1 | P25: 3 | Q25: 3 | R25: 4 | S25: 1 | T25: 3 | U25: 4 | V25: 2 | W25: 3 | X25: 2 | Y25: 4 | Z25: 3 | AA25: 1 | AB25: 3 | AC25: 4 | AD25: 2 | AE25: 3 | AF25: 2 | AG25: 2 | AH25: 1 | AI25: 2 | AJ25: 4 | AK25: 2 | AL25: 1 | AM25: 3 | AN25: 2 | AO25: 2 | AP25: 4 | AQ25: 3 | AR25: 3 | AS25: 2 | AT25: 4 | AU25: 5 | AV25: 2 | AW25: 1 | AX25: 2 | AY25: 4 | AZ25: 4 | BA25: 2 | BB25: 3 | BC25: 3 | BD25: 2 | BE25: 5 | BF25: 3 | BG25: 2 | BH25: 4 | BI25: 4 | BJ25: 2 | BK25: 5 | BL25: 1 | BM25: 5 | BN25: 3 | BO25: 3 | BP25: 2 | BQ25: 4 | BR25: 4 | BS25: 3 | BT25: 2 | BU25: 3 | BV25: 3 | BW25: 3 | BX25: 2 | BY25: 1 | BZ25: 2 | CA25: 3 | CB25: 4 | CC25: 2 | CD25: 2 | CE25: 4 | CF25: 5 | CG25: 4 | CH25: 3 | CI25: 3 | CJ25: 4 | CK25: 2 | CL25: 3 | CM25: 4 | GV25: 90 | GX25: 9 | GY25: 26 | GZ25: 29 | HA25: 21 | HB25: 5 | HC25: 0.1 | HD25: 0.2888888889 | HE25: 0.3222222222 | HF25: 0.2333333333 | HG25: 0.05555555556 | HH25: ='scores TCS'!GV26 -> 81.99277983
A26: 25 | B26: 2 | C26: 2 | D26: 2 | E26: 3 | F26: 3 | G26: 3 | H26: 3 | I26: 2 | J26: 3 | K26: 2 | L26: 4 | M26: 4 | N26: 3 | O26: 1 | P26: 3 | Q26: 3 | R26: 4 | S26: 2 | T26: 3 | U26: 5 | V26: 2 | W26: 2 | X26: 2 | Y26: 4 | Z26: 3 | AA26: 2 | AB26: 3 | AC26: 4 | AD26: 2 | AE26: 3 | AF26: 3 | AG26: 2 | AH26: 3 | AI26: 2 | AJ26: 4 | AK26: 3 | AL26: 2 | AM26: 2 | AN26: 2 | AO26: 2 | AP26: 4 | AQ26: 2 | AR26: 3 | AS26: 2 | AT26: 3 | AU26: 3 | AV26: 2 | AW26: 4 | AX26: 3 | AY26: 2 | AZ26: 3 | BA26: 2 | BB26: 3 | BC26: 3 | BD26: 5 | BE26: 5 | BF26: 2 | BG26: 3 | BH26: 3 | BI26: 3 | BJ26: 2 | BK26: 4 | BL26: 2 | BM26: 5 | BN26: 3 | BO26: 3 | BP26: 4 | BQ26: 3 | BR26: 3 | BS26: 3 | BT26: 2 | BU26: 1 | BV26: 3 | BW26: 3 | BX26: 5 | BY26: 1 | BZ26: 2 | CA26: 2 | CB26: 3 | CC26: 3 | CD26: 3 | CE26: 4 | CF26: 4 | CG26: 4 | CH26: 3 | CI26: 3 | CJ26: 3 | CK26: 2 | CL26: 3 | CM26: 4 | GV26: 90 | GX26: 3 | GY26: 29 | GZ26: 39 | HA26: 14 | HB26: 5 | HC26: 0.03333333333 | HD26: 0.3222222222 | HE26: 0.4333333333 | HF26: 0.1555555556 | HG26: 0.05555555556 | HH26: ='scores TCS'!GV27 -> 79.76301338
A27: 26 | B27: 3 | C27: 2 | D27: 2 | E27: 1 | F27: 3 | G27: 3 | H27: 3 | I27: 3 | J27: 3 | K27: 2 | L27: 4 | M27: 5 | N27: 4 | O27: 2 | P27: 4 | Q27: 3 | R27: 4 | S27: 2 | T27: 3 | U27: 5 | V27: 1 | W27: 2 | X27: 2 | Y27: 1 | Z27: 3 | AA27: 2 | AB27: 3 | AC27: 5 | AD27: 2 | AE27: 3 | AF27: 3 | AG27: 3 | AH27: 2 | AI27: 2 | AJ27: 3 | AK27: 2 | AL27: 2 | AM27: 3 | AN27: 2 | AO27: 2 | AP27: 4 | AQ27: 4 | AR27: 3 | AS27: 3 | AT27: 4 | AU27: 4 | AV27: 2 | AW27: 2 | AX27: 2 | AY27: 2 | AZ27: 5 | BA27: 2 | BB27: 3 | BC27: 4 | BD27: 4 | BE27: 4 | BF27: 2 | BG27: 4 | BH27: 4 | BI27: 4 | BJ27: 1 | BK27: 4 | BL27: 1 | BM27: 4 | BN27: 3 | BO27: 3 | BP27: 2 | BQ27: 5 | BR27: 5 | BS27: 3 | BT27: 1 | BU27: 1 | BV27: 3 | BW27: 3 | BX27: 3 | BY27: 3 | BZ27: 2 | CA27: 2 | CB27: 4 | CC27: 3 | CD27: 3 | CE27: 4 | CF27: 3 | CG27: 4 | CH27: 3 | CI27: 2 | CJ27: 4 | CK27: 2 | CL27: 1 | CM27: 4 | GV27: 90 | GX27: 8 | GY27: 26 | GZ27: 29 | HA27: 21 | HB27: 6 | HC27: 0.08888888889 | HD27: 0.2888888889 | HE27: 0.3222222222 | HF27: 0.2333333333 | HG27: 0.06666666667 | HH27: ='scores TCS'!GV28 -> 82.17080894
A28: 27 | B28: 2 | C28: 1 | D28: 1 | E28: 1 | F28: 2 | G28: 3 | H28: 3 | I28: 2 | J28: 2 | K28: 2 | L28: 4 | M28: 4 | N28: 4 | O28: 2 | P28: 4 | Q28: 3 | R28: 4 | S28: 2 | T28: 4 | U28: 4 | V28: 1 | W28: 3 | X28: 2 | Y28: 4 | Z28: 4 | AA28: 1 | AB28: 3 | AC28: 3 | AD28: 2 | AE28: 3 | AF28: 1 | AG28: 1 | AH28: 1 | AI28: 2 | AJ28: 5 | AK28: 4 | AL28: 4 | AM28: 3 | AN28: 4 | AO28: 1 | AP28: 4 | AQ28: 2 | AR28: 3 | AS28: 2 | AT28: 2 | AU28: 4 | AV28: 1 | AW28: 3 | AX28: 2 | AY28: 3 | AZ28: 4 | BA28: 1 | BB28: 1 | BC28: 3 | BD28: 3 | BE28: 5 | BF28: 4 | BG28: 2 | BH28: 3 | BI28: 4 | BJ28: 2 | BK28: 3 | BL28: 2 | BM28: 5 | BN28: 4 | BO28: 3 | BP28: 4 | BQ28: 5 | BR28: 5 | BS28: 3 | BT28: 1 | BU28: 2 | BV28: 2 | BW28: 3 | BX28: 5 | BY28: 2 | BZ28: 2 | CA28: 3 | CB28: 4 | CC28: 2 | CD28: 2 | CE28: 4 | CF28: 4 | CG28: 4 | CH28: 4 | CI28: 2 | CJ28: 3 | CK28: 3 | CL28: 3 | CM28: 3 | GV28: 90 | GX28: 13 | GY28: 24 | GZ28: 23 | HA28: 24 | HB28: 6 | HC28: 0.1444444444 | HD28: 0.2666666667 | HE28: 0.2555555556 | HF28: 0.2666666667 | HG28: 0.06666666667 | HH28: ='scores TCS'!GV29 -> 68.33348808
A29: 28 | B29: 3 | C29: 1 | D29: 4 | E29: 3 | F29: 3 | G29: 3 | H29: 3 | I29: 1 | J29: 2 | K29: 2 | L29: 4 | M29: 4 | N29: 4 | O29: 1 | P29: 4 | Q29: 4 | R29: 4 | S29: 2 | T29: 3 | U29: 5 | V29: 2 | W29: 2 | X29: 2 | Y29: 4 | Z29: 3 | AA29: 2 | AB29: 3 | AC29: 4 | AD29: 1 | AE29: 3 | AF29: 1 | AG29: 4 | AH29: 3 | AI29: 2 | AJ29: 5 | AK29: 3 | AL29: 2 | AM29: 3 | AN29: 2 | AO29: 2 | AP29: 4 | AQ29: 2 | AR29: 3 | AS29: 2 | AT29: 4 | AU29: 4 | AV29: 1 | AW29: 2 | AX29: 2 | AY29: 1 | AZ29: 5 | BA29: 1 | BB29: 2 | BC29: 3 | BD29: 4 | BE29: 4 | BF29: 2 | BG29: 3 | BH29: 4 | BI29: 4 | BJ29: 2 | BK29: 5 | BL29: 2 | BM29: 5 | BN29: 3 | BO29: 3 | BP29: 2 | BQ29: 4 | BR29: 4 | BS29: 3 | BT29: 1 | BU29: 1 | BV29: 3 | BW29: 3 | BX29: 2 | BY29: 1 | BZ29: 2 | CA29: 3 | CB29: 4 | CC29: 2 | CD29: 3 | CE29: 4 | CF29: 4 | CG29: 2 | CH29: 3 | CI29: 3 | CJ29: 2 | CK29: 2 | CL29: 1 | CM29: 5 | GV29: 90 | GX29: 12 | GY29: 26 | GZ29: 24 | HA29: 22 | HB29: 6 | HC29: 0.1333333333 | HD29: 0.2888888889 | HE29: 0.2666666667 | HF29: 0.2444444444 | HG29: 0.06666666667 | HH29: ='scores TCS'!GV30 -> 84.06939739
A30: 29 | B30: 3 | C30: 2 | D30: 1 | E30: 2 | F30: 3 | G30: 3 | H30: 3 | I30: 3 | J30: 3 | K30: 2 | L30: 4 | M30: 2 | N30: 4 | O30: 5 | P30: 3 | Q30: 3 | R30: 3 | S30: 4 | T30: 3 | U30: 5 | V30: 2 | W30: 4 | X30: 3 | Y30: 1 | Z30: 2 | AA30: 3 | AB30: 3 | AC30: 5 | AD30: 2 | AE30: 5 | AF30: 3 | AG30: 2 | AH30: 3 | AI30: 2 | AJ30: 3 | AK30: 3 | AL30: 2 | AM30: 4 | AN30: 3 | AO30: 2 | AP30: 5 | AQ30: 3 | AR30: 4 | AS30: 2 | AT30: 3 | AU30: 3 | AV30: 2 | AW30: 2 | AX30: 2 | AY30: 1 | AZ30: 5 | BA30: 2 | BB30: 3 | BC30: 3 | BD30: 3 | BE30: 4 | BF30: 1 | BG30: 2 | BH30: 3 | BI30: 4 | BJ30: 4 | BK30: 3 | BL30: 2 | BM30: 4 | BN30: 3 | BO30: 3 | BP30: 5 | BQ30: 5 | BR30: 4 | BS30: 3 | BT30: 1 | BU30: 3 | BV30: 3 | BW30: 4 | BX30: 5 | BY30: 3 | BZ30: 1 | CA30: 2 | CB30: 3 | CC30: 2 | CD30: 3 | CE30: 3 | CF30: 4 | CG30: 4 | CH30: 3 | CI30: 3 | CJ30: 3 | CK30: 4 | CL30: 2 | CM30: 3 | GV30: 90 | GX30: 6 | GY30: 21 | GZ30: 39 | HA30: 15 | HB30: 9 | HC30: 0.06666666667 | HD30: 0.2333333333 | HE30: 0.4333333333 | HF30: 0.1666666667 | HG30: 0.1 | HH30: ='scores TCS'!GV31 -> 63.94956852
A31: 30 | B31: 4 | C31: 1 | D31: 2 | E31: 3 | F31: 3 | G31: 3 | H31: 4 | I31: 2 | J31: 2 | K31: 2 | L31: 5 | M31: 3 | N31: 4 | O31: 1 | P31: 4 | Q31: 4 | R31: 3 | S31: 2 | T31: 3 | U31: 5 | V31: 2 | W31: 2 | X31: 3 | Y31: 5 | Z31: 3 | AA31: 2 | AB31: 3 | AC31: 4 | AD31: 1 | AE31: 3 | AF31: 3 | AG31: 1 | AH31: 2 | AI31: 3 | AJ31: 3 | AK31: 3 | AL31: 4 | AM31: 3 | AN31: 1 | AO31: 2 | AP31: 5 | AQ31: 2 | AR31: 5 | AS31: 5 | AT31: 2 | AU31: 2 | AV31: 1 | AW31: 4 | AX31: 2 | AY31: 2 | AZ31: 5 | BA31: 2 | BB31: 1 | BC31: 3 | BD31: 1 | BE31: 5 | BF31: 2 | BG31: 4 | BH31: 2 | BI31: 4 | BJ31: 3 | BK31: 5 | BL31: 3 | BM31: 5 | BN31: 4 | BO31: 3 | BP31: 5 | BQ31: 5 | BR31: 2 | BS31: 3 | BT31: 2 | BU31: 3 | BV31: 2 | BW31: 4 | BX31: 5 | BY31: 3 | BZ31: 1 | CA31: 5 | CB31: 1 | CC31: 4 | CD31: 3 | CE31: 5 | CF31: 4 | CG31: 2 | CH31: 3 | CI31: 3 | CJ31: 2 | CK31: 4 | CL31: 2 | CM31: 5 | GV31: 90 | GX31: 10 | GY31: 24 | GZ31: 25 | HA31: 15 | HB31: 16 | HC31: 0.1111111111 | HD31: 0.2666666667 | HE31: 0.2777777778 | HF31: 0.1666666667 | HG31: 0.1777777778 | HH31: ='scores TCS'!GV32 -> 61.26740632
A32: 31 | B32: 3 | C32: 1 | D32: 5 | E32: 4 | F32: 3 | G32: 3 | H32: 3 | I32: 3 | J32: 2 | K32: 3 | L32: 5 | M32: 4 | N32: 4 | O32: 1 | P32: 5 | Q32: 3 | R32: 4 | S32: 1 | T32: 3 | U32: 3 | V32: 2 | W32: 5 | X32: 3 | Y32: 4 | Z32: 3 | AA32: 2 | AB32: 4 | AC32: 4 | AD32: 2 | AE32: 4 | AF32: 2 | AG32: 1 | AH32: 3 | AI32: 3 | AJ32: 4 | AK32: 2 | AL32: 4 | AM32: 3 | AN32: 3 | AO32: 2 | AP32: 5 | AQ32: 3 | AR32: 3 | AS32: 2 | AT32: 3 | AU32: 2 | AV32: 3 | AW32: 1 | AX32: 4 | AY32: 2 | AZ32: 4 | BA32: 1 | BB32: 1 | BC32: 2 | BD32: 4 | BE32: 5 | BF32: 3 | BG32: 4 | BH32: 3 | BI32: 4 | BJ32: 3 | BK32: 5 | BL32: 3 | BM32: 5 | BN32: 3 | BO32: 3 | BP32: 3 | BQ32: 5 | BR32: 4 | BS32: 3 | BT32: 1 | BU32: 1 | BV32: 3 | BW32: 3 | BX32: 5 | BY32: 3 | BZ32: 1 | CA32: 5 | CB32: 2 | CC32: 4 | CD32: 3 | CE32: 3 | CF32: 4 | CG32: 4 | CH32: 4 | CI32: 4 | CJ32: 1 | CK32: 2 | CL32: 3 | CM32: 4 | GV32: 90 | GX32: 11 | GY32: 13 | GZ32: 33 | HA32: 22 | HB32: 11 | HC32: 0.1222222222 | HD32: 0.1444444444 | HE32: 0.3666666667 | HF32: 0.2444444444 | HG32: 0.1222222222 | HH32: ='scores TCS'!GV33 -> 69.47576307
A33: 32 | B33: 4 | C33: 4 | D33: 4 | E33: 2 | F33: 3 | G33: 3 | H33: 4 | I33: 2 | J33: 3 | K33: 1 | L33: 5 | M33: 5 | N33: 2 | O33: 1 | P33: 4 | Q33: 1 | R33: 4 | S33: 2 | T33: 4 | U33: 5 | V33: 3 | W33: 4 | X33: 2 | Y33: 5 | Z33: 3 | AA33: 3 | AB33: 3 | AC33: 4 | AD33: 1 | AE33: 4 | AF33: 1 | AG33: 1 | AH33: 4 | AI33: 1 | AJ33: 4 | AK33: 3 | AL33: 4 | AM33: 3 | AN33: 2 | AO33: 2 | AP33: 3 | AQ33: 2 | AR33: 3 | AS33: 5 | AT33: 2 | AU33: 2 | AV33: 3 | AW33: 1 | AX33: 1 | AY33: 1 | AZ33: 5 | BA33: 4 | BB33: 3 | BC33: 5 | BD33: 4 | BE33: 5 | BF33: 4 | BG33: 2 | BH33: 1 | BI33: 3 | BJ33: 2 | BK33: 5 | BL33: 2 | BM33: 5 | BN33: 5 | BO33: 5 | BP33: 2 | BQ33: 5 | BR33: 4 | BS33: 2 | BT33: 2 | BU33: 2 | BV33: 3 | BW33: 3 | BX33: 2 | BY33: 2 | BZ33: 2 | CA33: 3 | CB33: 4 | CC33: 4 | CD33: 4 | CE33: 4 | CF33: 4 | CG33: 5 | CH33: 2 | CI33: 2 | CJ33: 4 | CK33: 1 | CL33: 1 | CM33: 4 | GV33: 90 | GX33: 13 | GY33: 22 | GZ33: 17 | HA33: 24 | HB33: 14 | HC33: 0.1444444444 | HD33: 0.2444444444 | HE33: 0.1888888889 | HF33: 0.2666666667 | HG33: 0.1555555556 | HH33: ='scores TCS'!GV34 -> 59.27472207
A34: 33 | B34: 4 | C34: 2 | D34: 2 | E34: 2 | F34: 3 | G34: 2 | H34: 4 | I34: 2 | J34: 2 | K34: 2 | L34: 4 | M34: 5 | N34: 1 | O34: 1 | P34: 3 | Q34: 2 | R34: 4 | S34: 1 | T34: 3 | U34: 4 | V34: 2 | W34: 2 | X34: 3 | Y34: 4 | Z34: 4 | AA34: 2 | AB34: 4 | AC34: 4 | AD34: 2 | AE34: 3 | AF34: 2 | AG34: 2 | AH34: 3 | AI34: 2 | AJ34: 3 | AK34: 2 | AL34: 4 | AM34: 2 | AN34: 2 | AO34: 1 | AP34: 3 | AQ34: 4 | AR34: 3 | AS34: 2 | AT34: 2 | AU34: 4 | AV34: 2 | AW34: 2 | AX34: 2 | AY34: 2 | AZ34: 4 | BA34: 2 | BB34: 3 | BC34: 3 | BD34: 1 | BE34: 5 | BF34: 2 | BG34: 2 | BH34: 2 | BI34: 4 | BJ34: 2 | BK34: 5 | BL34: 3 | BM34: 5 | BN34: 5 | BO34: 5 | BP34: 2 | BQ34: 4 | BR34: 2 | BS34: 3 | BT34: 2 | BU34: 1 | BV34: 3 | BW34: 3 | BX34: 4 | BY34: 3 | BZ34: 2 | CA34: 4 | CB34: 2 | CC34: 2 | CD34: 3 | CE34: 4 | CF34: 4 | CG34: 4 | CH34: 1 | CI34: 2 | CJ34: 5 | CK34: 2 | CL34: 1 | CM34: 3 | GV34: 90 | GX34: 8 | GY34: 37 | GZ34: 18 | HA34: 20 | HB34: 7 | HC34: 0.08888888889 | HD34: 0.4111111111 | HE34: 0.2 | HF34: 0.2222222222 | HG34: 0.07777777778 | HH34: ='scores TCS'!GV35 -> 70.48387356
A35: 34 | B35: 3 | C35: 1 | D35: 1 | E35: 5 | F35: 3 | G35: 5 | H35: 3 | I35: 2 | J35: 2 | K35: 1 | L35: 4 | M35: 5 | N35: 3 | O35: 1 | P35: 5 | Q35: 4 | R35: 5 | S35: 1 | T35: 5 | U35: 1 | V35: 2 | W35: 1 | X35: 3 | Y35: 5 | Z35: 5 | AA35: 1 | AB35: 4 | AC35: 4 | AD35: 1 | AE35: 5 | AF35: 3 | AG35: 1 | AH35: 4 | AI35: 2 | AJ35: 3 | AK35: 2 | AL35: 5 | AM35: 3 | AN35: 2 | AO35: 2 | AP35: 5 | AQ35: 2 | AR35: 2 | AS35: 3 | AT35: 5 | AU35: 2 | AV35: 5 | AW35: 2 | AX35: 2 | AY35: 1 | AZ35: 5 | BA35: 4 | BB35: 2 | BC35: 3 | BD35: 1 | BE35: 5 | BF35: 2 | BG35: 5 | BH35: 2 | BI35: 2 | BJ35: 3 | BK35: 5 | BL35: 2 | BM35: 5 | BN35: 4 | BO35: 3 | BP35: 5 | BQ35: 4 | BR35: 4 | BS35: 3 | BT35: 1 | BU35: 1 | BV35: 5 | BW35: 2 | BX35: 1 | BY35: 3 | BZ35: 2 | CA35: 1 | CB35: 2 | CC35: 1 | CD35: 5 | CE35: 5 | CF35: 3 | CG35: 5 | CH35: 2 | CI35: 2 | CJ35: 5 | CK35: 2 | CL35: 3 | CM35: 5 | GV35: 90 | GX35: 17 | GY35: 23 | GZ35: 16 | HA35: 9 | HB35: 25 | HC35: 0.1888888889 | HD35: 0.2555555556 | HE35: 0.1777777778 | HF35: 0.1 | HG35: 0.2777777778 | HH35: ='scores TCS'!GV36 -> 55.48479658
A36: 35 | B36: 3 | C36: 2 | D36: 2 | E36: 2 | F36: 3 | G36: 3 | H36: 5 | I36: 2 | J36: 3 | K36: 2 | L36: 3 | M36: 4 | N36: 4 | O36: 1 | P36: 3 | Q36: 2 | R36: 4 | S36: 4 | T36: 3 | U36: 5 | V36: 2 | W36: 1 | X36: 3 | Y36: 5 | Z36: 1 | AA36: 1 | AB36: 4 | AC36: 3 | AD36: 4 | AE36: 4 | AF36: 3 | AG36: 2 | AH36: 3 | AI36: 3 | AJ36: 3 | AK36: 2 | AL36: 5 | AM36: 3 | AN36: 2 | AO36: 3 | AP36: 5 | AQ36: 4 | AR36: 3 | AS36: 2 | AT36: 3 | AU36: 3 | AV36: 2 | AW36: 2 | AX36: 2 | AY36: 1 | AZ36: 5 | BA36: 2 | BB36: 3 | BC36: 3 | BD36: 2 | BE36: 5 | BF36: 3 | BG36: 2 | BH36: 3 | BI36: 4 | BJ36: 2 | BK36: 2 | BL36: 3 | BM36: 5 | BN36: 2 | BO36: 3 | BP36: 4 | BQ36: 5 | BR36: 2 | BS36: 3 | BT36: 1 | BU36: 1 | BV36: 3 | BW36: 3 | BX36: 5 | BY36: 2 | BZ36: 3 | CA36: 2 | CB36: 2 | CC36: 2 | CD36: 4 | CE36: 4 | CF36: 3 | CG36: 4 | CH36: 2 | CI36: 1 | CJ36: 3 | CK36: 3 | CL36: 1 | CM36: 4 | GV36: 90 | GX36: 9 | GY36: 26 | GZ36: 31 | HA36: 14 | HB36: 10 | HC36: 0.1 | HD36: 0.2888888889 | HE36: 0.3444444444 | HF36: 0.1555555556 | HG36: 0.1111111111 | HH36: ='scores TCS'!GV37 -> 65.3489973
A37: 36 | B37: 3 | C37: 2 | D37: 2 | E37: 2 | F37: 3 | G37: 4 | H37: 2 | I37: 5 | J37: 3 | K37: 2 | L37: 4 | M37: 2 | N37: 4 | O37: 1 | P37: 4 | Q37: 2 | R37: 4 | S37: 2 | T37: 3 | U37: 5 | V37: 2 | W37: 2 | X37: 4 | Y37: 2 | Z37: 3 | AA37: 2 | AB37: 3 | AC37: 2 | AD37: 4 | AE37: 4 | AF37: 4 | AG37: 1 | AH37: 2 | AI37: 2 | AJ37: 2 | AK37: 1 | AL37: 4 | AM37: 2 | AN37: 2 | AO37: 3 | AP37: 4 | AQ37: 2 | AR37: 4 | AS37: 2 | AT37: 3 | AU37: 3 | AV37: 4 | AW37: 2 | AX37: 4 | AY37: 4 | AZ37: 4 | BA37: 2 | BB37: 4 | BC37: 4 | BD37: 2 | BE37: 4 | BF37: 2 | BG37: 3 | BH37: 2 | BI37: 3 | BJ37: 2 | BK37: 2 | BL37: 3 | BM37: 4 | BN37: 4 | BO37: 4 | BP37: 3 | BQ37: 4 | BR37: 5 | BS37: 2 | BT37: 2 | BU37: 1 | BV37: 4 | BW37: 3 | BX37: 4 | BY37: 3 | BZ37: 2 | CA37: 4 | CB37: 4 | CC37: 2 | CD37: 3 | CE37: 4 | CF37: 3 | CG37: 3 | CH37: 2 | CI37: 2 | CJ37: 3 | CK37: 1 | CL37: 1 | CM37: 4 | GV37: 90 | GX37: 6 | GY37: 33 | GZ37: 19 | HA37: 29 | HB37: 3 | HC37: 0.06666666667 | HD37: 0.3666666667 | HE37: 0.2111111111 | HF37: 0.3222222222 | HG37: 0.03333333333 | HH37: ='scores TCS'!GV38 -> 58.26607462
A38: 37 | B38: 2 | C38: 2 | D38: 1 | E38: 2 | F38: 3 | G38: 3 | H38: 2 | I38: 3 | J38: 1 | K38: 2 | L38: 4 | M38: 4 | N38: 4 | O38: 1 | P38: 3 | Q38: 3 | R38: 5 | S38: 2 | T38: 4 | U38: 5 | V38: 2 | W38: 3 | X38: 2 | Y38: 2 | Z38: 4 | AA38: 2 | AB38: 2 | AC38: 4 | AD38: 2 | AE38: 3 | AF38: 2 | AG38: 3 | AH38: 3 | AI38: 1 | AJ38: 3 | AK38: 1 | AL38: 2 | AM38: 4 | AN38: 1 | AO38: 1 | AP38: 5 | AQ38: 2 | AR38: 2 | AS38: 3 | AT38: 3 | AU38: 5 | AV38: 1 | AW38: 2 | AX38: 1 | AY38: 4 | AZ38: 5 | BA38: 2 | BB38: 3 | BC38: 3 | BD38: 1 | BE38: 5 | BF38: 2 | BG38: 4 | BH38: 3 | BI38: 3 | BJ38: 3 | BK38: 5 | BL38: 3 | BM38: 5 | BN38: 2 | BO38: 3 | BP38: 4 | BQ38: 5 | BR38: 2 | BS38: 3 | BT38: 2 | BU38: 1 | BV38: 4 | BW38: 3 | BX38: 2 | BY38: 3 | BZ38: 2 | CA38: 4 | CB38: 4 | CC38: 1 | CD38: 3 | CE38: 5 | CF38: 4 | CG38: 4 | CH38: 3 | CI38: 2 | CJ38: 4 | CK38: 1 | CL38: 3 | CM38: 4 | GV38: 90 | GX38: 13 | GY38: 25 | GZ38: 25 | HA38: 17 | HB38: 10 | HC38: 0.1444444444 | HD38: 0.2777777778 | HE38: 0.2777777778 | HF38: 0.1888888889 | HG38: 0.1111111111 | HH38: ='scores TCS'!GV39 -> 65.81145179
A39: 38 | B39: 2 | C39: 3 | D39: 2 | E39: 2 | F39: 2 | G39: 3 | H39: 3 | I39: 2 | J39: 1 | K39: 2 | L39: 1 | M39: 1 | N39: 5 | O39: 4 | P39: 3 | Q39: 3 | R39: 4 | S39: 5 | T39: 3 | U39: 4 | V39: 1 | W39: 2 | X39: 1 | Y39: 4 | Z39: 2 | AA39: 1 | AB39: 3 | AC39: 4 | AD39: 5 | AE39: 3 | AF39: 2 | AG39: 1 | AH39: 3 | AI39: 3 | AJ39: 4 | AK39: 3 | AL39: 4 | AM39: 3 | AN39: 2 | AO39: 2 | AP39: 5 | AQ39: 4 | AR39: 5 | AS39: 4 | AT39: 4 | AU39: 5 | AV39: 4 | AW39: 2 | AX39: 2 | AY39: 4 | AZ39: 5 | BA39: 2 | BB39: 1 | BC39: 3 | BD39: 5 | BE39: 4 | BF39: 3 | BG39: 5 | BH39: 4 | BI39: 4 | BJ39: 3 | BK39: 5 | BL39: 2 | BM39: 5 | BN39: 4 | BO39: 4 | BP39: 5 | BQ39: 4 | BR39: 4 | BS39: 3 | BT39: 2 | BU39: 1 | BV39: 4 | BW39: 5 | BX39: 2 | BY39: 2 | BZ39: 1 | CA39: 4 | CB39: 5 | CC39: 4 | CD39: 4 | CE39: 5 | CF39: 5 | CG39: 5 | CH39: 2 | CI39: 1 | CJ39: 5 | CK39: 2 | CL39: 1 | CM39: 5 | GV39: 90 | GX39: 12 | GY39: 20 | GZ39: 16 | HA39: 23 | HB39: 19 | HC39: 0.1333333333 | HD39: 0.2222222222 | HE39: 0.1777777778 | HF39: 0.2555555556 | HG39: 0.2111111111 | HH39: ='scores TCS'!GV40 -> 60.10253282
A40: 39 | B40: 2 | C40: 1 | D40: 4 | E40: 1 | F40: 3 | G40: 5 | H40: 5 | I40: 2 | J40: 4 | K40: 2 | L40: 5 | M40: 2 | N40: 4 | O40: 2 | P40: 4 | Q40: 3 | R40: 4 | S40: 4 | T40: 3 | U40: 5 | V40: 1 | W40: 4 | X40: 2 | Y40: 4 | Z40: 4 | AA40: 1 | AB40: 2 | AC40: 2 | AD40: 4 | AE40: 5 | AF40: 4 | AG40: 1 | AH40: 3 | AI40: 2 | AJ40: 2 | AK40: 2 | AL40: 1 | AM40: 4 | AN40: 5 | AO40: 2 | AP40: 5 | AQ40: 4 | AR40: 5 | AS40: 5 | AT40: 2 | AU40: 4 | AV40: 4 | AW40: 2 | AX40: 5 | AY40: 4 | AZ40: 5 | BA40: 1 | BB40: 2 | BC40: 3 | BD40: 1 | BE40: 4 | BF40: 2 | BG40: 4 | BH40: 2 | BI40: 3 | BJ40: 3 | BK40: 5 | BL40: 1 | BM40: 5 | BN40: 2 | BO40: 2 | BP40: 4 | BQ40: 5 | BR40: 4 | BS40: 2 | BT40: 1 | BU40: 1 | BV40: 4 | BW40: 5 | BX40: 1 | BY40: 1 | BZ40: 1 | CA40: 4 | CB40: 4 | CC40: 1 | CD40: 3 | CE40: 4 | CF40: 3 | CG40: 4 | CH40: 2 | CI40: 2 | CJ40: 5 | CK40: 4 | CL40: 1 | CM40: 4 | GV40: 90 | GX40: 16 | GY40: 22 | GZ40: 9 | HA40: 27 | HB40: 16 | HC40: 0.1777777778 | HD40: 0.2444444444 | HE40: 0.1 | HF40: 0.3 | HG40: 0.1777777778 | HH40: ='scores TCS'!GV41 -> 52.95446076
A41: 40 | B41: 3 | C41: 2 | D41: 5 | E41: 3 | F41: 3 | G41: 4 | H41: 2 | I41: 2 | J41: 2 | K41: 2 | L41: 4 | M41: 4 | N41: 3 | O41: 1 | P41: 4 | Q41: 3 | R41: 4 | S41: 1 | T41: 3 | U41: 5 | V41: 3 | W41: 3 | X41: 3 | Y41: 4 | Z41: 3 | AA41: 2 | AB41: 3 | AC41: 3 | AD41: 4 | AE41: 5 | AF41: 2 | AG41: 1 | AH41: 3 | AI41: 2 | AJ41: 4 | AK41: 4 | AL41: 4 | AM41: 3 | AN41: 4 | AO41: 1 | AP41: 4 | AQ41: 3 | AR41: 2 | AS41: 2 | AT41: 2 | AU41: 4 | AV41: 3 | AW41: 2 | AX41: 2 | AY41: 4 | AZ41: 4 | BA41: 4 | BB41: 3 | BC41: 2 | BD41: 3 | BE41: 4 | BF41: 3 | BG41: 4 | BH41: 3 | BI41: 3 | BJ41: 3 | BK41: 4 | BL41: 2 | BM41: 4 | BN41: 3 | BO41: 4 | BP41: 5 | BQ41: 4 | BR41: 4 | BS41: 3 | BT41: 2 | BU41: 1 | BV41: 3 | BW41: 2 | BX41: 4 | BY41: 2 | BZ41: 2 | CA41: 4 | CB41: 5 | CC41: 3 | CD41: 2 | CE41: 5 | CF41: 5 | CG41: 5 | CH41: 2 | CI41: 2 | CJ41: 3 | CK41: 2 | CL41: 2 | CM41: 4 | GV41: 90 | GX41: 5 | GY41: 24 | GZ41: 27 | HA41: 26 | HB41: 8 | HC41: 0.05555555556 | HD41: 0.2666666667 | HE41: 0.3 | HF41: 0.2888888889 | HG41: 0.08888888889 | HH41: ='scores TCS'!GV42 -> 62.85385645
A42: 41 | B42: 2 | C42: 3 | D42: 4 | E42: 3 | F42: 3 | G42: 3 | H42: 2 | I42: 2 | J42: 2 | K42: 2 | L42: 4 | M42: 3 | N42: 2 | O42: 3 | P42: 4 | Q42: 3 | R42: 4 | S42: 1 | T42: 3 | U42: 4 | V42: 2 | W42: 1 | X42: 3 | Y42: 4 | Z42: 3 | AA42: 2 | AB42: 3 | AC42: 2 | AD42: 4 | AE42: 3 | AF42: 3 | AG42: 4 | AH42: 3 | AI42: 2 | AJ42: 4 | AK42: 5 | AL42: 4 | AM42: 5 | AN42: 2 | AO42: 1 | AP42: 4 | AQ42: 4 | AR42: 4 | AS42: 4 | AT42: 3 | AU42: 5 | AV42: 1 | AW42: 2 | AX42: 2 | AY42: 2 | AZ42: 5 | BA42: 2 | BB42: 1 | BC42: 3 | BD42: 2 | BE42: 5 | BF42: 2 | BG42: 3 | BH42: 3 | BI42: 3 | BJ42: 3 | BK42: 5 | BL42: 3 | BM42: 5 | BN42: 5 | BO42: 3 | BP42: 2 | BQ42: 4 | BR42: 3 | BS42: 3 | BT42: 1 | BU42: 2 | BV42: 3 | BW42: 4 | BX42: 4 | BY42: 1 | BZ42: 2 | CA42: 5 | CB42: 3 | CC42: 2 | CD42: 3 | CE42: 3 | CF42: 4 | CG42: 5 | CH42: 3 | CI42: 2 | CJ42: 4 | CK42: 2 | CL42: 1 | CM42: 3 | GV42: 90 | GX42: 8 | GY42: 23 | GZ42: 30 | HA42: 19 | HB42: 10 | HC42: 0.08888888889 | HD42: 0.2555555556 | HE42: 0.3333333333 | HF42: 0.2111111111 | HG42: 0.1111111111 | HH42: ='scores TCS'!GV43 -> 69.17398478
A43: 42 | B43: 4 | C43: 3 | D43: 2 | E43: 4 | F43: 3 | G43: 2 | H43: 5 | I43: 4 | J43: 3 | K43: 2 | L43: 4 | M43: 3 | N43: 4 | O43: 4 | P43: 3 | Q43: 4 | R43: 4 | S43: 2 | T43: 2 | U43: 4 | V43: 3 | W43: 3 | X43: 3 | Y43: 1 | Z43: 1 | AA43: 4 | AB43: 2 | AC43: 4 | AD43: 3 | AE43: 2 | AF43: 3 | AG43: 1 | AH43: 3 | AI43: 1 | AJ43: 4 | AK43: 3 | AL43: 4 | AM43: 3 | AN43: 2 | AO43: 2 | AP43: 4 | AQ43: 2 | AR43: 4 | AS43: 2 | AT43: 4 | AU43: 2 | AV43: 4 | AW43: 2 | AX43: 1 | AY43: 4 | AZ43: 4 | BA43: 2 | BB43: 3 | BC43: 3 | BD43: 2 | BE43: 4 | BF43: 3 | BG43: 3 | BH43: 2 | BI43: 3 | BJ43: 1 | BK43: 1 | BL43: 1 | BM43: 4 | BN43: 4 | BO43: 3 | BP43: 4 | BQ43: 4 | BR43: 3 | BS43: 3 | BT43: 2 | BU43: 3 | BV43: 2 | BW43: 2 | BX43: 4 | BY43: 3 | BZ43: 4 | CA43: 2 | CB43: 3 | CC43: 2 | CD43: 2 | CE43: 3 | CF43: 4 | CG43: 4 | CH43: 2 | CI43: 2 | CJ43: 3 | CK43: 3 | CL43: 2 | CM43: 4 | GV43: 90 | GX43: 8 | GY43: 25 | GZ43: 27 | HA43: 29 | HB43: 1 | HC43: 0.08888888889 | HD43: 0.2777777778 | HE43: 0.3 | HF43: 0.3222222222 | HG43: 0.01111111111 | HH43: ='scores TCS'!GV44 -> 53.05095029
A44: 43 | B44: 3 | C44: 5 | D44: 1 | E44: 4 | F44: 3 | G44: 4 | H44: 5 | I44: 4 | J44: 3 | K44: 2 | L44: 4 | M44: 5 | N44: 3 | O44: 1 | P44: 4 | Q44: 3 | R44: 4 | S44: 1 | T44: 3 | U44: 5 | V44: 2 | W44: 4 | X44: 2 | Y44: 1 | Z44: 3 | AA44: 1 | AB44: 4 | AC44: 2 | AD44: 2 | AE44: 5 | AF44: 3 | AG44: 2 | AH44: 2 | AI44: 3 | AJ44: 4 | AK44: 2 | AL44: 4 | AM44: 3 | AN44: 1 | AO44: 2 | AP44: 1 | AQ44: 2 | AR44: 3 | AS44: 1 | AT44: 2 | AU44: 5 | AV44: 2 | AW44: 2 | AX44: 5 | AY44: 4 | AZ44: 2 | BA44: 4 | BB44: 1 | BC44: 3 | BD44: 4 | BE44: 5 | BF44: 2 | BG44: 4 | BH44: 2 | BI44: 2 | BJ44: 4 | BK44: 4 | BL44: 3 | BM44: 5 | BN44: 2 | BO44: 5 | BP44: 4 | BQ44: 5 | BR44: 4 | BS44: 3 | BT44: 2 | BU44: 1 | BV44: 4 | BW44: 4 | BX44: 5 | BY44: 3 | BZ44: 3 | CA44: 4 | CB44: 4 | CC44: 2 | CD44: 3 | CE44: 4 | CF44: 4 | CG44: 5 | CH44: 3 | CI44: 3 | CJ44: 3 | CK44: 3 | CL44: 3 | CM44: 3 | GV44: 90 | GX44: 10 | GY44: 20 | GZ44: 23 | HA44: 24 | HB44: 13 | HC44: 0.1111111111 | HD44: 0.2222222222 | HE44: 0.2555555556 | HF44: 0.2666666667 | HG44: 0.1444444444 | HH44: ='scores TCS'!GV45 -> 61.64706914
A45: 44 | B45: 2 | C45: 3 | D45: 2 | E45: 3 | F45: 3 | G45: 3 | H45: 5 | I45: 2 | J45: 2 | K45: 2 | L45: 4 | M45: 5 | N45: 2 | O45: 5 | P45: 2 | Q45: 4 | R45: 4 | S45: 2 | T45: 4 | U45: 4 | V45: 2 | W45: 1 | X45: 1 | Y45: 4 | Z45: 4 | AA45: 2 | AB45: 4 | AC45: 4 | AD45: 1 | AE45: 1 | AF45: 2 | AG45: 2 | AH45: 3 | AI45: 3 | AJ45: 3 | AK45: 3 | AL45: 2 | AM45: 3 | AN45: 2 | AO45: 2 | AP45: 3 | AQ45: 3 | AR45: 2 | AS45: 2 | AT45: 4 | AU45: 2 | AV45: 2 | AW45: 2 | AX45: 1 | AY45: 1 | AZ45: 5 | BA45: 1 | BB45: 3 | BC45: 3 | BD45: 1 | BE45: 3 | BF45: 1 | BG45: 4 | BH45: 4 | BI45: 4 | BJ45: 3 | BK45: 4 | BL45: 2 | BM45: 4 | BN45: 2 | BO45: 3 | BP45: 4 | BQ45: 4 | BR45: 4 | BS45: 3 | BT45: 3 | BU45: 3 | BV45: 2 | BW45: 4 | BX45: 2 | BY45: 2 | BZ45: 3 | CA45: 4 | CB45: 4 | CC45: 2 | CD45: 2 | CE45: 3 | CF45: 3 | CG45: 4 | CH45: 4 | CI45: 3 | CJ45: 3 | CK45: 3 | CL45: 3 | CM45: 3 | GV45: 90 | GX45: 9 | GY45: 27 | GZ45: 27 | HA45: 23 | HB45: 4 | HC45: 0.1 | HD45: 0.3 | HE45: 0.3 | HF45: 0.2555555556 | HG45: 0.04444444444 | HH45: ='scores TCS'!GV46 -> 62.08795429
A46: 45 | B46: 5 | C46: 3 | D46: 2 | E46: 3 | F46: 2 | G46: 5 | H46: 2 | I46: 2 | J46: 4 | K46: 2 | L46: 4 | M46: 2 | N46: 4 | O46: 1 | P46: 4 | Q46: 2 | R46: 4 | S46: 2 | T46: 2 | U46: 5 | V46: 3 | W46: 1 | X46: 3 | Y46: 5 | Z46: 4 | AA46: 3 | AB46: 4 | AC46: 2 | AD46: 3 | AE46: 3 | AF46: 2 | AG46: 1 | AH46: 5 | AI46: 2 | AJ46: 3 | AK46: 2 | AL46: 4 | AM46: 2 | AN46: 2 | AO46: 2 | AP46: 5 | AQ46: 3 | AR46: 2 | AS46: 2 | AT46: 3 | AU46: 2 | AV46: 1 | AW46: 4 | AX46: 2 | AY46: 3 | AZ46: 5 | BA46: 1 | BB46: 2 | BC46: 3 | BD46: 1 | BE46: 5 | BF46: 2 | BG46: 4 | BH46: 4 | BI46: 4 | BJ46: 3 | BK46: 5 | BL46: 3 | BM46: 5 | BN46: 5 | BO46: 5 | BP46: 4 | BQ46: 5 | BR46: 2 | BS46: 3 | BT46: 1 | BU46: 1 | BV46: 2 | BW46: 2 | BX46: 5 | BY46: 2 | BZ46: 2 | CA46: 5 | CB46: 2 | CC46: 2 | CD46: 3 | CE46: 4 | CF46: 3 | CG46: 4 | CH46: 2 | CI46: 2 | CJ46: 3 | CK46: 2 | CL46: 1 | CM46: 5 | GV46: 90 | GX46: 9 | GY46: 32 | GZ46: 18 | HA46: 15 | HB46: 16 | HC46: 0.1 | HD46: 0.3555555556 | HE46: 0.2 | HF46: 0.1666666667 | HG46: 0.1777777778 | HH46: ='scores TCS'!GV47 -> 62.19477035
A47: 46 | B47: 5 | C47: 4 | D47: 2 | E47: 2 | F47: 3 | G47: 3 | H47: 4 | I47: 3 | J47: 2 | K47: 2 | L47: 4 | M47: 5 | N47: 2 | O47: 5 | P47: 4 | Q47: 2 | R47: 4 | S47: 4 | T47: 3 | U47: 3 | V47: 2 | W47: 4 | X47: 3 | Y47: 2 | Z47: 4 | AA47: 2 | AB47: 3 | AC47: 4 | AD47: 4 | AE47: 3 | AF47: 2 | AG47: 1 | AH47: 4 | AI47: 3 | AJ47: 4 | AK47: 3 | AL47: 2 | AM47: 2 | AN47: 4 | AO47: 2 | AP47: 4 | AQ47: 4 | AR47: 3 | AS47: 2 | AT47: 4 | AU47: 5 | AV47: 4 | AW47: 4 | AX47: 2 | AY47: 3 | AZ47: 4 | BA47: 3 | BB47: 2 | BC47: 3 | BD47: 2 | BE47: 4 | BF47: 3 | BG47: 4 | BH47: 3 | BI47: 4 | BJ47: 2 | BK47: 5 | BL47: 2 | BM47: 5 | BN47: 4 | BO47: 5 | BP47: 3 | BQ47: 5 | BR47: 4 | BS47: 3 | BT47: 2 | BU47: 4 | BV47: 4 | BW47: 2 | BX47: 5 | BY47: 3 | BZ47: 4 | CA47: 4 | CB47: 5 | CC47: 2 | CD47: 3 | CE47: 3 | CF47: 4 | CG47: 5 | CH47: 2 | CI47: 4 | CJ47: 4 | CK47: 2 | CL47: 2 | CM47: 5 | GV47: 90 | GX47: 1 | GY47: 25 | GZ47: 21 | HA47: 31 | HB47: 12 | HC47: 0.01111111111 | HD47: 0.2777777778 | HE47: 0.2333333333 | HF47: 0.3444444444 | HG47: 0.1333333333 | HH47: ='scores TCS'!GV48 -> 63.35357855
A48: 47 | B48: 3 | C48: 4 | D48: 5 | E48: 3 | F48: 3 | G48: 3 | H48: 1 | I48: 2 | J48: 2 | K48: 2 | L48: 3 | M48: 5 | N48: 2 | O48: 4 | P48: 3 | Q48: 2 | R48: 2 | S48: 2 | T48: 3 | U48: 5 | V48: 3 | W48: 4 | X48: 2 | Y48: 2 | Z48: 2 | AA48: 3 | AB48: 4 | AC48: 2 | AD48: 4 | AE48: 3 | AF48: 3 | AG48: 2 | AH48: 2 | AI48: 3 | AJ48: 4 | AK48: 2 | AL48: 4 | AM48: 2 | AN48: 3 | AO48: 2 | AP48: 5 | AQ48: 4 | AR48: 3 | AS48: 4 | AT48: 2 | AU48: 3 | AV48: 2 | AW48: 2 | AX48: 2 | AY48: 2 | AZ48: 4 | BA48: 1 | BB48: 2 | BC48: 4 | BD48: 2 | BE48: 4 | BF48: 2 | BG48: 3 | BH48: 4 | BI48: 3 | BJ48: 3 | BK48: 4 | BL48: 2 | BM48: 4 | BN48: 5 | BO48: 4 | BP48: 4 | BQ48: 5 | BR48: 4 | BS48: 3 | BT48: 1 | BU48: 1 | BV48: 2 | BW48: 4 | BX48: 5 | BY48: 1 | BZ48: 2 | CA48: 5 | CB48: 4 | CC48: 2 | CD48: 3 | CE48: 3 | CF48: 4 | CG48: 4 | CH48: 4 | CI48: 4 | CJ48: 3 | CK48: 1 | CL48: 2 | CM48: 5 | GV48: 90 | GX48: 6 | GY48: 29 | GZ48: 22 | HA48: 24 | HB48: 9 | HC48: 0.06666666667 | HD48: 0.3222222222 | HE48: 0.2444444444 | HF48: 0.2666666667 | HG48: 0.1 | HH48: ='scores TCS'!GV49 -> 61.42268846
A49: 48 | B49: 3 | C49: 3 | D49: 4 | E49: 4 | F49: 3 | G49: 3 | H49: 4 | I49: 3 | J49: 5 | K49: 2 | L49: 4 | M49: 2 | N49: 2 | O49: 4 | P49: 3 | Q49: 3 | R49: 3 | S49: 2 | T49: 3 | U49: 4 | V49: 3 | W49: 3 | X49: 3 | Y49: 2 | Z49: 3 | AA49: 2 | AB49: 3 | AC49: 3 | AD49: 4 | AE49: 2 | AF49: 4 | AG49: 2 | AH49: 4 | AI49: 2 | AJ49: 4 | AK49: 3 | AL49: 2 | AM49: 3 | AN49: 4 | AO49: 1 | AP49: 4 | AQ49: 2 | AR49: 3 | AS49: 2 | AT49: 3 | AU49: 4 | AV49: 2 | AW49: 2 | AX49: 2 | AY49: 2 | AZ49: 4 | BA49: 2 | BB49: 2 | BC49: 4 | BD49: 2 | BE49: 4 | BF49: 3 | BG49: 4 | BH49: 2 | BI49: 2 | BJ49: 4 | BK49: 4 | BL49: 3 | BM49: 5 | BN49: 3 | BO49: 4 | BP49: 4 | BQ49: 3 | BR49: 3 | BS49: 3 | BT49: 1 | BU49: 2 | BV49: 3 | BW49: 4 | BX49: 5 | BY49: 2 | BZ49: 2 | CA49: 2 | CB49: 4 | CC49: 2 | CD49: 2 | CE49: 4 | CF49: 3 | CG49: 4 | CH49: 2 | CI49: 3 | CJ49: 4 | CK49: 2 | CL49: 2 | CM49: 4 | GV49: 90 | GX49: 2 | GY49: 30 | GZ49: 28 | HA49: 27 | HB49: 3 | HC49: 0.02222222222 | HD49: 0.3333333333 | HE49: 0.3111111111 | HF49: 0.3 | HG49: 0.03333333333 | HH49: ='scores TCS'!GV50 -> 63.68105745
A50: 49 | B50: 2 | C50: 1 | D50: 4 | E50: 4 | F50: 5 | G50: 5 | H50: 5 | I50: 3 | J50: 2 | K50: 1 | L50: 4 | M50: 5 | N50: 5 | O50: 1 | P50: 4 | Q50: 4 | R50: 5 | S50: 1 | T50: 2 | U50: 4 | V50: 4 | W50: 1 | X50: 3 | Y50: 4 | Z50: 2 | AA50: 1 | AB50: 1 | AC50: 2 | AD50: 4 | AE50: 2 | AF50: 4 | AG50: 2 | AH50: 2 | AI50: 3 | AJ50: 3 | AK50: 3 | AL50: 2 | AM50: 3 | AN50: 4 | AO50: 2 | AP50: 4 | AQ50: 5 | AR50: 2 | AS50: 3 | AT50: 4 | AU50: 2 | AV50: 2 | AW50: 1 | AX50: 2 | AY50: 1 | AZ50: 4 | BA50: 2 | BB50: 2 | BC50: 4 | BD50: 4 | BE50: 4 | BF50: 2 | BG50: 4 | BH50: 4 | BI50: 2 | BJ50: 3 | BK50: 5 | BL50: 2 | BM50: 4 | BN50: 2 | BO50: 3 | BP50: 4 | BQ50: 2 | BR50: 2 | BS50: 3 | BT50: 4 | BU50: 4 | BV50: 2 | BW50: 4 | BX50: 1 | BY50: 4 | BZ50: 3 | CA50: 4 | CB50: 2 | CC50: 4 | CD50: 5 | CE50: 5 | CF50: 5 | CG50: 5 | CH50: 2 | CI50: 1 | CJ50: 4 | CK50: 2 | CL50: 2 | CM50: 4 | GV50: 90 | GX50: 11 | GY50: 27 | GZ50: 11 | HA50: 29 | HB50: 12 | HC50: 0.1222222222 | HD50: 0.3 | HE50: 0.1222222222 | HF50: 0.3222222222 | HG50: 0.1333333333 | HH50: ='scores TCS'!GV51 -> 51.35073059
A51: 50 | B51: 3 | C51: 4 | D51: 5 | E51: 4 | F51: 3 | G51: 3 | H51: 4 | I51: 5 | J51: 5 | K51: 1 | L51: 3 | M51: 4 | N51: 4 | O51: 5 | P51: 4 | Q51: 2 | R51: 4 | S51: 1 | T51: 2 | U51: 5 | V51: 4 | W51: 2 | X51: 2 | Y51: 4 | Z51: 2 | AA51: 3 | AB51: 4 | AC51: 4 | AD51: 3 | AE51: 4 | AF51: 4 | AG51: 2 | AH51: 4 | AI51: 2 | AJ51: 4 | AK51: 4 | AL51: 3 | AM51: 4 | AN51: 5 | AO51: 3 | AP51: 5 | AQ51: 4 | AR51: 4 | AS51: 3 | AT51: 4 | AU51: 3 | AV51: 3 | AW51: 4 | AX51: 4 | AY51: 4 | AZ51: 3 | BA51: 2 | BB51: 2 | BC51: 3 | BD51: 4 | BE51: 2 | BF51: 4 | BG51: 4 | BH51: 2 | BI51: 2 | BJ51: 4 | BK51: 4 | BL51: 2 | BM51: 4 | BN51: 4 | BO51: 5 | BP51: 4 | BQ51: 3 | BR51: 3 | BS51: 2 | BT51: 3 | BU51: 4 | BV51: 4 | BW51: 3 | BX51: 3 | BY51: 3 | BZ51: 4 | CA51: 5 | CB51: 5 | CC51: 4 | CD51: 2 | CE51: 3 | CF51: 4 | CG51: 5 | CH51: 4 | CI51: 4 | CJ51: 3 | CK51: 4 | CL51: 4 | CM51: 5 | GV51: 90 | GX51: 2 | GY51: 15 | GZ51: 21 | HA51: 40 | HB51: 12 | HC51: 0.02222222222 | HD51: 0.1666666667 | HE51: 0.2333333333 | HF51: 0.4444444444 | HG51: 0.1333333333 | HH51: ='scores TCS'!GV52 -> 43.87920993
A52: 51 | B52: 4 | C52: 2 | D52: 1 | E52: 3 | F52: 3 | G52: 4 | H52: 4 | I52: 4 | J52: 2 | K52: 2 | L52: 5 | M52: 4 | N52: 4 | O52: 5 | P52: 2 | Q52: 4 | R52: 2 | S52: 2 | T52: 3 | U52: 5 | V52: 2 | W52: 2 | X52: 4 | Y52: 5 | Z52: 4 | AA52: 2 | AB52: 2 | AC52: 3 | AD52: 2 | AE52: 4 | AF52: 2 | AG52: 1 | AH52: 4 | AI52: 3 | AJ52: 2 | AK52: 2 | AL52: 2 | AM52: 3 | AN52: 2 | AO52: 2 | AP52: 5 | AQ52: 4 | AR52: 2 | AS52: 2 | AT52: 2 | AU52: 3 | AV52: 2 | AW52: 2 | AX52: 2 | AY52: 2 | AZ52: 4 | BA52: 2 | BB52: 3 | BC52: 4 | BD52: 4 | BE52: 5 | BF52: 3 | BG52: 4 | BH52: 5 | BI52: 2 | BJ52: 4 | BK52: 3 | BL52: 2 | BM52: 4 | BN52: 2 | BO52: 3 | BP52: 4 | BQ52: 4 | BR52: 2 | BS52: 3 | BT52: 2 | BU52: 3 | BV52: 2 | BW52: 4 | BX52: 2 | BY52: 2 | BZ52: 2 | CA52: 4 | CB52: 2 | CC52: 2 | CD52: 4 | CE52: 4 | CF52: 3 | CG52: 5 | CH52: 3 | CI52: 2 | CJ52: 4 | CK52: 3 | CL52: 2 | CM52: 4 | GV52: 90 | GX52: 2 | GY52: 38 | GZ52: 16 | HA52: 26 | HB52: 8 | HC52: 0.02222222222 | HD52: 0.4222222222 | HE52: 0.1777777778 | HF52: 0.2888888889 | HG52: 0.08888888889 | HH52: ='scores TCS'!GV53 -> 59.03257686
A53: 52 | B53: 4 | C53: 5 | D53: 5 | E53: 2 | F53: 3 | G53: 5 | H53: 4 | I53: 5 | J53: 5 | K53: 2 | L53: 2 | M53: 4 | N53: 4 | O53: 4 | P53: 4 | Q53: 4 | R53: 4 | S53: 2 | T53: 3 | U53: 5 | V53: 4 | W53: 2 | X53: 2 | Y53: 5 | Z53: 3 | AA53: 4 | AB53: 5 | AC53: 4 | AD53: 4 | AE53: 4 | AF53: 3 | AG53: 2 | AH53: 3 | AI53: 3 | AJ53: 4 | AK53: 3 | AL53: 2 | AM53: 2 | AN53: 2 | AO53: 3 | AP53: 4 | AQ53: 3 | AR53: 4 | AS53: 5 | AT53: 4 | AU53: 3 | AV53: 4 | AW53: 2 | AX53: 4 | AY53: 4 | AZ53: 1 | BA53: 2 | BB53: 2 | BC53: 3 | BD53: 2 | BE53: 4 | BF53: 3 | BG53: 4 | BH53: 2 | BI53: 2 | BJ53: 4 | BK53: 4 | BL53: 2 | BM53: 4 | BN53: 4 | BO53: 4 | BP53: 4 | BQ53: 4 | BR53: 4 | BS53: 2 | BT53: 1 | BU53: 2 | BV53: 3 | BW53: 4 | BX53: 5 | BY53: 3 | BZ53: 4 | CA53: 5 | CB53: 4 | CC53: 5 | CD53: 4 | CE53: 3 | CF53: 3 | CG53: 5 | CH53: 2 | CI53: 2 | CJ53: 3 | CK53: 2 | CL53: 2 | CM53: 4 | GV53: 90 | GX53: 2 | GY53: 23 | GZ53: 17 | HA53: 35 | HB53: 13 | HC53: 0.02222222222 | HD53: 0.2555555556 | HE53: 0.1888888889 | HF53: 0.3888888889 | HG53: 0.1444444444 | HH53: ='scores TCS'!GV54 -> 53.54552893
A54: 53 | B54: 2 | C54: 2 | D54: 4 | E54: 2 | F54: 3 | G54: 5 | H54: 3 | I54: 2 | J54: 1 | K54: 2 | L54: 4 | M54: 4 | N54: 4 | O54: 1 | P54: 4 | Q54: 2 | R54: 5 | S54: 2 | T54: 3 | U54: 4 | V54: 3 | W54: 4 | X54: 2 | Y54: 2 | Z54: 4 | AA54: 2 | AB54: 2 | AC54: 4 | AD54: 4 | AE54: 3 | AF54: 3 | AG54: 2 | AH54: 2 | AI54: 3 | AJ54: 4 | AK54: 2 | AL54: 4 | AM54: 2 | AN54: 2 | AO54: 3 | AP54: 5 | AQ54: 4 | AR54: 3 | AS54: 5 | AT54: 4 | AU54: 2 | AV54: 2 | AW54: 4 | AX54: 4 | AY54: 2 | AZ54: 5 | BA54: 4 | BB54: 3 | BC54: 3 | BD54: 2 | BE54: 4 | BF54: 3 | BG54: 4 | BH54: 4 | BI54: 3 | BJ54: 1 | BK54: 4 | BL54: 2 | BM54: 5 | BN54: 4 | BO54: 3 | BP54: 4 | BQ54: 4 | BR54: 4 | BS54: 3 | BT54: 1 | BU54: 1 | BV54: 3 | BW54: 2 | BX54: 5 | BY54: 2 | BZ54: 1 | CA54: 4 | CB54: 4 | CC54: 2 | CD54: 2 | CE54: 4 | CF54: 4 | CG54: 4 | CH54: 2 | CI54: 3 | CJ54: 3 | CK54: 2 | CL54: 1 | CM54: 3 | GV54: 90 | GX54: 7 | GY54: 27 | GZ54: 19 | HA54: 30 | HB54: 7 | HC54: 0.07777777778 | HD54: 0.3 | HE54: 0.2111111111 | HF54: 0.3333333333 | HG54: 0.07777777778 | HH54: ='scores TCS'!GV55 -> 68.45175326
A55: 54 | B55: 3 | C55: 3 | D55: 3 | E55: 3 | F55: 2 | G55: 2 | H55: 3 | I55: 3 | J55: 2 | K55: 3 | L55: 3 | M55: 3 | N55: 2 | O55: 2 | P55: 2 | Q55: 4 | R55: 5 | S55: 2 | T55: 3 | U55: 3 | V55: 3 | W55: 2 | X55: 2 | Y55: 4 | Z55: 4 | AA55: 3 | AB55: 4 | AC55: 4 | AD55: 3 | AE55: 3 | AF55: 2 | AG55: 2 | AH55: 3 | AI55: 1 | AJ55: 3 | AK55: 3 | AL55: 3 | AM55: 3 | AN55: 2 | AO55: 2 | AP55: 2 | AQ55: 3 | AR55: 3 | AS55: 3 | AT55: 3 | AU55: 1 | AV55: 2 | AW55: 2 | AX55: 4 | AY55: 3 | AZ55: 4 | BA55: 3 | BB55: 3 | BC55: 2 | BD55: 2 | BE55: 3 | BF55: 4 | BG55: 1 | BH55: 3 | BI55: 4 | BJ55: 3 | BK55: 1 | BL55: 3 | BM55: 3 | BN55: 4 | BO55: 4 | BP55: 3 | BQ55: 4 | BR55: 4 | BS55: 3 | BT55: 3 | BU55: 4 | BV55: 3 | BW55: 2 | BX55: 3 | BY55: 3 | BZ55: 4 | CA55: 4 | CB55: 3 | CC55: 4 | CD55: 3 | CE55: 3 | CF55: 4 | CG55: 4 | CH55: 3 | CI55: 2 | CJ55: 4 | CK55: 3 | CL55: 4 | CM55: 4 | GV55: 90 | GX55: 4 | GY55: 20 | GZ55: 43 | HA55: 22 | HB55: 1 | HC55: 0.04444444444 | HD55: 0.2222222222 | HE55: 0.4777777778 | HF55: 0.2444444444 | HG55: 0.01111111111 | HH55: ='scores TCS'!GV56 -> 55.76886674
A56: 55 | B56: 4 | C56: 2 | D56: 4 | E56: 2 | F56: 2 | G56: 3 | H56: 3 | I56: 2 | J56: 1 | K56: 2 | L56: 4 | M56: 3 | N56: 2 | O56: 2 | P56: 2 | Q56: 4 | R56: 4 | S56: 4 | T56: 2 | U56: 4 | V56: 2 | W56: 1 | X56: 3 | Y56: 4 | Z56: 3 | AA56: 2 | AB56: 1 | AC56: 4 | AD56: 2 | AE56: 2 | AF56: 3 | AG56: 2 | AH56: 3 | AI56: 2 | AJ56: 4 | AK56: 2 | AL56: 2 | AM56: 3 | AN56: 2 | AO56: 2 | AP56: 5 | AQ56: 2 | AR56: 2 | AS56: 2 | AT56: 2 | AU56: 1 | AV56: 2 | AW56: 2 | AX56: 2 | AY56: 2 | AZ56: 3 | BA56: 2 | BB56: 2 | BC56: 2 | BD56: 1 | BE56: 5 | BF56: 1 | BG56: 4 | BH56: 2 | BI56: 3 | BJ56: 3 | BK56: 4 | BL56: 2 | BM56: 2 | BN56: 2 | BO56: 4 | BP56: 4 | BQ56: 4 | BR56: 4 | BS56: 3 | BT56: 1 | BU56: 2 | BV56: 2 | BW56: 4 | BX56: 2 | BY56: 2 | BZ56: 1 | CA56: 2 | CB56: 4 | CC56: 2 | CD56: 4 | CE56: 4 | CF56: 4 | CG56: 4 | CH56: 2 | CI56: 2 | CJ56: 4 | CK56: 2 | CL56: 2 | CM56: 4 | GV56: 90 | GX56: 8 | GY56: 44 | GZ56: 12 | HA56: 24 | HB56: 2 | HC56: 0.08888888889 | HD56: 0.4888888889 | HE56: 0.1333333333 | HF56: 0.2666666667 | HG56: 0.02222222222 | HH56: ='scores TCS'!GV57 -> 61.3399928
A57: 56 | B57: 3 | C57: 2 | D57: 1 | E57: 4 | F57: 2 | G57: 4 | H57: 4 | I57: 2 | J57: 4 | K57: 2 | L57: 5 | M57: 4 | N57: 4 | O57: 1 | P57: 2 | Q57: 2 | R57: 2 | S57: 3 | T57: 4 | U57: 5 | V57: 2 | W57: 2 | X57: 2 | Y57: 4 | Z57: 4 | AA57: 2 | AB57: 3 | AC57: 3 | AD57: 2 | AE57: 4 | AF57: 2 | AG57: 2 | AH57: 5 | AI57: 2 | AJ57: 4 | AK57: 2 | AL57: 2 | AM57: 2 | AN57: 2 | AO57: 3 | AP57: 5 | AQ57: 3 | AR57: 3 | AS57: 1 | AT57: 4 | AU57: 2 | AV57: 2 | AW57: 2 | AX57: 1 | AY57: 4 | AZ57: 4 | BA57: 2 | BB57: 2 | BC57: 4 | BD57: 1 | BE57: 5 | BF57: 4 | BG57: 4 | BH57: 4 | BI57: 3 | BJ57: 2 | BK57: 5 | BL57: 2 | BM57: 4 | BN57: 3 | BO57: 3 | BP57: 4 | BQ57: 4 | BR57: 2 | BS57: 3 | BT57: 1 | BU57: 2 | BV57: 3 | BW57: 4 | BX57: 5 | BY57: 2 | BZ57: 2 | CA57: 4 | CB57: 5 | CC57: 2 | CD57: 2 | CE57: 3 | CF57: 4 | CG57: 4 | CH57: 3 | CI57: 2 | CJ57: 2 | CK57: 2 | CL57: 2 | CM57: 5 | GV57: 90 | GX57: 6 | GY57: 36 | GZ57: 14 | HA57: 25 | HB57: 9 | HC57: 0.06666666667 | HD57: 0.4 | HE57: 0.1555555556 | HF57: 0.2777777778 | HG57: 0.1 | HH57: ='scores TCS'!GV58 -> 66.17656466
A58: 57 | B58: 5 | C58: 4 | D58: 3 | E58: 4 | F58: 5 | G58: 5 | H58: 3 | I58: 4 | J58: 5 | K58: 2 | L58: 4 | M58: 5 | N58: 4 | O58: 5 | P58: 4 | Q58: 4 | R58: 4 | S58: 1 | T58: 4 | U58: 5 | V58: 2 | W58: 2 | X58: 3 | Y58: 5 | Z58: 5 | AA58: 2 | AB58: 4 | AC58: 4 | AD58: 2 | AE58: 5 | AF58: 2 | AG58: 5 | AH58: 5 | AI58: 2 | AJ58: 5 | AK58: 2 | AL58: 2 | AM58: 4 | AN58: 5 | AO58: 4 | AP58: 5 | AQ58: 3 | AR58: 5 | AS58: 5 | AT58: 2 | AU58: 2 | AV58: 4 | AW58: 4 | AX58: 2 | AY58: 2 | AZ58: 5 | BA58: 4 | BB58: 4 | BC58: 3 | BD58: 4 | BE58: 5 | BF58: 3 | BG58: 5 | BH58: 4 | BI58: 2 | BJ58: 5 | BK58: 5 | BL58: 2 | BM58: 5 | BN58: 4 | BO58: 3 | BP58: 4 | BQ58: 5 | BR58: 5 | BS58: 4 | BT58: 3 | BU58: 4 | BV58: 2 | BW58: 4 | BX58: 5 | BY58: 2 | BZ58: 4 | CA58: 2 | CB58: 4 | CC58: 5 | CD58: 5 | CE58: 3 | CF58: 5 | CG58: 5 | CH58: 4 | CI58: 3 | CJ58: 5 | CK58: 3 | CL58: 4 | CM58: 5 | GV58: 90 | GX58: 1 | GY58: 18 | GZ58: 11 | HA58: 28 | HB58: 32 | HC58: 0.01111111111 | HD58: 0.2 | HE58: 0.1222222222 | HF58: 0.3111111111 | HG58: 0.3555555556 | HH58: ='scores TCS'!GV59 -> 50.52930071
A59: 58 | B59: 4 | C59: 2 | D59: 1 | E59: 3 | F59: 3 | G59: 3 | H59: 3 | I59: 4 | J59: 2 | K59: 2 | L59: 4 | M59: 5 | N59: 2 | O59: 1 | P59: 4 | Q59: 2 | R59: 4 | S59: 1 | T59: 2 | U59: 5 | V59: 3 | W59: 2 | X59: 2 | Y59: 4 | Z59: 1 | AA59: 2 | AB59: 3 | AC59: 2 | AD59: 3 | AE59: 4 | AF59: 3 | AG59: 1 | AH59: 3 | AI59: 2 | AJ59: 4 | AK59: 4 | AL59: 4 | AM59: 3 | AN59: 2 | AO59: 2 | AP59: 5 | AQ59: 4 | AR59: 2 | AS59: 1 | AT59: 2 | AU59: 3 | AV59: 2 | AW59: 4 | AX59: 2 | AY59: 1 | AZ59: 4 | BA59: 4 | BB59: 2 | BC59: 3 | BD59: 3 | BE59: 4 | BF59: 2 | BG59: 4 | BH59: 4 | BI59: 4 | BJ59: 3 | BK59: 3 | BL59: 2 | BM59: 4 | BN59: 4 | BO59: 3 | BP59: 4 | BQ59: 4 | BR59: 4 | BS59: 3 | BT59: 1 | BU59: 1 | BV59: 3 | BW59: 4 | BX59: 4 | BY59: 2 | BZ59: 2 | CA59: 3 | CB59: 2 | CC59: 2 | CD59: 2 | CE59: 3 | CF59: 2 | CG59: 4 | CH59: 2 | CI59: 3 | CJ59: 2 | CK59: 2 | CL59: 3 | CM59: 5 | GV59: 90 | GX59: 9 | GY59: 29 | GZ59: 22 | HA59: 26 | HB59: 4 | HC59: 0.1 | HD59: 0.3222222222 | HE59: 0.2444444444 | HF59: 0.2888888889 | HG59: 0.04444444444 | HH59: ='scores TCS'!GV60 -> 66.36577782
A60: 59 | B60: 4 | C60: 4 | D60: 5 | E60: 3 | F60: 3 | G60: 2 | H60: 4 | I60: 5 | J60: 4 | K60: 3 | L60: 5 | M60: 4 | N60: 4 | O60: 1 | P60: 4 | Q60: 2 | R60: 2 | S60: 1 | T60: 2 | U60: 5 | V60: 3 | W60: 2 | X60: 3 | Y60: 2 | Z60: 3 | AA60: 3 | AB60: 3 | AC60: 2 | AD60: 5 | AE60: 4 | AF60: 3 | AG60: 2 | AH60: 2 | AI60: 3 | AJ60: 4 | AK60: 2 | AL60: 2 | AM60: 3 | AN60: 5 | AO60: 2 | AP60: 4 | AQ60: 4 | AR60: 3 | AS60: 5 | AT60: 4 | AU60: 5 | AV60: 5 | AW60: 2 | AX60: 2 | AY60: 2 | AZ60: 5 | BA60: 1 | BB60: 2 | BC60: 5 | BD60: 1 | BE60: 5 | BF60: 4 | BG60: 2 | BH60: 5 | BI60: 5 | BJ60: 3 | BK60: 5 | BL60: 3 | BM60: 4 | BN60: 5 | BO60: 3 | BP60: 2 | BQ60: 5 | BR60: 4 | BS60: 3 | BT60: 1 | BU60: 2 | BV60: 2 | BW60: 2 | BX60: 5 | BY60: 2 | BZ60: 2 | CA60: 5 | CB60: 5 | CC60: 1 | CD60: 1 | CE60: 5 | CF60: 3 | CG60: 5 | CH60: 1 | CI60: 1 | CJ60: 5 | CK60: 5 | CL60: 1 | CM60: 5 | GV60: 90 | GX60: 10 | GY60: 23 | GZ60: 17 | HA60: 15 | HB60: 25 | HC60: 0.1111111111 | HD60: 0.2555555556 | HE60: 0.1888888889 | HF60: 0.1666666667 | HG60: 0.2777777778 | HH60: ='scores TCS'!GV61 -> 56.17196098
A61: 60 | B61: 4 | C61: 2 | D61: 1 | E61: 3 | F61: 4 | G61: 5 | H61: 2 | I61: 2 | J61: 2 | K61: 3 | L61: 4 | M61: 2 | N61: 3 | O61: 5 | P61: 4 | Q61: 2 | R61: 4 | S61: 2 | T61: 3 | U61: 5 | V61: 2 | W61: 1 | X61: 3 | Y61: 2 | Z61: 3 | AA61: 2 | AB61: 3 | AC61: 2 | AD61: 4 | AE61: 3 | AF61: 2 | AG61: 2 | AH61: 3 | AI61: 3 | AJ61: 4 | AK61: 2 | AL61: 4 | AM61: 1 | AN61: 2 | AO61: 2 | AP61: 4 | AQ61: 3 | AR61: 3 | AS61: 2 | AT61: 2 | AU61: 2 | AV61: 2 | AW61: 4 | AX61: 2 | AY61: 3 | AZ61: 4 | BA61: 2 | BB61: 2 | BC61: 2 | BD61: 2 | BE61: 5 | BF61: 2 | BG61: 4 | BH61: 2 | BI61: 2 | BJ61: 3 | BK61: 4 | BL61: 2 | BM61: 4 | BN61: 4 | BO61: 4 | BP61: 4 | BQ61: 4 | BR61: 4 | BS61: 3 | BT61: 2 | BU61: 2 | BV61: 2 | BW61: 4 | BX61: 5 | BY61: 2 | BZ61: 2 | CA61: 2 | CB61: 2 | CC61: 4 | CD61: 2 | CE61: 3 | CF61: 4 | CG61: 4 | CH61: 2 | CI61: 2 | CJ61: 4 | CK61: 2 | CL61: 2 | CM61: 3 | GV61: 90 | GX61: 3 | GY61: 41 | GZ61: 17 | HA61: 24 | HB61: 5 | HC61: 0.03333333333 | HD61: 0.4555555556 | HE61: 0.1888888889 | HF61: 0.2666666667 | HG61: 0.05555555556 | HH61: ='scores TCS'!GV62 -> 63.70397763
A62: 61 | B62: 3 | C62: 2 | D62: 1 | E62: 3 | F62: 4 | G62: 5 | H62: 2 | I62: 2 | J62: 3 | K62: 2 | L62: 5 | M62: 4 | N62: 1 | O62: 1 | P62: 4 | Q62: 3 | R62: 2 | S62: 1 | T62: 2 | U62: 5 | V62: 1 | W62: 2 | X62: 3 | Y62: 3 | Z62: 3 | AA62: 2 | AB62: 3 | AC62: 4 | AD62: 4 | AE62: 2 | AF62: 1 | AG62: 2 | AH62: 4 | AI62: 2 | AJ62: 4 | AK62: 3 | AL62: 2 | AM62: 3 | AN62: 4 | AO62: 2 | AP62: 4 | AQ62: 1 | AR62: 4 | AS62: 2 | AT62: 4 | AU62: 2 | AV62: 4 | AW62: 5 | AX62: 3 | AY62: 1 | AZ62: 4 | BA62: 4 | BB62: 2 | BC62: 3 | BD62: 4 | BE62: 4 | BF62: 2 | BG62: 4 | BH62: 4 | BI62: 1 | BJ62: 3 | BK62: 3 | BL62: 1 | BM62: 3 | BN62: 3 | BO62: 3 | BP62: 4 | BQ62: 4 | BR62: 5 | BS62: 3 | BT62: 1 | BU62: 1 | BV62: 3 | BW62: 2 | BX62: 4 | BY62: 2 | BZ62: 2 | CA62: 4 | CB62: 5 | CC62: 1 | CD62: 3 | CE62: 3 | CF62: 3 | CG62: 4 | CH62: 3 | CI62: 3 | CJ62: 3 | CK62: 3 | CL62: 3 | CM62: 3 | GV62: 90 | GX62: 13 | GY62: 20 | GZ62: 28 | HA62: 23 | HB62: 6 | HC62: 0.1444444444 | HD62: 0.2222222222 | HE62: 0.3111111111 | HF62: 0.2555555556 | HG62: 0.06666666667 | HH62: ='scores TCS'!GV63 -> 61.31830853
... 74 more rows

Sheet cles de reponses (hidden)
B1: =panel!B1 -> q1 | C1: =panel!C1 -> q2 | D1: =panel!D1 -> q3 | E1: =panel!E1 -> q4 | F1: =panel!F1 -> q5 | G1: =panel!G1 -> q6 | H1: =panel!H1 -> q7 | I1: =panel!I1 -> q8 | J1: =panel!J1 -> q9 | K1: =panel!K1 -> q10 | L1: =panel!L1 -> q11 | M1: =panel!M1 -> q12 | N1: =panel!N1 -> q13 | O1: =panel!O1 -> q14 | P1: =panel!P1 -> q15 | Q1: =panel!Q1 -> q16 | R1: =panel!R1 -> q17 | S1: =panel!S1 -> q18 | T1: =panel!T1 -> q19 | U1: =panel!U1 -> q20 | V1: =panel!V1 -> q21 | W1: =panel!W1 -> q22 | X1: =panel!X1 -> q23 | Y1: =panel!Y1 -> q24 | Z1: =panel!Z1 -> q25 | AA1: =panel!AA1 -> q26 | AB1: =panel!AB1 -> q27 | AC1: =panel!AC1 -> q28 | AD1: =panel!AD1 -> q29 | AE1: =panel!AE1 -> q30 | AF1: =panel!AF1 -> q31 | AG1: =panel!AG1 -> q32 | AH1: =panel!AH1 -> q33 | AI1: =panel!AI1 -> q34 | AJ1: =panel!AJ1 -> q35 | AK1: =panel!AK1 -> q36 | AL1: =panel!AL1 -> q37 | AM1: =panel!AM1 -> q38 | AN1: =panel!AN1 -> q39 | AO1: =panel!AO1 -> q40 | AP1: =panel!AP1 -> q41 | AQ1: =panel!AQ1 -> q42 | AR1: =panel!AR1 -> q43 | AS1: =panel!AS1 -> q44 | AT1: =panel!AT1 -> q45 | AU1: =panel!AU1 -> q46 | AV1: =panel!AV1 -> q47 | AW1: =panel!AW1 -> q48 | AX1: =panel!AX1 -> q49 | AY1: =panel!AY1 -> q50 | AZ1: =panel!AZ1 -> q51 | BA1: =panel!BA1 -> q52 | BB1: =panel!BB1 -> q53 | BC1: =panel!BC1 -> q54 | BD1: =panel!BD1 -> q55 | BE1: =panel!BE1 -> q56 | BF1: =panel!BF1 -> q57 | BG1: =panel!BG1 -> q58 | BH1: =panel!BH1 -> q59 | BI1: =panel!BI1 -> q60 | BJ1: =panel!BJ1 -> q61 | BK1: =panel!BK1 -> q62 | BL1: =panel!BL1 -> q63 | BM1: =panel!BM1 -> q64 | BN1: =panel!BN1 -> q65 | BO1: =panel!BO1 -> q66 | BP1: =panel!BP1 -> q67 | BQ1: =panel!BQ1 -> q68 | BR1: =panel!BR1 -> q69 | BS1: =panel!BS1 -> q70 | BT1: =panel!BT1 -> q71 | BU1: =panel!BU1 -> q72 | BV1: =panel!BV1 -> q73 | BW1: =panel!BW1 -> q74 | BX1: =panel!BX1 -> q75 | BY1: =panel!BY1 -> q76 | BZ1: =panel!BZ1 -> q77 | CA1: =panel!CA1 -> q78 | CB1: =panel!CB1 -> q79 | CC1: =panel!CC1 -> q80 | CD1: =panel!CD1 -> q81 | CE1: =panel!CE1 -> q82 | CF1: =panel!CF1 -> q83 | CG1: =panel!CG1 -> q84 | CH1: =panel!CH1 -> q85 | CI1: =panel!CI1 -> q86 | CJ1: =panel!CJ1 -> q87 | CK1: =panel!CK1 -> q88 | CL1: =panel!CL1 -> q89 | CM1: =panel!CM1 -> q90 | CN1: =panel!CN1 -> q91 | CO1: =panel!CO1 -> q92 | CP1: =panel!CP1 -> q93 | CQ1: =panel!CQ1 -> q94 | CR1: =panel!CR1 -> q95 | CS1: =panel!CS1 -> q96 | CT1: =panel!CT1 -> q97 | CU1: =panel!CU1 -> q98 | CV1: =panel!CV1 -> q99 | CW1: =panel!CW1 -> q100 | CX1: =panel!CX1 -> q101 | CY1: =panel!CY1 -> q102 | CZ1: =panel!CZ1 -> q103 | DA1: =panel!DA1 -> q104 | DB1: =panel!DB1 -> q105 | DC1: =panel!DC1 -> q106 | DD1: =panel!DD1 -> q107 | DE1: =panel!DE1 -> q108 | DF1: =panel!DF1 -> q109 | DG1: =panel!DG1 -> q110 | DH1: =panel!DH1 -> q111 | DI1: =panel!DI1 -> q112 | DJ1: =panel!DJ1 -> q113 | DK1: =panel!DK1 -> q114 | DL1: =panel!DL1 -> q115 | DM1: =panel!DM1 -> q116 | DN1: =panel!DN1 -> q117 | DO1: =panel!DO1 -> q118 | DP1: =panel!DP1 -> q119 | DQ1: =panel!DQ1 -> q120 | DR1: =panel!DR1 -> q121 | DS1: =panel!DS1 -> q122 | DT1: =panel!DT1 -> q123 | DU1: =panel!DU1 -> q124 | DV1: =panel!DV1 -> q125 | DW1: =panel!DW1 -> q126 | DX1: =panel!DX1 -> q127 | DY1: =panel!DY1 -> q128 | DZ1: =panel!DZ1 -> q129 | EA1: =panel!EA1 -> q130 | EB1: =panel!EB1 -> q131 | EC1: =panel!EC1 -> q132 | ED1: =panel!ED1 -> q133 | EE1: =panel!EE1 -> q134 | EF1: =panel!EF1 -> q135 | EG1: =panel!EG1 -> q136 | EH1: =panel!EH1 -> q137 | EI1: =panel!EI1 -> q138 | EJ1: =panel!EJ1 -> q139 | EK1: =panel!EK1 -> q140 | EL1: =panel!EL1 -> q141 | EM1: =panel!EM1 -> q142 | EN1: =panel!EN1 -> q143 | EO1: =panel!EO1 -> q144 | EP1: =panel!EP1 -> q145 | EQ1: =panel!EQ1 -> q146 | ER1: =panel!ER1 -> q147 | ES1: =panel!ES1 -> q148 | ET1: =panel!ET1 -> q149 | EU1: =panel!EU1 -> q150 | EV1: =panel!EV1 -> q151 | EW1: =panel!EW1 -> q152 | EX1: =panel!EX1 -> q153 | EY1: =panel!EY1 -> q154 | EZ1: =panel!EZ1 -> q155 | FA1: =panel!FA1 -> q156 | FB1: =panel!FB1 -> q157 | FC1: =panel!FC1 -> q158 | FD1: =panel!FD1 -> q159 | FE1: =panel!FE1 -> q160 | FF1: =panel!FF1 -> q161 | FG1: =panel!FG1 -> q162 | FH1: =panel!FH1 -> q163 | FI1: =panel!FI1 -> q164 | FJ1: =panel!FJ1 -> q165 | FK1: =panel!FK1 -> q166 | FL1: =panel!FL1 -> q167 | FM1: =panel!FM1 -> q168 | FN1: =panel!FN1 -> q169 | FO1: =panel!FO1 -> q170 | FP1: =panel!FP1 -> q171 | FQ1: =panel!FQ1 -> q172 | FR1: =panel!FR1 -> q173 | FS1: =panel!FS1 -> q174 | FT1: =panel!FT1 -> q175 | FU1: =panel!FU1 -> q176 | FV1: =panel!FV1 -> q177 | FW1: =panel!FW1 -> q178 | FX1: =panel!FX1 -> q179 | FY1: =panel!FY1 -> q180 | FZ1: =panel!FZ1 -> q181 | GA1: =panel!GA1 -> q182 | GB1: =panel!GB1 -> q183 | GC1: =panel!GC1 -> q184 | GD1: =panel!GD1 -> q185 | GE1: =panel!GE1 -> q186 | GF1: =panel!GF1 -> q187 | GG1: =panel!GG1 -> q188 | GH1: =panel!GH1 -> q189 | GI1: =panel!GI1 -> q190 | GJ1: =panel!GJ1 -> q191 | GK1: =panel!GK1 -> q192 | GL1: =panel!GL1 -> q193 | GM1: =panel!GM1 -> q194 | GN1: =panel!GN1 -> q195 | GO1: =panel!GO1 -> q196 | GP1: =panel!GP1 -> q197 | GQ1: =panel!GQ1 -> q198 | GR1: =panel!GR1 -> q199 | GS1: =panel!GS1 -> q200
A3: moyenne | B3: =AVERAGE(panel!B2:B51) -> 2.266666667 | C3: =AVERAGE(panel!C2:C51) -> 1.155555556 | D3: =AVERAGE(panel!D2:D51) -> 2.555555556 | E3: =AVERAGE(panel!E2:E51) -> 3.244444444 | F3: =AVERAGE(panel!F2:F51) -> 3.066666667 | G3: =AVERAGE(panel!G2:G51) -> 3.088888889 | H3: =AVERAGE(panel!H2:H51) -> 3.022222222 | I3: =AVERAGE(panel!I2:I51) -> 2.177777778 | J3: =AVERAGE(panel!J2:J51) -> 2.355555556 | K3: =AVERAGE(panel!K2:K51) -> 2.222222222 | L3: =AVERAGE(panel!L2:L51) -> 4.177777778 | M3: =AVERAGE(panel!M2:M51) -> 4.488888889 | N3: =AVERAGE(panel!N2:N51) -> 3.777777778 | O3: =AVERAGE(panel!O2:O51) -> 2.266666667 | P3: =AVERAGE(panel!P2:P51) -> 3.822222222 | Q3: =AVERAGE(panel!Q2:Q51) -> 2.666666667 | R3: =AVERAGE(panel!R2:R51) -> 4.244444444 | S3: =AVERAGE(panel!S2:S51) -> 2.311111111 | T3: =AVERAGE(panel!T2:T51) -> 3.577777778 | U3: =AVERAGE(panel!U2:U51) -> 4.422222222 | V3: =AVERAGE(panel!V2:V51) -> 2.222222222 | W3: =AVERAGE(panel!W2:W51) -> 2.444444444 | X3: =AVERAGE(panel!X2:X51) -> 2.066666667 | Y3: =AVERAGE(panel!Y2:Y51) -> 2.955555556 | Z3: =AVERAGE(panel!Z2:Z51) -> 2.8 | AA3: =AVERAGE(panel!AA2:AA51) -> 2 | AB3: =AVERAGE(panel!AB2:AB51) -> 3.8 | AC3: =AVERAGE(panel!AC2:AC51) -> 3.288888889 | AD3: =AVERAGE(panel!AD2:AD51) -> 2.266666667 | AE3: =AVERAGE(panel!AE2:AE51) -> 3.333333333 | AF3: =AVERAGE(panel!AF2:AF51) -> 1.933333333 | AG3: =AVERAGE(panel!AG2:AG51) -> 3.244444444 | AH3: =AVERAGE(panel!AH2:AH51) -> 2.622222222 | AI3: =AVERAGE(panel!AI2:AI51) -> 1.886363636 | AJ3: =AVERAGE(panel!AJ2:AJ51) -> 3.977272727 | AK3: =AVERAGE(panel!AK2:AK51) -> 2.409090909 | AL3: =AVERAGE(panel!AL2:AL51) -> 2.488888889 | AM3: =AVERAGE(panel!AM2:AM51) -> 2.933333333 | AN3: =AVERAGE(panel!AN2:AN51) -> 2.395348837 | AO3: =AVERAGE(panel!AO2:AO51) -> 2.044444444 | AP3: =AVERAGE(panel!AP2:AP51) -> 4.311111111 | AQ3: =AVERAGE(panel!AQ2:AQ51) -> 3.466666667 | AR3: =AVERAGE(panel!AR2:AR51) -> 2.711111111 | AS3: =AVERAGE(panel!AS2:AS51) -> 2.2 | AT3: =AVERAGE(panel!AT2:AT51) -> 3.555555556 | AU3: =AVERAGE(panel!AU2:AU51) -> 4.113636364 | AV3: =AVERAGE(panel!AV2:AV51) -> 2.295454545 | AW3: =AVERAGE(panel!AW2:AW51) -> 1.931818182 | AX3: =AVERAGE(panel!AX2:AX51) -> 1.933333333 | AY3: =AVERAGE(panel!AY2:AY51) -> 1.863636364 | AZ3: =AVERAGE(panel!AZ2:AZ51) -> 4.511111111 | BA3: =AVERAGE(panel!BA2:BA51) -> 2.068181818 | BB3: =AVERAGE(panel!BB2:BB51) -> 1.863636364 | BC3: =AVERAGE(panel!BC2:BC51) -> 3.204545455 | BD3: =AVERAGE(panel!BD2:BD51) -> 2.977777778 | BE3: =AVERAGE(panel!BE2:BE51) -> 4.577777778 | BF3: =AVERAGE(panel!BF2:BF51) -> 2.822222222 | BG3: =AVERAGE(panel!BG2:BG51) -> 3.555555556 | BH3: =AVERAGE(panel!BH2:BH51) -> 3.622222222 | BI3: =AVERAGE(panel!BI2:BI51) -> 3.977777778 | BJ3: =AVERAGE(panel!BJ2:BJ51) -> 1.454545455 | BK3: =AVERAGE(panel!BK2:BK51) -> 4.155555556 | BL3: =AVERAGE(panel!BL2:BL51) -> 2.133333333 | BM3: =AVERAGE(panel!BM2:BM51) -> 4.555555556 | BN3: =AVERAGE(panel!BN2:BN51) -> 3.355555556 | BO3: =AVERAGE(panel!BO2:BO51) -> 3.422222222 | BP3: =AVERAGE(panel!BP2:BP51) -> 2.613636364 | BQ3: =AVERAGE(panel!BQ2:BQ51) -> 3.977272727 | BR3: =AVERAGE(panel!BR2:BR51) -> 4.090909091 | BS3: =AVERAGE(panel!BS2:BS51) -> 2.711111111 | BT3: =AVERAGE(panel!BT2:BT51) -> 1.466666667 | BU3: =AVERAGE(panel!BU2:BU51) -> 1.755555556 | BV3: =AVERAGE(panel!BV2:BV51) -> 3 | BW3: =AVERAGE(panel!BW2:BW51) -> 2.931818182 | BX3: =AVERAGE(panel!BX2:BX51) -> 3.581395349 | BY3: =AVERAGE(panel!BY2:BY51) -> 2.363636364 | BZ3: =AVERAGE(panel!BZ2:BZ51) -> 2.046511628 | CA3: =AVERAGE(panel!CA2:CA51) -> 3.022727273 | CB3: =AVERAGE(panel!CB2:CB51) -> 3.711111111 | CC3: =AVERAGE(panel!CC2:CC51) -> 3.6 | CD3: =AVERAGE(panel!CD2:CD51) -> 2.911111111 | CE3: =AVERAGE(panel!CE2:CE51) -> 3.886363636 | CF3: =AVERAGE(panel!CF2:CF51) -> 4.162790698 | CG3: =AVERAGE(panel!CG2:CG51) -> 3.818181818 | CH3: =AVERAGE(panel!CH2:CH51) -> 2.888888889 | CI3: =AVERAGE(panel!CI2:CI51) -> 2.466666667 | CJ3: =AVERAGE(panel!CJ2:CJ51) -> 3.377777778 | CK3: =AVERAGE(panel!CK2:CK51) -> 1.777777778 | CL3: =AVERAGE(panel!CL2:CL51) -> 2.2 | CM3: =AVERAGE(panel!CM2:CM51) -> 3.733333333 | CN3: =AVERAGE(panel!CN2:CN51) ->  | CO3: =AVERAGE(panel!CO2:CO51) ->  | CP3: =AVERAGE(panel!CP2:CP51) ->  | CQ3: =AVERAGE(panel!CQ2:CQ51) ->  | CR3: =AVERAGE(panel!CR2:CR51) ->  | CS3: =AVERAGE(panel!CS2:CS51) ->  | CT3: =AVERAGE(panel!CT2:CT51) ->  | CU3: =AVERAGE(panel!CU2:CU51) ->  | CV3: =AVERAGE(panel!CV2:CV51) ->  | CW3: =AVERAGE(panel!CW2:CW51) ->  | CX3: =AVERAGE(panel!CX2:CX51) ->  | CY3: =AVERAGE(panel!CY2:CY51) ->  | CZ3: =AVERAGE(panel!CZ2:CZ51) ->  | DA3: =AVERAGE(panel!DA2:DA51) ->  | DB3: =AVERAGE(panel!DB2:DB51) ->  | DC3: =AVERAGE(panel!DC2:DC51) ->  | DD3: =AVERAGE(panel!DD2:DD51) ->  | DE3: =AVERAGE(panel!DE2:DE51) ->  | DF3: =AVERAGE(panel!DF2:DF51) ->  | DG3: =AVERAGE(panel!DG2:DG51) ->  | DH3: =AVERAGE(panel!DH2:DH51) ->  | DI3: =AVERAGE(panel!DI2:DI51) ->  | DJ3: =AVERAGE(panel!DJ2:DJ51) ->  | DK3: =AVERAGE(panel!DK2:DK51) ->  | DL3: =AVERAGE(panel!DL2:DL51) ->  | DM3: =AVERAGE(panel!DM2:DM51) ->  | DN3: =AVERAGE(panel!DN2:DN51) ->  | DO3: =AVERAGE(panel!DO2:DO51) ->  | DP3: =AVERAGE(panel!DP2:DP51) ->  | DQ3: =AVERAGE(panel!DQ2:DQ51) ->  | DR3: =AVERAGE(panel!DR2:DR51) ->  | DS3: =AVERAGE(panel!DS2:DS51) ->  | DT3: =AVERAGE(panel!DT2:DT51) ->  | DU3: =AVERAGE(panel!DU2:DU51) ->  | DV3: =AVERAGE(panel!DV2:DV51) ->  | DW3: =AVERAGE(panel!DW2:DW51) ->  | DX3: =AVERAGE(panel!DX2:DX51) ->  | DY3: =AVERAGE(panel!DY2:DY51) ->  | DZ3: =AVERAGE(panel!DZ2:DZ51) ->  | EA3: =AVERAGE(panel!EA2:EA51) ->  | EB3: =AVERAGE(panel!EB2:EB51) ->  | EC3: =AVERAGE(panel!EC2:EC51) ->  | ED3: =AVERAGE(panel!ED2:ED51) ->  | EE3: =AVERAGE(panel!EE2:EE51) ->  | EF3: =AVERAGE(panel!EF2:EF51) ->  | EG3: =AVERAGE(panel!EG2:EG51) ->  | EH3: =AVERAGE(panel!EH2:EH51) ->  | EI3: =AVERAGE(panel!EI2:EI51) ->  | EJ3: =AVERAGE(panel!EJ2:EJ51) ->  | EK3: =AVERAGE(panel!EK2:EK51) ->  | EL3: =AVERAGE(panel!EL2:EL51) ->  | EM3: =AVERAGE(panel!EM2:EM51) ->  | EN3: =AVERAGE(panel!EN2:EN51) ->  | EO3: =AVERAGE(panel!EO2:EO51) ->  | EP3: =AVERAGE(panel!EP2:EP51) ->  | EQ3: =AVERAGE(panel!EQ2:EQ51) ->  | ER3: =AVERAGE(panel!ER2:ER51) ->  | ES3: =AVERAGE(panel!ES2:ES51) ->  | ET3: =AVERAGE(panel!ET2:ET51) ->  | EU3: =AVERAGE(panel!EU2:EU51) ->  | EV3: =AVERAGE(panel!EV2:EV51) ->  | EW3: =AVERAGE(panel!EW2:EW51) ->  | EX3: =AVERAGE(panel!EX2:EX51) ->  | EY3: =AVERAGE(panel!EY2:EY51) ->  | EZ3: =AVERAGE(panel!EZ2:EZ51) ->  | FA3: =AVERAGE(panel!FA2:FA51) ->  | FB3: =AVERAGE(panel!FB2:FB51) ->  | FC3: =AVERAGE(panel!FC2:FC51) ->  | FD3: =AVERAGE(panel!FD2:FD51) ->  | FE3: =AVERAGE(panel!FE2:FE51) ->  | FF3: =AVERAGE(panel!FF2:FF51) ->  | FG3: =AVERAGE(panel!FG2:FG51) ->  | FH3: =AVERAGE(panel!FH2:FH51) ->  | FI3: =AVERAGE(panel!FI2:FI51) ->  | FJ3: =AVERAGE(panel!FJ2:FJ51) ->  | FK3: =AVERAGE(panel!FK2:FK51) ->  | FL3: =AVERAGE(panel!FL2:FL51) ->  | FM3: =AVERAGE(panel!FM2:FM51) ->  | FN3: =AVERAGE(panel!FN2:FN51) ->  | FO3: =AVERAGE(panel!FO2:FO51) ->  | FP3: =AVERAGE(panel!FP2:FP51) ->  | FQ3: =AVERAGE(panel!FQ2:FQ51) ->  | FR3: =AVERAGE(panel!FR2:FR51) ->  | FS3: =AVERAGE(panel!FS2:FS51) ->  | FT3: =AVERAGE(panel!FT2:FT51) ->  | FU3: =AVERAGE(panel!FU2:FU51) ->  | FV3: =AVERAGE(panel!FV2:FV51) ->  | FW3: =AVERAGE(panel!FW2:FW51) ->  | FX3: =AVERAGE(panel!FX2:FX51) ->  | FY3: =AVERAGE(panel!FY2:FY51) ->  | FZ3: =AVERAGE(panel!FZ2:FZ51) ->  | GA3: =AVERAGE(panel!GA2:GA51) ->  | GB3: =AVERAGE(panel!GB2:GB51) ->  | GC3: =AVERAGE(panel!GC2:GC51) ->  | GD3: =AVERAGE(panel!GD2:GD51) ->  | GE3: =AVERAGE(panel!GE2:GE51) ->  | GF3: =AVERAGE(panel!GF2:GF51) ->  | GG3: =AVERAGE(panel!GG2:GG51) ->  | GH3: =AVERAGE(panel!GH2:GH51) ->  | GI3: =AVERAGE(panel!GI2:GI51) ->  | GJ3: =AVERAGE(panel!GJ2:GJ51) ->  | GK3: =AVERAGE(panel!GK2:GK51) ->  | GL3: =AVERAGE(panel!GL2:GL51) ->  | GM3: =AVERAGE(panel!GM2:GM51) ->  | GN3: =AVERAGE(panel!GN2:GN51) ->  | GO3: =AVERAGE(panel!GO2:GO51) ->  | GP3: =AVERAGE(panel!GP2:GP51) ->  | GQ3: =AVERAGE(panel!GQ2:GQ51) ->  | GR3: =AVERAGE(panel!GR2:GR51) ->  | GS3: =AVERAGE(panel!GS2:GS51) -> 
A4: médiane | B4: =MEDIAN(panel!B2:B51) -> 2 | C4: =MEDIAN(panel!C2:C51) -> 1 | D4: =MEDIAN(panel!D2:D51) -> 3 | E4: =MEDIAN(panel!E2:E51) -> 3 | F4: =MEDIAN(panel!F2:F51) -> 3 | G4: =MEDIAN(panel!G2:G51) -> 3 | H4: =MEDIAN(panel!H2:H51) -> 3 | I4: =MEDIAN(panel!I2:I51) -> 2 | J4: =MEDIAN(panel!J2:J51) -> 2 | K4: =MEDIAN(panel!K2:K51) -> 2 | L4: =MEDIAN(panel!L2:L51) -> 4 | M4: =MEDIAN(panel!M2:M51) -> 5 | N4: =MEDIAN(panel!N2:N51) -> 4 | O4: =MEDIAN(panel!O2:O51) -> 2 | P4: =MEDIAN(panel!P2:P51) -> 4 | Q4: =MEDIAN(panel!Q2:Q51) -> 3 | R4: =MEDIAN(panel!R2:R51) -> 4 | S4: =MEDIAN(panel!S2:S51) -> 2 | T4: =MEDIAN(panel!T2:T51) -> 3 | U4: =MEDIAN(panel!U2:U51) -> 5 | V4: =MEDIAN(panel!V2:V51) -> 2 | W4: =MEDIAN(panel!W2:W51) -> 2 | X4: =MEDIAN(panel!X2:X51) -> 2 | Y4: =MEDIAN(panel!Y2:Y51) -> 3 | Z4: =MEDIAN(panel!Z2:Z51) -> 3 | AA4: =MEDIAN(panel!AA2:AA51) -> 2 | AB4: =MEDIAN(panel!AB2:AB51) -> 4 | AC4: =MEDIAN(panel!AC2:AC51) -> 3 | AD4: =MEDIAN(panel!AD2:AD51) -> 2 | AE4: =MEDIAN(panel!AE2:AE51) -> 3 | AF4: =MEDIAN(panel!AF2:AF51) -> 2 | AG4: =MEDIAN(panel!AG2:AG51) -> 3 | AH4: =MEDIAN(panel!AH2:AH51) -> 2 | AI4: =MEDIAN(panel!AI2:AI51) -> 2 | AJ4: =MEDIAN(panel!AJ2:AJ51) -> 4 | AK4: =MEDIAN(panel!AK2:AK51) -> 2 | AL4: =MEDIAN(panel!AL2:AL51) -> 2 | AM4: =MEDIAN(panel!AM2:AM51) -> 3 | AN4: =MEDIAN(panel!AN2:AN51) -> 2 | AO4: =MEDIAN(panel!AO2:AO51) -> 2 | AP4: =MEDIAN(panel!AP2:AP51) -> 4 | AQ4: =MEDIAN(panel!AQ2:AQ51) -> 4 | AR4: =MEDIAN(panel!AR2:AR51) -> 3 | AS4: =MEDIAN(panel!AS2:AS51) -> 2 | AT4: =MEDIAN(panel!AT2:AT51) -> 3 | AU4: =MEDIAN(panel!AU2:AU51) -> 4 | AV4: =MEDIAN(panel!AV2:AV51) -> 2 | AW4: =MEDIAN(panel!AW2:AW51) -> 2 | AX4: =MEDIAN(panel!AX2:AX51) -> 2 | AY4: =MEDIAN(panel!AY2:AY51) -> 2 | AZ4: =MEDIAN(panel!AZ2:AZ51) -> 5 | BA4: =MEDIAN(panel!BA2:BA51) -> 2 | BB4: =MEDIAN(panel!BB2:BB51) -> 2 | BC4: =MEDIAN(panel!BC2:BC51) -> 3 | BD4: =MEDIAN(panel!BD2:BD51) -> 3 | BE4: =MEDIAN(panel!BE2:BE51) -> 5 | BF4: =MEDIAN(panel!BF2:BF51) -> 2 | BG4: =MEDIAN(panel!BG2:BG51) -> 4 | BH4: =MEDIAN(panel!BH2:BH51) -> 4 | BI4: =MEDIAN(panel!BI2:BI51) -> 4 | BJ4: =MEDIAN(panel!BJ2:BJ51) -> 1 | BK4: =MEDIAN(panel!BK2:BK51) -> 4 | BL4: =MEDIAN(panel!BL2:BL51) -> 2 | BM4: =MEDIAN(panel!BM2:BM51) -> 5 | BN4: =MEDIAN(panel!BN2:BN51) -> 3 | BO4: =MEDIAN(panel!BO2:BO51) -> 3 | BP4: =MEDIAN(panel!BP2:BP51) -> 2 | BQ4: =MEDIAN(panel!BQ2:BQ51) -> 4 | BR4: =MEDIAN(panel!BR2:BR51) -> 4 | BS4: =MEDIAN(panel!BS2:BS51) -> 3 | BT4: =MEDIAN(panel!BT2:BT51) -> 1 | BU4: =MEDIAN(panel!BU2:BU51) -> 2 | BV4: =MEDIAN(panel!BV2:BV51) -> 3 | BW4: =MEDIAN(panel!BW2:BW51) -> 3 | BX4: =MEDIAN(panel!BX2:BX51) -> 4 | BY4: =MEDIAN(panel!BY2:BY51) -> 2 | BZ4: =MEDIAN(panel!BZ2:BZ51) -> 2 | CA4: =MEDIAN(panel!CA2:CA51) -> 3 | CB4: =MEDIAN(panel!CB2:CB51) -> 4 | CC4: =MEDIAN(panel!CC2:CC51) -> 4 | CD4: =MEDIAN(panel!CD2:CD51) -> 3 | CE4: =MEDIAN(panel!CE2:CE51) -> 4 | CF4: =MEDIAN(panel!CF2:CF51) -> 4 | CG4: =MEDIAN(panel!CG2:CG51) -> 4 | CH4: =MEDIAN(panel!CH2:CH51) -> 3 | CI4: =MEDIAN(panel!CI2:CI51) -> 2 | CJ4: =MEDIAN(panel!CJ2:CJ51) -> 3 | CK4: =MEDIAN(panel!CK2:CK51) -> 2 | CL4: =MEDIAN(panel!CL2:CL51) -> 2 | CM4: =MEDIAN(panel!CM2:CM51) -> 4 | CN4: =MEDIAN(panel!CN2:CN51) ->  | CO4: =MEDIAN(panel!CO2:CO51) ->  | CP4: =MEDIAN(panel!CP2:CP51) ->  | CQ4: =MEDIAN(panel!CQ2:CQ51) ->  | CR4: =MEDIAN(panel!CR2:CR51) ->  | CS4: =MEDIAN(panel!CS2:CS51) ->  | CT4: =MEDIAN(panel!CT2:CT51) ->  | CU4: =MEDIAN(panel!CU2:CU51) ->  | CV4: =MEDIAN(panel!CV2:CV51) ->  | CW4: =MEDIAN(panel!CW2:CW51) ->  | CX4: =MEDIAN(panel!CX2:CX51) ->  | CY4: =MEDIAN(panel!CY2:CY51) ->  | CZ4: =MEDIAN(panel!CZ2:CZ51) ->  | DA4: =MEDIAN(panel!DA2:DA51) ->  | DB4: =MEDIAN(panel!DB2:DB51) ->  | DC4: =MEDIAN(panel!DC2:DC51) ->  | DD4: =MEDIAN(panel!DD2:DD51) ->  | DE4: =MEDIAN(panel!DE2:DE51) ->  | DF4: =MEDIAN(panel!DF2:DF51) ->  | DG4: =MEDIAN(panel!DG2:DG51) ->  | DH4: =MEDIAN(panel!DH2:DH51) ->  | DI4: =MEDIAN(panel!DI2:DI51) ->  | DJ4: =MEDIAN(panel!DJ2:DJ51) ->  | DK4: =MEDIAN(panel!DK2:DK51) ->  | DL4: =MEDIAN(panel!DL2:DL51) ->  | DM4: =MEDIAN(panel!DM2:DM51) ->  | DN4: =MEDIAN(panel!DN2:DN51) ->  | DO4: =MEDIAN(panel!DO2:DO51) ->  | DP4: =MEDIAN(panel!DP2:DP51) ->  | DQ4: =MEDIAN(panel!DQ2:DQ51) ->  | DR4: =MEDIAN(panel!DR2:DR51) ->  | DS4: =MEDIAN(panel!DS2:DS51) ->  | DT4: =MEDIAN(panel!DT2:DT51) ->  | DU4: =MEDIAN(panel!DU2:DU51) ->  | DV4: =MEDIAN(panel!DV2:DV51) ->  | DW4: =MEDIAN(panel!DW2:DW51) ->  | DX4: =MEDIAN(panel!DX2:DX51) ->  | DY4: =MEDIAN(panel!DY2:DY51) ->  | DZ4: =MEDIAN(panel!DZ2:DZ51) ->  | EA4: =MEDIAN(panel!EA2:EA51) ->  | EB4: =MEDIAN(panel!EB2:EB51) ->  | EC4: =MEDIAN(panel!EC2:EC51) ->  | ED4: =MEDIAN(panel!ED2:ED51) ->  | EE4: =MEDIAN(panel!EE2:EE51) ->  | EF4: =MEDIAN(panel!EF2:EF51) ->  | EG4: =MEDIAN(panel!EG2:EG51) ->  | EH4: =MEDIAN(panel!EH2:EH51) ->  | EI4: =MEDIAN(panel!EI2:EI51) ->  | EJ4: =MEDIAN(panel!EJ2:EJ51) ->  | EK4: =MEDIAN(panel!EK2:EK51) ->  | EL4: =MEDIAN(panel!EL2:EL51) ->  | EM4: =MEDIAN(panel!EM2:EM51) ->  | EN4: =MEDIAN(panel!EN2:EN51) ->  | EO4: =MEDIAN(panel!EO2:EO51) ->  | EP4: =MEDIAN(panel!EP2:EP51) ->  | EQ4: =MEDIAN(panel!EQ2:EQ51) ->  | ER4: =MEDIAN(panel!ER2:ER51) ->  | ES4: =MEDIAN(panel!ES2:ES51) ->  | ET4: =MEDIAN(panel!ET2:ET51) ->  | EU4: =MEDIAN(panel!EU2:EU51) ->  | EV4: =MEDIAN(panel!EV2:EV51) ->  | EW4: =MEDIAN(panel!EW2:EW51) ->  | EX4: =MEDIAN(panel!EX2:EX51) ->  | EY4: =MEDIAN(panel!EY2:EY51) ->  | EZ4: =MEDIAN(panel!EZ2:EZ51) ->  | FA4: =MEDIAN(panel!FA2:FA51) ->  | FB4: =MEDIAN(panel!FB2:FB51) ->  | FC4: =MEDIAN(panel!FC2:FC51) ->  | FD4: =MEDIAN(panel!FD2:FD51) ->  | FE4: =MEDIAN(panel!FE2:FE51) ->  | FF4: =MEDIAN(panel!FF2:FF51) ->  | FG4: =MEDIAN(panel!FG2:FG51) ->  | FH4: =MEDIAN(panel!FH2:FH51) ->  | FI4: =MEDIAN(panel!FI2:FI51) ->  | FJ4: =MEDIAN(panel!FJ2:FJ51) ->  | FK4: =MEDIAN(panel!FK2:FK51) ->  | FL4: =MEDIAN(panel!FL2:FL51) ->  | FM4: =MEDIAN(panel!FM2:FM51) ->  | FN4: =MEDIAN(panel!FN2:FN51) ->  | FO4: =MEDIAN(panel!FO2:FO51) ->  | FP4: =MEDIAN(panel!FP2:FP51) ->  | FQ4: =MEDIAN(panel!FQ2:FQ51) ->  | FR4: =MEDIAN(panel!FR2:FR51) ->  | FS4: =MEDIAN(panel!FS2:FS51) ->  | FT4: =MEDIAN(panel!FT2:FT51) ->  | FU4: =MEDIAN(panel!FU2:FU51) ->  | FV4: =MEDIAN(panel!FV2:FV51) ->  | FW4: =MEDIAN(panel!FW2:FW51) ->  | FX4: =MEDIAN(panel!FX2:FX51) ->  | FY4: =MEDIAN(panel!FY2:FY51) ->  | FZ4: =MEDIAN(panel!FZ2:FZ51) ->  | GA4: =MEDIAN(panel!GA2:GA51) ->  | GB4: =MEDIAN(panel!GB2:GB51) ->  | GC4: =MEDIAN(panel!GC2:GC51) ->  | GD4: =MEDIAN(panel!GD2:GD51) ->  | GE4: =MEDIAN(panel!GE2:GE51) ->  | GF4: =MEDIAN(panel!GF2:GF51) ->  | GG4: =MEDIAN(panel!GG2:GG51) ->  | GH4: =MEDIAN(panel!GH2:GH51) ->  | GI4: =MEDIAN(panel!GI2:GI51) ->  | GJ4: =MEDIAN(panel!GJ2:GJ51) ->  | GK4: =MEDIAN(panel!GK2:GK51) ->  | GL4: =MEDIAN(panel!GL2:GL51) ->  | GM4: =MEDIAN(panel!GM2:GM51) ->  | GN4: =MEDIAN(panel!GN2:GN51) ->  | GO4: =MEDIAN(panel!GO2:GO51) ->  | GP4: =MEDIAN(panel!GP2:GP51) ->  | GQ4: =MEDIAN(panel!GQ2:GQ51) ->  | GR4: =MEDIAN(panel!GR2:GR51) ->  | GS4: =MEDIAN(panel!GS2:GS51) -> 
A5: sd | B5: =STDEV(panel!B2:B51) -> 0.9629500129 | C5: =STDEV(panel!C2:C51) -> 0.4240259188 | D5: =STDEV(panel!D2:D51) -> 0.9666144187 | E5: =STDEV(panel!E2:E51) -> 0.8830617078 | F5: =STDEV(panel!F2:F51) -> 0.4954336943 | G5: =STDEV(panel!G2:G51) -> 0.5144380086 | H5: =STDEV(panel!H2:H51) -> 0.5834415484 | I5: =STDEV(panel!I2:I51) -> 0.7163318457 | J5: =STDEV(panel!J2:J51) -> 0.6794234038 | K5: =STDEV(panel!K2:K51) -> 0.5173748812 | L5: =STDEV(panel!L2:L51) -> 0.5346574472 | M5: =STDEV(panel!M2:M51) -> 0.5486438745 | N5: =STDEV(panel!N2:N51) -> 0.8498365856 | O5: =STDEV(panel!O2:O51) -> 1.498484082 | P5: =STDEV(panel!P2:P51) -> 0.8336363086 | Q5: =STDEV(panel!Q2:Q51) -> 0.9293203773 | R5: =STDEV(panel!R2:R51) -> 0.6088571842 | S5: =STDEV(panel!S2:S51) -> 1.14459644 | T5: =STDEV(panel!T2:T51) -> 0.9412006087 | U5: =STDEV(panel!U2:U51) -> 0.7534432744 | V5: =STDEV(panel!V2:V51) -> 0.8761716542 | W5: =STDEV(panel!W2:W51) -> 0.8932971499 | X5: =STDEV(panel!X2:X51) -> 0.4472135955 | Y5: =STDEV(panel!Y2:Y51) -> 1.043498389 | Z5: =STDEV(panel!Z2:Z51) -> 0.8146387934 | AA5: =STDEV(panel!AA2:AA51) -> 0.6741998625 | AB5: =STDEV(panel!AB2:AB51) -> 0.6941312425 | AC5: =STDEV(panel!AC2:AC51) -> 0.991376963 | AD5: =STDEV(panel!AD2:AD51) -> 1.136181804 | AE5: =STDEV(panel!AE2:AE51) -> 0.7687061148 | AF5: =STDEV(panel!AF2:AF51) -> 0.7198484689 | AG5: =STDEV(panel!AG2:AG51) -> 1.281965032 | AH5: =STDEV(panel!AH2:AH51) -> 0.8059124949 | AI5: =STDEV(panel!AI2:AI51) -> 0.6181709364 | AJ5: =STDEV(panel!AJ2:AJ51) -> 0.7621461852 | AK5: =STDEV(panel!AK2:AK51) -> 0.756927136 | AL5: =STDEV(panel!AL2:AL51) -> 1.307708305 | AM5: =STDEV(panel!AM2:AM51) -> 0.6179143807 | AN5: =STDEV(panel!AN2:AN51) -> 0.5830761971 | AO5: =STDEV(panel!AO2:AO51) -> 0.5622825057 | AP5: =STDEV(panel!AP2:AP51) -> 0.4681793665 | AQ5: =STDEV(panel!AQ2:AQ51) -> 0.9194860224 | AR5: =STDEV(panel!AR2:AR51) -> 0.8426749137 | AS5: =STDEV(panel!AS2:AS51) -> 0.8146387934 | AT5: =STDEV(panel!AT2:AT51) -> 0.813397911 | AU5: =STDEV(panel!AU2:AU51) -> 1.082974137 | AV5: =STDEV(panel!AV2:AV51) -> 1.090754922 | AW5: =STDEV(panel!AW2:AW51) -> 0.8462702651 | AX5: =STDEV(panel!AX2:AX51) -> 0.809039835 | AY5: =STDEV(panel!AY2:AY51) -> 0.9045340337 | AZ5: =STDEV(panel!AZ2:AZ51) -> 0.8692269874 | BA5: =STDEV(panel!BA2:BA51) -> 1.043200069 | BB5: =STDEV(panel!BB2:BB51) -> 0.701854987 | BC5: =STDEV(panel!BC2:BC51) -> 0.5937482614 | BD5: =STDEV(panel!BD2:BD51) -> 1.196374996 | BE5: =STDEV(panel!BE2:BE51) -> 0.5430925289 | BF5: =STDEV(panel!BF2:BF51) -> 1.133957048 | BG5: =STDEV(panel!BG2:BG51) -> 0.8932971499 | BH5: =STDEV(panel!BH2:BH51) -> 0.7772003629 | BI5: =STDEV(panel!BI2:BI51) -> 0.6904836542 | BJ5: =STDEV(panel!BJ2:BJ51) -> 0.6631336971 | BK5: =STDEV(panel!BK2:BK51) -> 0.7964568 | BL5: =STDEV(panel!BL2:BL51) -> 0.6941312425 | BM5: =STDEV(panel!BM2:BM51) -> 1.159066151 | BN5: =STDEV(panel!BN2:BN51) -> 0.8299933065 | BO5: =STDEV(panel!BO2:BO51) -> 0.9167355346 | BP5: =STDEV(panel!BP2:BP51) -> 0.9453905085 | BQ5: =STDEV(panel!BQ2:BQ51) -> 0.9520757338 | BR5: =STDEV(panel!BR2:BR51) -> 1.03019939 | BS5: =STDEV(panel!BS2:BS51) -> 0.5055250296 | BT5: =STDEV(panel!BT2:BT51) -> 0.6252272314 | BU5: =STDEV(panel!BU2:BU51) -> 0.7433204239 | BV5: =STDEV(panel!BV2:BV51) -> 0.3735436838 | BW5: =STDEV(panel!BW2:BW51) -> 0.6249735724 | BX5: =STDEV(panel!BX2:BX51) -> 1.401233439 | BY5: =STDEV(panel!BY2:BY51) -> 0.7803073065 | BZ5: =STDEV(panel!BZ2:BZ51) -> 0.8985037396 | CA5: =STDEV(panel!CA2:CA51) -> 0.9997356945 | CB5: =STDEV(panel!CB2:CB51) -> 1.100045913 | CC5: =STDEV(panel!CC2:CC51) -> 1.074497769 | CD5: =STDEV(panel!CD2:CD51) -> 0.8480518376 | CE5: =STDEV(panel!CE2:CE51) -> 0.7537783614 | CF5: =STDEV(panel!CF2:CF51) -> 0.7214480332 | CG5: =STDEV(panel!CG2:CG51) -> 0.8963161629 | CH5: =STDEV(panel!CH2:CH51) -> 0.6474503218 | CI5: =STDEV(panel!CI2:CI51) -> 0.7261354745 | CJ5: =STDEV(panel!CJ2:CJ51) -> 1.153825434 | CK5: =STDEV(panel!CK2:CK51) -> 0.5595813731 | CL5: =STDEV(panel!CL2:CL51) -> 0.7862453931 | CM5: =STDEV(panel!CM2:CM51) -> 0.9145291884 | CN5: =STDEV(panel!CN2:CN51) ->  | CO5: =STDEV(panel!CO2:CO51) ->  | CP5: =STDEV(panel!CP2:CP51) ->  | CQ5: =STDEV(panel!CQ2:CQ51) ->  | CR5: =STDEV(panel!CR2:CR51) ->  | CS5: =STDEV(panel!CS2:CS51) ->  | CT5: =STDEV(panel!CT2:CT51) ->  | CU5: =STDEV(panel!CU2:CU51) ->  | CV5: =STDEV(panel!CV2:CV51) ->  | CW5: =STDEV(panel!CW2:CW51) ->  | CX5: =STDEV(panel!CX2:CX51) ->  | CY5: =STDEV(panel!CY2:CY51) ->  | CZ5: =STDEV(panel!CZ2:CZ51) ->  | DA5: =STDEV(panel!DA2:DA51) ->  | DB5: =STDEV(panel!DB2:DB51) ->  | DC5: =STDEV(panel!DC2:DC51) ->  | DD5: =STDEV(panel!DD2:DD51) ->  | DE5: =STDEV(panel!DE2:DE51) ->  | DF5: =STDEV(panel!DF2:DF51) ->  | DG5: =STDEV(panel!DG2:DG51) ->  | DH5: =STDEV(panel!DH2:DH51) ->  | DI5: =STDEV(panel!DI2:DI51) ->  | DJ5: =STDEV(panel!DJ2:DJ51) ->  | DK5: =STDEV(panel!DK2:DK51) ->  | DL5: =STDEV(panel!DL2:DL51) ->  | DM5: =STDEV(panel!DM2:DM51) ->  | DN5: =STDEV(panel!DN2:DN51) ->  | DO5: =STDEV(panel!DO2:DO51) ->  | DP5: =STDEV(panel!DP2:DP51) ->  | DQ5: =STDEV(panel!DQ2:DQ51) ->  | DR5: =STDEV(panel!DR2:DR51) ->  | DS5: =STDEV(panel!DS2:DS51) ->  | DT5: =STDEV(panel!DT2:DT51) ->  | DU5: =STDEV(panel!DU2:DU51) ->  | DV5: =STDEV(panel!DV2:DV51) ->  | DW5: =STDEV(panel!DW2:DW51) ->  | DX5: =STDEV(panel!DX2:DX51) ->  | DY5: =STDEV(panel!DY2:DY51) ->  | DZ5: =STDEV(panel!DZ2:DZ51) ->  | EA5: =STDEV(panel!EA2:EA51) ->  | EB5: =STDEV(panel!EB2:EB51) ->  | EC5: =STDEV(panel!EC2:EC51) ->  | ED5: =STDEV(panel!ED2:ED51) ->  | EE5: =STDEV(panel!EE2:EE51) ->  | EF5: =STDEV(panel!EF2:EF51) ->  | EG5: =STDEV(panel!EG2:EG51) ->  | EH5: =STDEV(panel!EH2:EH51) ->  | EI5: =STDEV(panel!EI2:EI51) ->  | EJ5: =STDEV(panel!EJ2:EJ51) ->  | EK5: =STDEV(panel!EK2:EK51) ->  | EL5: =STDEV(panel!EL2:EL51) ->  | EM5: =STDEV(panel!EM2:EM51) ->  | EN5: =STDEV(panel!EN2:EN51) ->  | EO5: =STDEV(panel!EO2:EO51) ->  | EP5: =STDEV(panel!EP2:EP51) ->  | EQ5: =STDEV(panel!EQ2:EQ51) ->  | ER5: =STDEV(panel!ER2:ER51) ->  | ES5: =STDEV(panel!ES2:ES51) ->  | ET5: =STDEV(panel!ET2:ET51) ->  | EU5: =STDEV(panel!EU2:EU51) ->  | EV5: =STDEV(panel!EV2:EV51) ->  | EW5: =STDEV(panel!EW2:EW51) ->  | EX5: =STDEV(panel!EX2:EX51) ->  | EY5: =STDEV(panel!EY2:EY51) ->  | EZ5: =STDEV(panel!EZ2:EZ51) ->  | FA5: =STDEV(panel!FA2:FA51) ->  | FB5: =STDEV(panel!FB2:FB51) ->  | FC5: =STDEV(panel!FC2:FC51) ->  | FD5: =STDEV(panel!FD2:FD51) ->  | FE5: =STDEV(panel!FE2:FE51) ->  | FF5: =STDEV(panel!FF2:FF51) ->  | FG5: =STDEV(panel!FG2:FG51) ->  | FH5: =STDEV(panel!FH2:FH51) ->  | FI5: =STDEV(panel!FI2:FI51) ->  | FJ5: =STDEV(panel!FJ2:FJ51) ->  | FK5: =STDEV(panel!FK2:FK51) ->  | FL5: =STDEV(panel!FL2:FL51) ->  | FM5: =STDEV(panel!FM2:FM51) ->  | FN5: =STDEV(panel!FN2:FN51) ->  | FO5: =STDEV(panel!FO2:FO51) ->  | FP5: =STDEV(panel!FP2:FP51) ->  | FQ5: =STDEV(panel!FQ2:FQ51) ->  | FR5: =STDEV(panel!FR2:FR51) ->  | FS5: =STDEV(panel!FS2:FS51) ->  | FT5: =STDEV(panel!FT2:FT51) ->  | FU5: =STDEV(panel!FU2:FU51) ->  | FV5: =STDEV(panel!FV2:FV51) ->  | FW5: =STDEV(panel!FW2:FW51) ->  | FX5: =STDEV(panel!FX2:FX51) ->  | FY5: =STDEV(panel!FY2:FY51) ->  | FZ5: =STDEV(panel!FZ2:FZ51) ->  | GA5: =STDEV(panel!GA2:GA51) ->  | GB5: =STDEV(panel!GB2:GB51) ->  | GC5: =STDEV(panel!GC2:GC51) ->  | GD5: =STDEV(panel!GD2:GD51) ->  | GE5: =STDEV(panel!GE2:GE51) ->  | GF5: =STDEV(panel!GF2:GF51) ->  | GG5: =STDEV(panel!GG2:GG51) ->  | GH5: =STDEV(panel!GH2:GH51) ->  | GI5: =STDEV(panel!GI2:GI51) ->  | GJ5: =STDEV(panel!GJ2:GJ51) ->  | GK5: =STDEV(panel!GK2:GK51) ->  | GL5: =STDEV(panel!GL2:GL51) ->  | GM5: =STDEV(panel!GM2:GM51) ->  | GN5: =STDEV(panel!GN2:GN51) ->  | GO5: =STDEV(panel!GO2:GO51) ->  | GP5: =STDEV(panel!GP2:GP51) ->  | GQ5: =STDEV(panel!GQ2:GQ51) ->  | GR5: =STDEV(panel!GR2:GR51) ->  | GS5: =STDEV(panel!GS2:GS51) -> 
A6: min | B6: =MIN(panel!B2:B51) -> 1 | C6: =MIN(panel!C2:C51) -> 1 | D6: =MIN(panel!D2:D51) -> 1 | E6: =MIN(panel!E2:E51) -> 1 | F6: =MIN(panel!F2:F51) -> 2 | G6: =MIN(panel!G2:G51) -> 2 | H6: =MIN(panel!H2:H51) -> 1 | I6: =MIN(panel!I2:I51) -> 1 | J6: =MIN(panel!J2:J51) -> 1 | K6: =MIN(panel!K2:K51) -> 1 | L6: =MIN(panel!L2:L51) -> 3 | M6: =MIN(panel!M2:M51) -> 3 | N6: =MIN(panel!N2:N51) -> 1 | O6: =MIN(panel!O2:O51) -> 1 | P6: =MIN(panel!P2:P51) -> 1 | Q6: =MIN(panel!Q2:Q51) -> 1 | R6: =MIN(panel!R2:R51) -> 2 | S6: =MIN(panel!S2:S51) -> 1 | T6: =MIN(panel!T2:T51) -> 2 | U6: =MIN(panel!U2:U51) -> 2 | V6: =MIN(panel!V2:V51) -> 1 | W6: =MIN(panel!W2:W51) -> 1 | X6: =MIN(panel!X2:X51) -> 1 | Y6: =MIN(panel!Y2:Y51) -> 1 | Z6: =MIN(panel!Z2:Z51) -> 1 | AA6: =MIN(panel!AA2:AA51) -> 1 | AB6: =MIN(panel!AB2:AB51) -> 3 | AC6: =MIN(panel!AC2:AC51) -> 2 | AD6: =MIN(panel!AD2:AD51) -> 1 | AE6: =MIN(panel!AE2:AE51) -> 2 | AF6: =MIN(panel!AF2:AF51) -> 1 | AG6: =MIN(panel!AG2:AG51) -> 1 | AH6: =MIN(panel!AH2:AH51) -> 1 | AI6: =MIN(panel!AI2:AI51) -> 1 | AJ6: =MIN(panel!AJ2:AJ51) -> 2 | AK6: =MIN(panel!AK2:AK51) -> 1 | AL6: =MIN(panel!AL2:AL51) -> 1 | AM6: =MIN(panel!AM2:AM51) -> 1 | AN6: =MIN(panel!AN2:AN51) -> 1 | AO6: =MIN(panel!AO2:AO51) -> 1 | AP6: =MIN(panel!AP2:AP51) -> 4 | AQ6: =MIN(panel!AQ2:AQ51) -> 2 | AR6: =MIN(panel!AR2:AR51) -> 1 | AS6: =MIN(panel!AS2:AS51) -> 1 | AT6: =MIN(panel!AT2:AT51) -> 2 | AU6: =MIN(panel!AU2:AU51) -> 1 | AV6: =MIN(panel!AV2:AV51) -> 1 | AW6: =MIN(panel!AW2:AW51) -> 1 | AX6: =MIN(panel!AX2:AX51) -> 1 | AY6: =MIN(panel!AY2:AY51) -> 1 | AZ6: =MIN(panel!AZ2:AZ51) -> 1 | BA6: =MIN(panel!BA2:BA51) -> 1 | BB6: =MIN(panel!BB2:BB51) -> 1 | BC6: =MIN(panel!BC2:BC51) -> 2 | BD6: =MIN(panel!BD2:BD51) -> 1 | BE6: =MIN(panel!BE2:BE51) -> 3 | BF6: =MIN(panel!BF2:BF51) -> 1 | BG6: =MIN(panel!BG2:BG51) -> 2 | BH6: =MIN(panel!BH2:BH51) -> 2 | BI6: =MIN(panel!BI2:BI51) -> 2 | BJ6: =MIN(panel!BJ2:BJ51) -> 1 | BK6: =MIN(panel!BK2:BK51) -> 3 | BL6: =MIN(panel!BL2:BL51) -> 1 | BM6: =MIN(panel!BM2:BM51) -> 1 | BN6: =MIN(panel!BN2:BN51) -> 1 | BO6: =MIN(panel!BO2:BO51) -> 1 | BP6: =MIN(panel!BP2:BP51) -> 1 | BQ6: =MIN(panel!BQ2:BQ51) -> 2 | BR6: =MIN(panel!BR2:BR51) -> 1 | BS6: =MIN(panel!BS2:BS51) -> 1 | BT6: =MIN(panel!BT2:BT51) -> 1 | BU6: =MIN(panel!BU2:BU51) -> 1 | BV6: =MIN(panel!BV2:BV51) -> 2 | BW6: =MIN(panel!BW2:BW51) -> 1 | BX6: =MIN(panel!BX2:BX51) -> 1 | BY6: =MIN(panel!BY2:BY51) -> 1 | BZ6: =MIN(panel!BZ2:BZ51) -> 1 | CA6: =MIN(panel!CA2:CA51) -> 1 | CB6: =MIN(panel!CB2:CB51) -> 1 | CC6: =MIN(panel!CC2:CC51) -> 2 | CD6: =MIN(panel!CD2:CD51) -> 1 | CE6: =MIN(panel!CE2:CE51) -> 2 | CF6: =MIN(panel!CF2:CF51) -> 2 | CG6: =MIN(panel!CG2:CG51) -> 2 | CH6: =MIN(panel!CH2:CH51) -> 2 | CI6: =MIN(panel!CI2:CI51) -> 1 | CJ6: =MIN(panel!CJ2:CJ51) -> 1 | CK6: =MIN(panel!CK2:CK51) -> 1 | CL6: =MIN(panel!CL2:CL51) -> 1 | CM6: =MIN(panel!CM2:CM51) -> 1 | CN6: =MIN(panel!CN2:CN51) -> 0 | CO6: =MIN(panel!CO2:CO51) -> 0 | CP6: =MIN(panel!CP2:CP51) -> 0 | CQ6: =MIN(panel!CQ2:CQ51) -> 0 | CR6: =MIN(panel!CR2:CR51) -> 0 | CS6: =MIN(panel!CS2:CS51) -> 0 | CT6: =MIN(panel!CT2:CT51) -> 0 | CU6: =MIN(panel!CU2:CU51) -> 0 | CV6: =MIN(panel!CV2:CV51) -> 0 | CW6: =MIN(panel!CW2:CW51) -> 0 | CX6: =MIN(panel!CX2:CX51) -> 0 | CY6: =MIN(panel!CY2:CY51) -> 0 | CZ6: =MIN(panel!CZ2:CZ51) -> 0 | DA6: =MIN(panel!DA2:DA51) -> 0 | DB6: =MIN(panel!DB2:DB51) -> 0 | DC6: =MIN(panel!DC2:DC51) -> 0 | DD6: =MIN(panel!DD2:DD51) -> 0 | DE6: =MIN(panel!DE2:DE51) -> 0 | DF6: =MIN(panel!DF2:DF51) -> 0 | DG6: =MIN(panel!DG2:DG51) -> 0 | DH6: =MIN(panel!DH2:DH51) -> 0 | DI6: =MIN(panel!DI2:DI51) -> 0 | DJ6: =MIN(panel!DJ2:DJ51) -> 0 | DK6: =MIN(panel!DK2:DK51) -> 0 | DL6: =MIN(panel!DL2:DL51) -> 0 | DM6: =MIN(panel!DM2:DM51) -> 0 | DN6: =MIN(panel!DN2:DN51) -> 0 | DO6: =MIN(panel!DO2:DO51) -> 0 | DP6: =MIN(panel!DP2:DP51) -> 0 | DQ6: =MIN(panel!DQ2:DQ51) -> 0 | DR6: =MIN(panel!DR2:DR51) -> 0 | DS6: =MIN(panel!DS2:DS51) -> 0 | DT6: =MIN(panel!DT2:DT51) -> 0 | DU6: =MIN(panel!DU2:DU51) -> 0 | DV6: =MIN(panel!DV2:DV51) -> 0 | DW6: =MIN(panel!DW2:DW51) -> 0 | DX6: =MIN(panel!DX2:DX51) -> 0 | DY6: =MIN(panel!DY2:DY51) -> 0 | DZ6: =MIN(panel!DZ2:DZ51) -> 0 | EA6: =MIN(panel!EA2:EA51) -> 0 | EB6: =MIN(panel!EB2:EB51) -> 0 | EC6: =MIN(panel!EC2:EC51) -> 0 | ED6: =MIN(panel!ED2:ED51) -> 0 | EE6: =MIN(panel!EE2:EE51) -> 0 | EF6: =MIN(panel!EF2:EF51) -> 0 | EG6: =MIN(panel!EG2:EG51) -> 0 | EH6: =MIN(panel!EH2:EH51) -> 0 | EI6: =MIN(panel!EI2:EI51) -> 0 | EJ6: =MIN(panel!EJ2:EJ51) -> 0 | EK6: =MIN(panel!EK2:EK51) -> 0 | EL6: =MIN(panel!EL2:EL51) -> 0 | EM6: =MIN(panel!EM2:EM51) -> 0 | EN6: =MIN(panel!EN2:EN51) -> 0 | EO6: =MIN(panel!EO2:EO51) -> 0 | EP6: =MIN(panel!EP2:EP51) -> 0 | EQ6: =MIN(panel!EQ2:EQ51) -> 0 | ER6: =MIN(panel!ER2:ER51) -> 0 | ES6: =MIN(panel!ES2:ES51) -> 0 | ET6: =MIN(panel!ET2:ET51) -> 0 | EU6: =MIN(panel!EU2:EU51) -> 0 | EV6: =MIN(panel!EV2:EV51) -> 0 | EW6: =MIN(panel!EW2:EW51) -> 0 | EX6: =MIN(panel!EX2:EX51) -> 0 | EY6: =MIN(panel!EY2:EY51) -> 0 | EZ6: =MIN(panel!EZ2:EZ51) -> 0 | FA6: =MIN(panel!FA2:FA51) -> 0 | FB6: =MIN(panel!FB2:FB51) -> 0 | FC6: =MIN(panel!FC2:FC51) -> 0 | FD6: =MIN(panel!FD2:FD51) -> 0 | FE6: =MIN(panel!FE2:FE51) -> 0 | FF6: =MIN(panel!FF2:FF51) -> 0 | FG6: =MIN(panel!FG2:FG51) -> 0 | FH6: =MIN(panel!FH2:FH51) -> 0 | FI6: =MIN(panel!FI2:FI51) -> 0 | FJ6: =MIN(panel!FJ2:FJ51) -> 0 | FK6: =MIN(panel!FK2:FK51) -> 0 | FL6: =MIN(panel!FL2:FL51) -> 0 | FM6: =MIN(panel!FM2:FM51) -> 0 | FN6: =MIN(panel!FN2:FN51) -> 0 | FO6: =MIN(panel!FO2:FO51) -> 0 | FP6: =MIN(panel!FP2:FP51) -> 0 | FQ6: =MIN(panel!FQ2:FQ51) -> 0 | FR6: =MIN(panel!FR2:FR51) -> 0 | FS6: =MIN(panel!FS2:FS51) -> 0 | FT6: =MIN(panel!FT2:FT51) -> 0 | FU6: =MIN(panel!FU2:FU51) -> 0 | FV6: =MIN(panel!FV2:FV51) -> 0 | FW6: =MIN(panel!FW2:FW51) -> 0 | FX6: =MIN(panel!FX2:FX51) -> 0 | FY6: =MIN(panel!FY2:FY51) -> 0 | FZ6: =MIN(panel!FZ2:FZ51) -> 0 | GA6: =MIN(panel!GA2:GA51) -> 0 | GB6: =MIN(panel!GB2:GB51) -> 0 | GC6: =MIN(panel!GC2:GC51) -> 0 | GD6: =MIN(panel!GD2:GD51) -> 0 | GE6: =MIN(panel!GE2:GE51) -> 0 | GF6: =MIN(panel!GF2:GF51) -> 0 | GG6: =MIN(panel!GG2:GG51) -> 0 | GH6: =MIN(panel!GH2:GH51) -> 0 | GI6: =MIN(panel!GI2:GI51) -> 0 | GJ6: =MIN(panel!GJ2:GJ51) -> 0 | GK6: =MIN(panel!GK2:GK51) -> 0 | GL6: =MIN(panel!GL2:GL51) -> 0 | GM6: =MIN(panel!GM2:GM51) -> 0 | GN6: =MIN(panel!GN2:GN51) -> 0 | GO6: =MIN(panel!GO2:GO51) -> 0 | GP6: =MIN(panel!GP2:GP51) -> 0 | GQ6: =MIN(panel!GQ2:GQ51) -> 0 | GR6: =MIN(panel!GR2:GR51) -> 0 | GS6: =MIN(panel!GS2:GS51) -> 0
A7: max | B7: =MAX(panel!B2:B51) -> 5 | C7: =MAX(panel!C2:C51) -> 3 | D7: =MAX(panel!D2:D51) -> 5 | E7: =MAX(panel!E2:E51) -> 5 | F7: =MAX(panel!F2:F51) -> 5 | G7: =MAX(panel!G2:G51) -> 5 | H7: =MAX(panel!H2:H51) -> 5 | I7: =MAX(panel!I2:I51) -> 4 | J7: =MAX(panel!J2:J51) -> 4 | K7: =MAX(panel!K2:K51) -> 4 | L7: =MAX(panel!L2:L51) -> 5 | M7: =MAX(panel!M2:M51) -> 5 | N7: =MAX(panel!N2:N51) -> 5 | O7: =MAX(panel!O2:O51) -> 5 | P7: =MAX(panel!P2:P51) -> 5 | Q7: =MAX(panel!Q2:Q51) -> 5 | R7: =MAX(panel!R2:R51) -> 5 | S7: =MAX(panel!S2:S51) -> 5 | T7: =MAX(panel!T2:T51) -> 5 | U7: =MAX(panel!U2:U51) -> 5 | V7: =MAX(panel!V2:V51) -> 5 | W7: =MAX(panel!W2:W51) -> 5 | X7: =MAX(panel!X2:X51) -> 3 | Y7: =MAX(panel!Y2:Y51) -> 4 | Z7: =MAX(panel!Z2:Z51) -> 5 | AA7: =MAX(panel!AA2:AA51) -> 4 | AB7: =MAX(panel!AB2:AB51) -> 5 | AC7: =MAX(panel!AC2:AC51) -> 5 | AD7: =MAX(panel!AD2:AD51) -> 5 | AE7: =MAX(panel!AE2:AE51) -> 5 | AF7: =MAX(panel!AF2:AF51) -> 4 | AG7: =MAX(panel!AG2:AG51) -> 5 | AH7: =MAX(panel!AH2:AH51) -> 5 | AI7: =MAX(panel!AI2:AI51) -> 3 | AJ7: =MAX(panel!AJ2:AJ51) -> 5 | AK7: =MAX(panel!AK2:AK51) -> 5 | AL7: =MAX(panel!AL2:AL51) -> 5 | AM7: =MAX(panel!AM2:AM51) -> 5 | AN7: =MAX(panel!AN2:AN51) -> 3 | AO7: =MAX(panel!AO2:AO51) -> 4 | AP7: =MAX(panel!AP2:AP51) -> 5 | AQ7: =MAX(panel!AQ2:AQ51) -> 5 | AR7: =MAX(panel!AR2:AR51) -> 5 | AS7: =MAX(panel!AS2:AS51) -> 4 | AT7: =MAX(panel!AT2:AT51) -> 5 | AU7: =MAX(panel!AU2:AU51) -> 5 | AV7: =MAX(panel!AV2:AV51) -> 5 | AW7: =MAX(panel!AW2:AW51) -> 5 | AX7: =MAX(panel!AX2:AX51) -> 5 | AY7: =MAX(panel!AY2:AY51) -> 5 | AZ7: =MAX(panel!AZ2:AZ51) -> 5 | BA7: =MAX(panel!BA2:BA51) -> 5 | BB7: =MAX(panel!BB2:BB51) -> 3 | BC7: =MAX(panel!BC2:BC51) -> 5 | BD7: =MAX(panel!BD2:BD51) -> 5 | BE7: =MAX(panel!BE2:BE51) -> 5 | BF7: =MAX(panel!BF2:BF51) -> 5 | BG7: =MAX(panel!BG2:BG51) -> 5 | BH7: =MAX(panel!BH2:BH51) -> 5 | BI7: =MAX(panel!BI2:BI51) -> 5 | BJ7: =MAX(panel!BJ2:BJ51) -> 4 | BK7: =MAX(panel!BK2:BK51) -> 5 | BL7: =MAX(panel!BL2:BL51) -> 3 | BM7: =MAX(panel!BM2:BM51) -> 5 | BN7: =MAX(panel!BN2:BN51) -> 5 | BO7: =MAX(panel!BO2:BO51) -> 5 | BP7: =MAX(panel!BP2:BP51) -> 5 | BQ7: =MAX(panel!BQ2:BQ51) -> 5 | BR7: =MAX(panel!BR2:BR51) -> 5 | BS7: =MAX(panel!BS2:BS51) -> 3 | BT7: =MAX(panel!BT2:BT51) -> 3 | BU7: =MAX(panel!BU2:BU51) -> 3 | BV7: =MAX(panel!BV2:BV51) -> 4 | BW7: =MAX(panel!BW2:BW51) -> 5 | BX7: =MAX(panel!BX2:BX51) -> 5 | BY7: =MAX(panel!BY2:BY51) -> 5 | BZ7: =MAX(panel!BZ2:BZ51) -> 5 | CA7: =MAX(panel!CA2:CA51) -> 5 | CB7: =MAX(panel!CB2:CB51) -> 5 | CC7: =MAX(panel!CC2:CC51) -> 5 | CD7: =MAX(panel!CD2:CD51) -> 5 | CE7: =MAX(panel!CE2:CE51) -> 5 | CF7: =MAX(panel!CF2:CF51) -> 5 | CG7: =MAX(panel!CG2:CG51) -> 5 | CH7: =MAX(panel!CH2:CH51) -> 5 | CI7: =MAX(panel!CI2:CI51) -> 5 | CJ7: =MAX(panel!CJ2:CJ51) -> 5 | CK7: =MAX(panel!CK2:CK51) -> 3 | CL7: =MAX(panel!CL2:CL51) -> 3 | CM7: =MAX(panel!CM2:CM51) -> 5 | CN7: =MAX(panel!CN2:CN51) -> 0 | CO7: =MAX(panel!CO2:CO51) -> 0 | CP7: =MAX(panel!CP2:CP51) -> 0 | CQ7: =MAX(panel!CQ2:CQ51) -> 0 | CR7: =MAX(panel!CR2:CR51) -> 0 | CS7: =MAX(panel!CS2:CS51) -> 0 | CT7: =MAX(panel!CT2:CT51) -> 0 | CU7: =MAX(panel!CU2:CU51) -> 0 | CV7: =MAX(panel!CV2:CV51) -> 0 | CW7: =MAX(panel!CW2:CW51) -> 0 | CX7: =MAX(panel!CX2:CX51) -> 0 | CY7: =MAX(panel!CY2:CY51) -> 0 | CZ7: =MAX(panel!CZ2:CZ51) -> 0 | DA7: =MAX(panel!DA2:DA51) -> 0 | DB7: =MAX(panel!DB2:DB51) -> 0 | DC7: =MAX(panel!DC2:DC51) -> 0 | DD7: =MAX(panel!DD2:DD51) -> 0 | DE7: =MAX(panel!DE2:DE51) -> 0 | DF7: =MAX(panel!DF2:DF51) -> 0 | DG7: =MAX(panel!DG2:DG51) -> 0 | DH7: =MAX(panel!DH2:DH51) -> 0 | DI7: =MAX(panel!DI2:DI51) -> 0 | DJ7: =MAX(panel!DJ2:DJ51) -> 0 | DK7: =MAX(panel!DK2:DK51) -> 0 | DL7: =MAX(panel!DL2:DL51) -> 0 | DM7: =MAX(panel!DM2:DM51) -> 0 | DN7: =MAX(panel!DN2:DN51) -> 0 | DO7: =MAX(panel!DO2:DO51) -> 0 | DP7: =MAX(panel!DP2:DP51) -> 0 | DQ7: =MAX(panel!DQ2:DQ51) -> 0 | DR7: =MAX(panel!DR2:DR51) -> 0 | DS7: =MAX(panel!DS2:DS51) -> 0 | DT7: =MAX(panel!DT2:DT51) -> 0 | DU7: =MAX(panel!DU2:DU51) -> 0 | DV7: =MAX(panel!DV2:DV51) -> 0 | DW7: =MAX(panel!DW2:DW51) -> 0 | DX7: =MAX(panel!DX2:DX51) -> 0 | DY7: =MAX(panel!DY2:DY51) -> 0 | DZ7: =MAX(panel!DZ2:DZ51) -> 0 | EA7: =MAX(panel!EA2:EA51) -> 0 | EB7: =MAX(panel!EB2:EB51) -> 0 | EC7: =MAX(panel!EC2:EC51) -> 0 | ED7: =MAX(panel!ED2:ED51) -> 0 | EE7: =MAX(panel!EE2:EE51) -> 0 | EF7: =MAX(panel!EF2:EF51) -> 0 | EG7: =MAX(panel!EG2:EG51) -> 0 | EH7: =MAX(panel!EH2:EH51) -> 0 | EI7: =MAX(panel!EI2:EI51) -> 0 | EJ7: =MAX(panel!EJ2:EJ51) -> 0 | EK7: =MAX(panel!EK2:EK51) -> 0 | EL7: =MAX(panel!EL2:EL51) -> 0 | EM7: =MAX(panel!EM2:EM51) -> 0 | EN7: =MAX(panel!EN2:EN51) -> 0 | EO7: =MAX(panel!EO2:EO51) -> 0 | EP7: =MAX(panel!EP2:EP51) -> 0 | EQ7: =MAX(panel!EQ2:EQ51) -> 0 | ER7: =MAX(panel!ER2:ER51) -> 0 | ES7: =MAX(panel!ES2:ES51) -> 0 | ET7: =MAX(panel!ET2:ET51) -> 0 | EU7: =MAX(panel!EU2:EU51) -> 0 | EV7: =MAX(panel!EV2:EV51) -> 0 | EW7: =MAX(panel!EW2:EW51) -> 0 | EX7: =MAX(panel!EX2:EX51) -> 0 | EY7: =MAX(panel!EY2:EY51) -> 0 | EZ7: =MAX(panel!EZ2:EZ51) -> 0 | FA7: =MAX(panel!FA2:FA51) -> 0 | FB7: =MAX(panel!FB2:FB51) -> 0 | FC7: =MAX(panel!FC2:FC51) -> 0 | FD7: =MAX(panel!FD2:FD51) -> 0 | FE7: =MAX(panel!FE2:FE51) -> 0 | FF7: =MAX(panel!FF2:FF51) -> 0 | FG7: =MAX(panel!FG2:FG51) -> 0 | FH7: =MAX(panel!FH2:FH51) -> 0 | FI7: =MAX(panel!FI2:FI51) -> 0 | FJ7: =MAX(panel!FJ2:FJ51) -> 0 | FK7: =MAX(panel!FK2:FK51) -> 0 | FL7: =MAX(panel!FL2:FL51) -> 0 | FM7: =MAX(panel!FM2:FM51) -> 0 | FN7: =MAX(panel!FN2:FN51) -> 0 | FO7: =MAX(panel!FO2:FO51) -> 0 | FP7: =MAX(panel!FP2:FP51) -> 0 | FQ7: =MAX(panel!FQ2:FQ51) -> 0 | FR7: =MAX(panel!FR2:FR51) -> 0 | FS7: =MAX(panel!FS2:FS51) -> 0 | FT7: =MAX(panel!FT2:FT51) -> 0 | FU7: =MAX(panel!FU2:FU51) -> 0 | FV7: =MAX(panel!FV2:FV51) -> 0 | FW7: =MAX(panel!FW2:FW51) -> 0 | FX7: =MAX(panel!FX2:FX51) -> 0 | FY7: =MAX(panel!FY2:FY51) -> 0 | FZ7: =MAX(panel!FZ2:FZ51) -> 0 | GA7: =MAX(panel!GA2:GA51) -> 0 | GB7: =MAX(panel!GB2:GB51) -> 0 | GC7: =MAX(panel!GC2:GC51) -> 0 | GD7: =MAX(panel!GD2:GD51) -> 0 | GE7: =MAX(panel!GE2:GE51) -> 0 | GF7: =MAX(panel!GF2:GF51) -> 0 | GG7: =MAX(panel!GG2:GG51) -> 0 | GH7: =MAX(panel!GH2:GH51) -> 0 | GI7: =MAX(panel!GI2:GI51) -> 0 | GJ7: =MAX(panel!GJ2:GJ51) -> 0 | GK7: =MAX(panel!GK2:GK51) -> 0 | GL7: =MAX(panel!GL2:GL51) -> 0 | GM7: =MAX(panel!GM2:GM51) -> 0 | GN7: =MAX(panel!GN2:GN51) -> 0 | GO7: =MAX(panel!GO2:GO51) -> 0 | GP7: =MAX(panel!GP2:GP51) -> 0 | GQ7: =MAX(panel!GQ2:GQ51) -> 0 | GR7: =MAX(panel!GR2:GR51) -> 0 | GS7: =MAX(panel!GS2:GS51) -> 0
A9: mode | B9: =MODE(panel!B2:B51) -> 2 | C9: =MODE(panel!C2:C51) -> 1 | D9: =MODE(panel!D2:D51) -> 3 | E9: =MODE(panel!E2:E51) -> 3 | F9: =MODE(panel!F2:F51) -> 3 | G9: =MODE(panel!G2:G51) -> 3 | H9: =MODE(panel!H2:H51) -> 3 | I9: =MODE(panel!I2:I51) -> 2 | J9: =MODE(panel!J2:J51) -> 2 | K9: =MODE(panel!K2:K51) -> 2 | L9: =MODE(panel!L2:L51) -> 4 | M9: =MODE(panel!M2:M51) -> 5 | N9: =MODE(panel!N2:N51) -> 4 | O9: =MODE(panel!O2:O51) -> 1 | P9: =MODE(panel!P2:P51) -> 4 | Q9: =MODE(panel!Q2:Q51) -> 2 | R9: =MODE(panel!R2:R51) -> 4 | S9: =MODE(panel!S2:S51) -> 2 | T9: =MODE(panel!T2:T51) -> 3 | U9: =MODE(panel!U2:U51) -> 5 | V9: =MODE(panel!V2:V51) -> 2 | W9: =MODE(panel!W2:W51) -> 2 | X9: =MODE(panel!X2:X51) -> 2 | Y9: =MODE(panel!Y2:Y51) -> 4 | Z9: =MODE(panel!Z2:Z51) -> 3 | AA9: =MODE(panel!AA2:AA51) -> 2 | AB9: =MODE(panel!AB2:AB51) -> 4 | AC9: =MODE(panel!AC2:AC51) -> 3 | AD9: =MODE(panel!AD2:AD51) -> 2 | AE9: =MODE(panel!AE2:AE51) -> 3 | AF9: =MODE(panel!AF2:AF51) -> 2 | AG9: =MODE(panel!AG2:AG51) -> 4 | AH9: =MODE(panel!AH2:AH51) -> 2 | AI9: =MODE(panel!AI2:AI51) -> 2 | AJ9: =MODE(panel!AJ2:AJ51) -> 4 | AK9: =MODE(panel!AK2:AK51) -> 2 | AL9: =MODE(panel!AL2:AL51) -> 2 | AM9: =MODE(panel!AM2:AM51) -> 3 | AN9: =MODE(panel!AN2:AN51) -> 2 | AO9: =MODE(panel!AO2:AO51) -> 2 | AP9: =MODE(panel!AP2:AP51) -> 4 | AQ9: =MODE(panel!AQ2:AQ51) -> 4 | AR9: =MODE(panel!AR2:AR51) -> 3 | AS9: =MODE(panel!AS2:AS51) -> 2 | AT9: =MODE(panel!AT2:AT51) -> 3 | AU9: =MODE(panel!AU2:AU51) -> 5 | AV9: =MODE(panel!AV2:AV51) -> 2 | AW9: =MODE(panel!AW2:AW51) -> 2 | AX9: =MODE(panel!AX2:AX51) -> 2 | AY9: =MODE(panel!AY2:AY51) -> 2 | AZ9: =MODE(panel!AZ2:AZ51) -> 5 | BA9: =MODE(panel!BA2:BA51) -> 2 | BB9: =MODE(panel!BB2:BB51) -> 2 | BC9: =MODE(panel!BC2:BC51) -> 3 | BD9: =MODE(panel!BD2:BD51) -> 2 | BE9: =MODE(panel!BE2:BE51) -> 5 | BF9: =MODE(panel!BF2:BF51) -> 2 | BG9: =MODE(panel!BG2:BG51) -> 4 | BH9: =MODE(panel!BH2:BH51) -> 4 | BI9: =MODE(panel!BI2:BI51) -> 4 | BJ9: =MODE(panel!BJ2:BJ51) -> 1 | BK9: =MODE(panel!BK2:BK51) -> 5 | BL9: =MODE(panel!BL2:BL51) -> 2 | BM9: =MODE(panel!BM2:BM51) -> 5 | BN9: =MODE(panel!BN2:BN51) -> 3 | BO9: =MODE(panel!BO2:BO51) -> 3 | BP9: =MODE(panel!BP2:BP51) -> 2 | BQ9: =MODE(panel!BQ2:BQ51) -> 4 | BR9: =MODE(panel!BR2:BR51) -> 5 | BS9: =MODE(panel!BS2:BS51) -> 3 | BT9: =MODE(panel!BT2:BT51) -> 1 | BU9: =MODE(panel!BU2:BU51) -> 1 | BV9: =MODE(panel!BV2:BV51) -> 3 | BW9: =MODE(panel!BW2:BW51) -> 3 | BX9: =MODE(panel!BX2:BX51) -> 5 | BY9: =MODE(panel!BY2:BY51) -> 2 | BZ9: =MODE(panel!BZ2:BZ51) -> 2 | CA9: =MODE(panel!CA2:CA51) -> 2 | CB9: =MODE(panel!CB2:CB51) -> 3 | CC9: =MODE(panel!CC2:CC51) -> 4 | CD9: =MODE(panel!CD2:CD51) -> 3 | CE9: =MODE(panel!CE2:CE51) -> 4 | CF9: =MODE(panel!CF2:CF51) -> 4 | CG9: =MODE(panel!CG2:CG51) -> 4 | CH9: =MODE(panel!CH2:CH51) -> 3 | CI9: =MODE(panel!CI2:CI51) -> 2 | CJ9: =MODE(panel!CJ2:CJ51) -> 4 | CK9: =MODE(panel!CK2:CK51) -> 2 | CL9: =MODE(panel!CL2:CL51) -> 3 | CM9: =MODE(panel!CM2:CM51) -> 4 | CN9: =MODE(panel!CN2:CN51) ->  | CO9: =MODE(panel!CO2:CO51) ->  | CP9: =MODE(panel!CP2:CP51) ->  | CQ9: =MODE(panel!CQ2:CQ51) ->  | CR9: =MODE(panel!CR2:CR51) ->  | CS9: =MODE(panel!CS2:CS51) ->  | CT9: =MODE(panel!CT2:CT51) ->  | CU9: =MODE(panel!CU2:CU51) ->  | CV9: =MODE(panel!CV2:CV51) ->  | CW9: =MODE(panel!CW2:CW51) ->  | CX9: =MODE(panel!CX2:CX51) ->  | CY9: =MODE(panel!CY2:CY51) ->  | CZ9: =MODE(panel!CZ2:CZ51) ->  | DA9: =MODE(panel!DA2:DA51) ->  | DB9: =MODE(panel!DB2:DB51) ->  | DC9: =MODE(panel!DC2:DC51) ->  | DD9: =MODE(panel!DD2:DD51) ->  | DE9: =MODE(panel!DE2:DE51) ->  | DF9: =MODE(panel!DF2:DF51) ->  | DG9: =MODE(panel!DG2:DG51) ->  | DH9: =MODE(panel!DH2:DH51) ->  | DI9: =MODE(panel!DI2:DI51) ->  | DJ9: =MODE(panel!DJ2:DJ51) ->  | DK9: =MODE(panel!DK2:DK51) ->  | DL9: =MODE(panel!DL2:DL51) ->  | DM9: =MODE(panel!DM2:DM51) ->  | DN9: =MODE(panel!DN2:DN51) ->  | DO9: =MODE(panel!DO2:DO51) ->  | DP9: =MODE(panel!DP2:DP51) ->  | DQ9: =MODE(panel!DQ2:DQ51) ->  | DR9: =MODE(panel!DR2:DR51) ->  | DS9: =MODE(panel!DS2:DS51) ->  | DT9: =MODE(panel!DT2:DT51) ->  | DU9: =MODE(panel!DU2:DU51) ->  | DV9: =MODE(panel!DV2:DV51) ->  | DW9: =MODE(panel!DW2:DW51) ->  | DX9: =MODE(panel!DX2:DX51) ->  | DY9: =MODE(panel!DY2:DY51) ->  | DZ9: =MODE(panel!DZ2:DZ51) ->  | EA9: =MODE(panel!EA2:EA51) ->  | EB9: =MODE(panel!EB2:EB51) ->  | EC9: =MODE(panel!EC2:EC51) ->  | ED9: =MODE(panel!ED2:ED51) ->  | EE9: =MODE(panel!EE2:EE51) ->  | EF9: =MODE(panel!EF2:EF51) ->  | EG9: =MODE(panel!EG2:EG51) ->  | EH9: =MODE(panel!EH2:EH51) ->  | EI9: =MODE(panel!EI2:EI51) ->  | EJ9: =MODE(panel!EJ2:EJ51) ->  | EK9: =MODE(panel!EK2:EK51) ->  | EL9: =MODE(panel!EL2:EL51) ->  | EM9: =MODE(panel!EM2:EM51) ->  | EN9: =MODE(panel!EN2:EN51) ->  | EO9: =MODE(panel!EO2:EO51) ->  | EP9: =MODE(panel!EP2:EP51) ->  | EQ9: =MODE(panel!EQ2:EQ51) ->  | ER9: =MODE(panel!ER2:ER51) ->  | ES9: =MODE(panel!ES2:ES51) ->  | ET9: =MODE(panel!ET2:ET51) ->  | EU9: =MODE(panel!EU2:EU51) ->  | EV9: =MODE(panel!EV2:EV51) ->  | EW9: =MODE(panel!EW2:EW51) ->  | EX9: =MODE(panel!EX2:EX51) ->  | EY9: =MODE(panel!EY2:EY51) ->  | EZ9: =MODE(panel!EZ2:EZ51) ->  | FA9: =MODE(panel!FA2:FA51) ->  | FB9: =MODE(panel!FB2:FB51) ->  | FC9: =MODE(panel!FC2:FC51) ->  | FD9: =MODE(panel!FD2:FD51) ->  | FE9: =MODE(panel!FE2:FE51) ->  | FF9: =MODE(panel!FF2:FF51) ->  | FG9: =MODE(panel!FG2:FG51) ->  | FH9: =MODE(panel!FH2:FH51) ->  | FI9: =MODE(panel!FI2:FI51) ->  | FJ9: =MODE(panel!FJ2:FJ51) ->  | FK9: =MODE(panel!FK2:FK51) ->  | FL9: =MODE(panel!FL2:FL51) ->  | FM9: =MODE(panel!FM2:FM51) ->  | FN9: =MODE(panel!FN2:FN51) ->  | FO9: =MODE(panel!FO2:FO51) ->  | FP9: =MODE(panel!FP2:FP51) ->  | FQ9: =MODE(panel!FQ2:FQ51) ->  | FR9: =MODE(panel!FR2:FR51) ->  | FS9: =MODE(panel!FS2:FS51) ->  | FT9: =MODE(panel!FT2:FT51) ->  | FU9: =MODE(panel!FU2:FU51) ->  | FV9: =MODE(panel!FV2:FV51) ->  | FW9: =MODE(panel!FW2:FW51) ->  | FX9: =MODE(panel!FX2:FX51) ->  | FY9: =MODE(panel!FY2:FY51) ->  | FZ9: =MODE(panel!FZ2:FZ51) ->  | GA9: =MODE(panel!GA2:GA51) ->  | GB9: =MODE(panel!GB2:GB51) ->  | GC9: =MODE(panel!GC2:GC51) ->  | GD9: =MODE(panel!GD2:GD51) ->  | GE9: =MODE(panel!GE2:GE51) ->  | GF9: =MODE(panel!GF2:GF51) ->  | GG9: =MODE(panel!GG2:GG51) ->  | GH9: =MODE(panel!GH2:GH51) ->  | GI9: =MODE(panel!GI2:GI51) ->  | GJ9: =MODE(panel!GJ2:GJ51) ->  | GK9: =MODE(panel!GK2:GK51) ->  | GL9: =MODE(panel!GL2:GL51) ->  | GM9: =MODE(panel!GM2:GM51) ->  | GN9: =MODE(panel!GN2:GN51) ->  | GO9: =MODE(panel!GO2:GO51) ->  | GP9: =MODE(panel!GP2:GP51) ->  | GQ9: =MODE(panel!GQ2:GQ51) ->  | GR9: =MODE(panel!GR2:GR51) ->  | GS9: =MODE(panel!GS2:GS51) -> 
A10: n mode | B10: =COUNTIF(panel!B$2:B$51,B9) -> 23 | C10: =COUNTIF(panel!C$2:C$51,C9) -> 39 | D10: =COUNTIF(panel!D$2:D$51,D9) -> 22 | E10: =COUNTIF(panel!E$2:E$51,E9) -> 29 | F10: =COUNTIF(panel!F$2:F$51,F9) -> 40 | G10: =COUNTIF(panel!G$2:G$51,G9) -> 39 | H10: =COUNTIF(panel!H$2:H$51,H9) -> 39 | I10: =COUNTIF(panel!I$2:I$51,I9) -> 24 | J10: =COUNTIF(panel!J$2:J$51,J9) -> 22 | K10: =COUNTIF(panel!K$2:K$51,K9) -> 34 | L10: =COUNTIF(panel!L$2:L$51,L9) -> 31 | M10: =COUNTIF(panel!M$2:M$51,M9) -> 23 | N10: =COUNTIF(panel!N$2:N$51,N9) -> 28 | O10: =COUNTIF(panel!O$2:O$51,O9) -> 22 | P10: =COUNTIF(panel!P$2:P$51,P9) -> 27 | Q10: =COUNTIF(panel!Q$2:Q$51,Q9) -> 19 | R10: =COUNTIF(panel!R$2:R$51,R9) -> 29 | S10: =COUNTIF(panel!S$2:S$51,S9) -> 18 | T10: =COUNTIF(panel!T$2:T$51,T9) -> 21 | U10: =COUNTIF(panel!U$2:U$51,U9) -> 25 | V10: =COUNTIF(panel!V$2:V$51,V9) -> 20 | W10: =COUNTIF(panel!W$2:W$51,W9) -> 24 | X10: =COUNTIF(panel!X$2:X$51,X9) -> 36 | Y10: =COUNTIF(panel!Y$2:Y$51,Y9) -> 18 | Z10: =COUNTIF(panel!Z$2:Z$51,Z9) -> 26 | AA10: =COUNTIF(panel!AA$2:AA$51,AA9) -> 28 | AB10: =COUNTIF(panel!AB$2:AB$51,AB9) -> 22 | AC10: =COUNTIF(panel!AC$2:AC$51,AC9) -> 16 | AD10: =COUNTIF(panel!AD$2:AD$51,AD9) -> 28 | AE10: =COUNTIF(panel!AE$2:AE$51,AE9) -> 29 | AF10: =COUNTIF(panel!AF$2:AF$51,AF9) -> 28 | AG10: =COUNTIF(panel!AG$2:AG$51,AG9) -> 13 | AH10: =COUNTIF(panel!AH$2:AH$51,AH9) -> 22 | AI10: =COUNTIF(panel!AI$2:AI$51,AI9) -> 27 | AJ10: =COUNTIF(panel!AJ$2:AJ$51,AJ9) -> 22 | AK10: =COUNTIF(panel!AK$2:AK$51,AK9) -> 20 | AL10: =COUNTIF(panel!AL$2:AL$51,AL9) -> 20 | AM10: =COUNTIF(panel!AM$2:AM$51,AM9) -> 34 | AN10: =COUNTIF(panel!AN$2:AN$51,AN9) -> 22 | AO10: =COUNTIF(panel!AO$2:AO$51,AO9) -> 34 | AP10: =COUNTIF(panel!AP$2:AP$51,AP9) -> 31 | AQ10: =COUNTIF(panel!AQ$2:AQ$51,AQ9) -> 22 | AR10: =COUNTIF(panel!AR$2:AR$51,AR9) -> 28 | AS10: =COUNTIF(panel!AS$2:AS$51,AS9) -> 23 | AT10: =COUNTIF(panel!AT$2:AT$51,AT9) -> 20 | AU10: =COUNTIF(panel!AU$2:AU$51,AU9) -> 21 | AV10: =COUNTIF(panel!AV$2:AV$51,AV9) -> 27 | AW10: =COUNTIF(panel!AW$2:AW$51,AW9) -> 24 | AX10: =COUNTIF(panel!AX$2:AX$51,AX9) -> 30 | AY10: =COUNTIF(panel!AY$2:AY$51,AY9) -> 19 | AZ10: =COUNTIF(panel!AZ$2:AZ$51,AZ9) -> 31 | BA10: =COUNTIF(panel!BA$2:BA$51,BA9) -> 16 | BB10: =COUNTIF(panel!BB$2:BB$51,BB9) -> 22 | BC10: =COUNTIF(panel!BC$2:BC$51,BC9) -> 33 | BD10: =COUNTIF(panel!BD$2:BD$51,BD9) -> 18 | BE10: =COUNTIF(panel!BE$2:BE$51,BE9) -> 27 | BF10: =COUNTIF(panel!BF$2:BF$51,BF9) -> 20 | BG10: =COUNTIF(panel!BG$2:BG$51,BG9) -> 22 | BH10: =COUNTIF(panel!BH$2:BH$51,BH9) -> 24 | BI10: =COUNTIF(panel!BI$2:BI$51,BI9) -> 27 | BJ10: =COUNTIF(panel!BJ$2:BJ$51,BJ9) -> 27 | BK10: =COUNTIF(panel!BK$2:BK$51,BK9) -> 18 | BL10: =COUNTIF(panel!BL$2:BL$51,BL9) -> 23 | BM10: =COUNTIF(panel!BM$2:BM$51,BM9) -> 38 | BN10: =COUNTIF(panel!BN$2:BN$51,BN9) -> 27 | BO10: =COUNTIF(panel!BO$2:BO$51,BO9) -> 27 | BP10: =COUNTIF(panel!BP$2:BP$51,BP9) -> 24 | BQ10: =COUNTIF(panel!BQ$2:BQ$51,BQ9) -> 23 | BR10: =COUNTIF(panel!BR$2:BR$51,BR9) -> 19 | BS10: =COUNTIF(panel!BS$2:BS$51,BS9) -> 33 | BT10: =COUNTIF(panel!BT$2:BT$51,BT9) -> 27 | BU10: =COUNTIF(panel!BU$2:BU$51,BU9) -> 19 | BV10: =COUNTIF(panel!BV$2:BV$51,BV9) -> 38 | BW10: =COUNTIF(panel!BW$2:BW$51,BW9) -> 33 | BX10: =COUNTIF(panel!BX$2:BX$51,BX9) -> 16 | BY10: =COUNTIF(panel!BY$2:BY$51,BY9) -> 20 | BZ10: =COUNTIF(panel!BZ$2:BZ$51,BZ9) -> 25 | CA10: =COUNTIF(panel!CA$2:CA$51,CA9) -> 16 | CB10: =COUNTIF(panel!CB$2:CB$51,CB9) -> 14 | CC10: =COUNTIF(panel!CC$2:CC$51,CC9) -> 17 | CD10: =COUNTIF(panel!CD$2:CD$51,CD9) -> 22 | CE10: =COUNTIF(panel!CE$2:CE$51,CE9) -> 28 | CF10: =COUNTIF(panel!CF$2:CF$51,CF9) -> 23 | CG10: =COUNTIF(panel!CG$2:CG$51,CG9) -> 26 | CH10: =COUNTIF(panel!CH$2:CH$51,CH9) -> 32 | CI10: =COUNTIF(panel!CI$2:CI$51,CI9) -> 23 | CJ10: =COUNTIF(panel!CJ$2:CJ$51,CJ9) -> 14 | CK10: =COUNTIF(panel!CK$2:CK$51,CK9) -> 29 | CL10: =COUNTIF(panel!CL$2:CL$51,CL9) -> 19 | CM10: =COUNTIF(panel!CM$2:CM$51,CM9) -> 22 | CN10: =COUNTIF(panel!CN$2:CN$51,CN9) -> 0 | CO10: =COUNTIF(panel!CO$2:CO$51,CO9) -> 0 | CP10: =COUNTIF(panel!CP$2:CP$51,CP9) -> 0 | CQ10: =COUNTIF(panel!CQ$2:CQ$51,CQ9) -> 0 | CR10: =COUNTIF(panel!CR$2:CR$51,CR9) -> 0 | CS10: =COUNTIF(panel!CS$2:CS$51,CS9) -> 0 | CT10: =COUNTIF(panel!CT$2:CT$51,CT9) -> 0 | CU10: =COUNTIF(panel!CU$2:CU$51,CU9) -> 0 | CV10: =COUNTIF(panel!CV$2:CV$51,CV9) -> 0 | CW10: =COUNTIF(panel!CW$2:CW$51,CW9) -> 0 | CX10: =COUNTIF(panel!CX$2:CX$51,CX9) -> 0 | CY10: =COUNTIF(panel!CY$2:CY$51,CY9) -> 0 | CZ10: =COUNTIF(panel!CZ$2:CZ$51,CZ9) -> 0 | DA10: =COUNTIF(panel!DA$2:DA$51,DA9) -> 0 | DB10: =COUNTIF(panel!DB$2:DB$51,DB9) -> 0 | DC10: =COUNTIF(panel!DC$2:DC$51,DC9) -> 0 | DD10: =COUNTIF(panel!DD$2:DD$51,DD9) -> 0 | DE10: =COUNTIF(panel!DE$2:DE$51,DE9) -> 0 | DF10: =COUNTIF(panel!DF$2:DF$51,DF9) -> 0 | DG10: =COUNTIF(panel!DG$2:DG$51,DG9) -> 0 | DH10: =COUNTIF(panel!DH$2:DH$51,DH9) -> 0 | DI10: =COUNTIF(panel!DI$2:DI$51,DI9) -> 0 | DJ10: =COUNTIF(panel!DJ$2:DJ$51,DJ9) -> 0 | DK10: =COUNTIF(panel!DK$2:DK$51,DK9) -> 0 | DL10: =COUNTIF(panel!DL$2:DL$51,DL9) -> 0 | DM10: =COUNTIF(panel!DM$2:DM$51,DM9) -> 0 | DN10: =COUNTIF(panel!DN$2:DN$51,DN9) -> 0 | DO10: =COUNTIF(panel!DO$2:DO$51,DO9) -> 0 | DP10: =COUNTIF(panel!DP$2:DP$51,DP9) -> 0 | DQ10: =COUNTIF(panel!DQ$2:DQ$51,DQ9) -> 0 | DR10: =COUNTIF(panel!DR$2:DR$51,DR9) -> 0 | DS10: =COUNTIF(panel!DS$2:DS$51,DS9) -> 0 | DT10: =COUNTIF(panel!DT$2:DT$51,DT9) -> 0 | DU10: =COUNTIF(panel!DU$2:DU$51,DU9) -> 0 | DV10: =COUNTIF(panel!DV$2:DV$51,DV9) -> 0 | DW10: =COUNTIF(panel!DW$2:DW$51,DW9) -> 0 | DX10: =COUNTIF(panel!DX$2:DX$51,DX9) -> 0 | DY10: =COUNTIF(panel!DY$2:DY$51,DY9) -> 0 | DZ10: =COUNTIF(panel!DZ$2:DZ$51,DZ9) -> 0 | EA10: =COUNTIF(panel!EA$2:EA$51,EA9) -> 0 | EB10: =COUNTIF(panel!EB$2:EB$51,EB9) -> 0 | EC10: =COUNTIF(panel!EC$2:EC$51,EC9) -> 0 | ED10: =COUNTIF(panel!ED$2:ED$51,ED9) -> 0 | EE10: =COUNTIF(panel!EE$2:EE$51,EE9) -> 0 | EF10: =COUNTIF(panel!EF$2:EF$51,EF9) -> 0 | EG10: =COUNTIF(panel!EG$2:EG$51,EG9) -> 0 | EH10: =COUNTIF(panel!EH$2:EH$51,EH9) -> 0 | EI10: =COUNTIF(panel!EI$2:EI$51,EI9) -> 0 | EJ10: =COUNTIF(panel!EJ$2:EJ$51,EJ9) -> 0 | EK10: =COUNTIF(panel!EK$2:EK$51,EK9) -> 0 | EL10: =COUNTIF(panel!EL$2:EL$51,EL9) -> 0 | EM10: =COUNTIF(panel!EM$2:EM$51,EM9) -> 0 | EN10: =COUNTIF(panel!EN$2:EN$51,EN9) -> 0 | EO10: =COUNTIF(panel!EO$2:EO$51,EO9) -> 0 | EP10: =COUNTIF(panel!EP$2:EP$51,EP9) -> 0 | EQ10: =COUNTIF(panel!EQ$2:EQ$51,EQ9) -> 0 | ER10: =COUNTIF(panel!ER$2:ER$51,ER9) -> 0 | ES10: =COUNTIF(panel!ES$2:ES$51,ES9) -> 0 | ET10: =COUNTIF(panel!ET$2:ET$51,ET9) -> 0 | EU10: =COUNTIF(panel!EU$2:EU$51,EU9) -> 0 | EV10: =COUNTIF(panel!EV$2:EV$51,EV9) -> 0 | EW10: =COUNTIF(panel!EW$2:EW$51,EW9) -> 0 | EX10: =COUNTIF(panel!EX$2:EX$51,EX9) -> 0 | EY10: =COUNTIF(panel!EY$2:EY$51,EY9) -> 0 | EZ10: =COUNTIF(panel!EZ$2:EZ$51,EZ9) -> 0 | FA10: =COUNTIF(panel!FA$2:FA$51,FA9) -> 0 | FB10: =COUNTIF(panel!FB$2:FB$51,FB9) -> 0 | FC10: =COUNTIF(panel!FC$2:FC$51,FC9) -> 0 | FD10: =COUNTIF(panel!FD$2:FD$51,FD9) -> 0 | FE10: =COUNTIF(panel!FE$2:FE$51,FE9) -> 0 | FF10: =COUNTIF(panel!FF$2:FF$51,FF9) -> 0 | FG10: =COUNTIF(panel!FG$2:FG$51,FG9) -> 0 | FH10: =COUNTIF(panel!FH$2:FH$51,FH9) -> 0 | FI10: =COUNTIF(panel!FI$2:FI$51,FI9) -> 0 | FJ10: =COUNTIF(panel!FJ$2:FJ$51,FJ9) -> 0 | FK10: =COUNTIF(panel!FK$2:FK$51,FK9) -> 0 | FL10: =COUNTIF(panel!FL$2:FL$51,FL9) -> 0 | FM10: =COUNTIF(panel!FM$2:FM$51,FM9) -> 0 | FN10: =COUNTIF(panel!FN$2:FN$51,FN9) -> 0 | FO10: =COUNTIF(panel!FO$2:FO$51,FO9) -> 0 | FP10: =COUNTIF(panel!FP$2:FP$51,FP9) -> 0 | FQ10: =COUNTIF(panel!FQ$2:FQ$51,FQ9) -> 0 | FR10: =COUNTIF(panel!FR$2:FR$51,FR9) -> 0 | FS10: =COUNTIF(panel!FS$2:FS$51,FS9) -> 0 | FT10: =COUNTIF(panel!FT$2:FT$51,FT9) -> 0 | FU10: =COUNTIF(panel!FU$2:FU$51,FU9) -> 0 | FV10: =COUNTIF(panel!FV$2:FV$51,FV9) -> 0 | FW10: =COUNTIF(panel!FW$2:FW$51,FW9) -> 0 | FX10: =COUNTIF(panel!FX$2:FX$51,FX9) -> 0 | FY10: =COUNTIF(panel!FY$2:FY$51,FY9) -> 0 | FZ10: =COUNTIF(panel!FZ$2:FZ$51,FZ9) -> 0 | GA10: =COUNTIF(panel!GA$2:GA$51,GA9) -> 0 | GB10: =COUNTIF(panel!GB$2:GB$51,GB9) -> 0 | GC10: =COUNTIF(panel!GC$2:GC$51,GC9) -> 0 | GD10: =COUNTIF(panel!GD$2:GD$51,GD9) -> 0 | GE10: =COUNTIF(panel!GE$2:GE$51,GE9) -> 0 | GF10: =COUNTIF(panel!GF$2:GF$51,GF9) -> 0 | GG10: =COUNTIF(panel!GG$2:GG$51,GG9) -> 0 | GH10: =COUNTIF(panel!GH$2:GH$51,GH9) -> 0 | GI10: =COUNTIF(panel!GI$2:GI$51,GI9) -> 0 | GJ10: =COUNTIF(panel!GJ$2:GJ$51,GJ9) -> 0 | GK10: =COUNTIF(panel!GK$2:GK$51,GK9) -> 0 | GL10: =COUNTIF(panel!GL$2:GL$51,GL9) -> 0 | GM10: =COUNTIF(panel!GM$2:GM$51,GM9) -> 0 | GN10: =COUNTIF(panel!GN$2:GN$51,GN9) -> 0 | GO10: =COUNTIF(panel!GO$2:GO$51,GO9) -> 0 | GP10: =COUNTIF(panel!GP$2:GP$51,GP9) -> 0 | GQ10: =COUNTIF(panel!GQ$2:GQ$51,GQ9) -> 0 | GR10: =COUNTIF(panel!GR$2:GR$51,GR9) -> 0 | GS10: =COUNTIF(panel!GS$2:GS$51,GS9) -> 0
A12: n (-2) | B12: =IF(B$10>0,COUNTIF(panel!B$2:B$51,1),"") -> 8 | C12: =IF(C$10>0,COUNTIF(panel!C$2:C$51,1),"") -> 39 | D12: =IF(D$10>0,COUNTIF(panel!D$2:D$51,1),"") -> 6 | E12: =IF(E$10>0,COUNTIF(panel!E$2:E$51,1),"") -> 1 | F12: =IF(F$10>0,COUNTIF(panel!F$2:F$51,1),"") -> 0 | G12: =IF(G$10>0,COUNTIF(panel!G$2:G$51,1),"") -> 0 | H12: =IF(H$10>0,COUNTIF(panel!H$2:H$51,1),"") -> 1 | I12: =IF(I$10>0,COUNTIF(panel!I$2:I$51,1),"") -> 7 | J12: =IF(J$10>0,COUNTIF(panel!J$2:J$51,1),"") -> 4 | K12: =IF(K$10>0,COUNTIF(panel!K$2:K$51,1),"") -> 1 | L12: =IF(L$10>0,COUNTIF(panel!L$2:L$51,1),"") -> 0 | M12: =IF(M$10>0,COUNTIF(panel!M$2:M$51,1),"") -> 0 | N12: =IF(N$10>0,COUNTIF(panel!N$2:N$51,1),"") -> 1 | O12: =IF(O$10>0,COUNTIF(panel!O$2:O$51,1),"") -> 22 | P12: =IF(P$10>0,COUNTIF(panel!P$2:P$51,1),"") -> 1 | Q12: =IF(Q$10>0,COUNTIF(panel!Q$2:Q$51,1),"") -> 3 | R12: =IF(R$10>0,COUNTIF(panel!R$2:R$51,1),"") -> 0 | S12: =IF(S$10>0,COUNTIF(panel!S$2:S$51,1),"") -> 12 | T12: =IF(T$10>0,COUNTIF(panel!T$2:T$51,1),"") -> 0 | U12: =IF(U$10>0,COUNTIF(panel!U$2:U$51,1),"") -> 0 | V12: =IF(V$10>0,COUNTIF(panel!V$2:V$51,1),"") -> 9 | W12: =IF(W$10>0,COUNTIF(panel!W$2:W$51,1),"") -> 4 | X12: =IF(X$10>0,COUNTIF(panel!X$2:X$51,1),"") -> 3 | Y12: =IF(Y$10>0,COUNTIF(panel!Y$2:Y$51,1),"") -> 5 | Z12: =IF(Z$10>0,COUNTIF(panel!Z$2:Z$51,1),"") -> 3 | AA12: =IF(AA$10>0,COUNTIF(panel!AA$2:AA$51,1),"") -> 9 | AB12: =IF(AB$10>0,COUNTIF(panel!AB$2:AB$51,1),"") -> 0 | AC12: =IF(AC$10>0,COUNTIF(panel!AC$2:AC$51,1),"") -> 0 | AD12: =IF(AD$10>0,COUNTIF(panel!AD$2:AD$51,1),"") -> 8 | AE12: =IF(AE$10>0,COUNTIF(panel!AE$2:AE$51,1),"") -> 0 | AF12: =IF(AF$10>0,COUNTIF(panel!AF$2:AF$51,1),"") -> 11 | AG12: =IF(AG$10>0,COUNTIF(panel!AG$2:AG$51,1),"") -> 6 | AH12: =IF(AH$10>0,COUNTIF(panel!AH$2:AH$51,1),"") -> 1 | AI12: =IF(AI$10>0,COUNTIF(panel!AI$2:AI$51,1),"") -> 11 | AJ12: =IF(AJ$10>0,COUNTIF(panel!AJ$2:AJ$51,1),"") -> 0 | AK12: =IF(AK$10>0,COUNTIF(panel!AK$2:AK$51,1),"") -> 4 | AL12: =IF(AL$10>0,COUNTIF(panel!AL$2:AL$51,1),"") -> 10 | AM12: =IF(AM$10>0,COUNTIF(panel!AM$2:AM$51,1),"") -> 1 | AN12: =IF(AN$10>0,COUNTIF(panel!AN$2:AN$51,1),"") -> 2 | AO12: =IF(AO$10>0,COUNTIF(panel!AO$2:AO$51,1),"") -> 5 | AP12: =IF(AP$10>0,COUNTIF(panel!AP$2:AP$51,1),"") -> 0 | AQ12: =IF(AQ$10>0,COUNTIF(panel!AQ$2:AQ$51,1),"") -> 0 | AR12: =IF(AR$10>0,COUNTIF(panel!AR$2:AR$51,1),"") -> 4 | AS12: =IF(AS$10>0,COUNTIF(panel!AS$2:AS$51,1),"") -> 8 | AT12: =IF(AT$10>0,COUNTIF(panel!AT$2:AT$51,1),"") -> 0 | AU12: =IF(AU$10>0,COUNTIF(panel!AU$2:AU$51,1),"") -> 1 | AV12: =IF(AV$10>0,COUNTIF(panel!AV$2:AV$51,1),"") -> 7 | AW12: =IF(AW$10>0,COUNTIF(panel!AW$2:AW$51,1),"") -> 13 | AX12: =IF(AX$10>0,COUNTIF(panel!AX$2:AX$51,1),"") -> 11 | AY12: =IF(AY$10>0,COUNTIF(panel!AY$2:AY$51,1),"") -> 17 | AZ12: =IF(AZ$10>0,COUNTIF(panel!AZ$2:AZ$51,1),"") -> 1 | BA12: =IF(BA$10>0,COUNTIF(panel!BA$2:BA$51,1),"") -> 15 | BB12: =IF(BB$10>0,COUNTIF(panel!BB$2:BB$51,1),"") -> 14 | BC12: =IF(BC$10>0,COUNTIF(panel!BC$2:BC$51,1),"") -> 0 | BD12: =IF(BD$10>0,COUNTIF(panel!BD$2:BD$51,1),"") -> 3 | BE12: =IF(BE$10>0,COUNTIF(panel!BE$2:BE$51,1),"") -> 0 | BF12: =IF(BF$10>0,COUNTIF(panel!BF$2:BF$51,1),"") -> 3 | BG12: =IF(BG$10>0,COUNTIF(panel!BG$2:BG$51,1),"") -> 0 | BH12: =IF(BH$10>0,COUNTIF(panel!BH$2:BH$51,1),"") -> 0 | BI12: =IF(BI$10>0,COUNTIF(panel!BI$2:BI$51,1),"") -> 0 | BJ12: =IF(BJ$10>0,COUNTIF(panel!BJ$2:BJ$51,1),"") -> 27 | BK12: =IF(BK$10>0,COUNTIF(panel!BK$2:BK$51,1),"") -> 0 | BL12: =IF(BL$10>0,COUNTIF(panel!BL$2:BL$51,1),"") -> 8 | BM12: =IF(BM$10>0,COUNTIF(panel!BM$2:BM$51,1),"") -> 3 | BN12: =IF(BN$10>0,COUNTIF(panel!BN$2:BN$51,1),"") -> 1 | BO12: =IF(BO$10>0,COUNTIF(panel!BO$2:BO$51,1),"") -> 1 | BP12: =IF(BP$10>0,COUNTIF(panel!BP$2:BP$51,1),"") -> 2 | BQ12: =IF(BQ$10>0,COUNTIF(panel!BQ$2:BQ$51,1),"") -> 0 | BR12: =IF(BR$10>0,COUNTIF(panel!BR$2:BR$51,1),"") -> 1 | BS12: =IF(BS$10>0,COUNTIF(panel!BS$2:BS$51,1),"") -> 1 | BT12: =IF(BT$10>0,COUNTIF(panel!BT$2:BT$51,1),"") -> 27 | BU12: =IF(BU$10>0,COUNTIF(panel!BU$2:BU$51,1),"") -> 19 | BV12: =IF(BV$10>0,COUNTIF(panel!BV$2:BV$51,1),"") -> 0 | BW12: =IF(BW$10>0,COUNTIF(panel!BW$2:BW$51,1),"") -> 1 | BX12: =IF(BX$10>0,COUNTIF(panel!BX$2:BX$51,1),"") -> 4 | BY12: =IF(BY$10>0,COUNTIF(panel!BY$2:BY$51,1),"") -> 5 | BZ12: =IF(BZ$10>0,COUNTIF(panel!BZ$2:BZ$51,1),"") -> 10 | CA12: =IF(CA$10>0,COUNTIF(panel!CA$2:CA$51,1),"") -> 1 | CB12: =IF(CB$10>0,COUNTIF(panel!CB$2:CB$51,1),"") -> 1 | CC12: =IF(CC$10>0,COUNTIF(panel!CC$2:CC$51,1),"") -> 0 | CD12: =IF(CD$10>0,COUNTIF(panel!CD$2:CD$51,1),"") -> 2 | CE12: =IF(CE$10>0,COUNTIF(panel!CE$2:CE$51,1),"") -> 0 | CF12: =IF(CF$10>0,COUNTIF(panel!CF$2:CF$51,1),"") -> 0 | CG12: =IF(CG$10>0,COUNTIF(panel!CG$2:CG$51,1),"") -> 0 | CH12: =IF(CH$10>0,COUNTIF(panel!CH$2:CH$51,1),"") -> 0 | CI12: =IF(CI$10>0,COUNTIF(panel!CI$2:CI$51,1),"") -> 2 | CJ12: =IF(CJ$10>0,COUNTIF(panel!CJ$2:CJ$51,1),"") -> 3 | CK12: =IF(CK$10>0,COUNTIF(panel!CK$2:CK$51,1),"") -> 13 | CL12: =IF(CL$10>0,COUNTIF(panel!CL$2:CL$51,1),"") -> 10 | CM12: =IF(CM$10>0,COUNTIF(panel!CM$2:CM$51,1),"") -> 1 | CN12: =IF(CN$10>0,COUNTIF(panel!CN$2:CN$51,1),"") ->  | CO12: =IF(CO$10>0,COUNTIF(panel!CO$2:CO$51,1),"") ->  | CP12: =IF(CP$10>0,COUNTIF(panel!CP$2:CP$51,1),"") ->  | CQ12: =IF(CQ$10>0,COUNTIF(panel!CQ$2:CQ$51,1),"") ->  | CR12: =IF(CR$10>0,COUNTIF(panel!CR$2:CR$51,1),"") ->  | CS12: =IF(CS$10>0,COUNTIF(panel!CS$2:CS$51,1),"") ->  | CT12: =IF(CT$10>0,COUNTIF(panel!CT$2:CT$51,1),"") ->  | CU12: =IF(CU$10>0,COUNTIF(panel!CU$2:CU$51,1),"") ->  | CV12: =IF(CV$10>0,COUNTIF(panel!CV$2:CV$51,1),"") ->  | CW12: =IF(CW$10>0,COUNTIF(panel!CW$2:CW$51,1),"") ->  | CX12: =IF(CX$10>0,COUNTIF(panel!CX$2:CX$51,1),"") ->  | CY12: =IF(CY$10>0,COUNTIF(panel!CY$2:CY$51,1),"") ->  | CZ12: =IF(CZ$10>0,COUNTIF(panel!CZ$2:CZ$51,1),"") ->  | DA12: =IF(DA$10>0,COUNTIF(panel!DA$2:DA$51,1),"") ->  | DB12: =IF(DB$10>0,COUNTIF(panel!DB$2:DB$51,1),"") ->  | DC12: =IF(DC$10>0,COUNTIF(panel!DC$2:DC$51,1),"") ->  | DD12: =IF(DD$10>0,COUNTIF(panel!DD$2:DD$51,1),"") ->  | DE12: =IF(DE$10>0,COUNTIF(panel!DE$2:DE$51,1),"") ->  | DF12: =IF(DF$10>0,COUNTIF(panel!DF$2:DF$51,1),"") ->  | DG12: =IF(DG$10>0,COUNTIF(panel!DG$2:DG$51,1),"") ->  | DH12: =IF(DH$10>0,COUNTIF(panel!DH$2:DH$51,1),"") ->  | DI12: =IF(DI$10>0,COUNTIF(panel!DI$2:DI$51,1),"") ->  | DJ12: =IF(DJ$10>0,COUNTIF(panel!DJ$2:DJ$51,1),"") ->  | DK12: =IF(DK$10>0,COUNTIF(panel!DK$2:DK$51,1),"") ->  | DL12: =IF(DL$10>0,COUNTIF(panel!DL$2:DL$51,1),"") ->  | DM12: =IF(DM$10>0,COUNTIF(panel!DM$2:DM$51,1),"") ->  | DN12: =IF(DN$10>0,COUNTIF(panel!DN$2:DN$51,1),"") ->  | DO12: =IF(DO$10>0,COUNTIF(panel!DO$2:DO$51,1),"") ->  | DP12: =IF(DP$10>0,COUNTIF(panel!DP$2:DP$51,1),"") ->  | DQ12: =IF(DQ$10>0,COUNTIF(panel!DQ$2:DQ$51,1),"") ->  | DR12: =IF(DR$10>0,COUNTIF(panel!DR$2:DR$51,1),"") ->  | DS12: =IF(DS$10>0,COUNTIF(panel!DS$2:DS$51,1),"") ->  | DT12: =IF(DT$10>0,COUNTIF(panel!DT$2:DT$51,1),"") ->  | DU12: =IF(DU$10>0,COUNTIF(panel!DU$2:DU$51,1),"") ->  | DV12: =IF(DV$10>0,COUNTIF(panel!DV$2:DV$51,1),"") ->  | DW12: =IF(DW$10>0,COUNTIF(panel!DW$2:DW$51,1),"") ->  | DX12: =IF(DX$10>0,COUNTIF(panel!DX$2:DX$51,1),"") ->  | DY12: =IF(DY$10>0,COUNTIF(panel!DY$2:DY$51,1),"") ->  | DZ12: =IF(DZ$10>0,COUNTIF(panel!DZ$2:DZ$51,1),"") ->  | EA12: =IF(EA$10>0,COUNTIF(panel!EA$2:EA$51,1),"") ->  | EB12: =IF(EB$10>0,COUNTIF(panel!EB$2:EB$51,1),"") ->  | EC12: =IF(EC$10>0,COUNTIF(panel!EC$2:EC$51,1),"") ->  | ED12: =IF(ED$10>0,COUNTIF(panel!ED$2:ED$51,1),"") ->  | EE12: =IF(EE$10>0,COUNTIF(panel!EE$2:EE$51,1),"") ->  | EF12: =IF(EF$10>0,COUNTIF(panel!EF$2:EF$51,1),"") ->  | EG12: =IF(EG$10>0,COUNTIF(panel!EG$2:EG$51,1),"") ->  | EH12: =IF(EH$10>0,COUNTIF(panel!EH$2:EH$51,1),"") ->  | EI12: =IF(EI$10>0,COUNTIF(panel!EI$2:EI$51,1),"") ->  | EJ12: =IF(EJ$10>0,COUNTIF(panel!EJ$2:EJ$51,1),"") ->  | EK12: =IF(EK$10>0,COUNTIF(panel!EK$2:EK$51,1),"") ->  | EL12: =IF(EL$10>0,COUNTIF(panel!EL$2:EL$51,1),"") ->  | EM12: =IF(EM$10>0,COUNTIF(panel!EM$2:EM$51,1),"") ->  | EN12: =IF(EN$10>0,COUNTIF(panel!EN$2:EN$51,1),"") ->  | EO12: =IF(EO$10>0,COUNTIF(panel!EO$2:EO$51,1),"") ->  | EP12: =IF(EP$10>0,COUNTIF(panel!EP$2:EP$51,1),"") ->  | EQ12: =IF(EQ$10>0,COUNTIF(panel!EQ$2:EQ$51,1),"") ->  | ER12: =IF(ER$10>0,COUNTIF(panel!ER$2:ER$51,1),"") ->  | ES12: =IF(ES$10>0,COUNTIF(panel!ES$2:ES$51,1),"") ->  | ET12: =IF(ET$10>0,COUNTIF(panel!ET$2:ET$51,1),"") ->  | EU12: =IF(EU$10>0,COUNTIF(panel!EU$2:EU$51,1),"") ->  | EV12: =IF(EV$10>0,COUNTIF(panel!EV$2:EV$51,1),"") ->  | EW12: =IF(EW$10>0,COUNTIF(panel!EW$2:EW$51,1),"") ->  | EX12: =IF(EX$10>0,COUNTIF(panel!EX$2:EX$51,1),"") ->  | EY12: =IF(EY$10>0,COUNTIF(panel!EY$2:EY$51,1),"") ->  | EZ12: =IF(EZ$10>0,COUNTIF(panel!EZ$2:EZ$51,1),"") ->  | FA12: =IF(FA$10>0,COUNTIF(panel!FA$2:FA$51,1),"") ->  | FB12: =IF(FB$10>0,COUNTIF(panel!FB$2:FB$51,1),"") ->  | FC12: =IF(FC$10>0,COUNTIF(panel!FC$2:FC$51,1),"") ->  | FD12: =IF(FD$10>0,COUNTIF(panel!FD$2:FD$51,1),"") ->  | FE12: =IF(FE$10>0,COUNTIF(panel!FE$2:FE$51,1),"") ->  | FF12: =IF(FF$10>0,COUNTIF(panel!FF$2:FF$51,1),"") ->  | FG12: =IF(FG$10>0,COUNTIF(panel!FG$2:FG$51,1),"") ->  | FH12: =IF(FH$10>0,COUNTIF(panel!FH$2:FH$51,1),"") ->  | FI12: =IF(FI$10>0,COUNTIF(panel!FI$2:FI$51,1),"") ->  | FJ12: =IF(FJ$10>0,COUNTIF(panel!FJ$2:FJ$51,1),"") ->  | FK12: =IF(FK$10>0,COUNTIF(panel!FK$2:FK$51,1),"") ->  | FL12: =IF(FL$10>0,COUNTIF(panel!FL$2:FL$51,1),"") ->  | FM12: =IF(FM$10>0,COUNTIF(panel!FM$2:FM$51,1),"") ->  | FN12: =IF(FN$10>0,COUNTIF(panel!FN$2:FN$51,1),"") ->  | FO12: =IF(FO$10>0,COUNTIF(panel!FO$2:FO$51,1),"") ->  | FP12: =IF(FP$10>0,COUNTIF(panel!FP$2:FP$51,1),"") ->  | FQ12: =IF(FQ$10>0,COUNTIF(panel!FQ$2:FQ$51,1),"") ->  | FR12: =IF(FR$10>0,COUNTIF(panel!FR$2:FR$51,1),"") ->  | FS12: =IF(FS$10>0,COUNTIF(panel!FS$2:FS$51,1),"") ->  | FT12: =IF(FT$10>0,COUNTIF(panel!FT$2:FT$51,1),"") ->  | FU12: =IF(FU$10>0,COUNTIF(panel!FU$2:FU$51,1),"") ->  | FV12: =IF(FV$10>0,COUNTIF(panel!FV$2:FV$51,1),"") ->  | FW12: =IF(FW$10>0,COUNTIF(panel!FW$2:FW$51,1),"") ->  | FX12: =IF(FX$10>0,COUNTIF(panel!FX$2:FX$51,1),"") ->  | FY12: =IF(FY$10>0,COUNTIF(panel!FY$2:FY$51,1),"") ->  | FZ12: =IF(FZ$10>0,COUNTIF(panel!FZ$2:FZ$51,1),"") ->  | GA12: =IF(GA$10>0,COUNTIF(panel!GA$2:GA$51,1),"") ->  | GB12: =IF(GB$10>0,COUNTIF(panel!GB$2:GB$51,1),"") ->  | GC12: =IF(GC$10>0,COUNTIF(panel!GC$2:GC$51,1),"") ->  | GD12: =IF(GD$10>0,COUNTIF(panel!GD$2:GD$51,1),"") ->  | GE12: =IF(GE$10>0,COUNTIF(panel!GE$2:GE$51,1),"") ->  | GF12: =IF(GF$10>0,COUNTIF(panel!GF$2:GF$51,1),"") ->  | GG12: =IF(GG$10>0,COUNTIF(panel!GG$2:GG$51,1),"") ->  | GH12: =IF(GH$10>0,COUNTIF(panel!GH$2:GH$51,1),"") ->  | GI12: =IF(GI$10>0,COUNTIF(panel!GI$2:GI$51,1),"") ->  | GJ12: =IF(GJ$10>0,COUNTIF(panel!GJ$2:GJ$51,1),"") ->  | GK12: =IF(GK$10>0,COUNTIF(panel!GK$2:GK$51,1),"") ->  | GL12: =IF(GL$10>0,COUNTIF(panel!GL$2:GL$51,1),"") ->  | GM12: =IF(GM$10>0,COUNTIF(panel!GM$2:GM$51,1),"") ->  | GN12: =IF(GN$10>0,COUNTIF(panel!GN$2:GN$51,1),"") ->  | GO12: =IF(GO$10>0,COUNTIF(panel!GO$2:GO$51,1),"") ->  | GP12: =IF(GP$10>0,COUNTIF(panel!GP$2:GP$51,1),"") ->  | GQ12: =IF(GQ$10>0,COUNTIF(panel!GQ$2:GQ$51,1),"") ->  | GR12: =IF(GR$10>0,COUNTIF(panel!GR$2:GR$51,1),"") ->  | GS12: =IF(GS$10>0,COUNTIF(panel!GS$2:GS$51,1),"") -> 
A13: n (-1) | B13: =IF(B$10>0,COUNTIF(panel!B$2:B$51,2),"") -> 23 | C13: =IF(C$10>0,COUNTIF(panel!C$2:C$51,2),"") -> 5 | D13: =IF(D$10>0,COUNTIF(panel!D$2:D$51,2),"") -> 14 | E13: =IF(E$10>0,COUNTIF(panel!E$2:E$51,2),"") -> 4 | F13: =IF(F$10>0,COUNTIF(panel!F$2:F$51,2),"") -> 2 | G13: =IF(G$10>0,COUNTIF(panel!G$2:G$51,2),"") -> 2 | H13: =IF(H$10>0,COUNTIF(panel!H$2:H$51,2),"") -> 2 | I13: =IF(I$10>0,COUNTIF(panel!I$2:I$51,2),"") -> 24 | J13: =IF(J$10>0,COUNTIF(panel!J$2:J$51,2),"") -> 22 | K13: =IF(K$10>0,COUNTIF(panel!K$2:K$51,2),"") -> 34 | L13: =IF(L$10>0,COUNTIF(panel!L$2:L$51,2),"") -> 0 | M13: =IF(M$10>0,COUNTIF(panel!M$2:M$51,2),"") -> 0 | N13: =IF(N$10>0,COUNTIF(panel!N$2:N$51,2),"") -> 3 | O13: =IF(O$10>0,COUNTIF(panel!O$2:O$51,2),"") -> 7 | P13: =IF(P$10>0,COUNTIF(panel!P$2:P$51,2),"") -> 2 | Q13: =IF(Q$10>0,COUNTIF(panel!Q$2:Q$51,2),"") -> 19 | R13: =IF(R$10>0,COUNTIF(panel!R$2:R$51,2),"") -> 1 | S13: =IF(S$10>0,COUNTIF(panel!S$2:S$51,2),"") -> 18 | T13: =IF(T$10>0,COUNTIF(panel!T$2:T$51,2),"") -> 4 | U13: =IF(U$10>0,COUNTIF(panel!U$2:U$51,2),"") -> 1 | V13: =IF(V$10>0,COUNTIF(panel!V$2:V$51,2),"") -> 20 | W13: =IF(W$10>0,COUNTIF(panel!W$2:W$51,2),"") -> 24 | X13: =IF(X$10>0,COUNTIF(panel!X$2:X$51,2),"") -> 36 | Y13: =IF(Y$10>0,COUNTIF(panel!Y$2:Y$51,2),"") -> 10 | Z13: =IF(Z$10>0,COUNTIF(panel!Z$2:Z$51,2),"") -> 10 | AA13: =IF(AA$10>0,COUNTIF(panel!AA$2:AA$51,2),"") -> 28 | AB13: =IF(AB$10>0,COUNTIF(panel!AB$2:AB$51,2),"") -> 0 | AC13: =IF(AC$10>0,COUNTIF(panel!AC$2:AC$51,2),"") -> 11 | AD13: =IF(AD$10>0,COUNTIF(panel!AD$2:AD$51,2),"") -> 28 | AE13: =IF(AE$10>0,COUNTIF(panel!AE$2:AE$51,2),"") -> 3 | AF13: =IF(AF$10>0,COUNTIF(panel!AF$2:AF$51,2),"") -> 28 | AG13: =IF(AG$10>0,COUNTIF(panel!AG$2:AG$51,2),"") -> 6 | AH13: =IF(AH$10>0,COUNTIF(panel!AH$2:AH$51,2),"") -> 22 | AI13: =IF(AI$10>0,COUNTIF(panel!AI$2:AI$51,2),"") -> 27 | AJ13: =IF(AJ$10>0,COUNTIF(panel!AJ$2:AJ$51,2),"") -> 1 | AK13: =IF(AK$10>0,COUNTIF(panel!AK$2:AK$51,2),"") -> 20 | AL13: =IF(AL$10>0,COUNTIF(panel!AL$2:AL$51,2),"") -> 20 | AM13: =IF(AM$10>0,COUNTIF(panel!AM$2:AM$51,2),"") -> 6 | AN13: =IF(AN$10>0,COUNTIF(panel!AN$2:AN$51,2),"") -> 22 | AO13: =IF(AO$10>0,COUNTIF(panel!AO$2:AO$51,2),"") -> 34 | AP13: =IF(AP$10>0,COUNTIF(panel!AP$2:AP$51,2),"") -> 0 | AQ13: =IF(AQ$10>0,COUNTIF(panel!AQ$2:AQ$51,2),"") -> 9 | AR13: =IF(AR$10>0,COUNTIF(panel!AR$2:AR$51,2),"") -> 10 | AS13: =IF(AS$10>0,COUNTIF(panel!AS$2:AS$51,2),"") -> 23 | AT13: =IF(AT$10>0,COUNTIF(panel!AT$2:AT$51,2),"") -> 3 | AU13: =IF(AU$10>0,COUNTIF(panel!AU$2:AU$51,2),"") -> 4 | AV13: =IF(AV$10>0,COUNTIF(panel!AV$2:AV$51,2),"") -> 27 | AW13: =IF(AW$10>0,COUNTIF(panel!AW$2:AW$51,2),"") -> 24 | AX13: =IF(AX$10>0,COUNTIF(panel!AX$2:AX$51,2),"") -> 30 | AY13: =IF(AY$10>0,COUNTIF(panel!AY$2:AY$51,2),"") -> 19 | AZ13: =IF(AZ$10>0,COUNTIF(panel!AZ$2:AZ$51,2),"") -> 0 | BA13: =IF(BA$10>0,COUNTIF(panel!BA$2:BA$51,2),"") -> 16 | BB13: =IF(BB$10>0,COUNTIF(panel!BB$2:BB$51,2),"") -> 22 | BC13: =IF(BC$10>0,COUNTIF(panel!BC$2:BC$51,2),"") -> 2 | BD13: =IF(BD$10>0,COUNTIF(panel!BD$2:BD$51,2),"") -> 18 | BE13: =IF(BE$10>0,COUNTIF(panel!BE$2:BE$51,2),"") -> 0 | BF13: =IF(BF$10>0,COUNTIF(panel!BF$2:BF$51,2),"") -> 20 | BG13: =IF(BG$10>0,COUNTIF(panel!BG$2:BG$51,2),"") -> 7 | BH13: =IF(BH$10>0,COUNTIF(panel!BH$2:BH$51,2),"") -> 4 | BI13: =IF(BI$10>0,COUNTIF(panel!BI$2:BI$51,2),"") -> 1 | BJ13: =IF(BJ$10>0,COUNTIF(panel!BJ$2:BJ$51,2),"") -> 15 | BK13: =IF(BK$10>0,COUNTIF(panel!BK$2:BK$51,2),"") -> 0 | BL13: =IF(BL$10>0,COUNTIF(panel!BL$2:BL$51,2),"") -> 23 | BM13: =IF(BM$10>0,COUNTIF(panel!BM$2:BM$51,2),"") -> 2 | BN13: =IF(BN$10>0,COUNTIF(panel!BN$2:BN$51,2),"") -> 2 | BO13: =IF(BO$10>0,COUNTIF(panel!BO$2:BO$51,2),"") -> 2 | BP13: =IF(BP$10>0,COUNTIF(panel!BP$2:BP$51,2),"") -> 24 | BQ13: =IF(BQ$10>0,COUNTIF(panel!BQ$2:BQ$51,2),"") -> 6 | BR13: =IF(BR$10>0,COUNTIF(panel!BR$2:BR$51,2),"") -> 3 | BS13: =IF(BS$10>0,COUNTIF(panel!BS$2:BS$51,2),"") -> 11 | BT13: =IF(BT$10>0,COUNTIF(panel!BT$2:BT$51,2),"") -> 15 | BU13: =IF(BU$10>0,COUNTIF(panel!BU$2:BU$51,2),"") -> 18 | BV13: =IF(BV$10>0,COUNTIF(panel!BV$2:BV$51,2),"") -> 3 | BW13: =IF(BW$10>0,COUNTIF(panel!BW$2:BW$51,2),"") -> 6 | BX13: =IF(BX$10>0,COUNTIF(panel!BX$2:BX$51,2),"") -> 8 | BY13: =IF(BY$10>0,COUNTIF(panel!BY$2:BY$51,2),"") -> 20 | BZ13: =IF(BZ$10>0,COUNTIF(panel!BZ$2:BZ$51,2),"") -> 25 | CA13: =IF(CA$10>0,COUNTIF(panel!CA$2:CA$51,2),"") -> 16 | CB13: =IF(CB$10>0,COUNTIF(panel!CB$2:CB$51,2),"") -> 5 | CC13: =IF(CC$10>0,COUNTIF(panel!CC$2:CC$51,2),"") -> 10 | CD13: =IF(CD$10>0,COUNTIF(panel!CD$2:CD$51,2),"") -> 11 | CE13: =IF(CE$10>0,COUNTIF(panel!CE$2:CE$51,2),"") -> 3 | CF13: =IF(CF$10>0,COUNTIF(panel!CF$2:CF$51,2),"") -> 1 | CG13: =IF(CG$10>0,COUNTIF(panel!CG$2:CG$51,2),"") -> 6 | CH13: =IF(CH$10>0,COUNTIF(panel!CH$2:CH$51,2),"") -> 10 | CI13: =IF(CI$10>0,COUNTIF(panel!CI$2:CI$51,2),"") -> 23 | CJ13: =IF(CJ$10>0,COUNTIF(panel!CJ$2:CJ$51,2),"") -> 7 | CK13: =IF(CK$10>0,COUNTIF(panel!CK$2:CK$51,2),"") -> 29 | CL13: =IF(CL$10>0,COUNTIF(panel!CL$2:CL$51,2),"") -> 16 | CM13: =IF(CM$10>0,COUNTIF(panel!CM$2:CM$51,2),"") -> 3 | CN13: =IF(CN$10>0,COUNTIF(panel!CN$2:CN$51,2),"") ->  | CO13: =IF(CO$10>0,COUNTIF(panel!CO$2:CO$51,2),"") ->  | CP13: =IF(CP$10>0,COUNTIF(panel!CP$2:CP$51,2),"") ->  | CQ13: =IF(CQ$10>0,COUNTIF(panel!CQ$2:CQ$51,2),"") ->  | CR13: =IF(CR$10>0,COUNTIF(panel!CR$2:CR$51,2),"") ->  | CS13: =IF(CS$10>0,COUNTIF(panel!CS$2:CS$51,2),"") ->  | CT13: =IF(CT$10>0,COUNTIF(panel!CT$2:CT$51,2),"") ->  | CU13: =IF(CU$10>0,COUNTIF(panel!CU$2:CU$51,2),"") ->  | CV13: =IF(CV$10>0,COUNTIF(panel!CV$2:CV$51,2),"") ->  | CW13: =IF(CW$10>0,COUNTIF(panel!CW$2:CW$51,2),"") ->  | CX13: =IF(CX$10>0,COUNTIF(panel!CX$2:CX$51,2),"") ->  | CY13: =IF(CY$10>0,COUNTIF(panel!CY$2:CY$51,2),"") ->  | CZ13: =IF(CZ$10>0,COUNTIF(panel!CZ$2:CZ$51,2),"") ->  | DA13: =IF(DA$10>0,COUNTIF(panel!DA$2:DA$51,2),"") ->  | DB13: =IF(DB$10>0,COUNTIF(panel!DB$2:DB$51,2),"") ->  | DC13: =IF(DC$10>0,COUNTIF(panel!DC$2:DC$51,2),"") ->  | DD13: =IF(DD$10>0,COUNTIF(panel!DD$2:DD$51,2),"") ->  | DE13: =IF(DE$10>0,COUNTIF(panel!DE$2:DE$51,2),"") ->  | DF13: =IF(DF$10>0,COUNTIF(panel!DF$2:DF$51,2),"") ->  | DG13: =IF(DG$10>0,COUNTIF(panel!DG$2:DG$51,2),"") ->  | DH13: =IF(DH$10>0,COUNTIF(panel!DH$2:DH$51,2),"") ->  | DI13: =IF(DI$10>0,COUNTIF(panel!DI$2:DI$51,2),"") ->  | DJ13: =IF(DJ$10>0,COUNTIF(panel!DJ$2:DJ$51,2),"") ->  | DK13: =IF(DK$10>0,COUNTIF(panel!DK$2:DK$51,2),"") ->  | DL13: =IF(DL$10>0,COUNTIF(panel!DL$2:DL$51,2),"") ->  | DM13: =IF(DM$10>0,COUNTIF(panel!DM$2:DM$51,2),"") ->  | DN13: =IF(DN$10>0,COUNTIF(panel!DN$2:DN$51,2),"") ->  | DO13: =IF(DO$10>0,COUNTIF(panel!DO$2:DO$51,2),"") ->  | DP13: =IF(DP$10>0,COUNTIF(panel!DP$2:DP$51,2),"") ->  | DQ13: =IF(DQ$10>0,COUNTIF(panel!DQ$2:DQ$51,2),"") ->  | DR13: =IF(DR$10>0,COUNTIF(panel!DR$2:DR$51,2),"") ->  | DS13: =IF(DS$10>0,COUNTIF(panel!DS$2:DS$51,2),"") ->  | DT13: =IF(DT$10>0,COUNTIF(panel!DT$2:DT$51,2),"") ->  | DU13: =IF(DU$10>0,COUNTIF(panel!DU$2:DU$51,2),"") ->  | DV13: =IF(DV$10>0,COUNTIF(panel!DV$2:DV$51,2),"") ->  | DW13: =IF(DW$10>0,COUNTIF(panel!DW$2:DW$51,2),"") ->  | DX13: =IF(DX$10>0,COUNTIF(panel!DX$2:DX$51,2),"") ->  | DY13: =IF(DY$10>0,COUNTIF(panel!DY$2:DY$51,2),"") ->  | DZ13: =IF(DZ$10>0,COUNTIF(panel!DZ$2:DZ$51,2),"") ->  | EA13: =IF(EA$10>0,COUNTIF(panel!EA$2:EA$51,2),"") ->  | EB13: =IF(EB$10>0,COUNTIF(panel!EB$2:EB$51,2),"") ->  | EC13: =IF(EC$10>0,COUNTIF(panel!EC$2:EC$51,2),"") ->  | ED13: =IF(ED$10>0,COUNTIF(panel!ED$2:ED$51,2),"") ->  | EE13: =IF(EE$10>0,COUNTIF(panel!EE$2:EE$51,2),"") ->  | EF13: =IF(EF$10>0,COUNTIF(panel!EF$2:EF$51,2),"") ->  | EG13: =IF(EG$10>0,COUNTIF(panel!EG$2:EG$51,2),"") ->  | EH13: =IF(EH$10>0,COUNTIF(panel!EH$2:EH$51,2),"") ->  | EI13: =IF(EI$10>0,COUNTIF(panel!EI$2:EI$51,2),"") ->  | EJ13: =IF(EJ$10>0,COUNTIF(panel!EJ$2:EJ$51,2),"") ->  | EK13: =IF(EK$10>0,COUNTIF(panel!EK$2:EK$51,2),"") ->  | EL13: =IF(EL$10>0,COUNTIF(panel!EL$2:EL$51,2),"") ->  | EM13: =IF(EM$10>0,COUNTIF(panel!EM$2:EM$51,2),"") ->  | EN13: =IF(EN$10>0,COUNTIF(panel!EN$2:EN$51,2),"") ->  | EO13: =IF(EO$10>0,COUNTIF(panel!EO$2:EO$51,2),"") ->  | EP13: =IF(EP$10>0,COUNTIF(panel!EP$2:EP$51,2),"") ->  | EQ13: =IF(EQ$10>0,COUNTIF(panel!EQ$2:EQ$51,2),"") ->  | ER13: =IF(ER$10>0,COUNTIF(panel!ER$2:ER$51,2),"") ->  | ES13: =IF(ES$10>0,COUNTIF(panel!ES$2:ES$51,2),"") ->  | ET13: =IF(ET$10>0,COUNTIF(panel!ET$2:ET$51,2),"") ->  | EU13: =IF(EU$10>0,COUNTIF(panel!EU$2:EU$51,2),"") ->  | EV13: =IF(EV$10>0,COUNTIF(panel!EV$2:EV$51,2),"") ->  | EW13: =IF(EW$10>0,COUNTIF(panel!EW$2:EW$51,2),"") ->  | EX13: =IF(EX$10>0,COUNTIF(panel!EX$2:EX$51,2),"") ->  | EY13: =IF(EY$10>0,COUNTIF(panel!EY$2:EY$51,2),"") ->  | EZ13: =IF(EZ$10>0,COUNTIF(panel!EZ$2:EZ$51,2),"") ->  | FA13: =IF(FA$10>0,COUNTIF(panel!FA$2:FA$51,2),"") ->  | FB13: =IF(FB$10>0,COUNTIF(panel!FB$2:FB$51,2),"") ->  | FC13: =IF(FC$10>0,COUNTIF(panel!FC$2:FC$51,2),"") ->  | FD13: =IF(FD$10>0,COUNTIF(panel!FD$2:FD$51,2),"") ->  | FE13: =IF(FE$10>0,COUNTIF(panel!FE$2:FE$51,2),"") ->  | FF13: =IF(FF$10>0,COUNTIF(panel!FF$2:FF$51,2),"") ->  | FG13: =IF(FG$10>0,COUNTIF(panel!FG$2:FG$51,2),"") ->  | FH13: =IF(FH$10>0,COUNTIF(panel!FH$2:FH$51,2),"") ->  | FI13: =IF(FI$10>0,COUNTIF(panel!FI$2:FI$51,2),"") ->  | FJ13: =IF(FJ$10>0,COUNTIF(panel!FJ$2:FJ$51,2),"") ->  | FK13: =IF(FK$10>0,COUNTIF(panel!FK$2:FK$51,2),"") ->  | FL13: =IF(FL$10>0,COUNTIF(panel!FL$2:FL$51,2),"") ->  | FM13: =IF(FM$10>0,COUNTIF(panel!FM$2:FM$51,2),"") ->  | FN13: =IF(FN$10>0,COUNTIF(panel!FN$2:FN$51,2),"") ->  | FO13: =IF(FO$10>0,COUNTIF(panel!FO$2:FO$51,2),"") ->  | FP13: =IF(FP$10>0,COUNTIF(panel!FP$2:FP$51,2),"") ->  | FQ13: =IF(FQ$10>0,COUNTIF(panel!FQ$2:FQ$51,2),"") ->  | FR13: =IF(FR$10>0,COUNTIF(panel!FR$2:FR$51,2),"") ->  | FS13: =IF(FS$10>0,COUNTIF(panel!FS$2:FS$51,2),"") ->  | FT13: =IF(FT$10>0,COUNTIF(panel!FT$2:FT$51,2),"") ->  | FU13: =IF(FU$10>0,COUNTIF(panel!FU$2:FU$51,2),"") ->  | FV13: =IF(FV$10>0,COUNTIF(panel!FV$2:FV$51,2),"") ->  | FW13: =IF(FW$10>0,COUNTIF(panel!FW$2:FW$51,2),"") ->  | FX13: =IF(FX$10>0,COUNTIF(panel!FX$2:FX$51,2),"") ->  | FY13: =IF(FY$10>0,COUNTIF(panel!FY$2:FY$51,2),"") ->  | FZ13: =IF(FZ$10>0,COUNTIF(panel!FZ$2:FZ$51,2),"") ->  | GA13: =IF(GA$10>0,COUNTIF(panel!GA$2:GA$51,2),"") ->  | GB13: =IF(GB$10>0,COUNTIF(panel!GB$2:GB$51,2),"") ->  | GC13: =IF(GC$10>0,COUNTIF(panel!GC$2:GC$51,2),"") ->  | GD13: =IF(GD$10>0,COUNTIF(panel!GD$2:GD$51,2),"") ->  | GE13: =IF(GE$10>0,COUNTIF(panel!GE$2:GE$51,2),"") ->  | GF13: =IF(GF$10>0,COUNTIF(panel!GF$2:GF$51,2),"") ->  | GG13: =IF(GG$10>0,COUNTIF(panel!GG$2:GG$51,2),"") ->  | GH13: =IF(GH$10>0,COUNTIF(panel!GH$2:GH$51,2),"") ->  | GI13: =IF(GI$10>0,COUNTIF(panel!GI$2:GI$51,2),"") ->  | GJ13: =IF(GJ$10>0,COUNTIF(panel!GJ$2:GJ$51,2),"") ->  | GK13: =IF(GK$10>0,COUNTIF(panel!GK$2:GK$51,2),"") ->  | GL13: =IF(GL$10>0,COUNTIF(panel!GL$2:GL$51,2),"") ->  | GM13: =IF(GM$10>0,COUNTIF(panel!GM$2:GM$51,2),"") ->  | GN13: =IF(GN$10>0,COUNTIF(panel!GN$2:GN$51,2),"") ->  | GO13: =IF(GO$10>0,COUNTIF(panel!GO$2:GO$51,2),"") ->  | GP13: =IF(GP$10>0,COUNTIF(panel!GP$2:GP$51,2),"") ->  | GQ13: =IF(GQ$10>0,COUNTIF(panel!GQ$2:GQ$51,2),"") ->  | GR13: =IF(GR$10>0,COUNTIF(panel!GR$2:GR$51,2),"") ->  | GS13: =IF(GS$10>0,COUNTIF(panel!GS$2:GS$51,2),"") -> 
A14: n (0) | B14: =IF(B$10>0,COUNTIF(panel!B$2:B$51,3),"") -> 10 | C14: =IF(C$10>0,COUNTIF(panel!C$2:C$51,3),"") -> 1 | D14: =IF(D$10>0,COUNTIF(panel!D$2:D$51,3),"") -> 22 | E14: =IF(E$10>0,COUNTIF(panel!E$2:E$51,3),"") -> 29 | F14: =IF(F$10>0,COUNTIF(panel!F$2:F$51,3),"") -> 40 | G14: =IF(G$10>0,COUNTIF(panel!G$2:G$51,3),"") -> 39 | H14: =IF(H$10>0,COUNTIF(panel!H$2:H$51,3),"") -> 39 | I14: =IF(I$10>0,COUNTIF(panel!I$2:I$51,3),"") -> 13 | J14: =IF(J$10>0,COUNTIF(panel!J$2:J$51,3),"") -> 18 | K14: =IF(K$10>0,COUNTIF(panel!K$2:K$51,3),"") -> 9 | L14: =IF(L$10>0,COUNTIF(panel!L$2:L$51,3),"") -> 3 | M14: =IF(M$10>0,COUNTIF(panel!M$2:M$51,3),"") -> 1 | N14: =IF(N$10>0,COUNTIF(panel!N$2:N$51,3),"") -> 7 | O14: =IF(O$10>0,COUNTIF(panel!O$2:O$51,3),"") -> 3 | P14: =IF(P$10>0,COUNTIF(panel!P$2:P$51,3),"") -> 8 | Q14: =IF(Q$10>0,COUNTIF(panel!Q$2:Q$51,3),"") -> 14 | R14: =IF(R$10>0,COUNTIF(panel!R$2:R$51,3),"") -> 1 | S14: =IF(S$10>0,COUNTIF(panel!S$2:S$51,3),"") -> 5 | T14: =IF(T$10>0,COUNTIF(panel!T$2:T$51,3),"") -> 21 | U14: =IF(U$10>0,COUNTIF(panel!U$2:U$51,3),"") -> 4 | V14: =IF(V$10>0,COUNTIF(panel!V$2:V$51,3),"") -> 14 | W14: =IF(W$10>0,COUNTIF(panel!W$2:W$51,3),"") -> 11 | X14: =IF(X$10>0,COUNTIF(panel!X$2:X$51,3),"") -> 6 | Y14: =IF(Y$10>0,COUNTIF(panel!Y$2:Y$51,3),"") -> 12 | Z14: =IF(Z$10>0,COUNTIF(panel!Z$2:Z$51,3),"") -> 26 | AA14: =IF(AA$10>0,COUNTIF(panel!AA$2:AA$51,3),"") -> 7 | AB14: =IF(AB$10>0,COUNTIF(panel!AB$2:AB$51,3),"") -> 16 | AC14: =IF(AC$10>0,COUNTIF(panel!AC$2:AC$51,3),"") -> 16 | AD14: =IF(AD$10>0,COUNTIF(panel!AD$2:AD$51,3),"") -> 3 | AE14: =IF(AE$10>0,COUNTIF(panel!AE$2:AE$51,3),"") -> 29 | AF14: =IF(AF$10>0,COUNTIF(panel!AF$2:AF$51,3),"") -> 4 | AG14: =IF(AG$10>0,COUNTIF(panel!AG$2:AG$51,3),"") -> 12 | AH14: =IF(AH$10>0,COUNTIF(panel!AH$2:AH$51,3),"") -> 16 | AI14: =IF(AI$10>0,COUNTIF(panel!AI$2:AI$51,3),"") -> 6 | AJ14: =IF(AJ$10>0,COUNTIF(panel!AJ$2:AJ$51,3),"") -> 10 | AK14: =IF(AK$10>0,COUNTIF(panel!AK$2:AK$51,3),"") -> 19 | AL14: =IF(AL$10>0,COUNTIF(panel!AL$2:AL$51,3),"") -> 3 | AM14: =IF(AM$10>0,COUNTIF(panel!AM$2:AM$51,3),"") -> 34 | AN14: =IF(AN$10>0,COUNTIF(panel!AN$2:AN$51,3),"") -> 19 | AO14: =IF(AO$10>0,COUNTIF(panel!AO$2:AO$51,3),"") -> 5 | AP14: =IF(AP$10>0,COUNTIF(panel!AP$2:AP$51,3),"") -> 0 | AQ14: =IF(AQ$10>0,COUNTIF(panel!AQ$2:AQ$51,3),"") -> 10 | AR14: =IF(AR$10>0,COUNTIF(panel!AR$2:AR$51,3),"") -> 28 | AS14: =IF(AS$10>0,COUNTIF(panel!AS$2:AS$51,3),"") -> 11 | AT14: =IF(AT$10>0,COUNTIF(panel!AT$2:AT$51,3),"") -> 20 | AU14: =IF(AU$10>0,COUNTIF(panel!AU$2:AU$51,3),"") -> 5 | AV14: =IF(AV$10>0,COUNTIF(panel!AV$2:AV$51,3),"") -> 4 | AW14: =IF(AW$10>0,COUNTIF(panel!AW$2:AW$51,3),"") -> 5 | AX14: =IF(AX$10>0,COUNTIF(panel!AX$2:AX$51,3),"") -> 1 | AY14: =IF(AY$10>0,COUNTIF(panel!AY$2:AY$51,3),"") -> 6 | AZ14: =IF(AZ$10>0,COUNTIF(panel!AZ$2:AZ$51,3),"") -> 5 | BA14: =IF(BA$10>0,COUNTIF(panel!BA$2:BA$51,3),"") -> 10 | BB14: =IF(BB$10>0,COUNTIF(panel!BB$2:BB$51,3),"") -> 8 | BC14: =IF(BC$10>0,COUNTIF(panel!BC$2:BC$51,3),"") -> 33 | BD14: =IF(BD$10>0,COUNTIF(panel!BD$2:BD$51,3),"") -> 6 | BE14: =IF(BE$10>0,COUNTIF(panel!BE$2:BE$51,3),"") -> 1 | BF14: =IF(BF$10>0,COUNTIF(panel!BF$2:BF$51,3),"") -> 8 | BG14: =IF(BG$10>0,COUNTIF(panel!BG$2:BG$51,3),"") -> 11 | BH14: =IF(BH$10>0,COUNTIF(panel!BH$2:BH$51,3),"") -> 13 | BI14: =IF(BI$10>0,COUNTIF(panel!BI$2:BI$51,3),"") -> 8 | BJ14: =IF(BJ$10>0,COUNTIF(panel!BJ$2:BJ$51,3),"") -> 1 | BK14: =IF(BK$10>0,COUNTIF(panel!BK$2:BK$51,3),"") -> 11 | BL14: =IF(BL$10>0,COUNTIF(panel!BL$2:BL$51,3),"") -> 14 | BM14: =IF(BM$10>0,COUNTIF(panel!BM$2:BM$51,3),"") -> 0 | BN14: =IF(BN$10>0,COUNTIF(panel!BN$2:BN$51,3),"") -> 27 | BO14: =IF(BO$10>0,COUNTIF(panel!BO$2:BO$51,3),"") -> 27 | BP14: =IF(BP$10>0,COUNTIF(panel!BP$2:BP$51,3),"") -> 8 | BQ14: =IF(BQ$10>0,COUNTIF(panel!BQ$2:BQ$51,3),"") -> 2 | BR14: =IF(BR$10>0,COUNTIF(panel!BR$2:BR$51,3),"") -> 6 | BS14: =IF(BS$10>0,COUNTIF(panel!BS$2:BS$51,3),"") -> 33 | BT14: =IF(BT$10>0,COUNTIF(panel!BT$2:BT$51,3),"") -> 3 | BU14: =IF(BU$10>0,COUNTIF(panel!BU$2:BU$51,3),"") -> 8 | BV14: =IF(BV$10>0,COUNTIF(panel!BV$2:BV$51,3),"") -> 38 | BW14: =IF(BW$10>0,COUNTIF(panel!BW$2:BW$51,3),"") -> 33 | BX14: =IF(BX$10>0,COUNTIF(panel!BX$2:BX$51,3),"") -> 6 | BY14: =IF(BY$10>0,COUNTIF(panel!BY$2:BY$51,3),"") -> 18 | BZ14: =IF(BZ$10>0,COUNTIF(panel!BZ$2:BZ$51,3),"") -> 6 | CA14: =IF(CA$10>0,COUNTIF(panel!CA$2:CA$51,3),"") -> 10 | CB14: =IF(CB$10>0,COUNTIF(panel!CB$2:CB$51,3),"") -> 14 | CC14: =IF(CC$10>0,COUNTIF(panel!CC$2:CC$51,3),"") -> 8 | CD14: =IF(CD$10>0,COUNTIF(panel!CD$2:CD$51,3),"") -> 22 | CE14: =IF(CE$10>0,COUNTIF(panel!CE$2:CE$51,3),"") -> 6 | CF14: =IF(CF$10>0,COUNTIF(panel!CF$2:CF$51,3),"") -> 5 | CG14: =IF(CG$10>0,COUNTIF(panel!CG$2:CG$51,3),"") -> 4 | CH14: =IF(CH$10>0,COUNTIF(panel!CH$2:CH$51,3),"") -> 32 | CI14: =IF(CI$10>0,COUNTIF(panel!CI$2:CI$51,3),"") -> 18 | CJ14: =IF(CJ$10>0,COUNTIF(panel!CJ$2:CJ$51,3),"") -> 13 | CK14: =IF(CK$10>0,COUNTIF(panel!CK$2:CK$51,3),"") -> 3 | CL14: =IF(CL$10>0,COUNTIF(panel!CL$2:CL$51,3),"") -> 19 | CM14: =IF(CM$10>0,COUNTIF(panel!CM$2:CM$51,3),"") -> 11 | CN14: =IF(CN$10>0,COUNTIF(panel!CN$2:CN$51,3),"") ->  | CO14: =IF(CO$10>0,COUNTIF(panel!CO$2:CO$51,3),"") ->  | CP14: =IF(CP$10>0,COUNTIF(panel!CP$2:CP$51,3),"") ->  | CQ14: =IF(CQ$10>0,COUNTIF(panel!CQ$2:CQ$51,3),"") ->  | CR14: =IF(CR$10>0,COUNTIF(panel!CR$2:CR$51,3),"") ->  | CS14: =IF(CS$10>0,COUNTIF(panel!CS$2:CS$51,3),"") ->  | CT14: =IF(CT$10>0,COUNTIF(panel!CT$2:CT$51,3),"") ->  | CU14: =IF(CU$10>0,COUNTIF(panel!CU$2:CU$51,3),"") ->  | CV14: =IF(CV$10>0,COUNTIF(panel!CV$2:CV$51,3),"") ->  | CW14: =IF(CW$10>0,COUNTIF(panel!CW$2:CW$51,3),"") ->  | CX14: =IF(CX$10>0,COUNTIF(panel!CX$2:CX$51,3),"") ->  | CY14: =IF(CY$10>0,COUNTIF(panel!CY$2:CY$51,3),"") ->  | CZ14: =IF(CZ$10>0,COUNTIF(panel!CZ$2:CZ$51,3),"") ->  | DA14: =IF(DA$10>0,COUNTIF(panel!DA$2:DA$51,3),"") ->  | DB14: =IF(DB$10>0,COUNTIF(panel!DB$2:DB$51,3),"") ->  | DC14: =IF(DC$10>0,COUNTIF(panel!DC$2:DC$51,3),"") ->  | DD14: =IF(DD$10>0,COUNTIF(panel!DD$2:DD$51,3),"") ->  | DE14: =IF(DE$10>0,COUNTIF(panel!DE$2:DE$51,3),"") ->  | DF14: =IF(DF$10>0,COUNTIF(panel!DF$2:DF$51,3),"") ->  | DG14: =IF(DG$10>0,COUNTIF(panel!DG$2:DG$51,3),"") ->  | DH14: =IF(DH$10>0,COUNTIF(panel!DH$2:DH$51,3),"") ->  | DI14: =IF(DI$10>0,COUNTIF(panel!DI$2:DI$51,3),"") ->  | DJ14: =IF(DJ$10>0,COUNTIF(panel!DJ$2:DJ$51,3),"") ->  | DK14: =IF(DK$10>0,COUNTIF(panel!DK$2:DK$51,3),"") ->  | DL14: =IF(DL$10>0,COUNTIF(panel!DL$2:DL$51,3),"") ->  | DM14: =IF(DM$10>0,COUNTIF(panel!DM$2:DM$51,3),"") ->  | DN14: =IF(DN$10>0,COUNTIF(panel!DN$2:DN$51,3),"") ->  | DO14: =IF(DO$10>0,COUNTIF(panel!DO$2:DO$51,3),"") ->  | DP14: =IF(DP$10>0,COUNTIF(panel!DP$2:DP$51,3),"") ->  | DQ14: =IF(DQ$10>0,COUNTIF(panel!DQ$2:DQ$51,3),"") ->  | DR14: =IF(DR$10>0,COUNTIF(panel!DR$2:DR$51,3),"") ->  | DS14: =IF(DS$10>0,COUNTIF(panel!DS$2:DS$51,3),"") ->  | DT14: =IF(DT$10>0,COUNTIF(panel!DT$2:DT$51,3),"") ->  | DU14: =IF(DU$10>0,COUNTIF(panel!DU$2:DU$51,3),"") ->  | DV14: =IF(DV$10>0,COUNTIF(panel!DV$2:DV$51,3),"") ->  | DW14: =IF(DW$10>0,COUNTIF(panel!DW$2:DW$51,3),"") ->  | DX14: =IF(DX$10>0,COUNTIF(panel!DX$2:DX$51,3),"") ->  | DY14: =IF(DY$10>0,COUNTIF(panel!DY$2:DY$51,3),"") ->  | DZ14: =IF(DZ$10>0,COUNTIF(panel!DZ$2:DZ$51,3),"") ->  | EA14: =IF(EA$10>0,COUNTIF(panel!EA$2:EA$51,3),"") ->  | EB14: =IF(EB$10>0,COUNTIF(panel!EB$2:EB$51,3),"") ->  | EC14: =IF(EC$10>0,COUNTIF(panel!EC$2:EC$51,3),"") ->  | ED14: =IF(ED$10>0,COUNTIF(panel!ED$2:ED$51,3),"") ->  | EE14: =IF(EE$10>0,COUNTIF(panel!EE$2:EE$51,3),"") ->  | EF14: =IF(EF$10>0,COUNTIF(panel!EF$2:EF$51,3),"") ->  | EG14: =IF(EG$10>0,COUNTIF(panel!EG$2:EG$51,3),"") ->  | EH14: =IF(EH$10>0,COUNTIF(panel!EH$2:EH$51,3),"") ->  | EI14: =IF(EI$10>0,COUNTIF(panel!EI$2:EI$51,3),"") ->  | EJ14: =IF(EJ$10>0,COUNTIF(panel!EJ$2:EJ$51,3),"") ->  | EK14: =IF(EK$10>0,COUNTIF(panel!EK$2:EK$51,3),"") ->  | EL14: =IF(EL$10>0,COUNTIF(panel!EL$2:EL$51,3),"") ->  | EM14: =IF(EM$10>0,COUNTIF(panel!EM$2:EM$51,3),"") ->  | EN14: =IF(EN$10>0,COUNTIF(panel!EN$2:EN$51,3),"") ->  | EO14: =IF(EO$10>0,COUNTIF(panel!EO$2:EO$51,3),"") ->  | EP14: =IF(EP$10>0,COUNTIF(panel!EP$2:EP$51,3),"") ->  | EQ14: =IF(EQ$10>0,COUNTIF(panel!EQ$2:EQ$51,3),"") ->  | ER14: =IF(ER$10>0,COUNTIF(panel!ER$2:ER$51,3),"") ->  | ES14: =IF(ES$10>0,COUNTIF(panel!ES$2:ES$51,3),"") ->  | ET14: =IF(ET$10>0,COUNTIF(panel!ET$2:ET$51,3),"") ->  | EU14: =IF(EU$10>0,COUNTIF(panel!EU$2:EU$51,3),"") ->  | EV14: =IF(EV$10>0,COUNTIF(panel!EV$2:EV$51,3),"") ->  | EW14: =IF(EW$10>0,COUNTIF(panel!EW$2:EW$51,3),"") ->  | EX14: =IF(EX$10>0,COUNTIF(panel!EX$2:EX$51,3),"") ->  | EY14: =IF(EY$10>0,COUNTIF(panel!EY$2:EY$51,3),"") ->  | EZ14: =IF(EZ$10>0,COUNTIF(panel!EZ$2:EZ$51,3),"") ->  | FA14: =IF(FA$10>0,COUNTIF(panel!FA$2:FA$51,3),"") ->  | FB14: =IF(FB$10>0,COUNTIF(panel!FB$2:FB$51,3),"") ->  | FC14: =IF(FC$10>0,COUNTIF(panel!FC$2:FC$51,3),"") ->  | FD14: =IF(FD$10>0,COUNTIF(panel!FD$2:FD$51,3),"") ->  | FE14: =IF(FE$10>0,COUNTIF(panel!FE$2:FE$51,3),"") ->  | FF14: =IF(FF$10>0,COUNTIF(panel!FF$2:FF$51,3),"") ->  | FG14: =IF(FG$10>0,COUNTIF(panel!FG$2:FG$51,3),"") ->  | FH14: =IF(FH$10>0,COUNTIF(panel!FH$2:FH$51,3),"") ->  | FI14: =IF(FI$10>0,COUNTIF(panel!FI$2:FI$51,3),"") ->  | FJ14: =IF(FJ$10>0,COUNTIF(panel!FJ$2:FJ$51,3),"") ->  | FK14: =IF(FK$10>0,COUNTIF(panel!FK$2:FK$51,3),"") ->  | FL14: =IF(FL$10>0,COUNTIF(panel!FL$2:FL$51,3),"") ->  | FM14: =IF(FM$10>0,COUNTIF(panel!FM$2:FM$51,3),"") ->  | FN14: =IF(FN$10>0,COUNTIF(panel!FN$2:FN$51,3),"") ->  | FO14: =IF(FO$10>0,COUNTIF(panel!FO$2:FO$51,3),"") ->  | FP14: =IF(FP$10>0,COUNTIF(panel!FP$2:FP$51,3),"") ->  | FQ14: =IF(FQ$10>0,COUNTIF(panel!FQ$2:FQ$51,3),"") ->  | FR14: =IF(FR$10>0,COUNTIF(panel!FR$2:FR$51,3),"") ->  | FS14: =IF(FS$10>0,COUNTIF(panel!FS$2:FS$51,3),"") ->  | FT14: =IF(FT$10>0,COUNTIF(panel!FT$2:FT$51,3),"") ->  | FU14: =IF(FU$10>0,COUNTIF(panel!FU$2:FU$51,3),"") ->  | FV14: =IF(FV$10>0,COUNTIF(panel!FV$2:FV$51,3),"") ->  | FW14: =IF(FW$10>0,COUNTIF(panel!FW$2:FW$51,3),"") ->  | FX14: =IF(FX$10>0,COUNTIF(panel!FX$2:FX$51,3),"") ->  | FY14: =IF(FY$10>0,COUNTIF(panel!FY$2:FY$51,3),"") ->  | FZ14: =IF(FZ$10>0,COUNTIF(panel!FZ$2:FZ$51,3),"") ->  | GA14: =IF(GA$10>0,COUNTIF(panel!GA$2:GA$51,3),"") ->  | GB14: =IF(GB$10>0,COUNTIF(panel!GB$2:GB$51,3),"") ->  | GC14: =IF(GC$10>0,COUNTIF(panel!GC$2:GC$51,3),"") ->  | GD14: =IF(GD$10>0,COUNTIF(panel!GD$2:GD$51,3),"") ->  | GE14: =IF(GE$10>0,COUNTIF(panel!GE$2:GE$51,3),"") ->  | GF14: =IF(GF$10>0,COUNTIF(panel!GF$2:GF$51,3),"") ->  | GG14: =IF(GG$10>0,COUNTIF(panel!GG$2:GG$51,3),"") ->  | GH14: =IF(GH$10>0,COUNTIF(panel!GH$2:GH$51,3),"") ->  | GI14: =IF(GI$10>0,COUNTIF(panel!GI$2:GI$51,3),"") ->  | GJ14: =IF(GJ$10>0,COUNTIF(panel!GJ$2:GJ$51,3),"") ->  | GK14: =IF(GK$10>0,COUNTIF(panel!GK$2:GK$51,3),"") ->  | GL14: =IF(GL$10>0,COUNTIF(panel!GL$2:GL$51,3),"") ->  | GM14: =IF(GM$10>0,COUNTIF(panel!GM$2:GM$51,3),"") ->  | GN14: =IF(GN$10>0,COUNTIF(panel!GN$2:GN$51,3),"") ->  | GO14: =IF(GO$10>0,COUNTIF(panel!GO$2:GO$51,3),"") ->  | GP14: =IF(GP$10>0,COUNTIF(panel!GP$2:GP$51,3),"") ->  | GQ14: =IF(GQ$10>0,COUNTIF(panel!GQ$2:GQ$51,3),"") ->  | GR14: =IF(GR$10>0,COUNTIF(panel!GR$2:GR$51,3),"") ->  | GS14: =IF(GS$10>0,COUNTIF(panel!GS$2:GS$51,3),"") -> 
A15: n (1) | B15: =IF(B$10>0,COUNTIF(panel!B$2:B$51,4),"") -> 2 | C15: =IF(C$10>0,COUNTIF(panel!C$2:C$51,4),"") -> 0 | D15: =IF(D$10>0,COUNTIF(panel!D$2:D$51,4),"") -> 0 | E15: =IF(E$10>0,COUNTIF(panel!E$2:E$51,4),"") -> 5 | F15: =IF(F$10>0,COUNTIF(panel!F$2:F$51,4),"") -> 1 | G15: =IF(G$10>0,COUNTIF(panel!G$2:G$51,4),"") -> 2 | H15: =IF(H$10>0,COUNTIF(panel!H$2:H$51,4),"") -> 1 | I15: =IF(I$10>0,COUNTIF(panel!I$2:I$51,4),"") -> 1 | J15: =IF(J$10>0,COUNTIF(panel!J$2:J$51,4),"") -> 1 | K15: =IF(K$10>0,COUNTIF(panel!K$2:K$51,4),"") -> 1 | L15: =IF(L$10>0,COUNTIF(panel!L$2:L$51,4),"") -> 31 | M15: =IF(M$10>0,COUNTIF(panel!M$2:M$51,4),"") -> 21 | N15: =IF(N$10>0,COUNTIF(panel!N$2:N$51,4),"") -> 28 | O15: =IF(O$10>0,COUNTIF(panel!O$2:O$51,4),"") -> 8 | P15: =IF(P$10>0,COUNTIF(panel!P$2:P$51,4),"") -> 27 | Q15: =IF(Q$10>0,COUNTIF(panel!Q$2:Q$51,4),"") -> 8 | R15: =IF(R$10>0,COUNTIF(panel!R$2:R$51,4),"") -> 29 | S15: =IF(S$10>0,COUNTIF(panel!S$2:S$51,4),"") -> 9 | T15: =IF(T$10>0,COUNTIF(panel!T$2:T$51,4),"") -> 10 | U15: =IF(U$10>0,COUNTIF(panel!U$2:U$51,4),"") -> 15 | V15: =IF(V$10>0,COUNTIF(panel!V$2:V$51,4),"") -> 1 | W15: =IF(W$10>0,COUNTIF(panel!W$2:W$51,4),"") -> 5 | X15: =IF(X$10>0,COUNTIF(panel!X$2:X$51,4),"") -> 0 | Y15: =IF(Y$10>0,COUNTIF(panel!Y$2:Y$51,4),"") -> 18 | Z15: =IF(Z$10>0,COUNTIF(panel!Z$2:Z$51,4),"") -> 5 | AA15: =IF(AA$10>0,COUNTIF(panel!AA$2:AA$51,4),"") -> 1 | AB15: =IF(AB$10>0,COUNTIF(panel!AB$2:AB$51,4),"") -> 22 | AC15: =IF(AC$10>0,COUNTIF(panel!AC$2:AC$51,4),"") -> 12 | AD15: =IF(AD$10>0,COUNTIF(panel!AD$2:AD$51,4),"") -> 1 | AE15: =IF(AE$10>0,COUNTIF(panel!AE$2:AE$51,4),"") -> 8 | AF15: =IF(AF$10>0,COUNTIF(panel!AF$2:AF$51,4),"") -> 2 | AG15: =IF(AG$10>0,COUNTIF(panel!AG$2:AG$51,4),"") -> 13 | AH15: =IF(AH$10>0,COUNTIF(panel!AH$2:AH$51,4),"") -> 5 | AI15: =IF(AI$10>0,COUNTIF(panel!AI$2:AI$51,4),"") -> 0 | AJ15: =IF(AJ$10>0,COUNTIF(panel!AJ$2:AJ$51,4),"") -> 22 | AK15: =IF(AK$10>0,COUNTIF(panel!AK$2:AK$51,4),"") -> 0 | AL15: =IF(AL$10>0,COUNTIF(panel!AL$2:AL$51,4),"") -> 7 | AM15: =IF(AM$10>0,COUNTIF(panel!AM$2:AM$51,4),"") -> 3 | AN15: =IF(AN$10>0,COUNTIF(panel!AN$2:AN$51,4),"") -> 0 | AO15: =IF(AO$10>0,COUNTIF(panel!AO$2:AO$51,4),"") -> 1 | AP15: =IF(AP$10>0,COUNTIF(panel!AP$2:AP$51,4),"") -> 31 | AQ15: =IF(AQ$10>0,COUNTIF(panel!AQ$2:AQ$51,4),"") -> 22 | AR15: =IF(AR$10>0,COUNTIF(panel!AR$2:AR$51,4),"") -> 1 | AS15: =IF(AS$10>0,COUNTIF(panel!AS$2:AS$51,4),"") -> 3 | AT15: =IF(AT$10>0,COUNTIF(panel!AT$2:AT$51,4),"") -> 16 | AU15: =IF(AU$10>0,COUNTIF(panel!AU$2:AU$51,4),"") -> 13 | AV15: =IF(AV$10>0,COUNTIF(panel!AV$2:AV$51,4),"") -> 2 | AW15: =IF(AW$10>0,COUNTIF(panel!AW$2:AW$51,4),"") -> 1 | AX15: =IF(AX$10>0,COUNTIF(panel!AX$2:AX$51,4),"") -> 2 | AY15: =IF(AY$10>0,COUNTIF(panel!AY$2:AY$51,4),"") -> 1 | AZ15: =IF(AZ$10>0,COUNTIF(panel!AZ$2:AZ$51,4),"") -> 8 | BA15: =IF(BA$10>0,COUNTIF(panel!BA$2:BA$51,4),"") -> 1 | BB15: =IF(BB$10>0,COUNTIF(panel!BB$2:BB$51,4),"") -> 0 | BC15: =IF(BC$10>0,COUNTIF(panel!BC$2:BC$51,4),"") -> 7 | BD15: =IF(BD$10>0,COUNTIF(panel!BD$2:BD$51,4),"") -> 13 | BE15: =IF(BE$10>0,COUNTIF(panel!BE$2:BE$51,4),"") -> 17 | BF15: =IF(BF$10>0,COUNTIF(panel!BF$2:BF$51,4),"") -> 10 | BG15: =IF(BG$10>0,COUNTIF(panel!BG$2:BG$51,4),"") -> 22 | BH15: =IF(BH$10>0,COUNTIF(panel!BH$2:BH$51,4),"") -> 24 | BI15: =IF(BI$10>0,COUNTIF(panel!BI$2:BI$51,4),"") -> 27 | BJ15: =IF(BJ$10>0,COUNTIF(panel!BJ$2:BJ$51,4),"") -> 1 | BK15: =IF(BK$10>0,COUNTIF(panel!BK$2:BK$51,4),"") -> 16 | BL15: =IF(BL$10>0,COUNTIF(panel!BL$2:BL$51,4),"") -> 0 | BM15: =IF(BM$10>0,COUNTIF(panel!BM$2:BM$51,4),"") -> 2 | BN15: =IF(BN$10>0,COUNTIF(panel!BN$2:BN$51,4),"") -> 10 | BO15: =IF(BO$10>0,COUNTIF(panel!BO$2:BO$51,4),"") -> 7 | BP15: =IF(BP$10>0,COUNTIF(panel!BP$2:BP$51,4),"") -> 9 | BQ15: =IF(BQ$10>0,COUNTIF(panel!BQ$2:BQ$51,4),"") -> 23 | BR15: =IF(BR$10>0,COUNTIF(panel!BR$2:BR$51,4),"") -> 15 | BS15: =IF(BS$10>0,COUNTIF(panel!BS$2:BS$51,4),"") -> 0 | BT15: =IF(BT$10>0,COUNTIF(panel!BT$2:BT$51,4),"") -> 0 | BU15: =IF(BU$10>0,COUNTIF(panel!BU$2:BU$51,4),"") -> 0 | BV15: =IF(BV$10>0,COUNTIF(panel!BV$2:BV$51,4),"") -> 3 | BW15: =IF(BW$10>0,COUNTIF(panel!BW$2:BW$51,4),"") -> 3 | BX15: =IF(BX$10>0,COUNTIF(panel!BX$2:BX$51,4),"") -> 9 | BY15: =IF(BY$10>0,COUNTIF(panel!BY$2:BY$51,4),"") -> 0 | BZ15: =IF(BZ$10>0,COUNTIF(panel!BZ$2:BZ$51,4),"") -> 0 | CA15: =IF(CA$10>0,COUNTIF(panel!CA$2:CA$51,4),"") -> 15 | CB15: =IF(CB$10>0,COUNTIF(panel!CB$2:CB$51,4),"") -> 11 | CC15: =IF(CC$10>0,COUNTIF(panel!CC$2:CC$51,4),"") -> 17 | CD15: =IF(CD$10>0,COUNTIF(panel!CD$2:CD$51,4),"") -> 9 | CE15: =IF(CE$10>0,COUNTIF(panel!CE$2:CE$51,4),"") -> 28 | CF15: =IF(CF$10>0,COUNTIF(panel!CF$2:CF$51,4),"") -> 23 | CG15: =IF(CG$10>0,COUNTIF(panel!CG$2:CG$51,4),"") -> 26 | CH15: =IF(CH$10>0,COUNTIF(panel!CH$2:CH$51,4),"") -> 1 | CI15: =IF(CI$10>0,COUNTIF(panel!CI$2:CI$51,4),"") -> 1 | CJ15: =IF(CJ$10>0,COUNTIF(panel!CJ$2:CJ$51,4),"") -> 14 | CK15: =IF(CK$10>0,COUNTIF(panel!CK$2:CK$51,4),"") -> 0 | CL15: =IF(CL$10>0,COUNTIF(panel!CL$2:CL$51,4),"") -> 0 | CM15: =IF(CM$10>0,COUNTIF(panel!CM$2:CM$51,4),"") -> 22 | CN15: =IF(CN$10>0,COUNTIF(panel!CN$2:CN$51,4),"") ->  | CO15: =IF(CO$10>0,COUNTIF(panel!CO$2:CO$51,4),"") ->  | CP15: =IF(CP$10>0,COUNTIF(panel!CP$2:CP$51,4),"") ->  | CQ15: =IF(CQ$10>0,COUNTIF(panel!CQ$2:CQ$51,4),"") ->  | CR15: =IF(CR$10>0,COUNTIF(panel!CR$2:CR$51,4),"") ->  | CS15: =IF(CS$10>0,COUNTIF(panel!CS$2:CS$51,4),"") ->  | CT15: =IF(CT$10>0,COUNTIF(panel!CT$2:CT$51,4),"") ->  | CU15: =IF(CU$10>0,COUNTIF(panel!CU$2:CU$51,4),"") ->  | CV15: =IF(CV$10>0,COUNTIF(panel!CV$2:CV$51,4),"") ->  | CW15: =IF(CW$10>0,COUNTIF(panel!CW$2:CW$51,4),"") ->  | CX15: =IF(CX$10>0,COUNTIF(panel!CX$2:CX$51,4),"") ->  | CY15: =IF(CY$10>0,COUNTIF(panel!CY$2:CY$51,4),"") ->  | CZ15: =IF(CZ$10>0,COUNTIF(panel!CZ$2:CZ$51,4),"") ->  | DA15: =IF(DA$10>0,COUNTIF(panel!DA$2:DA$51,4),"") ->  | DB15: =IF(DB$10>0,COUNTIF(panel!DB$2:DB$51,4),"") ->  | DC15: =IF(DC$10>0,COUNTIF(panel!DC$2:DC$51,4),"") ->  | DD15: =IF(DD$10>0,COUNTIF(panel!DD$2:DD$51,4),"") ->  | DE15: =IF(DE$10>0,COUNTIF(panel!DE$2:DE$51,4),"") ->  | DF15: =IF(DF$10>0,COUNTIF(panel!DF$2:DF$51,4),"") ->  | DG15: =IF(DG$10>0,COUNTIF(panel!DG$2:DG$51,4),"") ->  | DH15: =IF(DH$10>0,COUNTIF(panel!DH$2:DH$51,4),"") ->  | DI15: =IF(DI$10>0,COUNTIF(panel!DI$2:DI$51,4),"") ->  | DJ15: =IF(DJ$10>0,COUNTIF(panel!DJ$2:DJ$51,4),"") ->  | DK15: =IF(DK$10>0,COUNTIF(panel!DK$2:DK$51,4),"") ->  | DL15: =IF(DL$10>0,COUNTIF(panel!DL$2:DL$51,4),"") ->  | DM15: =IF(DM$10>0,COUNTIF(panel!DM$2:DM$51,4),"") ->  | DN15: =IF(DN$10>0,COUNTIF(panel!DN$2:DN$51,4),"") ->  | DO15: =IF(DO$10>0,COUNTIF(panel!DO$2:DO$51,4),"") ->  | DP15: =IF(DP$10>0,COUNTIF(panel!DP$2:DP$51,4),"") ->  | DQ15: =IF(DQ$10>0,COUNTIF(panel!DQ$2:DQ$51,4),"") ->  | DR15: =IF(DR$10>0,COUNTIF(panel!DR$2:DR$51,4),"") ->  | DS15: =IF(DS$10>0,COUNTIF(panel!DS$2:DS$51,4),"") ->  | DT15: =IF(DT$10>0,COUNTIF(panel!DT$2:DT$51,4),"") ->  | DU15: =IF(DU$10>0,COUNTIF(panel!DU$2:DU$51,4),"") ->  | DV15: =IF(DV$10>0,COUNTIF(panel!DV$2:DV$51,4),"") ->  | DW15: =IF(DW$10>0,COUNTIF(panel!DW$2:DW$51,4),"") ->  | DX15: =IF(DX$10>0,COUNTIF(panel!DX$2:DX$51,4),"") ->  | DY15: =IF(DY$10>0,COUNTIF(panel!DY$2:DY$51,4),"") ->  | DZ15: =IF(DZ$10>0,COUNTIF(panel!DZ$2:DZ$51,4),"") ->  | EA15: =IF(EA$10>0,COUNTIF(panel!EA$2:EA$51,4),"") ->  | EB15: =IF(EB$10>0,COUNTIF(panel!EB$2:EB$51,4),"") ->  | EC15: =IF(EC$10>0,COUNTIF(panel!EC$2:EC$51,4),"") ->  | ED15: =IF(ED$10>0,COUNTIF(panel!ED$2:ED$51,4),"") ->  | EE15: =IF(EE$10>0,COUNTIF(panel!EE$2:EE$51,4),"") ->  | EF15: =IF(EF$10>0,COUNTIF(panel!EF$2:EF$51,4),"") ->  | EG15: =IF(EG$10>0,COUNTIF(panel!EG$2:EG$51,4),"") ->  | EH15: =IF(EH$10>0,COUNTIF(panel!EH$2:EH$51,4),"") ->  | EI15: =IF(EI$10>0,COUNTIF(panel!EI$2:EI$51,4),"") ->  | EJ15: =IF(EJ$10>0,COUNTIF(panel!EJ$2:EJ$51,4),"") ->  | EK15: =IF(EK$10>0,COUNTIF(panel!EK$2:EK$51,4),"") ->  | EL15: =IF(EL$10>0,COUNTIF(panel!EL$2:EL$51,4),"") ->  | EM15: =IF(EM$10>0,COUNTIF(panel!EM$2:EM$51,4),"") ->  | EN15: =IF(EN$10>0,COUNTIF(panel!EN$2:EN$51,4),"") ->  | EO15: =IF(EO$10>0,COUNTIF(panel!EO$2:EO$51,4),"") ->  | EP15: =IF(EP$10>0,COUNTIF(panel!EP$2:EP$51,4),"") ->  | EQ15: =IF(EQ$10>0,COUNTIF(panel!EQ$2:EQ$51,4),"") ->  | ER15: =IF(ER$10>0,COUNTIF(panel!ER$2:ER$51,4),"") ->  | ES15: =IF(ES$10>0,COUNTIF(panel!ES$2:ES$51,4),"") ->  | ET15: =IF(ET$10>0,COUNTIF(panel!ET$2:ET$51,4),"") ->  | EU15: =IF(EU$10>0,COUNTIF(panel!EU$2:EU$51,4),"") ->  | EV15: =IF(EV$10>0,COUNTIF(panel!EV$2:EV$51,4),"") ->  | EW15: =IF(EW$10>0,COUNTIF(panel!EW$2:EW$51,4),"") ->  | EX15: =IF(EX$10>0,COUNTIF(panel!EX$2:EX$51,4),"") ->  | EY15: =IF(EY$10>0,COUNTIF(panel!EY$2:EY$51,4),"") ->  | EZ15: =IF(EZ$10>0,COUNTIF(panel!EZ$2:EZ$51,4),"") ->  | FA15: =IF(FA$10>0,COUNTIF(panel!FA$2:FA$51,4),"") ->  | FB15: =IF(FB$10>0,COUNTIF(panel!FB$2:FB$51,4),"") ->  | FC15: =IF(FC$10>0,COUNTIF(panel!FC$2:FC$51,4),"") ->  | FD15: =IF(FD$10>0,COUNTIF(panel!FD$2:FD$51,4),"") ->  | FE15: =IF(FE$10>0,COUNTIF(panel!FE$2:FE$51,4),"") ->  | FF15: =IF(FF$10>0,COUNTIF(panel!FF$2:FF$51,4),"") ->  | FG15: =IF(FG$10>0,COUNTIF(panel!FG$2:FG$51,4),"") ->  | FH15: =IF(FH$10>0,COUNTIF(panel!FH$2:FH$51,4),"") ->  | FI15: =IF(FI$10>0,COUNTIF(panel!FI$2:FI$51,4),"") ->  | FJ15: =IF(FJ$10>0,COUNTIF(panel!FJ$2:FJ$51,4),"") ->  | FK15: =IF(FK$10>0,COUNTIF(panel!FK$2:FK$51,4),"") ->  | FL15: =IF(FL$10>0,COUNTIF(panel!FL$2:FL$51,4),"") ->  | FM15: =IF(FM$10>0,COUNTIF(panel!FM$2:FM$51,4),"") ->  | FN15: =IF(FN$10>0,COUNTIF(panel!FN$2:FN$51,4),"") ->  | FO15: =IF(FO$10>0,COUNTIF(panel!FO$2:FO$51,4),"") ->  | FP15: =IF(FP$10>0,COUNTIF(panel!FP$2:FP$51,4),"") ->  | FQ15: =IF(FQ$10>0,COUNTIF(panel!FQ$2:FQ$51,4),"") ->  | FR15: =IF(FR$10>0,COUNTIF(panel!FR$2:FR$51,4),"") ->  | FS15: =IF(FS$10>0,COUNTIF(panel!FS$2:FS$51,4),"") ->  | FT15: =IF(FT$10>0,COUNTIF(panel!FT$2:FT$51,4),"") ->  | FU15: =IF(FU$10>0,COUNTIF(panel!FU$2:FU$51,4),"") ->  | FV15: =IF(FV$10>0,COUNTIF(panel!FV$2:FV$51,4),"") ->  | FW15: =IF(FW$10>0,COUNTIF(panel!FW$2:FW$51,4),"") ->  | FX15: =IF(FX$10>0,COUNTIF(panel!FX$2:FX$51,4),"") ->  | FY15: =IF(FY$10>0,COUNTIF(panel!FY$2:FY$51,4),"") ->  | FZ15: =IF(FZ$10>0,COUNTIF(panel!FZ$2:FZ$51,4),"") ->  | GA15: =IF(GA$10>0,COUNTIF(panel!GA$2:GA$51,4),"") ->  | GB15: =IF(GB$10>0,COUNTIF(panel!GB$2:GB$51,4),"") ->  | GC15: =IF(GC$10>0,COUNTIF(panel!GC$2:GC$51,4),"") ->  | GD15: =IF(GD$10>0,COUNTIF(panel!GD$2:GD$51,4),"") ->  | GE15: =IF(GE$10>0,COUNTIF(panel!GE$2:GE$51,4),"") ->  | GF15: =IF(GF$10>0,COUNTIF(panel!GF$2:GF$51,4),"") ->  | GG15: =IF(GG$10>0,COUNTIF(panel!GG$2:GG$51,4),"") ->  | GH15: =IF(GH$10>0,COUNTIF(panel!GH$2:GH$51,4),"") ->  | GI15: =IF(GI$10>0,COUNTIF(panel!GI$2:GI$51,4),"") ->  | GJ15: =IF(GJ$10>0,COUNTIF(panel!GJ$2:GJ$51,4),"") ->  | GK15: =IF(GK$10>0,COUNTIF(panel!GK$2:GK$51,4),"") ->  | GL15: =IF(GL$10>0,COUNTIF(panel!GL$2:GL$51,4),"") ->  | GM15: =IF(GM$10>0,COUNTIF(panel!GM$2:GM$51,4),"") ->  | GN15: =IF(GN$10>0,COUNTIF(panel!GN$2:GN$51,4),"") ->  | GO15: =IF(GO$10>0,COUNTIF(panel!GO$2:GO$51,4),"") ->  | GP15: =IF(GP$10>0,COUNTIF(panel!GP$2:GP$51,4),"") ->  | GQ15: =IF(GQ$10>0,COUNTIF(panel!GQ$2:GQ$51,4),"") ->  | GR15: =IF(GR$10>0,COUNTIF(panel!GR$2:GR$51,4),"") ->  | GS15: =IF(GS$10>0,COUNTIF(panel!GS$2:GS$51,4),"") -> 
A16: n (2) | B16: =IF(B$10>0,COUNTIF(panel!B$2:B$51,5),"") -> 2 | C16: =IF(C$10>0,COUNTIF(panel!C$2:C$51,5),"") -> 0 | D16: =IF(D$10>0,COUNTIF(panel!D$2:D$51,5),"") -> 3 | E16: =IF(E$10>0,COUNTIF(panel!E$2:E$51,5),"") -> 6 | F16: =IF(F$10>0,COUNTIF(panel!F$2:F$51,5),"") -> 2 | G16: =IF(G$10>0,COUNTIF(panel!G$2:G$51,5),"") -> 2 | H16: =IF(H$10>0,COUNTIF(panel!H$2:H$51,5),"") -> 2 | I16: =IF(I$10>0,COUNTIF(panel!I$2:I$51,5),"") -> 0 | J16: =IF(J$10>0,COUNTIF(panel!J$2:J$51,5),"") -> 0 | K16: =IF(K$10>0,COUNTIF(panel!K$2:K$51,5),"") -> 0 | L16: =IF(L$10>0,COUNTIF(panel!L$2:L$51,5),"") -> 11 | M16: =IF(M$10>0,COUNTIF(panel!M$2:M$51,5),"") -> 23 | N16: =IF(N$10>0,COUNTIF(panel!N$2:N$51,5),"") -> 6 | O16: =IF(O$10>0,COUNTIF(panel!O$2:O$51,5),"") -> 5 | P16: =IF(P$10>0,COUNTIF(panel!P$2:P$51,5),"") -> 7 | Q16: =IF(Q$10>0,COUNTIF(panel!Q$2:Q$51,5),"") -> 1 | R16: =IF(R$10>0,COUNTIF(panel!R$2:R$51,5),"") -> 14 | S16: =IF(S$10>0,COUNTIF(panel!S$2:S$51,5),"") -> 1 | T16: =IF(T$10>0,COUNTIF(panel!T$2:T$51,5),"") -> 10 | U16: =IF(U$10>0,COUNTIF(panel!U$2:U$51,5),"") -> 25 | V16: =IF(V$10>0,COUNTIF(panel!V$2:V$51,5),"") -> 1 | W16: =IF(W$10>0,COUNTIF(panel!W$2:W$51,5),"") -> 1 | X16: =IF(X$10>0,COUNTIF(panel!X$2:X$51,5),"") -> 0 | Y16: =IF(Y$10>0,COUNTIF(panel!Y$2:Y$51,5),"") -> 0 | Z16: =IF(Z$10>0,COUNTIF(panel!Z$2:Z$51,5),"") -> 1 | AA16: =IF(AA$10>0,COUNTIF(panel!AA$2:AA$51,5),"") -> 0 | AB16: =IF(AB$10>0,COUNTIF(panel!AB$2:AB$51,5),"") -> 7 | AC16: =IF(AC$10>0,COUNTIF(panel!AC$2:AC$51,5),"") -> 6 | AD16: =IF(AD$10>0,COUNTIF(panel!AD$2:AD$51,5),"") -> 5 | AE16: =IF(AE$10>0,COUNTIF(panel!AE$2:AE$51,5),"") -> 5 | AF16: =IF(AF$10>0,COUNTIF(panel!AF$2:AF$51,5),"") -> 0 | AG16: =IF(AG$10>0,COUNTIF(panel!AG$2:AG$51,5),"") -> 8 | AH16: =IF(AH$10>0,COUNTIF(panel!AH$2:AH$51,5),"") -> 1 | AI16: =IF(AI$10>0,COUNTIF(panel!AI$2:AI$51,5),"") -> 0 | AJ16: =IF(AJ$10>0,COUNTIF(panel!AJ$2:AJ$51,5),"") -> 11 | AK16: =IF(AK$10>0,COUNTIF(panel!AK$2:AK$51,5),"") -> 1 | AL16: =IF(AL$10>0,COUNTIF(panel!AL$2:AL$51,5),"") -> 5 | AM16: =IF(AM$10>0,COUNTIF(panel!AM$2:AM$51,5),"") -> 1 | AN16: =IF(AN$10>0,COUNTIF(panel!AN$2:AN$51,5),"") -> 0 | AO16: =IF(AO$10>0,COUNTIF(panel!AO$2:AO$51,5),"") -> 0 | AP16: =IF(AP$10>0,COUNTIF(panel!AP$2:AP$51,5),"") -> 14 | AQ16: =IF(AQ$10>0,COUNTIF(panel!AQ$2:AQ$51,5),"") -> 4 | AR16: =IF(AR$10>0,COUNTIF(panel!AR$2:AR$51,5),"") -> 2 | AS16: =IF(AS$10>0,COUNTIF(panel!AS$2:AS$51,5),"") -> 0 | AT16: =IF(AT$10>0,COUNTIF(panel!AT$2:AT$51,5),"") -> 6 | AU16: =IF(AU$10>0,COUNTIF(panel!AU$2:AU$51,5),"") -> 21 | AV16: =IF(AV$10>0,COUNTIF(panel!AV$2:AV$51,5),"") -> 4 | AW16: =IF(AW$10>0,COUNTIF(panel!AW$2:AW$51,5),"") -> 1 | AX16: =IF(AX$10>0,COUNTIF(panel!AX$2:AX$51,5),"") -> 1 | AY16: =IF(AY$10>0,COUNTIF(panel!AY$2:AY$51,5),"") -> 1 | AZ16: =IF(AZ$10>0,COUNTIF(panel!AZ$2:AZ$51,5),"") -> 31 | BA16: =IF(BA$10>0,COUNTIF(panel!BA$2:BA$51,5),"") -> 2 | BB16: =IF(BB$10>0,COUNTIF(panel!BB$2:BB$51,5),"") -> 0 | BC16: =IF(BC$10>0,COUNTIF(panel!BC$2:BC$51,5),"") -> 2 | BD16: =IF(BD$10>0,COUNTIF(panel!BD$2:BD$51,5),"") -> 5 | BE16: =IF(BE$10>0,COUNTIF(panel!BE$2:BE$51,5),"") -> 27 | BF16: =IF(BF$10>0,COUNTIF(panel!BF$2:BF$51,5),"") -> 4 | BG16: =IF(BG$10>0,COUNTIF(panel!BG$2:BG$51,5),"") -> 5 | BH16: =IF(BH$10>0,COUNTIF(panel!BH$2:BH$51,5),"") -> 4 | BI16: =IF(BI$10>0,COUNTIF(panel!BI$2:BI$51,5),"") -> 9 | BJ16: =IF(BJ$10>0,COUNTIF(panel!BJ$2:BJ$51,5),"") -> 0 | BK16: =IF(BK$10>0,COUNTIF(panel!BK$2:BK$51,5),"") -> 18 | BL16: =IF(BL$10>0,COUNTIF(panel!BL$2:BL$51,5),"") -> 0 | BM16: =IF(BM$10>0,COUNTIF(panel!BM$2:BM$51,5),"") -> 38 | BN16: =IF(BN$10>0,COUNTIF(panel!BN$2:BN$51,5),"") -> 5 | BO16: =IF(BO$10>0,COUNTIF(panel!BO$2:BO$51,5),"") -> 8 | BP16: =IF(BP$10>0,COUNTIF(panel!BP$2:BP$51,5),"") -> 1 | BQ16: =IF(BQ$10>0,COUNTIF(panel!BQ$2:BQ$51,5),"") -> 13 | BR16: =IF(BR$10>0,COUNTIF(panel!BR$2:BR$51,5),"") -> 19 | BS16: =IF(BS$10>0,COUNTIF(panel!BS$2:BS$51,5),"") -> 0 | BT16: =IF(BT$10>0,COUNTIF(panel!BT$2:BT$51,5),"") -> 0 | BU16: =IF(BU$10>0,COUNTIF(panel!BU$2:BU$51,5),"") -> 0 | BV16: =IF(BV$10>0,COUNTIF(panel!BV$2:BV$51,5),"") -> 0 | BW16: =IF(BW$10>0,COUNTIF(panel!BW$2:BW$51,5),"") -> 1 | BX16: =IF(BX$10>0,COUNTIF(panel!BX$2:BX$51,5),"") -> 16 | BY16: =IF(BY$10>0,COUNTIF(panel!BY$2:BY$51,5),"") -> 1 | BZ16: =IF(BZ$10>0,COUNTIF(panel!BZ$2:BZ$51,5),"") -> 2 | CA16: =IF(CA$10>0,COUNTIF(panel!CA$2:CA$51,5),"") -> 2 | CB16: =IF(CB$10>0,COUNTIF(panel!CB$2:CB$51,5),"") -> 14 | CC16: =IF(CC$10>0,COUNTIF(panel!CC$2:CC$51,5),"") -> 10 | CD16: =IF(CD$10>0,COUNTIF(panel!CD$2:CD$51,5),"") -> 1 | CE16: =IF(CE$10>0,COUNTIF(panel!CE$2:CE$51,5),"") -> 7 | CF16: =IF(CF$10>0,COUNTIF(panel!CF$2:CF$51,5),"") -> 14 | CG16: =IF(CG$10>0,COUNTIF(panel!CG$2:CG$51,5),"") -> 8 | CH16: =IF(CH$10>0,COUNTIF(panel!CH$2:CH$51,5),"") -> 2 | CI16: =IF(CI$10>0,COUNTIF(panel!CI$2:CI$51,5),"") -> 1 | CJ16: =IF(CJ$10>0,COUNTIF(panel!CJ$2:CJ$51,5),"") -> 8 | CK16: =IF(CK$10>0,COUNTIF(panel!CK$2:CK$51,5),"") -> 0 | CL16: =IF(CL$10>0,COUNTIF(panel!CL$2:CL$51,5),"") -> 0 | CM16: =IF(CM$10>0,COUNTIF(panel!CM$2:CM$51,5),"") -> 8 | CN16: =IF(CN$10>0,COUNTIF(panel!CN$2:CN$51,5),"") ->  | CO16: =IF(CO$10>0,COUNTIF(panel!CO$2:CO$51,5),"") ->  | CP16: =IF(CP$10>0,COUNTIF(panel!CP$2:CP$51,5),"") ->  | CQ16: =IF(CQ$10>0,COUNTIF(panel!CQ$2:CQ$51,5),"") ->  | CR16: =IF(CR$10>0,COUNTIF(panel!CR$2:CR$51,5),"") ->  | CS16: =IF(CS$10>0,COUNTIF(panel!CS$2:CS$51,5),"") ->  | CT16: =IF(CT$10>0,COUNTIF(panel!CT$2:CT$51,5),"") ->  | CU16: =IF(CU$10>0,COUNTIF(panel!CU$2:CU$51,5),"") ->  | CV16: =IF(CV$10>0,COUNTIF(panel!CV$2:CV$51,5),"") ->  | CW16: =IF(CW$10>0,COUNTIF(panel!CW$2:CW$51,5),"") ->  | CX16: =IF(CX$10>0,COUNTIF(panel!CX$2:CX$51,5),"") ->  | CY16: =IF(CY$10>0,COUNTIF(panel!CY$2:CY$51,5),"") ->  | CZ16: =IF(CZ$10>0,COUNTIF(panel!CZ$2:CZ$51,5),"") ->  | DA16: =IF(DA$10>0,COUNTIF(panel!DA$2:DA$51,5),"") ->  | DB16: =IF(DB$10>0,COUNTIF(panel!DB$2:DB$51,5),"") ->  | DC16: =IF(DC$10>0,COUNTIF(panel!DC$2:DC$51,5),"") ->  | DD16: =IF(DD$10>0,COUNTIF(panel!DD$2:DD$51,5),"") ->  | DE16: =IF(DE$10>0,COUNTIF(panel!DE$2:DE$51,5),"") ->  | DF16: =IF(DF$10>0,COUNTIF(panel!DF$2:DF$51,5),"") ->  | DG16: =IF(DG$10>0,COUNTIF(panel!DG$2:DG$51,5),"") ->  | DH16: =IF(DH$10>0,COUNTIF(panel!DH$2:DH$51,5),"") ->  | DI16: =IF(DI$10>0,COUNTIF(panel!DI$2:DI$51,5),"") ->  | DJ16: =IF(DJ$10>0,COUNTIF(panel!DJ$2:DJ$51,5),"") ->  | DK16: =IF(DK$10>0,COUNTIF(panel!DK$2:DK$51,5),"") ->  | DL16: =IF(DL$10>0,COUNTIF(panel!DL$2:DL$51,5),"") ->  | DM16: =IF(DM$10>0,COUNTIF(panel!DM$2:DM$51,5),"") ->  | DN16: =IF(DN$10>0,COUNTIF(panel!DN$2:DN$51,5),"") ->  | DO16: =IF(DO$10>0,COUNTIF(panel!DO$2:DO$51,5),"") ->  | DP16: =IF(DP$10>0,COUNTIF(panel!DP$2:DP$51,5),"") ->  | DQ16: =IF(DQ$10>0,COUNTIF(panel!DQ$2:DQ$51,5),"") ->  | DR16: =IF(DR$10>0,COUNTIF(panel!DR$2:DR$51,5),"") ->  | DS16: =IF(DS$10>0,COUNTIF(panel!DS$2:DS$51,5),"") ->  | DT16: =IF(DT$10>0,COUNTIF(panel!DT$2:DT$51,5),"") ->  | DU16: =IF(DU$10>0,COUNTIF(panel!DU$2:DU$51,5),"") ->  | DV16: =IF(DV$10>0,COUNTIF(panel!DV$2:DV$51,5),"") ->  | DW16: =IF(DW$10>0,COUNTIF(panel!DW$2:DW$51,5),"") ->  | DX16: =IF(DX$10>0,COUNTIF(panel!DX$2:DX$51,5),"") ->  | DY16: =IF(DY$10>0,COUNTIF(panel!DY$2:DY$51,5),"") ->  | DZ16: =IF(DZ$10>0,COUNTIF(panel!DZ$2:DZ$51,5),"") ->  | EA16: =IF(EA$10>0,COUNTIF(panel!EA$2:EA$51,5),"") ->  | EB16: =IF(EB$10>0,COUNTIF(panel!EB$2:EB$51,5),"") ->  | EC16: =IF(EC$10>0,COUNTIF(panel!EC$2:EC$51,5),"") ->  | ED16: =IF(ED$10>0,COUNTIF(panel!ED$2:ED$51,5),"") ->  | EE16: =IF(EE$10>0,COUNTIF(panel!EE$2:EE$51,5),"") ->  | EF16: =IF(EF$10>0,COUNTIF(panel!EF$2:EF$51,5),"") ->  | EG16: =IF(EG$10>0,COUNTIF(panel!EG$2:EG$51,5),"") ->  | EH16: =IF(EH$10>0,COUNTIF(panel!EH$2:EH$51,5),"") ->  | EI16: =IF(EI$10>0,COUNTIF(panel!EI$2:EI$51,5),"") ->  | EJ16: =IF(EJ$10>0,COUNTIF(panel!EJ$2:EJ$51,5),"") ->  | EK16: =IF(EK$10>0,COUNTIF(panel!EK$2:EK$51,5),"") ->  | EL16: =IF(EL$10>0,COUNTIF(panel!EL$2:EL$51,5),"") ->  | EM16: =IF(EM$10>0,COUNTIF(panel!EM$2:EM$51,5),"") ->  | EN16: =IF(EN$10>0,COUNTIF(panel!EN$2:EN$51,5),"") ->  | EO16: =IF(EO$10>0,COUNTIF(panel!EO$2:EO$51,5),"") ->  | EP16: =IF(EP$10>0,COUNTIF(panel!EP$2:EP$51,5),"") ->  | EQ16: =IF(EQ$10>0,COUNTIF(panel!EQ$2:EQ$51,5),"") ->  | ER16: =IF(ER$10>0,COUNTIF(panel!ER$2:ER$51,5),"") ->  | ES16: =IF(ES$10>0,COUNTIF(panel!ES$2:ES$51,5),"") ->  | ET16: =IF(ET$10>0,COUNTIF(panel!ET$2:ET$51,5),"") ->  | EU16: =IF(EU$10>0,COUNTIF(panel!EU$2:EU$51,5),"") ->  | EV16: =IF(EV$10>0,COUNTIF(panel!EV$2:EV$51,5),"") ->  | EW16: =IF(EW$10>0,COUNTIF(panel!EW$2:EW$51,5),"") ->  | EX16: =IF(EX$10>0,COUNTIF(panel!EX$2:EX$51,5),"") ->  | EY16: =IF(EY$10>0,COUNTIF(panel!EY$2:EY$51,5),"") ->  | EZ16: =IF(EZ$10>0,COUNTIF(panel!EZ$2:EZ$51,5),"") ->  | FA16: =IF(FA$10>0,COUNTIF(panel!FA$2:FA$51,5),"") ->  | FB16: =IF(FB$10>0,COUNTIF(panel!FB$2:FB$51,5),"") ->  | FC16: =IF(FC$10>0,COUNTIF(panel!FC$2:FC$51,5),"") ->  | FD16: =IF(FD$10>0,COUNTIF(panel!FD$2:FD$51,5),"") ->  | FE16: =IF(FE$10>0,COUNTIF(panel!FE$2:FE$51,5),"") ->  | FF16: =IF(FF$10>0,COUNTIF(panel!FF$2:FF$51,5),"") ->  | FG16: =IF(FG$10>0,COUNTIF(panel!FG$2:FG$51,5),"") ->  | FH16: =IF(FH$10>0,COUNTIF(panel!FH$2:FH$51,5),"") ->  | FI16: =IF(FI$10>0,COUNTIF(panel!FI$2:FI$51,5),"") ->  | FJ16: =IF(FJ$10>0,COUNTIF(panel!FJ$2:FJ$51,5),"") ->  | FK16: =IF(FK$10>0,COUNTIF(panel!FK$2:FK$51,5),"") ->  | FL16: =IF(FL$10>0,COUNTIF(panel!FL$2:FL$51,5),"") ->  | FM16: =IF(FM$10>0,COUNTIF(panel!FM$2:FM$51,5),"") ->  | FN16: =IF(FN$10>0,COUNTIF(panel!FN$2:FN$51,5),"") ->  | FO16: =IF(FO$10>0,COUNTIF(panel!FO$2:FO$51,5),"") ->  | FP16: =IF(FP$10>0,COUNTIF(panel!FP$2:FP$51,5),"") ->  | FQ16: =IF(FQ$10>0,COUNTIF(panel!FQ$2:FQ$51,5),"") ->  | FR16: =IF(FR$10>0,COUNTIF(panel!FR$2:FR$51,5),"") ->  | FS16: =IF(FS$10>0,COUNTIF(panel!FS$2:FS$51,5),"") ->  | FT16: =IF(FT$10>0,COUNTIF(panel!FT$2:FT$51,5),"") ->  | FU16: =IF(FU$10>0,COUNTIF(panel!FU$2:FU$51,5),"") ->  | FV16: =IF(FV$10>0,COUNTIF(panel!FV$2:FV$51,5),"") ->  | FW16: =IF(FW$10>0,COUNTIF(panel!FW$2:FW$51,5),"") ->  | FX16: =IF(FX$10>0,COUNTIF(panel!FX$2:FX$51,5),"") ->  | FY16: =IF(FY$10>0,COUNTIF(panel!FY$2:FY$51,5),"") ->  | FZ16: =IF(FZ$10>0,COUNTIF(panel!FZ$2:FZ$51,5),"") ->  | GA16: =IF(GA$10>0,COUNTIF(panel!GA$2:GA$51,5),"") ->  | GB16: =IF(GB$10>0,COUNTIF(panel!GB$2:GB$51,5),"") ->  | GC16: =IF(GC$10>0,COUNTIF(panel!GC$2:GC$51,5),"") ->  | GD16: =IF(GD$10>0,COUNTIF(panel!GD$2:GD$51,5),"") ->  | GE16: =IF(GE$10>0,COUNTIF(panel!GE$2:GE$51,5),"") ->  | GF16: =IF(GF$10>0,COUNTIF(panel!GF$2:GF$51,5),"") ->  | GG16: =IF(GG$10>0,COUNTIF(panel!GG$2:GG$51,5),"") ->  | GH16: =IF(GH$10>0,COUNTIF(panel!GH$2:GH$51,5),"") ->  | GI16: =IF(GI$10>0,COUNTIF(panel!GI$2:GI$51,5),"") ->  | GJ16: =IF(GJ$10>0,COUNTIF(panel!GJ$2:GJ$51,5),"") ->  | GK16: =IF(GK$10>0,COUNTIF(panel!GK$2:GK$51,5),"") ->  | GL16: =IF(GL$10>0,COUNTIF(panel!GL$2:GL$51,5),"") ->  | GM16: =IF(GM$10>0,COUNTIF(panel!GM$2:GM$51,5),"") ->  | GN16: =IF(GN$10>0,COUNTIF(panel!GN$2:GN$51,5),"") ->  | GO16: =IF(GO$10>0,COUNTIF(panel!GO$2:GO$51,5),"") ->  | GP16: =IF(GP$10>0,COUNTIF(panel!GP$2:GP$51,5),"") ->  | GQ16: =IF(GQ$10>0,COUNTIF(panel!GQ$2:GQ$51,5),"") ->  | GR16: =IF(GR$10>0,COUNTIF(panel!GR$2:GR$51,5),"") ->  | GS16: =IF(GS$10>0,COUNTIF(panel!GS$2:GS$51,5),"") -> 
A18: scores SCT
A20: 1 | B20: =B12/B$10 -> 0.347826087 | C20: =C12/C$10 -> 1 | D20: 0.2727272727 | E20: 0.03448275862 | F20: 0 | G20: 0 | H20: 0.02564102564 | I20: 0.2916666667 | J20: 0.1818181818 | K20: 0.02941176471 | L20: 0 | M20: 0 | N20: 0.03571428571 | O20: 1 | P20: 0.03703703704 | Q20: 0.1578947368 | R20: 0 | S20: 0.6666666667 | T20: 0 | U20: 0 | V20: 0.45 | W20: 0.1666666667 | X20: 0.08333333333 | Y20: 0.2777777778 | Z20: 0.1153846154 | AA20: 0.3214285714 | AB20: 0 | AC20: 0 | AD20: 0.2857142857 | AE20: 0 | AF20: 0.3928571429 | AG20: 0.4615384615 | AH20: 0.04545454545 | AI20: 0.4074074074 | AJ20: 0 | AK20: 0.2 | AL20: 0.5 | AM20: 0.02941176471 | AN20: 0.09090909091 | AO20: 0.1470588235 | AP20: 0 | AQ20: 0 | AR20: 0.1428571429 | AS20: 0.347826087 | AT20: 0 | AU20: 0.04761904762 | AV20: 0.2592592593 | AW20: 0.5416666667 | AX20: 0.3666666667 | AY20: 0.8947368421 | AZ20: 0.03225806452 | BA20: 0.9375 | BB20: 0.6363636364 | BC20: 0 | BD20: 0.1666666667 | BE20: 0 | BF20: 0.15 | BG20: 0 | BH20: 0 | BI20: 0 | BJ20: 1 | BK20: 0 | BL20: 0.347826087 | BM20: 0.07894736842 | BN20: 0.03703703704 | BO20: =BO12/BO$10 -> 0.03703703704 | BP20: 0.08333333333 | BQ20: 0 | BR20: 0.05263157895 | BS20: 0.0303030303 | BT20: 1 | BU20: 1 | BV20: 0 | BW20: 0.0303030303 | BX20: 0.25 | BY20: 0.25 | BZ20: 0.4 | CA20: 0.0625 | CB20: 0.07142857143 | CC20: 0 | CD20: 0.09090909091 | CE20: 0 | CF20: 0 | CG20: 0 | CH20: 0 | CI20: 0.08695652174 | CJ20: 0.2142857143 | CK20: 0.4482758621 | CL20: 0.5263157895 | CM20: 0.04545454545 | EA20: =EA12/EA$10 ->  | EV20: =EV12/EV$10 -> 
A21: 2 | B21: =B13/B$10 -> 1 | C21: =C13/C$10 -> 0.1282051282 | D21: 0.6363636364 | E21: 0.1379310345 | F21: 0.05 | G21: 0.05128205128 | H21: 0.05128205128 | I21: 1 | J21: 1 | K21: 1 | L21: 0 | M21: 0 | N21: 0.1071428571 | O21: 0.3181818182 | P21: 0.07407407407 | Q21: 1 | R21: 0.03448275862 | S21: 1 | T21: 0.1904761905 | U21: 0.04 | V21: 1 | W21: 1 | X21: 1 | Y21: 0.5555555556 | Z21: 0.3846153846 | AA21: 1 | AB21: 0 | AC21: 0.6875 | AD21: 1 | AE21: 0.1034482759 | AF21: 1 | AG21: 0.4615384615 | AH21: 1 | AI21: 1 | AJ21: 0.04545454545 | AK21: 1 | AL21: 1 | AM21: 0.1764705882 | AN21: 1 | AO21: 1 | AP21: 0 | AQ21: 0.4090909091 | AR21: 0.3571428571 | AS21: 1 | AT21: 0.15 | AU21: 0.1904761905 | AV21: 1 | AW21: 1 | AX21: 1 | AY21: 1 | AZ21: 0 | BA21: 1 | BB21: 1 | BC21: 0.06060606061 | BD21: 1 | BE21: 0 | BF21: 1 | BG21: 0.3181818182 | BH21: 0.1666666667 | BI21: 0.03703703704 | BJ21: 0.5555555556 | BK21: 0 | BL21: 1 | BM21: 0.05263157895 | BN21: 0.07407407407 | BO21: =BO13/BO$10 -> 0.07407407407 | BP21: 1 | BQ21: 0.2608695652 | BR21: 0.1578947368 | BS21: 0.3333333333 | BT21: 0.5555555556 | BU21: 0.9473684211 | BV21: 0.07894736842 | BW21: 0.1818181818 | BX21: 0.5 | BY21: 1 | BZ21: 1 | CA21: 1 | CB21: 0.3571428571 | CC21: 0.5882352941 | CD21: 0.5 | CE21: 0.1071428571 | CF21: 0.04347826087 | CG21: 0.2307692308 | CH21: 0.3125 | CI21: 1 | CJ21: 0.5 | CK21: 1 | CL21: 0.8421052632 | CM21: 0.1363636364 | EA21: =EA13/EA$10 ->  | EV21: =EV13/EV$10 -> 
A22: 3 | B22: =B14/B$10 -> 0.4347826087 | C22: =C14/C$10 -> 0.02564102564 | D22: 1 | E22: 1 | F22: 1 | G22: 1 | H22: 1 | I22: 0.5416666667 | J22: 0.8181818182 | K22: 0.2647058824 | L22: 0.09677419355 | M22: 0.04347826087 | N22: 0.25 | O22: 0.1363636364 | P22: 0.2962962963 | Q22: 0.7368421053 | R22: 0.03448275862 | S22: 0.2777777778 | T22: 1 | U22: 0.16 | V22: 0.7 | W22: 0.4583333333 | X22: 0.1666666667 | Y22: 0.6666666667 | Z22: 1 | AA22: 0.25 | AB22: 0.7272727273 | AC22: 1 | AD22: 0.1071428571 | AE22: 1 | AF22: 0.1428571429 | AG22: 0.9230769231 | AH22: 0.7272727273 | AI22: 0.2222222222 | AJ22: 0.4545454545 | AK22: 0.95 | AL22: 0.15 | AM22: 1 | AN22: 0.8636363636 | AO22: 0.1470588235 | AP22: 0 | AQ22: 0.4545454545 | AR22: 1 | AS22: 0.4782608696 | AT22: 1 | AU22: 0.2380952381 | AV22: 0.1481481481 | AW22: 0.2083333333 | AX22: 0.03333333333 | AY22: 0.3157894737 | AZ22: 0.1612903226 | BA22: 0.625 | BB22: 0.3636363636 | BC22: 1 | BD22: 0.3333333333 | BE22: 0.03703703704 | BF22: 0.4 | BG22: 0.5 | BH22: 0.5416666667 | BI22: 0.2962962963 | BJ22: 0.03703703704 | BK22: 0.6111111111 | BL22: 0.6086956522 | BM22: 0 | BN22: 1 | BO22: =BO14/BO$10 -> 1 | BP22: 0.3333333333 | BQ22: 0.08695652174 | BR22: 0.3157894737 | BS22: 1 | BT22: 0.1111111111 | BU22: 0.4210526316 | BV22: 1 | BW22: 1 | BX22: 0.375 | BY22: 0.9 | BZ22: 0.24 | CA22: 0.625 | CB22: 1 | CC22: 0.4705882353 | CD22: 1 | CE22: 0.2142857143 | CF22: 0.2173913043 | CG22: 0.1538461538 | CH22: 1 | CI22: 0.7826086957 | CJ22: 0.9285714286 | CK22: 0.1034482759 | CL22: 1 | CM22: 0.5 | EA22: =EA14/EA$10 ->  | EV22: =EV14/EV$10 -> 
A23: 4 | B23: =B15/B$10 -> 0.08695652174 | C23: =C15/C$10 -> 0 | D23: 0 | E23: 0.1724137931 | F23: 0.025 | G23: 0.05128205128 | H23: 0.02564102564 | I23: 0.04166666667 | J23: 0.04545454545 | K23: 0.02941176471 | L23: 1 | M23: 0.9130434783 | N23: 1 | O23: 0.3636363636 | P23: 1 | Q23: 0.4210526316 | R23: 1 | S23: 0.5 | T23: 0.4761904762 | U23: 0.6 | V23: 0.05 | W23: 0.2083333333 | X23: 0 | Y23: 1 | Z23: 0.1923076923 | AA23: 0.03571428571 | AB23: 1 | AC23: 0.75 | AD23: 0.03571428571 | AE23: 0.275862069 | AF23: 0.07142857143 | AG23: 1 | AH23: 0.2272727273 | AI23: 0 | AJ23: 1 | AK23: 0 | AL23: 0.35 | AM23: 0.08823529412 | AN23: 0 | AO23: 0.02941176471 | AP23: 1 | AQ23: 1 | AR23: 0.03571428571 | AS23: 0.1304347826 | AT23: 0.8 | AU23: 0.619047619 | AV23: 0.07407407407 | AW23: 0.04166666667 | AX23: 0.06666666667 | AY23: 0.05263157895 | AZ23: 0.2580645161 | BA23: 0.0625 | BB23: 0 | BC23: 0.2121212121 | BD23: 0.7222222222 | BE23: 0.6296296296 | BF23: 0.5 | BG23: 1 | BH23: 1 | BI23: 1 | BJ23: 0.03703703704 | BK23: 0.8888888889 | BL23: 0 | BM23: 0.05263157895 | BN23: 0.3703703704 | BO23: =BO15/BO$10 -> 0.2592592593 | BP23: 0.375 | BQ23: 1 | BR23: 0.7894736842 | BS23: 0 | BT23: 0 | BU23: 0 | BV23: 0.07894736842 | BW23: 0.09090909091 | BX23: 0.5625 | BY23: 0 | BZ23: 0 | CA23: 0.9375 | CB23: 0.7857142857 | CC23: 1 | CD23: 0.4090909091 | CE23: 1 | CF23: 1 | CG23: 1 | CH23: 0.03125 | CI23: 0.04347826087 | CJ23: 1 | CK23: 0 | CL23: 0 | CM23: 1 | EA23: =EA15/EA$10 ->  | EV23: =EV15/EV$10 -> 
A24: 5 | B24: =B16/B$10 -> 0.08695652174 | C24: =C16/C$10 -> 0 | D24: 0.1363636364 | E24: 0.2068965517 | F24: 0.05 | G24: 0.05128205128 | H24: 0.05128205128 | I24: 0 | J24: 0 | K24: 0 | L24: 0.3548387097 | M24: 1 | N24: 0.2142857143 | O24: 0.2272727273 | P24: 0.2592592593 | Q24: 0.05263157895 | R24: 0.4827586207 | S24: 0.05555555556 | T24: 0.4761904762 | U24: 1 | V24: 0.05 | W24: 0.04166666667 | X24: 0 | Y24: 0 | Z24: 0.03846153846 | AA24: 0 | AB24: 0.3181818182 | AC24: 0.375 | AD24: 0.1785714286 | AE24: 0.1724137931 | AF24: 0 | AG24: 0.6153846154 | AH24: 0.04545454545 | AI24: 0 | AJ24: 0.5 | AK24: 0.05 | AL24: 0.25 | AM24: 0.02941176471 | AN24: 0 | AO24: 0 | AP24: 0.4516129032 | AQ24: 0.1818181818 | AR24: 0.07142857143 | AS24: 0 | AT24: 0.3 | AU24: 1 | AV24: 0.1481481481 | AW24: 0.04166666667 | AX24: 0.03333333333 | AY24: 0.05263157895 | AZ24: 1 | BA24: 0.125 | BB24: 0 | BC24: 0.06060606061 | BD24: 0.2777777778 | BE24: 1 | BF24: 0.2 | BG24: 0.2272727273 | BH24: 0.1666666667 | BI24: 0.3333333333 | BJ24: 0 | BK24: 1 | BL24: 0 | BM24: 1 | BN24: 0.1851851852 | BO24: =BO16/BO$10 -> 0.2962962963 | BP24: 0.04166666667 | BQ24: 0.5652173913 | BR24: 1 | BS24: 0 | BT24: 0 | BU24: 0 | BV24: 0 | BW24: 0.0303030303 | BX24: 1 | BY24: 0.05 | BZ24: 0.08 | CA24: 0.125 | CB24: 1 | CC24: 0.5882352941 | CD24: 0.04545454545 | CE24: 0.25 | CF24: 0.6086956522 | CG24: 0.3076923077 | CH24: 0.0625 | CI24: 0.04347826087 | CJ24: 0.5714285714 | CK24: 0 | CL24: 0 | CM24: 0.3636363636 | EA24: =EA16/EA$10 ->  | EV24: =EV16/EV$10 -> 
A28: exclusion
A30: mode=1 | B30: =B15+B16 -> 4 | C30: =C15+C16 -> 0 | D30: 3 | E30: 11 | F30: 3 | G30: 4 | H30: 3 | I30: 1 | J30: 1 | K30: 1 | L30: 42 | M30: 44 | N30: 34 | O30: 13 | P30: 34 | Q30: 9 | R30: 43 | S30: 10 | T30: 20 | U30: 40 | V30: 2 | W30: 6 | X30: 0 | Y30: 18 | Z30: 6 | AA30: 1 | AB30: 29 | AC30: 18 | AD30: 6 | AE30: 13 | AF30: 2 | AG30: 21 | AH30: 6 | AI30: 0 | AJ30: 33 | AK30: 1 | AL30: 12 | AM30: 4 | AN30: 0 | AO30: 1 | AP30: 45 | AQ30: 26 | AR30: 3 | AS30: 3 | AT30: 22 | AU30: 34 | AV30: 6 | AW30: 2 | AX30: 3 | AY30: 2 | AZ30: 39 | BA30: 3 | BB30: 0 | BC30: 9 | BD30: 18 | BE30: 44 | BF30: 14 | BG30: 27 | BH30: 28 | BI30: 36 | BJ30: 1 | BK30: 34 | BL30: 0 | BM30: 40 | BN30: 15 | BO30: =BO15+BO16 -> 15 | BP30: 10 | BQ30: 36 | BR30: 34 | BS30: 0 | BT30: 0 | BU30: 0 | BV30: 3 | BW30: 4 | BX30: 25 | BY30: 1 | BZ30: 2 | CA30: 17 | CB30: 25 | CC30: 27 | CD30: 10 | CE30: 35 | CF30: 37 | CG30: 34 | CH30: 3 | CI30: 2 | CJ30: 22 | CK30: 0 | CL30: 0 | CM30: 30 | EA30: =EA15+EA16 ->  | GM30: =GM15+GM16 -> 
A31: mode=2 | B31: =B16 -> 2 | C31: =C16 -> 0 | D31: 3 | E31: 6 | F31: 2 | G31: 2 | H31: 2 | I31: 0 | J31: 0 | K31: 0 | L31: 11 | M31: 23 | N31: 6 | O31: 5 | P31: 7 | Q31: 1 | R31: 14 | S31: 1 | T31: 10 | U31: 25 | V31: 1 | W31: 1 | X31: 0 | Y31: 0 | Z31: 1 | AA31: 0 | AB31: 7 | AC31: 6 | AD31: 5 | AE31: 5 | AF31: 0 | AG31: 8 | AH31: 1 | AI31: 0 | AJ31: 11 | AK31: 1 | AL31: 5 | AM31: 1 | AN31: 0 | AO31: 0 | AP31: 14 | AQ31: 4 | AR31: 2 | AS31: 0 | AT31: 6 | AU31: 21 | AV31: 4 | AW31: 1 | AX31: 1 | AY31: 1 | AZ31: 31 | BA31: 2 | BB31: 0 | BC31: 2 | BD31: 5 | BE31: 27 | BF31: 4 | BG31: 5 | BH31: 4 | BI31: 9 | BJ31: 0 | BK31: 18 | BL31: 0 | BM31: 38 | BN31: 5 | BO31: =BO16 -> 8 | BP31: 1 | BQ31: 13 | BR31: 19 | BS31: 0 | BT31: 0 | BU31: 0 | BV31: 0 | BW31: 1 | BX31: 16 | BY31: 1 | BZ31: 2 | CA31: 2 | CB31: 14 | CC31: 10 | CD31: 1 | CE31: 7 | CF31: 14 | CG31: 8 | CH31: 2 | CI31: 1 | CJ31: 8 | CK31: 0 | CL31: 0 | CM31: 8 | EA31: =EA16 ->  | GM31: =GM16 -> 
A32: mode=4 | B32: =B12 -> 8 | C32: =C12 -> 39 | D32: 6 | E32: 1 | F32: 0 | G32: 0 | H32: 1 | I32: 7 | J32: 4 | K32: 1 | L32: 0 | M32: 0 | N32: 1 | O32: 22 | P32: 1 | Q32: 3 | R32: 0 | S32: 12 | T32: 0 | U32: 0 | V32: 9 | W32: 4 | X32: 3 | Y32: 5 | Z32: 3 | AA32: 9 | AB32: 0 | AC32: 0 | AD32: 8 | AE32: 0 | AF32: 11 | AG32: 6 | AH32: 1 | AI32: 11 | AJ32: 0 | AK32: 4 | AL32: 10 | AM32: 1 | AN32: 2 | AO32: 5 | AP32: 0 | AQ32: 0 | AR32: 4 | AS32: 8 | AT32: 0 | AU32: 1 | AV32: 7 | AW32: 13 | AX32: 11 | AY32: 17 | AZ32: 1 | BA32: 15 | BB32: 14 | BC32: 0 | BD32: 3 | BE32: 0 | BF32: 3 | BG32: 0 | BH32: 0 | BI32: 0 | BJ32: 27 | BK32: 0 | BL32: 8 | BM32: 3 | BN32: 1 | BO32: =BO12 -> 1 | BP32: 2 | BQ32: 0 | BR32: 1 | BS32: 1 | BT32: 27 | BU32: 19 | BV32: 0 | BW32: 1 | BX32: 4 | BY32: 5 | BZ32: 10 | CA32: 1 | CB32: 1 | CC32: 0 | CD32: 2 | CE32: 0 | CF32: 0 | CG32: 0 | CH32: 0 | CI32: 2 | CJ32: 3 | CK32: 13 | CL32: 10 | CM32: 1 | EA32: =EA12 ->  | GM32: =GM12 -> 
A33: mode=5 | B33: =B12+B13 -> 31 | C33: =C12+C13 -> 44 | D33: 20 | E33: 5 | F33: 2 | G33: 2 | H33: 3 | I33: 31 | J33: 26 | K33: 35 | L33: 0 | M33: 0 | N33: 4 | O33: 29 | P33: 3 | Q33: 22 | R33: 1 | S33: 30 | T33: 4 | U33: 1 | V33: 29 | W33: 28 | X33: 39 | Y33: 15 | Z33: 13 | AA33: 37 | AB33: 0 | AC33: 11 | AD33: 36 | AE33: 3 | AF33: 39 | AG33: 12 | AH33: 23 | AI33: 38 | AJ33: 1 | AK33: 24 | AL33: 30 | AM33: 7 | AN33: 24 | AO33: 39 | AP33: 0 | AQ33: 9 | AR33: 14 | AS33: 31 | AT33: 3 | AU33: 5 | AV33: 34 | AW33: 37 | AX33: 41 | AY33: 36 | AZ33: 1 | BA33: 31 | BB33: 36 | BC33: 2 | BD33: 21 | BE33: 0 | BF33: 23 | BG33: 7 | BH33: 4 | BI33: 1 | BJ33: 42 | BK33: 0 | BL33: 31 | BM33: 5 | BN33: 3 | BO33: =BO12+BO13 -> 3 | BP33: 26 | BQ33: 6 | BR33: 4 | BS33: 12 | BT33: 42 | BU33: 37 | BV33: 3 | BW33: 7 | BX33: 12 | BY33: 25 | BZ33: 35 | CA33: 17 | CB33: 6 | CC33: 10 | CD33: 13 | CE33: 3 | CF33: 1 | CG33: 6 | CH33: 10 | CI33: 25 | CJ33: 10 | CK33: 42 | CL33: 26 | CM33: 4 | EA33: =EA12+EA13 ->  | GM33: =GM12+GM13 -> 

Sheet scores TCS panel (hidden)
B1: =panel!B1 -> q1 | C1: =panel!C1 -> q2 | D1: =panel!D1 -> q3 | E1: =panel!E1 -> q4 | F1: =panel!F1 -> q5 | G1: =panel!G1 -> q6 | H1: =panel!H1 -> q7 | I1: =panel!I1 -> q8 | J1: =panel!J1 -> q9 | K1: =panel!K1 -> q10 | L1: =panel!L1 -> q11 | M1: =panel!M1 -> q12 | N1: =panel!N1 -> q13 | O1: =panel!O1 -> q14 | P1: =panel!P1 -> q15 | Q1: =panel!Q1 -> q16 | R1: =panel!R1 -> q17 | S1: =panel!S1 -> q18 | T1: =panel!T1 -> q19 | U1: =panel!U1 -> q20 | V1: =panel!V1 -> q21 | W1: =panel!W1 -> q22 | X1: =panel!X1 -> q23 | Y1: =panel!Y1 -> q24 | Z1: =panel!Z1 -> q25 | AA1: =panel!AA1 -> q26 | AB1: =panel!AB1 -> q27 | AC1: =panel!AC1 -> q28 | AD1: =panel!AD1 -> q29 | AE1: =panel!AE1 -> q30 | AF1: =panel!AF1 -> q31 | AG1: =panel!AG1 -> q32 | AH1: =panel!AH1 -> q33 | AI1: =panel!AI1 -> q34 | AJ1: =panel!AJ1 -> q35 | AK1: =panel!AK1 -> q36 | AL1: =panel!AL1 -> q37 | AM1: =panel!AM1 -> q38 | AN1: =panel!AN1 -> q39 | AO1: =panel!AO1 -> q40 | AP1: =panel!AP1 -> q41 | AQ1: =panel!AQ1 -> q42 | AR1: =panel!AR1 -> q43 | AS1: =panel!AS1 -> q44 | AT1: =panel!AT1 -> q45 | AU1: =panel!AU1 -> q46 | AV1: =panel!AV1 -> q47 | AW1: =panel!AW1 -> q48 | AX1: =panel!AX1 -> q49 | AY1: =panel!AY1 -> q50 | AZ1: =panel!AZ1 -> q51 | BA1: =panel!BA1 -> q52 | BB1: =panel!BB1 -> q53 | BC1: =panel!BC1 -> q54 | BD1: =panel!BD1 -> q55 | BE1: =panel!BE1 -> q56 | BF1: =panel!BF1 -> q57 | BG1: =panel!BG1 -> q58 | BH1: =panel!BH1 -> q59 | BI1: =panel!BI1 -> q60 | BJ1: =panel!BJ1 -> q61 | BK1: =panel!BK1 -> q62 | BL1: =panel!BL1 -> q63 | BM1: =panel!BM1 -> q64 | BN1: =panel!BN1 -> q65 | BO1: =panel!BO1 -> q66 | BP1: =panel!BP1 -> q67 | BQ1: =panel!BQ1 -> q68 | BR1: =panel!BR1 -> q69 | BS1: =panel!BS1 -> q70 | BT1: =panel!BT1 -> q71 | BU1: =panel!BU1 -> q72 | BV1: =panel!BV1 -> q73 | BW1: =panel!BW1 -> q74 | BX1: =panel!BX1 -> q75 | BY1: =panel!BY1 -> q76 | BZ1: =panel!BZ1 -> q77 | CA1: =panel!CA1 -> q78 | CB1: =panel!CB1 -> q79 | CC1: =panel!CC1 -> q80 | CD1: =panel!CD1 -> q81 | CE1: =panel!CE1 -> q82 | CF1: =panel!CF1 -> q83 | CG1: =panel!CG1 -> q84 | CH1: =panel!CH1 -> q85 | CI1: =panel!CI1 -> q86 | CJ1: =panel!CJ1 -> q87 | CK1: =panel!CK1 -> q88 | CL1: =panel!CL1 -> q89 | CM1: =panel!CM1 -> q90 | CN1: =panel!CN1 -> q91 | CO1: =panel!CO1 -> q92 | CP1: =panel!CP1 -> q93 | CQ1: =panel!CQ1 -> q94 | CR1: =panel!CR1 -> q95 | CS1: =panel!CS1 -> q96 | CT1: =panel!CT1 -> q97 | CU1: =panel!CU1 -> q98 | CV1: =panel!CV1 -> q99 | CW1: =panel!CW1 -> q100 | CX1: =panel!CX1 -> q101 | CY1: =panel!CY1 -> q102 | CZ1: =panel!CZ1 -> q103 | DA1: =panel!DA1 -> q104 | DB1: =panel!DB1 -> q105 | DC1: =panel!DC1 -> q106 | DD1: =panel!DD1 -> q107 | DE1: =panel!DE1 -> q108 | DF1: =panel!DF1 -> q109 | DG1: =panel!DG1 -> q110 | DH1: =panel!DH1 -> q111 | DI1: =panel!DI1 -> q112 | DJ1: =panel!DJ1 -> q113 | DK1: =panel!DK1 -> q114 | DL1: =panel!DL1 -> q115 | DM1: =panel!DM1 -> q116 | DN1: =panel!DN1 -> q117 | DO1: =panel!DO1 -> q118 | DP1: =panel!DP1 -> q119 | DQ1: =panel!DQ1 -> q120 | DR1: =panel!DR1 -> q121 | DS1: =panel!DS1 -> q122 | DT1: =panel!DT1 -> q123 | DU1: =panel!DU1 -> q124 | DV1: =panel!DV1 -> q125 | DW1: =panel!DW1 -> q126 | DX1: =panel!DX1 -> q127 | DY1: =panel!DY1 -> q128 | DZ1: =panel!DZ1 -> q129 | EA1: =panel!EA1 -> q130 | EB1: =panel!EB1 -> q131 | EC1: =panel!EC1 -> q132 | ED1: =panel!ED1 -> q133 | EE1: =panel!EE1 -> q134 | EF1: =panel!EF1 -> q135 | EG1: =panel!EG1 -> q136 | EH1: =panel!EH1 -> q137 | EI1: =panel!EI1 -> q138 | EJ1: =panel!EJ1 -> q139 | EK1: =panel!EK1 -> q140 | EL1: =panel!EL1 -> q141 | EM1: =panel!EM1 -> q142 | EN1: =panel!EN1 -> q143 | EO1: =panel!EO1 -> q144 | EP1: =panel!EP1 -> q145 | EQ1: =panel!EQ1 -> q146 | ER1: =panel!ER1 -> q147 | ES1: =panel!ES1 -> q148 | ET1: =panel!ET1 -> q149 | EU1: =panel!EU1 -> q150 | EV1: =panel!EV1 -> q151 | EW1: =panel!EW1 -> q152 | EX1: =panel!EX1 -> q153 | EY1: =panel!EY1 -> q154 | EZ1: =panel!EZ1 -> q155 | FA1: =panel!FA1 -> q156 | FB1: =panel!FB1 -> q157 | FC1: =panel!FC1 -> q158 | FD1: =panel!FD1 -> q159 | FE1: =panel!FE1 -> q160 | FF1: =panel!FF1 -> q161 | FG1: =panel!FG1 -> q162 | FH1: =panel!FH1 -> q163 | FI1: =panel!FI1 -> q164 | FJ1: =panel!FJ1 -> q165 | FK1: =panel!FK1 -> q166 | FL1: =panel!FL1 -> q167 | FM1: =panel!FM1 -> q168 | FN1: =panel!FN1 -> q169 | FO1: =panel!FO1 -> q170 | FP1: =panel!FP1 -> q171 | FQ1: =panel!FQ1 -> q172 | FR1: =panel!FR1 -> q173 | FS1: =panel!FS1 -> q174 | FT1: =panel!FT1 -> q175 | FU1: =panel!FU1 -> q176 | FV1: =panel!FV1 -> q177 | FW1: =panel!FW1 -> q178 | FX1: =panel!FX1 -> q179 | FY1: =panel!FY1 -> q180 | FZ1: =panel!FZ1 -> q181 | GA1: =panel!GA1 -> q182 | GB1: =panel!GB1 -> q183 | GC1: =panel!GC1 -> q184 | GD1: =panel!GD1 -> q185 | GE1: =panel!GE1 -> q186 | GF1: =panel!GF1 -> q187 | GG1: =panel!GG1 -> q188 | GH1: =panel!GH1 -> q189 | GI1: =panel!GI1 -> q190 | GJ1: =panel!GJ1 -> q191 | GK1: =panel!GK1 -> q192 | GL1: =panel!GL1 -> q193 | GM1: =panel!GM1 -> q194 | GN1: =panel!GN1 -> q195 | GO1: =panel!GO1 -> q196 | GP1: =panel!GP1 -> q197 | GQ1: =panel!GQ1 -> q198 | GR1: =panel!GR1 -> q199 | GS1: =panel!GS1 -> q200 | GU1: valid items | GV1: score brut | GW1: score %
A2: =panel!A2 -> Expert 1 | B2: =IF(panel!B2=1,'cles de reponses'!B$20,IF(panel!B2=2,'cles de reponses'!B$21,IF(panel!B2=3,'cles de reponses'!B$22,IF(panel!B2=4,'cles de reponses'!B$23,IF(panel!B2=5,'cles de reponses'!B$24))))) -> 1 | C2: =IF(panel!C2=1,'cles de reponses'!C$20,IF(panel!C2=2,'cles de reponses'!C$21,IF(panel!C2=3,'cles de reponses'!C$22,IF(panel!C2=4,'cles de reponses'!C$23,IF(panel!C2=5,'cles de reponses'!C$24))))) -> 1 | D2: =IF(panel!D2=1,'cles de reponses'!D$20,IF(panel!D2=2,'cles de reponses'!D$21,IF(panel!D2=3,'cles de reponses'!D$22,IF(panel!D2=4,'cles de reponses'!D$23,IF(panel!D2=5,'cles de reponses'!D$24))))) -> 1 | E2: =IF(panel!E2=1,'cles de reponses'!E$20,IF(panel!E2=2,'cles de reponses'!E$21,IF(panel!E2=3,'cles de reponses'!E$22,IF(panel!E2=4,'cles de reponses'!E$23,IF(panel!E2=5,'cles de reponses'!E$24))))) -> 1 | F2: =IF(panel!F2=1,'cles de reponses'!F$20,IF(panel!F2=2,'cles de reponses'!F$21,IF(panel!F2=3,'cles de reponses'!F$22,IF(panel!F2=4,'cles de reponses'!F$23,IF(panel!F2=5,'cles de reponses'!F$24))))) -> 1 | G2: =IF(panel!G2=1,'cles de reponses'!G$20,IF(panel!G2=2,'cles de reponses'!G$21,IF(panel!G2=3,'cles de reponses'!G$22,IF(panel!G2=4,'cles de reponses'!G$23,IF(panel!G2=5,'cles de reponses'!G$24))))) -> 1 | H2: =IF(panel!H2=1,'cles de reponses'!H$20,IF(panel!H2=2,'cles de reponses'!H$21,IF(panel!H2=3,'cles de reponses'!H$22,IF(panel!H2=4,'cles de reponses'!H$23,IF(panel!H2=5,'cles de reponses'!H$24))))) -> 1 | I2: =IF(panel!I2=1,'cles de reponses'!I$20,IF(panel!I2=2,'cles de reponses'!I$21,IF(panel!I2=3,'cles de reponses'!I$22,IF(panel!I2=4,'cles de reponses'!I$23,IF(panel!I2=5,'cles de reponses'!I$24))))) -> 0.5416666667 | J2: =IF(panel!J2=1,'cles de reponses'!J$20,IF(panel!J2=2,'cles de reponses'!J$21,IF(panel!J2=3,'cles de reponses'!J$22,IF(panel!J2=4,'cles de reponses'!J$23,IF(panel!J2=5,'cles de reponses'!J$24))))) -> 0.8181818182 | K2: =IF(panel!K2=1,'cles de reponses'!K$20,IF(panel!K2=2,'cles de reponses'!K$21,IF(panel!K2=3,'cles de reponses'!K$22,IF(panel!K2=4,'cles de reponses'!K$23,IF(panel!K2=5,'cles de reponses'!K$24))))) -> 0.2647058824 | L2: =IF(panel!L2=1,'cles de reponses'!L$20,IF(panel!L2=2,'cles de reponses'!L$21,IF(panel!L2=3,'cles de reponses'!L$22,IF(panel!L2=4,'cles de reponses'!L$23,IF(panel!L2=5,'cles de reponses'!L$24))))) -> 1 | M2: =IF(panel!M2=1,'cles de reponses'!M$20,IF(panel!M2=2,'cles de reponses'!M$21,IF(panel!M2=3,'cles de reponses'!M$22,IF(panel!M2=4,'cles de reponses'!M$23,IF(panel!M2=5,'cles de reponses'!M$24))))) -> 0.9130434783 | N2: =IF(panel!N2=1,'cles de reponses'!N$20,IF(panel!N2=2,'cles de reponses'!N$21,IF(panel!N2=3,'cles de reponses'!N$22,IF(panel!N2=4,'cles de reponses'!N$23,IF(panel!N2=5,'cles de reponses'!N$24))))) -> 0.25 | O2: =IF(panel!O2=1,'cles de reponses'!O$20,IF(panel!O2=2,'cles de reponses'!O$21,IF(panel!O2=3,'cles de reponses'!O$22,IF(panel!O2=4,'cles de reponses'!O$23,IF(panel!O2=5,'cles de reponses'!O$24))))) -> 0.3181818182 | P2: =IF(panel!P2=1,'cles de reponses'!P$20,IF(panel!P2=2,'cles de reponses'!P$21,IF(panel!P2=3,'cles de reponses'!P$22,IF(panel!P2=4,'cles de reponses'!P$23,IF(panel!P2=5,'cles de reponses'!P$24))))) -> 0.2962962963 | Q2: =IF(panel!Q2=1,'cles de reponses'!Q$20,IF(panel!Q2=2,'cles de reponses'!Q$21,IF(panel!Q2=3,'cles de reponses'!Q$22,IF(panel!Q2=4,'cles de reponses'!Q$23,IF(panel!Q2=5,'cles de reponses'!Q$24))))) -> 1 | R2: =IF(panel!R2=1,'cles de reponses'!R$20,IF(panel!R2=2,'cles de reponses'!R$21,IF(panel!R2=3,'cles de reponses'!R$22,IF(panel!R2=4,'cles de reponses'!R$23,IF(panel!R2=5,'cles de reponses'!R$24))))) -> 1 | S2: =IF(panel!S2=1,'cles de reponses'!S$20,IF(panel!S2=2,'cles de reponses'!S$21,IF(panel!S2=3,'cles de reponses'!S$22,IF(panel!S2=4,'cles de reponses'!S$23,IF(panel!S2=5,'cles de reponses'!S$24))))) -> 1 | T2: =IF(panel!T2=1,'cles de reponses'!T$20,IF(panel!T2=2,'cles de reponses'!T$21,IF(panel!T2=3,'cles de reponses'!T$22,IF(panel!T2=4,'cles de reponses'!T$23,IF(panel!T2=5,'cles de reponses'!T$24))))) -> 0.4761904762 | U2: =IF(panel!U2=1,'cles de reponses'!U$20,IF(panel!U2=2,'cles de reponses'!U$21,IF(panel!U2=3,'cles de reponses'!U$22,IF(panel!U2=4,'cles de reponses'!U$23,IF(panel!U2=5,'cles de reponses'!U$24))))) -> 0.16 | V2: =IF(panel!V2=1,'cles de reponses'!V$20,IF(panel!V2=2,'cles de reponses'!V$21,IF(panel!V2=3,'cles de reponses'!V$22,IF(panel!V2=4,'cles de reponses'!V$23,IF(panel!V2=5,'cles de reponses'!V$24))))) -> 1 | W2: =IF(panel!W2=1,'cles de reponses'!W$20,IF(panel!W2=2,'cles de reponses'!W$21,IF(panel!W2=3,'cles de reponses'!W$22,IF(panel!W2=4,'cles de reponses'!W$23,IF(panel!W2=5,'cles de reponses'!W$24))))) -> 1 | X2: =IF(panel!X2=1,'cles de reponses'!X$20,IF(panel!X2=2,'cles de reponses'!X$21,IF(panel!X2=3,'cles de reponses'!X$22,IF(panel!X2=4,'cles de reponses'!X$23,IF(panel!X2=5,'cles de reponses'!X$24))))) -> 1 | Y2: =IF(panel!Y2=1,'cles de reponses'!Y$20,IF(panel!Y2=2,'cles de reponses'!Y$21,IF(panel!Y2=3,'cles de reponses'!Y$22,IF(panel!Y2=4,'cles de reponses'!Y$23,IF(panel!Y2=5,'cles de reponses'!Y$24))))) -> 0.2777777778 | Z2: =IF(panel!Z2=1,'cles de reponses'!Z$20,IF(panel!Z2=2,'cles de reponses'!Z$21,IF(panel!Z2=3,'cles de reponses'!Z$22,IF(panel!Z2=4,'cles de reponses'!Z$23,IF(panel!Z2=5,'cles de reponses'!Z$24))))) -> 1 | AA2: =IF(panel!AA2=1,'cles de reponses'!AA$20,IF(panel!AA2=2,'cles de reponses'!AA$21,IF(panel!AA2=3,'cles de reponses'!AA$22,IF(panel!AA2=4,'cles de reponses'!AA$23,IF(panel!AA2=5,'cles de reponses'!AA$24))))) -> 1 | AB2: =IF(panel!AB2=1,'cles de reponses'!AB$20,IF(panel!AB2=2,'cles de reponses'!AB$21,IF(panel!AB2=3,'cles de reponses'!AB$22,IF(panel!AB2=4,'cles de reponses'!AB$23,IF(panel!AB2=5,'cles de reponses'!AB$24))))) -> 0.7272727273 | AC2: =IF(panel!AC2=1,'cles de reponses'!AC$20,IF(panel!AC2=2,'cles de reponses'!AC$21,IF(panel!AC2=3,'cles de reponses'!AC$22,IF(panel!AC2=4,'cles de reponses'!AC$23,IF(panel!AC2=5,'cles de reponses'!AC$24))))) -> 1 | AD2: =IF(panel!AD2=1,'cles de reponses'!AD$20,IF(panel!AD2=2,'cles de reponses'!AD$21,IF(panel!AD2=3,'cles de reponses'!AD$22,IF(panel!AD2=4,'cles de reponses'!AD$23,IF(panel!AD2=5,'cles de reponses'!AD$24))))) -> 1 | AE2: =IF(panel!AE2=1,'cles de reponses'!AE$20,IF(panel!AE2=2,'cles de reponses'!AE$21,IF(panel!AE2=3,'cles de reponses'!AE$22,IF(panel!AE2=4,'cles de reponses'!AE$23,IF(panel!AE2=5,'cles de reponses'!AE$24))))) -> 1 | AF2: =IF(panel!AF2=1,'cles de reponses'!AF$20,IF(panel!AF2=2,'cles de reponses'!AF$21,IF(panel!AF2=3,'cles de reponses'!AF$22,IF(panel!AF2=4,'cles de reponses'!AF$23,IF(panel!AF2=5,'cles de reponses'!AF$24))))) -> 0.3928571429 | AG2: =IF(panel!AG2=1,'cles de reponses'!AG$20,IF(panel!AG2=2,'cles de reponses'!AG$21,IF(panel!AG2=3,'cles de reponses'!AG$22,IF(panel!AG2=4,'cles de reponses'!AG$23,IF(panel!AG2=5,'cles de reponses'!AG$24))))) -> 0.9230769231 | AH2: =IF(panel!AH2=1,'cles de reponses'!AH$20,IF(panel!AH2=2,'cles de reponses'!AH$21,IF(panel!AH2=3,'cles de reponses'!AH$22,IF(panel!AH2=4,'cles de reponses'!AH$23,IF(panel!AH2=5,'cles de reponses'!AH$24))))) -> 0.7272727273 | AI2: =IF(panel!AI2=1,'cles de reponses'!AI$20,IF(panel!AI2=2,'cles de reponses'!AI$21,IF(panel!AI2=3,'cles de reponses'!AI$22,IF(panel!AI2=4,'cles de reponses'!AI$23,IF(panel!AI2=5,'cles de reponses'!AI$24))))) -> 1 | AJ2: =IF(panel!AJ2=1,'cles de reponses'!AJ$20,IF(panel!AJ2=2,'cles de reponses'!AJ$21,IF(panel!AJ2=3,'cles de reponses'!AJ$22,IF(panel!AJ2=4,'cles de reponses'!AJ$23,IF(panel!AJ2=5,'cles de reponses'!AJ$24))))) -> 1 | AK2: =IF(panel!AK2=1,'cles de reponses'!AK$20,IF(panel!AK2=2,'cles de reponses'!AK$21,IF(panel!AK2=3,'cles de reponses'!AK$22,IF(panel!AK2=4,'cles de reponses'!AK$23,IF(panel!AK2=5,'cles de reponses'!AK$24))))) -> 0.95 | AL2: =IF(panel!AL2=1,'cles de reponses'!AL$20,IF(panel!AL2=2,'cles de reponses'!AL$21,IF(panel!AL2=3,'cles de reponses'!AL$22,IF(panel!AL2=4,'cles de reponses'!AL$23,IF(panel!AL2=5,'cles de reponses'!AL$24))))) -> 1 | AM2: =IF(panel!AM2=1,'cles de reponses'!AM$20,IF(panel!AM2=2,'cles de reponses'!AM$21,IF(panel!AM2=3,'cles de reponses'!AM$22,IF(panel!AM2=4,'cles de reponses'!AM$23,IF(panel!AM2=5,'cles de reponses'!AM$24))))) -> 1 | AN2: =IF(panel!AN2=1,'cles de reponses'!AN$20,IF(panel!AN2=2,'cles de reponses'!AN$21,IF(panel!AN2=3,'cles de reponses'!AN$22,IF(panel!AN2=4,'cles de reponses'!AN$23,IF(panel!AN2=5,'cles de reponses'!AN$24))))) -> 0.8636363636 | AO2: =IF(panel!AO2=1,'cles de reponses'!AO$20,IF(panel!AO2=2,'cles de reponses'!AO$21,IF(panel!AO2=3,'cles de reponses'!AO$22,IF(panel!AO2=4,'cles de reponses'!AO$23,IF(panel!AO2=5,'cles de reponses'!AO$24))))) -> 1 | AP2: =IF(panel!AP2=1,'cles de reponses'!AP$20,IF(panel!AP2=2,'cles de reponses'!AP$21,IF(panel!AP2=3,'cles de reponses'!AP$22,IF(panel!AP2=4,'cles de reponses'!AP$23,IF(panel!AP2=5,'cles de reponses'!AP$24))))) -> 1 | AQ2: =IF(panel!AQ2=1,'cles de reponses'!AQ$20,IF(panel!AQ2=2,'cles de reponses'!AQ$21,IF(panel!AQ2=3,'cles de reponses'!AQ$22,IF(panel!AQ2=4,'cles de reponses'!AQ$23,IF(panel!AQ2=5,'cles de reponses'!AQ$24))))) -> 1 | AR2: =IF(panel!AR2=1,'cles de reponses'!AR$20,IF(panel!AR2=2,'cles de reponses'!AR$21,IF(panel!AR2=3,'cles de reponses'!AR$22,IF(panel!AR2=4,'cles de reponses'!AR$23,IF(panel!AR2=5,'cles de reponses'!AR$24))))) -> 1 | AS2: =IF(panel!AS2=1,'cles de reponses'!AS$20,IF(panel!AS2=2,'cles de reponses'!AS$21,IF(panel!AS2=3,'cles de reponses'!AS$22,IF(panel!AS2=4,'cles de reponses'!AS$23,IF(panel!AS2=5,'cles de reponses'!AS$24))))) -> 0.4782608696 | AT2: =IF(panel!AT2=1,'cles de reponses'!AT$20,IF(panel!AT2=2,'cles de reponses'!AT$21,IF(panel!AT2=3,'cles de reponses'!AT$22,IF(panel!AT2=4,'cles de reponses'!AT$23,IF(panel!AT2=5,'cles de reponses'!AT$24))))) -> 1 | AU2: =IF(panel!AU2=1,'cles de reponses'!AU$20,IF(panel!AU2=2,'cles de reponses'!AU$21,IF(panel!AU2=3,'cles de reponses'!AU$22,IF(panel!AU2=4,'cles de reponses'!AU$23,IF(panel!AU2=5,'cles de reponses'!AU$24))))) -> 0.619047619 | AV2: =IF(panel!AV2=1,'cles de reponses'!AV$20,IF(panel!AV2=2,'cles de reponses'!AV$21,IF(panel!AV2=3,'cles de reponses'!AV$22,IF(panel!AV2=4,'cles de reponses'!AV$23,IF(panel!AV2=5,'cles de reponses'!AV$24))))) -> 0.1481481481 | AW2: =IF(panel!AW2=1,'cles de reponses'!AW$20,IF(panel!AW2=2,'cles de reponses'!AW$21,IF(panel!AW2=3,'cles de reponses'!AW$22,IF(panel!AW2=4,'cles de reponses'!AW$23,IF(panel!AW2=5,'cles de reponses'!AW$24))))) -> 0.5416666667 | AX2: =IF(panel!AX2=1,'cles de reponses'!AX$20,IF(panel!AX2=2,'cles de reponses'!AX$21,IF(panel!AX2=3,'cles de reponses'!AX$22,IF(panel!AX2=4,'cles de reponses'!AX$23,IF(panel!AX2=5,'cles de reponses'!AX$24))))) -> 1 | AY2: =IF(panel!AY2=1,'cles de reponses'!AY$20,IF(panel!AY2=2,'cles de reponses'!AY$21,IF(panel!AY2=3,'cles de reponses'!AY$22,IF(panel!AY2=4,'cles de reponses'!AY$23,IF(panel!AY2=5,'cles de reponses'!AY$24))))) -> 1 | AZ2: =IF(panel!AZ2=1,'cles de reponses'!AZ$20,IF(panel!AZ2=2,'cles de reponses'!AZ$21,IF(panel!AZ2=3,'cles de reponses'!AZ$22,IF(panel!AZ2=4,'cles de reponses'!AZ$23,IF(panel!AZ2=5,'cles de reponses'!AZ$24))))) -> 1 | BA2: =IF(panel!BA2=1,'cles de reponses'!BA$20,IF(panel!BA2=2,'cles de reponses'!BA$21,IF(panel!BA2=3,'cles de reponses'!BA$22,IF(panel!BA2=4,'cles de reponses'!BA$23,IF(panel!BA2=5,'cles de reponses'!BA$24))))) -> 0.625 | BB2: =IF(panel!BB2=1,'cles de reponses'!BB$20,IF(panel!BB2=2,'cles de reponses'!BB$21,IF(panel!BB2=3,'cles de reponses'!BB$22,IF(panel!BB2=4,'cles de reponses'!BB$23,IF(panel!BB2=5,'cles de reponses'!BB$24))))) -> 1 | BC2: =IF(panel!BC2=1,'cles de reponses'!BC$20,IF(panel!BC2=2,'cles de reponses'!BC$21,IF(panel!BC2=3,'cles de reponses'!BC$22,IF(panel!BC2=4,'cles de reponses'!BC$23,IF(panel!BC2=5,'cles de reponses'!BC$24))))) -> 1 | BD2: =IF(panel!BD2=1,'cles de reponses'!BD$20,IF(panel!BD2=2,'cles de reponses'!BD$21,IF(panel!BD2=3,'cles de reponses'!BD$22,IF(panel!BD2=4,'cles de reponses'!BD$23,IF(panel!BD2=5,'cles de reponses'!BD$24))))) -> 0.7222222222 | BE2: =IF(panel!BE2=1,'cles de reponses'!BE$20,IF(panel!BE2=2,'cles de reponses'!BE$21,IF(panel!BE2=3,'cles de reponses'!BE$22,IF(panel!BE2=4,'cles de reponses'!BE$23,IF(panel!BE2=5,'cles de reponses'!BE$24))))) -> 0.6296296296 | BF2: =IF(panel!BF2=1,'cles de reponses'!BF$20,IF(panel!BF2=2,'cles de reponses'!BF$21,IF(panel!BF2=3,'cles de reponses'!BF$22,IF(panel!BF2=4,'cles de reponses'!BF$23,IF(panel!BF2=5,'cles de reponses'!BF$24))))) -> 0.5 | BG2: =IF(panel!BG2=1,'cles de reponses'!BG$20,IF(panel!BG2=2,'cles de reponses'!BG$21,IF(panel!BG2=3,'cles de reponses'!BG$22,IF(panel!BG2=4,'cles de reponses'!BG$23,IF(panel!BG2=5,'cles de reponses'!BG$24))))) -> 0.5 | BH2: =IF(panel!BH2=1,'cles de reponses'!BH$20,IF(panel!BH2=2,'cles de reponses'!BH$21,IF(panel!BH2=3,'cles de reponses'!BH$22,IF(panel!BH2=4,'cles de reponses'!BH$23,IF(panel!BH2=5,'cles de reponses'!BH$24))))) -> 0.5416666667 | BI2: =IF(panel!BI2=1,'cles de reponses'!BI$20,IF(panel!BI2=2,'cles de reponses'!BI$21,IF(panel!BI2=3,'cles de reponses'!BI$22,IF(panel!BI2=4,'cles de reponses'!BI$23,IF(panel!BI2=5,'cles de reponses'!BI$24))))) -> 1 | BJ2: =IF(panel!BJ2=1,'cles de reponses'!BJ$20,IF(panel!BJ2=2,'cles de reponses'!BJ$21,IF(panel!BJ2=3,'cles de reponses'!BJ$22,IF(panel!BJ2=4,'cles de reponses'!BJ$23,IF(panel!BJ2=5,'cles de reponses'!BJ$24))))) -> 0.5555555556 | BK2: =IF(panel!BK2=1,'cles de reponses'!BK$20,IF(panel!BK2=2,'cles de reponses'!BK$21,IF(panel!BK2=3,'cles de reponses'!BK$22,IF(panel!BK2=4,'cles de reponses'!BK$23,IF(panel!BK2=5,'cles de reponses'!BK$24))))) -> 0.6111111111 | BL2: =IF(panel!BL2=1,'cles de reponses'!BL$20,IF(panel!BL2=2,'cles de reponses'!BL$21,IF(panel!BL2=3,'cles de reponses'!BL$22,IF(panel!BL2=4,'cles de reponses'!BL$23,IF(panel!BL2=5,'cles de reponses'!BL$24))))) -> 1 | BM2: =IF(panel!BM2=1,'cles de reponses'!BM$20,IF(panel!BM2=2,'cles de reponses'!BM$21,IF(panel!BM2=3,'cles de reponses'!BM$22,IF(panel!BM2=4,'cles de reponses'!BM$23,IF(panel!BM2=5,'cles de reponses'!BM$24))))) -> 0.05263157895 | BN2: =IF(panel!BN2=1,'cles de reponses'!BN$20,IF(panel!BN2=2,'cles de reponses'!BN$21,IF(panel!BN2=3,'cles de reponses'!BN$22,IF(panel!BN2=4,'cles de reponses'!BN$23,IF(panel!BN2=5,'cles de reponses'!BN$24))))) -> 1 | BO2: =IF(panel!BO2=1,'cles de reponses'!BO$20,IF(panel!BO2=2,'cles de reponses'!BO$21,IF(panel!BO2=3,'cles de reponses'!BO$22,IF(panel!BO2=4,'cles de reponses'!BO$23,IF(panel!BO2=5,'cles de reponses'!BO$24))))) -> 1 | BP2: =IF(panel!BP2=1,'cles de reponses'!BP$20,IF(panel!BP2=2,'cles de reponses'!BP$21,IF(panel!BP2=3,'cles de reponses'!BP$22,IF(panel!BP2=4,'cles de reponses'!BP$23,IF(panel!BP2=5,'cles de reponses'!BP$24))))) -> 0.3333333333 | BQ2: =IF(panel!BQ2=1,'cles de reponses'!BQ$20,IF(panel!BQ2=2,'cles de reponses'!BQ$21,IF(panel!BQ2=3,'cles de reponses'!BQ$22,IF(panel!BQ2=4,'cles de reponses'!BQ$23,IF(panel!BQ2=5,'cles de reponses'!BQ$24))))) -> 1 | BR2: =IF(panel!BR2=1,'cles de reponses'!BR$20,IF(panel!BR2=2,'cles de reponses'!BR$21,IF(panel!BR2=3,'cles de reponses'!BR$22,IF(panel!BR2=4,'cles de reponses'!BR$23,IF(panel!BR2=5,'cles de reponses'!BR$24))))) -> 0.1578947368 | BS2: =IF(panel!BS2=1,'cles de reponses'!BS$20,IF(panel!BS2=2,'cles de reponses'!BS$21,IF(panel!BS2=3,'cles de reponses'!BS$22,IF(panel!BS2=4,'cles de reponses'!BS$23,IF(panel!BS2=5,'cles de reponses'!BS$24))))) -> 1 | BT2: =IF(panel!BT2=1,'cles de reponses'!BT$20,IF(panel!BT2=2,'cles de reponses'!BT$21,IF(panel!BT2=3,'cles de reponses'!BT$22,IF(panel!BT2=4,'cles de reponses'!BT$23,IF(panel!BT2=5,'cles de reponses'!BT$24))))) -> 0.1111111111 | BU2: =IF(panel!BU2=1,'cles de reponses'!BU$20,IF(panel!BU2=2,'cles de reponses'!BU$21,IF(panel!BU2=3,'cles de reponses'!BU$22,IF(panel!BU2=4,'cles de reponses'!BU$23,IF(panel!BU2=5,'cles de reponses'!BU$24))))) -> 0.4210526316 | BV2: =IF(panel!BV2=1,'cles de reponses'!BV$20,IF(panel!BV2=2,'cles de reponses'!BV$21,IF(panel!BV2=3,'cles de reponses'!BV$22,IF(panel!BV2=4,'cles de reponses'!BV$23,IF(panel!BV2=5,'cles de reponses'!BV$24))))) -> 1 | BW2: =IF(panel!BW2=1,'cles de reponses'!BW$20,IF(panel!BW2=2,'cles de reponses'!BW$21,IF(panel!BW2=3,'cles de reponses'!BW$22,IF(panel!BW2=4,'cles de reponses'!BW$23,IF(panel!BW2=5,'cles de reponses'!BW$24))))) -> 0.1818181818 | BX2: =IF(panel!BX2=1,'cles de reponses'!BX$20,IF(panel!BX2=2,'cles de reponses'!BX$21,IF(panel!BX2=3,'cles de reponses'!BX$22,IF(panel!BX2=4,'cles de reponses'!BX$23,IF(panel!BX2=5,'cles de reponses'!BX$24))))) -> 1 | BY2: =IF(panel!BY2=1,'cles de reponses'!BY$20,IF(panel!BY2=2,'cles de reponses'!BY$21,IF(panel!BY2=3,'cles de reponses'!BY$22,IF(panel!BY2=4,'cles de reponses'!BY$23,IF(panel!BY2=5,'cles de reponses'!BY$24))))) -> 1 | BZ2: =IF(panel!BZ2=1,'cles de reponses'!BZ$20,IF(panel!BZ2=2,'cles de reponses'!BZ$21,IF(panel!BZ2=3,'cles de reponses'!BZ$22,IF(panel!BZ2=4,'cles de reponses'!BZ$23,IF(panel!BZ2=5,'cles de reponses'!BZ$24))))) -> 1 | CA2: =IF(panel!CA2=1,'cles de reponses'!CA$20,IF(panel!CA2=2,'cles de reponses'!CA$21,IF(panel!CA2=3,'cles de reponses'!CA$22,IF(panel!CA2=4,'cles de reponses'!CA$23,IF(panel!CA2=5,'cles de reponses'!CA$24))))) -> 0.9375 | CB2: =IF(panel!CB2=1,'cles de reponses'!CB$20,IF(panel!CB2=2,'cles de reponses'!CB$21,IF(panel!CB2=3,'cles de reponses'!CB$22,IF(panel!CB2=4,'cles de reponses'!CB$23,IF(panel!CB2=5,'cles de reponses'!CB$24))))) -> 1 | CC2: =IF(panel!CC2=1,'cles de reponses'!CC$20,IF(panel!CC2=2,'cles de reponses'!CC$21,IF(panel!CC2=3,'cles de reponses'!CC$22,IF(panel!CC2=4,'cles de reponses'!CC$23,IF(panel!CC2=5,'cles de reponses'!CC$24))))) -> 0.4705882353 | CD2: =IF(panel!CD2=1,'cles de reponses'!CD$20,IF(panel!CD2=2,'cles de reponses'!CD$21,IF(panel!CD2=3,'cles de reponses'!CD$22,IF(panel!CD2=4,'cles de reponses'!CD$23,IF(panel!CD2=5,'cles de reponses'!CD$24))))) -> 1 | CE2: =IF(panel!CE2=1,'cles de reponses'!CE$20,IF(panel!CE2=2,'cles de reponses'!CE$21,IF(panel!CE2=3,'cles de reponses'!CE$22,IF(panel!CE2=4,'cles de reponses'!CE$23,IF(panel!CE2=5,'cles de reponses'!CE$24))))) -> 0.2142857143 | CF2: =IF(panel!CF2=1,'cles de reponses'!CF$20,IF(panel!CF2=2,'cles de reponses'!CF$21,IF(panel!CF2=3,'cles de reponses'!CF$22,IF(panel!CF2=4,'cles de reponses'!CF$23,IF(panel!CF2=5,'cles de reponses'!CF$24))))) -> 0.2173913043 | CG2: =IF(panel!CG2=1,'cles de reponses'!CG$20,IF(panel!CG2=2,'cles de reponses'!CG$21,IF(panel!CG2=3,'cles de reponses'!CG$22,IF(panel!CG2=4,'cles de reponses'!CG$23,IF(panel!CG2=5,'cles de reponses'!CG$24))))) -> 1 | CH2: =IF(panel!CH2=1,'cles de reponses'!CH$20,IF(panel!CH2=2,'cles de reponses'!CH$21,IF(panel!CH2=3,'cles de reponses'!CH$22,IF(panel!CH2=4,'cles de reponses'!CH$23,IF(panel!CH2=5,'cles de reponses'!CH$24))))) -> 1 | CI2: =IF(panel!CI2=1,'cles de reponses'!CI$20,IF(panel!CI2=2,'cles de reponses'!CI$21,IF(panel!CI2=3,'cles de reponses'!CI$22,IF(panel!CI2=4,'cles de reponses'!CI$23,IF(panel!CI2=5,'cles de reponses'!CI$24))))) -> 1 | CJ2: =IF(panel!CJ2=1,'cles de reponses'!CJ$20,IF(panel!CJ2=2,'cles de reponses'!CJ$21,IF(panel!CJ2=3,'cles de reponses'!CJ$22,IF(panel!CJ2=4,'cles de reponses'!CJ$23,IF(panel!CJ2=5,'cles de reponses'!CJ$24))))) -> 0.9285714286 | CK2: =IF(panel!CK2=1,'cles de reponses'!CK$20,IF(panel!CK2=2,'cles de reponses'!CK$21,IF(panel!CK2=3,'cles de reponses'!CK$22,IF(panel!CK2=4,'cles de reponses'!CK$23,IF(panel!CK2=5,'cles de reponses'!CK$24))))) -> 0.1034482759 | CL2: =IF(panel!CL2=1,'cles de reponses'!CL$20,IF(panel!CL2=2,'cles de reponses'!CL$21,IF(panel!CL2=3,'cles de reponses'!CL$22,IF(panel!CL2=4,'cles de reponses'!CL$23,IF(panel!CL2=5,'cles de reponses'!CL$24))))) -> 1 | CM2: =IF(panel!CM2=1,'cles de reponses'!CM$20,IF(panel!CM2=2,'cles de reponses'!CM$21,IF(panel!CM2=3,'cles de reponses'!CM$22,IF(panel!CM2=4,'cles de reponses'!CM$23,IF(panel!CM2=5,'cles de reponses'!CM$24))))) -> 0.5 | CN2: =IF(panel!CN2=1,'cles de reponses'!CN$20,IF(panel!CN2=2,'cles de reponses'!CN$21,IF(panel!CN2=3,'cles de reponses'!CN$22,IF(panel!CN2=4,'cles de reponses'!CN$23,IF(panel!CN2=5,'cles de reponses'!CN$24))))) -> FALSE | CO2: =IF(panel!CO2=1,'cles de reponses'!CO$20,IF(panel!CO2=2,'cles de reponses'!CO$21,IF(panel!CO2=3,'cles de reponses'!CO$22,IF(panel!CO2=4,'cles de reponses'!CO$23,IF(panel!CO2=5,'cles de reponses'!CO$24))))) -> FALSE | CP2: =IF(panel!CP2=1,'cles de reponses'!CP$20,IF(panel!CP2=2,'cles de reponses'!CP$21,IF(panel!CP2=3,'cles de reponses'!CP$22,IF(panel!CP2=4,'cles de reponses'!CP$23,IF(panel!CP2=5,'cles de reponses'!CP$24))))) -> FALSE | CQ2: =IF(panel!CQ2=1,'cles de reponses'!CQ$20,IF(panel!CQ2=2,'cles de reponses'!CQ$21,IF(panel!CQ2=3,'cles de reponses'!CQ$22,IF(panel!CQ2=4,'cles de reponses'!CQ$23,IF(panel!CQ2=5,'cles de reponses'!CQ$24))))) -> FALSE | CR2: =IF(panel!CR2=1,'cles de reponses'!CR$20,IF(panel!CR2=2,'cles de reponses'!CR$21,IF(panel!CR2=3,'cles de reponses'!CR$22,IF(panel!CR2=4,'cles de reponses'!CR$23,IF(panel!CR2=5,'cles de reponses'!CR$24))))) -> FALSE | CS2: =IF(panel!CS2=1,'cles de reponses'!CS$20,IF(panel!CS2=2,'cles de reponses'!CS$21,IF(panel!CS2=3,'cles de reponses'!CS$22,IF(panel!CS2=4,'cles de reponses'!CS$23,IF(panel!CS2=5,'cles de reponses'!CS$24))))) -> FALSE | CT2: =IF(panel!CT2=1,'cles de reponses'!CT$20,IF(panel!CT2=2,'cles de reponses'!CT$21,IF(panel!CT2=3,'cles de reponses'!CT$22,IF(panel!CT2=4,'cles de reponses'!CT$23,IF(panel!CT2=5,'cles de reponses'!CT$24))))) -> FALSE | CU2: =IF(panel!CU2=1,'cles de reponses'!CU$20,IF(panel!CU2=2,'cles de reponses'!CU$21,IF(panel!CU2=3,'cles de reponses'!CU$22,IF(panel!CU2=4,'cles de reponses'!CU$23,IF(panel!CU2=5,'cles de reponses'!CU$24))))) -> FALSE | CV2: =IF(panel!CV2=1,'cles de reponses'!CV$20,IF(panel!CV2=2,'cles de reponses'!CV$21,IF(panel!CV2=3,'cles de reponses'!CV$22,IF(panel!CV2=4,'cles de reponses'!CV$23,IF(panel!CV2=5,'cles de reponses'!CV$24))))) -> FALSE | CW2: =IF(panel!CW2=1,'cles de reponses'!CW$20,IF(panel!CW2=2,'cles de reponses'!CW$21,IF(panel!CW2=3,'cles de reponses'!CW$22,IF(panel!CW2=4,'cles de reponses'!CW$23,IF(panel!CW2=5,'cles de reponses'!CW$24))))) -> FALSE | CX2: =IF(panel!CX2=1,'cles de reponses'!CX$20,IF(panel!CX2=2,'cles de reponses'!CX$21,IF(panel!CX2=3,'cles de reponses'!CX$22,IF(panel!CX2=4,'cles de reponses'!CX$23,IF(panel!CX2=5,'cles de reponses'!CX$24))))) -> FALSE | CY2: =IF(panel!CY2=1,'cles de reponses'!CY$20,IF(panel!CY2=2,'cles de reponses'!CY$21,IF(panel!CY2=3,'cles de reponses'!CY$22,IF(panel!CY2=4,'cles de reponses'!CY$23,IF(panel!CY2=5,'cles de reponses'!CY$24))))) -> FALSE | CZ2: =IF(panel!CZ2=1,'cles de reponses'!CZ$20,IF(panel!CZ2=2,'cles de reponses'!CZ$21,IF(panel!CZ2=3,'cles de reponses'!CZ$22,IF(panel!CZ2=4,'cles de reponses'!CZ$23,IF(panel!CZ2=5,'cles de reponses'!CZ$24))))) -> FALSE | DA2: =IF(panel!DA2=1,'cles de reponses'!DA$20,IF(panel!DA2=2,'cles de reponses'!DA$21,IF(panel!DA2=3,'cles de reponses'!DA$22,IF(panel!DA2=4,'cles de reponses'!DA$23,IF(panel!DA2=5,'cles de reponses'!DA$24))))) -> FALSE | DB2: =IF(panel!DB2=1,'cles de reponses'!DB$20,IF(panel!DB2=2,'cles de reponses'!DB$21,IF(panel!DB2=3,'cles de reponses'!DB$22,IF(panel!DB2=4,'cles de reponses'!DB$23,IF(panel!DB2=5,'cles de reponses'!DB$24))))) -> FALSE | DC2: =IF(panel!DC2=1,'cles de reponses'!DC$20,IF(panel!DC2=2,'cles de reponses'!DC$21,IF(panel!DC2=3,'cles de reponses'!DC$22,IF(panel!DC2=4,'cles de reponses'!DC$23,IF(panel!DC2=5,'cles de reponses'!DC$24))))) -> FALSE | DD2: =IF(panel!DD2=1,'cles de reponses'!DD$20,IF(panel!DD2=2,'cles de reponses'!DD$21,IF(panel!DD2=3,'cles de reponses'!DD$22,IF(panel!DD2=4,'cles de reponses'!DD$23,IF(panel!DD2=5,'cles de reponses'!DD$24))))) -> FALSE | DE2: =IF(panel!DE2=1,'cles de reponses'!DE$20,IF(panel!DE2=2,'cles de reponses'!DE$21,IF(panel!DE2=3,'cles de reponses'!DE$22,IF(panel!DE2=4,'cles de reponses'!DE$23,IF(panel!DE2=5,'cles de reponses'!DE$24))))) -> FALSE | DF2: =IF(panel!DF2=1,'cles de reponses'!DF$20,IF(panel!DF2=2,'cles de reponses'!DF$21,IF(panel!DF2=3,'cles de reponses'!DF$22,IF(panel!DF2=4,'cles de reponses'!DF$23,IF(panel!DF2=5,'cles de reponses'!DF$24))))) -> FALSE | DG2: =IF(panel!DG2=1,'cles de reponses'!DG$20,IF(panel!DG2=2,'cles de reponses'!DG$21,IF(panel!DG2=3,'cles de reponses'!DG$22,IF(panel!DG2=4,'cles de reponses'!DG$23,IF(panel!DG2=5,'cles de reponses'!DG$24))))) -> FALSE | DH2: =IF(panel!DH2=1,'cles de reponses'!DH$20,IF(panel!DH2=2,'cles de reponses'!DH$21,IF(panel!DH2=3,'cles de reponses'!DH$22,IF(panel!DH2=4,'cles de reponses'!DH$23,IF(panel!DH2=5,'cles de reponses'!DH$24))))) -> FALSE | DI2: =IF(panel!DI2=1,'cles de reponses'!DI$20,IF(panel!DI2=2,'cles de reponses'!DI$21,IF(panel!DI2=3,'cles de reponses'!DI$22,IF(panel!DI2=4,'cles de reponses'!DI$23,IF(panel!DI2=5,'cles de reponses'!DI$24))))) -> FALSE | DJ2: =IF(panel!DJ2=1,'cles de reponses'!DJ$20,IF(panel!DJ2=2,'cles de reponses'!DJ$21,IF(panel!DJ2=3,'cles de reponses'!DJ$22,IF(panel!DJ2=4,'cles de reponses'!DJ$23,IF(panel!DJ2=5,'cles de reponses'!DJ$24))))) -> FALSE | DK2: =IF(panel!DK2=1,'cles de reponses'!DK$20,IF(panel!DK2=2,'cles de reponses'!DK$21,IF(panel!DK2=3,'cles de reponses'!DK$22,IF(panel!DK2=4,'cles de reponses'!DK$23,IF(panel!DK2=5,'cles de reponses'!DK$24))))) -> FALSE | DL2: =IF(panel!DL2=1,'cles de reponses'!DL$20,IF(panel!DL2=2,'cles de reponses'!DL$21,IF(panel!DL2=3,'cles de reponses'!DL$22,IF(panel!DL2=4,'cles de reponses'!DL$23,IF(panel!DL2=5,'cles de reponses'!DL$24))))) -> FALSE | DM2: =IF(panel!DM2=1,'cles de reponses'!DM$20,IF(panel!DM2=2,'cles de reponses'!DM$21,IF(panel!DM2=3,'cles de reponses'!DM$22,IF(panel!DM2=4,'cles de reponses'!DM$23,IF(panel!DM2=5,'cles de reponses'!DM$24))))) -> FALSE | DN2: =IF(panel!DN2=1,'cles de reponses'!DN$20,IF(panel!DN2=2,'cles de reponses'!DN$21,IF(panel!DN2=3,'cles de reponses'!DN$22,IF(panel!DN2=4,'cles de reponses'!DN$23,IF(panel!DN2=5,'cles de reponses'!DN$24))))) -> FALSE | DO2: =IF(panel!DO2=1,'cles de reponses'!DO$20,IF(panel!DO2=2,'cles de reponses'!DO$21,IF(panel!DO2=3,'cles de reponses'!DO$22,IF(panel!DO2=4,'cles de reponses'!DO$23,IF(panel!DO2=5,'cles de reponses'!DO$24))))) -> FALSE | DP2: =IF(panel!DP2=1,'cles de reponses'!DP$20,IF(panel!DP2=2,'cles de reponses'!DP$21,IF(panel!DP2=3,'cles de reponses'!DP$22,IF(panel!DP2=4,'cles de reponses'!DP$23,IF(panel!DP2=5,'cles de reponses'!DP$24))))) -> FALSE | DQ2: =IF(panel!DQ2=1,'cles de reponses'!DQ$20,IF(panel!DQ2=2,'cles de reponses'!DQ$21,IF(panel!DQ2=3,'cles de reponses'!DQ$22,IF(panel!DQ2=4,'cles de reponses'!DQ$23,IF(panel!DQ2=5,'cles de reponses'!DQ$24))))) -> FALSE | DR2: =IF(panel!DR2=1,'cles de reponses'!DR$20,IF(panel!DR2=2,'cles de reponses'!DR$21,IF(panel!DR2=3,'cles de reponses'!DR$22,IF(panel!DR2=4,'cles de reponses'!DR$23,IF(panel!DR2=5,'cles de reponses'!DR$24))))) -> FALSE | DS2: =IF(panel!DS2=1,'cles de reponses'!DS$20,IF(panel!DS2=2,'cles de reponses'!DS$21,IF(panel!DS2=3,'cles de reponses'!DS$22,IF(panel!DS2=4,'cles de reponses'!DS$23,IF(panel!DS2=5,'cles de reponses'!DS$24))))) -> FALSE | DT2: =IF(panel!DT2=1,'cles de reponses'!DT$20,IF(panel!DT2=2,'cles de reponses'!DT$21,IF(panel!DT2=3,'cles de reponses'!DT$22,IF(panel!DT2=4,'cles de reponses'!DT$23,IF(panel!DT2=5,'cles de reponses'!DT$24))))) -> FALSE | DU2: =IF(panel!DU2=1,'cles de reponses'!DU$20,IF(panel!DU2=2,'cles de reponses'!DU$21,IF(panel!DU2=3,'cles de reponses'!DU$22,IF(panel!DU2=4,'cles de reponses'!DU$23,IF(panel!DU2=5,'cles de reponses'!DU$24))))) -> FALSE | DV2: =IF(panel!DV2=1,'cles de reponses'!DV$20,IF(panel!DV2=2,'cles de reponses'!DV$21,IF(panel!DV2=3,'cles de reponses'!DV$22,IF(panel!DV2=4,'cles de reponses'!DV$23,IF(panel!DV2=5,'cles de reponses'!DV$24))))) -> FALSE | DW2: =IF(panel!DW2=1,'cles de reponses'!DW$20,IF(panel!DW2=2,'cles de reponses'!DW$21,IF(panel!DW2=3,'cles de reponses'!DW$22,IF(panel!DW2=4,'cles de reponses'!DW$23,IF(panel!DW2=5,'cles de reponses'!DW$24))))) -> FALSE | DX2: =IF(panel!DX2=1,'cles de reponses'!DX$20,IF(panel!DX2=2,'cles de reponses'!DX$21,IF(panel!DX2=3,'cles de reponses'!DX$22,IF(panel!DX2=4,'cles de reponses'!DX$23,IF(panel!DX2=5,'cles de reponses'!DX$24))))) -> FALSE | DY2: =IF(panel!DY2=1,'cles de reponses'!DY$20,IF(panel!DY2=2,'cles de reponses'!DY$21,IF(panel!DY2=3,'cles de reponses'!DY$22,IF(panel!DY2=4,'cles de reponses'!DY$23,IF(panel!DY2=5,'cles de reponses'!DY$24))))) -> FALSE | DZ2: =IF(panel!DZ2=1,'cles de reponses'!DZ$20,IF(panel!DZ2=2,'cles de reponses'!DZ$21,IF(panel!DZ2=3,'cles de reponses'!DZ$22,IF(panel!DZ2=4,'cles de reponses'!DZ$23,IF(panel!DZ2=5,'cles de reponses'!DZ$24))))) -> FALSE | EA2: =IF(panel!EA2=1,'cles de reponses'!EA$20,IF(panel!EA2=2,'cles de reponses'!EA$21,IF(panel!EA2=3,'cles de reponses'!EA$22,IF(panel!EA2=4,'cles de reponses'!EA$23,IF(panel!EA2=5,'cles de reponses'!EA$24))))) -> FALSE | EB2: =IF(panel!EB2=1,'cles de reponses'!EB$20,IF(panel!EB2=2,'cles de reponses'!EB$21,IF(panel!EB2=3,'cles de reponses'!EB$22,IF(panel!EB2=4,'cles de reponses'!EB$23,IF(panel!EB2=5,'cles de reponses'!EB$24))))) -> FALSE | EC2: =IF(panel!EC2=1,'cles de reponses'!EC$20,IF(panel!EC2=2,'cles de reponses'!EC$21,IF(panel!EC2=3,'cles de reponses'!EC$22,IF(panel!EC2=4,'cles de reponses'!EC$23,IF(panel!EC2=5,'cles de reponses'!EC$24))))) -> FALSE | ED2: =IF(panel!ED2=1,'cles de reponses'!ED$20,IF(panel!ED2=2,'cles de reponses'!ED$21,IF(panel!ED2=3,'cles de reponses'!ED$22,IF(panel!ED2=4,'cles de reponses'!ED$23,IF(panel!ED2=5,'cles de reponses'!ED$24))))) -> FALSE | EE2: =IF(panel!EE2=1,'cles de reponses'!EE$20,IF(panel!EE2=2,'cles de reponses'!EE$21,IF(panel!EE2=3,'cles de reponses'!EE$22,IF(panel!EE2=4,'cles de reponses'!EE$23,IF(panel!EE2=5,'cles de reponses'!EE$24))))) -> FALSE | EF2: =IF(panel!EF2=1,'cles de reponses'!EF$20,IF(panel!EF2=2,'cles de reponses'!EF$21,IF(panel!EF2=3,'cles de reponses'!EF$22,IF(panel!EF2=4,'cles de reponses'!EF$23,IF(panel!EF2=5,'cles de reponses'!EF$24))))) -> FALSE | EG2: =IF(panel!EG2=1,'cles de reponses'!EG$20,IF(panel!EG2=2,'cles de reponses'!EG$21,IF(panel!EG2=3,'cles de reponses'!EG$22,IF(panel!EG2=4,'cles de reponses'!EG$23,IF(panel!EG2=5,'cles de reponses'!EG$24))))) -> FALSE | EH2: =IF(panel!EH2=1,'cles de reponses'!EH$20,IF(panel!EH2=2,'cles de reponses'!EH$21,IF(panel!EH2=3,'cles de reponses'!EH$22,IF(panel!EH2=4,'cles de reponses'!EH$23,IF(panel!EH2=5,'cles de reponses'!EH$24))))) -> FALSE | EI2: =IF(panel!EI2=1,'cles de reponses'!EI$20,IF(panel!EI2=2,'cles de reponses'!EI$21,IF(panel!EI2=3,'cles de reponses'!EI$22,IF(panel!EI2=4,'cles de reponses'!EI$23,IF(panel!EI2=5,'cles de reponses'!EI$24))))) -> FALSE | EJ2: =IF(panel!EJ2=1,'cles de reponses'!EJ$20,IF(panel!EJ2=2,'cles de reponses'!EJ$21,IF(panel!EJ2=3,'cles de reponses'!EJ$22,IF(panel!EJ2=4,'cles de reponses'!EJ$23,IF(panel!EJ2=5,'cles de reponses'!EJ$24))))) -> FALSE | EK2: =IF(panel!EK2=1,'cles de reponses'!EK$20,IF(panel!EK2=2,'cles de reponses'!EK$21,IF(panel!EK2=3,'cles de reponses'!EK$22,IF(panel!EK2=4,'cles de reponses'!EK$23,IF(panel!EK2=5,'cles de reponses'!EK$24))))) -> FALSE | EL2: =IF(panel!EL2=1,'cles de reponses'!EL$20,IF(panel!EL2=2,'cles de reponses'!EL$21,IF(panel!EL2=3,'cles de reponses'!EL$22,IF(panel!EL2=4,'cles de reponses'!EL$23,IF(panel!EL2=5,'cles de reponses'!EL$24))))) -> FALSE | EM2: =IF(panel!EM2=1,'cles de reponses'!EM$20,IF(panel!EM2=2,'cles de reponses'!EM$21,IF(panel!EM2=3,'cles de reponses'!EM$22,IF(panel!EM2=4,'cles de reponses'!EM$23,IF(panel!EM2=5,'cles de reponses'!EM$24))))) -> FALSE | EN2: =IF(panel!EN2=1,'cles de reponses'!EN$20,IF(panel!EN2=2,'cles de reponses'!EN$21,IF(panel!EN2=3,'cles de reponses'!EN$22,IF(panel!EN2=4,'cles de reponses'!EN$23,IF(panel!EN2=5,'cles de reponses'!EN$24))))) -> FALSE | EO2: =IF(panel!EO2=1,'cles de reponses'!EO$20,IF(panel!EO2=2,'cles de reponses'!EO$21,IF(panel!EO2=3,'cles de reponses'!EO$22,IF(panel!EO2=4,'cles de reponses'!EO$23,IF(panel!EO2=5,'cles de reponses'!EO$24))))) -> FALSE | EP2: =IF(panel!EP2=1,'cles de reponses'!EP$20,IF(panel!EP2=2,'cles de reponses'!EP$21,IF(panel!EP2=3,'cles de reponses'!EP$22,IF(panel!EP2=4,'cles de reponses'!EP$23,IF(panel!EP2=5,'cles de reponses'!EP$24))))) -> FALSE | EQ2: =IF(panel!EQ2=1,'cles de reponses'!EQ$20,IF(panel!EQ2=2,'cles de reponses'!EQ$21,IF(panel!EQ2=3,'cles de reponses'!EQ$22,IF(panel!EQ2=4,'cles de reponses'!EQ$23,IF(panel!EQ2=5,'cles de reponses'!EQ$24))))) -> FALSE | ER2: =IF(panel!ER2=1,'cles de reponses'!ER$20,IF(panel!ER2=2,'cles de reponses'!ER$21,IF(panel!ER2=3,'cles de reponses'!ER$22,IF(panel!ER2=4,'cles de reponses'!ER$23,IF(panel!ER2=5,'cles de reponses'!ER$24))))) -> FALSE | ES2: =IF(panel!ES2=1,'cles de reponses'!ES$20,IF(panel!ES2=2,'cles de reponses'!ES$21,IF(panel!ES2=3,'cles de reponses'!ES$22,IF(panel!ES2=4,'cles de reponses'!ES$23,IF(panel!ES2=5,'cles de reponses'!ES$24))))) -> FALSE | ET2: =IF(panel!ET2=1,'cles de reponses'!ET$20,IF(panel!ET2=2,'cles de reponses'!ET$21,IF(panel!ET2=3,'cles de reponses'!ET$22,IF(panel!ET2=4,'cles de reponses'!ET$23,IF(panel!ET2=5,'cles de reponses'!ET$24))))) -> FALSE | EU2: =IF(panel!EU2=1,'cles de reponses'!EU$20,IF(panel!EU2=2,'cles de reponses'!EU$21,IF(panel!EU2=3,'cles de reponses'!EU$22,IF(panel!EU2=4,'cles de reponses'!EU$23,IF(panel!EU2=5,'cles de reponses'!EU$24))))) -> FALSE | EV2: =IF(panel!EV2=1,'cles de reponses'!EV$20,IF(panel!EV2=2,'cles de reponses'!EV$21,IF(panel!EV2=3,'cles de reponses'!EV$22,IF(panel!EV2=4,'cles de reponses'!EV$23,IF(panel!EV2=5,'cles de reponses'!EV$24))))) -> FALSE | EW2: =IF(panel!EW2=1,'cles de reponses'!EW$20,IF(panel!EW2=2,'cles de reponses'!EW$21,IF(panel!EW2=3,'cles de reponses'!EW$22,IF(panel!EW2=4,'cles de reponses'!EW$23,IF(panel!EW2=5,'cles de reponses'!EW$24))))) -> FALSE | EX2: =IF(panel!EX2=1,'cles de reponses'!EX$20,IF(panel!EX2=2,'cles de reponses'!EX$21,IF(panel!EX2=3,'cles de reponses'!EX$22,IF(panel!EX2=4,'cles de reponses'!EX$23,IF(panel!EX2=5,'cles de reponses'!EX$24))))) -> FALSE | EY2: =IF(panel!EY2=1,'cles de reponses'!EY$20,IF(panel!EY2=2,'cles de reponses'!EY$21,IF(panel!EY2=3,'cles de reponses'!EY$22,IF(panel!EY2=4,'cles de reponses'!EY$23,IF(panel!EY2=5,'cles de reponses'!EY$24))))) -> FALSE | EZ2: =IF(panel!EZ2=1,'cles de reponses'!EZ$20,IF(panel!EZ2=2,'cles de reponses'!EZ$21,IF(panel!EZ2=3,'cles de reponses'!EZ$22,IF(panel!EZ2=4,'cles de reponses'!EZ$23,IF(panel!EZ2=5,'cles de reponses'!EZ$24))))) -> FALSE | FA2: =IF(panel!FA2=1,'cles de reponses'!FA$20,IF(panel!FA2=2,'cles de reponses'!FA$21,IF(panel!FA2=3,'cles de reponses'!FA$22,IF(panel!FA2=4,'cles de reponses'!FA$23,IF(panel!FA2=5,'cles de reponses'!FA$24))))) -> FALSE | FB2: =IF(panel!FB2=1,'cles de reponses'!FB$20,IF(panel!FB2=2,'cles de reponses'!FB$21,IF(panel!FB2=3,'cles de reponses'!FB$22,IF(panel!FB2=4,'cles de reponses'!FB$23,IF(panel!FB2=5,'cles de reponses'!FB$24))))) -> FALSE | FC2: =IF(panel!FC2=1,'cles de reponses'!FC$20,IF(panel!FC2=2,'cles de reponses'!FC$21,IF(panel!FC2=3,'cles de reponses'!FC$22,IF(panel!FC2=4,'cles de reponses'!FC$23,IF(panel!FC2=5,'cles de reponses'!FC$24))))) -> FALSE | FD2: =IF(panel!FD2=1,'cles de reponses'!FD$20,IF(panel!FD2=2,'cles de reponses'!FD$21,IF(panel!FD2=3,'cles de reponses'!FD$22,IF(panel!FD2=4,'cles de reponses'!FD$23,IF(panel!FD2=5,'cles de reponses'!FD$24))))) -> FALSE | FE2: =IF(panel!FE2=1,'cles de reponses'!FE$20,IF(panel!FE2=2,'cles de reponses'!FE$21,IF(panel!FE2=3,'cles de reponses'!FE$22,IF(panel!FE2=4,'cles de reponses'!FE$23,IF(panel!FE2=5,'cles de reponses'!FE$24))))) -> FALSE | FF2: =IF(panel!FF2=1,'cles de reponses'!FF$20,IF(panel!FF2=2,'cles de reponses'!FF$21,IF(panel!FF2=3,'cles de reponses'!FF$22,IF(panel!FF2=4,'cles de reponses'!FF$23,IF(panel!FF2=5,'cles de reponses'!FF$24))))) -> FALSE | FG2: =IF(panel!FG2=1,'cles de reponses'!FG$20,IF(panel!FG2=2,'cles de reponses'!FG$21,IF(panel!FG2=3,'cles de reponses'!FG$22,IF(panel!FG2=4,'cles de reponses'!FG$23,IF(panel!FG2=5,'cles de reponses'!FG$24))))) -> FALSE | FH2: =IF(panel!FH2=1,'cles de reponses'!FH$20,IF(panel!FH2=2,'cles de reponses'!FH$21,IF(panel!FH2=3,'cles de reponses'!FH$22,IF(panel!FH2=4,'cles de reponses'!FH$23,IF(panel!FH2=5,'cles de reponses'!FH$24))))) -> FALSE | FI2: =IF(panel!FI2=1,'cles de reponses'!FI$20,IF(panel!FI2=2,'cles de reponses'!FI$21,IF(panel!FI2=3,'cles de reponses'!FI$22,IF(panel!FI2=4,'cles de reponses'!FI$23,IF(panel!FI2=5,'cles de reponses'!FI$24))))) -> FALSE | FJ2: =IF(panel!FJ2=1,'cles de reponses'!FJ$20,IF(panel!FJ2=2,'cles de reponses'!FJ$21,IF(panel!FJ2=3,'cles de reponses'!FJ$22,IF(panel!FJ2=4,'cles de reponses'!FJ$23,IF(panel!FJ2=5,'cles de reponses'!FJ$24))))) -> FALSE | FK2: =IF(panel!FK2=1,'cles de reponses'!FK$20,IF(panel!FK2=2,'cles de reponses'!FK$21,IF(panel!FK2=3,'cles de reponses'!FK$22,IF(panel!FK2=4,'cles de reponses'!FK$23,IF(panel!FK2=5,'cles de reponses'!FK$24))))) -> FALSE | FL2: =IF(panel!FL2=1,'cles de reponses'!FL$20,IF(panel!FL2=2,'cles de reponses'!FL$21,IF(panel!FL2=3,'cles de reponses'!FL$22,IF(panel!FL2=4,'cles de reponses'!FL$23,IF(panel!FL2=5,'cles de reponses'!FL$24))))) -> FALSE | FM2: =IF(panel!FM2=1,'cles de reponses'!FM$20,IF(panel!FM2=2,'cles de reponses'!FM$21,IF(panel!FM2=3,'cles de reponses'!FM$22,IF(panel!FM2=4,'cles de reponses'!FM$23,IF(panel!FM2=5,'cles de reponses'!FM$24))))) -> FALSE | FN2: =IF(panel!FN2=1,'cles de reponses'!FN$20,IF(panel!FN2=2,'cles de reponses'!FN$21,IF(panel!FN2=3,'cles de reponses'!FN$22,IF(panel!FN2=4,'cles de reponses'!FN$23,IF(panel!FN2=5,'cles de reponses'!FN$24))))) -> FALSE | FO2: =IF(panel!FO2=1,'cles de reponses'!FO$20,IF(panel!FO2=2,'cles de reponses'!FO$21,IF(panel!FO2=3,'cles de reponses'!FO$22,IF(panel!FO2=4,'cles de reponses'!FO$23,IF(panel!FO2=5,'cles de reponses'!FO$24))))) -> FALSE | FP2: =IF(panel!FP2=1,'cles de reponses'!FP$20,IF(panel!FP2=2,'cles de reponses'!FP$21,IF(panel!FP2=3,'cles de reponses'!FP$22,IF(panel!FP2=4,'cles de reponses'!FP$23,IF(panel!FP2=5,'cles de reponses'!FP$24))))) -> FALSE | FQ2: =IF(panel!FQ2=1,'cles de reponses'!FQ$20,IF(panel!FQ2=2,'cles de reponses'!FQ$21,IF(panel!FQ2=3,'cles de reponses'!FQ$22,IF(panel!FQ2=4,'cles de reponses'!FQ$23,IF(panel!FQ2=5,'cles de reponses'!FQ$24))))) -> FALSE | FR2: =IF(panel!FR2=1,'cles de reponses'!FR$20,IF(panel!FR2=2,'cles de reponses'!FR$21,IF(panel!FR2=3,'cles de reponses'!FR$22,IF(panel!FR2=4,'cles de reponses'!FR$23,IF(panel!FR2=5,'cles de reponses'!FR$24))))) -> FALSE | FS2: =IF(panel!FS2=1,'cles de reponses'!FS$20,IF(panel!FS2=2,'cles de reponses'!FS$21,IF(panel!FS2=3,'cles de reponses'!FS$22,IF(panel!FS2=4,'cles de reponses'!FS$23,IF(panel!FS2=5,'cles de reponses'!FS$24))))) -> FALSE | FT2: =IF(panel!FT2=1,'cles de reponses'!FT$20,IF(panel!FT2=2,'cles de reponses'!FT$21,IF(panel!FT2=3,'cles de reponses'!FT$22,IF(panel!FT2=4,'cles de reponses'!FT$23,IF(panel!FT2=5,'cles de reponses'!FT$24))))) -> FALSE | FU2: =IF(panel!FU2=1,'cles de reponses'!FU$20,IF(panel!FU2=2,'cles de reponses'!FU$21,IF(panel!FU2=3,'cles de reponses'!FU$22,IF(panel!FU2=4,'cles de reponses'!FU$23,IF(panel!FU2=5,'cles de reponses'!FU$24))))) -> FALSE | FV2: =IF(panel!FV2=1,'cles de reponses'!FV$20,IF(panel!FV2=2,'cles de reponses'!FV$21,IF(panel!FV2=3,'cles de reponses'!FV$22,IF(panel!FV2=4,'cles de reponses'!FV$23,IF(panel!FV2=5,'cles de reponses'!FV$24))))) -> FALSE | FW2: =IF(panel!FW2=1,'cles de reponses'!FW$20,IF(panel!FW2=2,'cles de reponses'!FW$21,IF(panel!FW2=3,'cles de reponses'!FW$22,IF(panel!FW2=4,'cles de reponses'!FW$23,IF(panel!FW2=5,'cles de reponses'!FW$24))))) -> FALSE | FX2: =IF(panel!FX2=1,'cles de reponses'!FX$20,IF(panel!FX2=2,'cles de reponses'!FX$21,IF(panel!FX2=3,'cles de reponses'!FX$22,IF(panel!FX2=4,'cles de reponses'!FX$23,IF(panel!FX2=5,'cles de reponses'!FX$24))))) -> FALSE | FY2: =IF(panel!FY2=1,'cles de reponses'!FY$20,IF(panel!FY2=2,'cles de reponses'!FY$21,IF(panel!FY2=3,'cles de reponses'!FY$22,IF(panel!FY2=4,'cles de reponses'!FY$23,IF(panel!FY2=5,'cles de reponses'!FY$24))))) -> FALSE | FZ2: =IF(panel!FZ2=1,'cles de reponses'!FZ$20,IF(panel!FZ2=2,'cles de reponses'!FZ$21,IF(panel!FZ2=3,'cles de reponses'!FZ$22,IF(panel!FZ2=4,'cles de reponses'!FZ$23,IF(panel!FZ2=5,'cles de reponses'!FZ$24))))) -> FALSE | GA2: =IF(panel!GA2=1,'cles de reponses'!GA$20,IF(panel!GA2=2,'cles de reponses'!GA$21,IF(panel!GA2=3,'cles de reponses'!GA$22,IF(panel!GA2=4,'cles de reponses'!GA$23,IF(panel!GA2=5,'cles de reponses'!GA$24))))) -> FALSE | GB2: =IF(panel!GB2=1,'cles de reponses'!GB$20,IF(panel!GB2=2,'cles de reponses'!GB$21,IF(panel!GB2=3,'cles de reponses'!GB$22,IF(panel!GB2=4,'cles de reponses'!GB$23,IF(panel!GB2=5,'cles de reponses'!GB$24))))) -> FALSE | GC2: =IF(panel!GC2=1,'cles de reponses'!GC$20,IF(panel!GC2=2,'cles de reponses'!GC$21,IF(panel!GC2=3,'cles de reponses'!GC$22,IF(panel!GC2=4,'cles de reponses'!GC$23,IF(panel!GC2=5,'cles de reponses'!GC$24))))) -> FALSE | GD2: =IF(panel!GD2=1,'cles de reponses'!GD$20,IF(panel!GD2=2,'cles de reponses'!GD$21,IF(panel!GD2=3,'cles de reponses'!GD$22,IF(panel!GD2=4,'cles de reponses'!GD$23,IF(panel!GD2=5,'cles de reponses'!GD$24))))) -> FALSE | GE2: =IF(panel!GE2=1,'cles de reponses'!GE$20,IF(panel!GE2=2,'cles de reponses'!GE$21,IF(panel!GE2=3,'cles de reponses'!GE$22,IF(panel!GE2=4,'cles de reponses'!GE$23,IF(panel!GE2=5,'cles de reponses'!GE$24))))) -> FALSE | GF2: =IF(panel!GF2=1,'cles de reponses'!GF$20,IF(panel!GF2=2,'cles de reponses'!GF$21,IF(panel!GF2=3,'cles de reponses'!GF$22,IF(panel!GF2=4,'cles de reponses'!GF$23,IF(panel!GF2=5,'cles de reponses'!GF$24))))) -> FALSE | GG2: =IF(panel!GG2=1,'cles de reponses'!GG$20,IF(panel!GG2=2,'cles de reponses'!GG$21,IF(panel!GG2=3,'cles de reponses'!GG$22,IF(panel!GG2=4,'cles de reponses'!GG$23,IF(panel!GG2=5,'cles de reponses'!GG$24))))) -> FALSE | GH2: =IF(panel!GH2=1,'cles de reponses'!GH$20,IF(panel!GH2=2,'cles de reponses'!GH$21,IF(panel!GH2=3,'cles de reponses'!GH$22,IF(panel!GH2=4,'cles de reponses'!GH$23,IF(panel!GH2=5,'cles de reponses'!GH$24))))) -> FALSE | GI2: =IF(panel!GI2=1,'cles de reponses'!GI$20,IF(panel!GI2=2,'cles de reponses'!GI$21,IF(panel!GI2=3,'cles de reponses'!GI$22,IF(panel!GI2=4,'cles de reponses'!GI$23,IF(panel!GI2=5,'cles de reponses'!GI$24))))) -> FALSE | GJ2: =IF(panel!GJ2=1,'cles de reponses'!GJ$20,IF(panel!GJ2=2,'cles de reponses'!GJ$21,IF(panel!GJ2=3,'cles de reponses'!GJ$22,IF(panel!GJ2=4,'cles de reponses'!GJ$23,IF(panel!GJ2=5,'cles de reponses'!GJ$24))))) -> FALSE | GK2: =IF(panel!GK2=1,'cles de reponses'!GK$20,IF(panel!GK2=2,'cles de reponses'!GK$21,IF(panel!GK2=3,'cles de reponses'!GK$22,IF(panel!GK2=4,'cles de reponses'!GK$23,IF(panel!GK2=5,'cles de reponses'!GK$24))))) -> FALSE | GL2: =IF(panel!GL2=1,'cles de reponses'!GL$20,IF(panel!GL2=2,'cles de reponses'!GL$21,IF(panel!GL2=3,'cles de reponses'!GL$22,IF(panel!GL2=4,'cles de reponses'!GL$23,IF(panel!GL2=5,'cles de reponses'!GL$24))))) -> FALSE | GM2: =IF(panel!GM2=1,'cles de reponses'!GM$20,IF(panel!GM2=2,'cles de reponses'!GM$21,IF(panel!GM2=3,'cles de reponses'!GM$22,IF(panel!GM2=4,'cles de reponses'!GM$23,IF(panel!GM2=5,'cles de reponses'!GM$24))))) -> FALSE | GN2: =IF(panel!GN2=1,'cles de reponses'!GN$20,IF(panel!GN2=2,'cles de reponses'!GN$21,IF(panel!GN2=3,'cles de reponses'!GN$22,IF(panel!GN2=4,'cles de reponses'!GN$23,IF(panel!GN2=5,'cles de reponses'!GN$24))))) -> FALSE | GO2: =IF(panel!GO2=1,'cles de reponses'!GO$20,IF(panel!GO2=2,'cles de reponses'!GO$21,IF(panel!GO2=3,'cles de reponses'!GO$22,IF(panel!GO2=4,'cles de reponses'!GO$23,IF(panel!GO2=5,'cles de reponses'!GO$24))))) -> FALSE | GP2: =IF(panel!GP2=1,'cles de reponses'!GP$20,IF(panel!GP2=2,'cles de reponses'!GP$21,IF(panel!GP2=3,'cles de reponses'!GP$22,IF(panel!GP2=4,'cles de reponses'!GP$23,IF(panel!GP2=5,'cles de reponses'!GP$24))))) -> FALSE | GQ2: =IF(panel!GQ2=1,'cles de reponses'!GQ$20,IF(panel!GQ2=2,'cles de reponses'!GQ$21,IF(panel!GQ2=3,'cles de reponses'!GQ$22,IF(panel!GQ2=4,'cles de reponses'!GQ$23,IF(panel!GQ2=5,'cles de reponses'!GQ$24))))) -> FALSE | GR2: =IF(panel!GR2=1,'cles de reponses'!GR$20,IF(panel!GR2=2,'cles de reponses'!GR$21,IF(panel!GR2=3,'cles de reponses'!GR$22,IF(panel!GR2=4,'cles de reponses'!GR$23,IF(panel!GR2=5,'cles de reponses'!GR$24))))) -> FALSE | GS2: =IF(panel!GS2=1,'cles de reponses'!GS$20,IF(panel!GS2=2,'cles de reponses'!GS$21,IF(panel!GS2=3,'cles de reponses'!GS$22,IF(panel!GS2=4,'cles de reponses'!GS$23,IF(panel!GS2=5,'cles de reponses'!GS$24))))) -> FALSE | GU2: =200-(COUNTIF(B2:GS2,FALSE)) -> 90 | GV2: =IF(GU2,SUM(B2:GS2),"") -> 69.00209512 | GW2: =IF(GU2>0,(GV2/GU2)*100,"") -> 76.66899458
